Workbook

Sheet Ward Profile (hidden)

Sheet Summary (hidden)
B3: Which Table do you need? | E3: 2 | F3: =VLOOKUP(E3,Table!$D$2:$E$36,2,FALSE) -> Age structure
B5: Which Indicator | E5: 1 | F5: =VLOOKUP(E5,Workings!$A$2:$B$264,2,FALSE) -> All categories: Age
B9: Number Graph
B21: % Graph

Sheet York (hidden)
F1: =RANK(VLOOKUP(F$3,INDIRECT($BK1),3+$BF1,FALSE),INDIRECT($BH1)) -> 
F2: 1 | G2: 2 | H2: 3 | I2: 4 | J2: 5 | K2: 6 | L2: 7 | M2: 8 | N2: 9 | O2: 10 | P2: 11 | Q2: 12 | R2: 13 | S2: 14 | T2: 15 | U2: 16 | V2: 17 | W2: 18 | X2: 19 | Y2: 20 | Z2: 21 | AA2: 22 | AB2: 5 | AC2: 4 | AD2: 3 | AE2: ='2001 Data'!M1 -> 13 | AF2: ='2001 Data'!N1 -> 14 | AG2: ='2001 Data'!O1 -> 15 | AH2: ='2001 Data'!P1 -> 16 | AI2: ='2001 Data'!Q1 -> 17 | AJ2: ='2001 Data'!R1 -> 18 | AK2: ='2001 Data'!S1 -> 19 | AL2: ='2001 Data'!T1 -> 20 | AM2: ='2001 Data'!U1 -> 21 | AN2: ='2001 Data'!V1 -> 22 | AO2: ='2001 Data'!W1 -> 23 | AP2: ='2001 Data'!X1 -> 24 | AQ2: ='2001 Data'!Y1 -> 25 | AR2: ='2001 Data'!Z1 -> 26 | AS2: ='2001 Data'!AA1 -> 27 | AT2: ='2001 Data'!AB1 -> 28 | AU2: ='2001 Data'!AC1 -> 29 | AV2: ='2001 Data'!AD1 -> 30 | AW2: ='2001 Data'!AE1 -> 31 | AX2: ='2001 Data'!AF1 -> 32 | AY2: ='2001 Data'!AG1 -> 33 | AZ2: ='2001 Data'!AH1 -> 34 | BA2: ='2001 Data'!K1 -> 11 | BB2: ='2001 Data'!I1 -> 9 | BC2: ='2001 Data'!J1 -> 10
F3: E05001745 | G3: E05001746 | H3: E05001747 | I3: E05001748 | J3: E05001749 | K3: E05001750 | L3: E05001751 | M3: E05001752 | N3: E05001753 | O3: E05001754 | P3: E05001755 | Q3: E05001756 | R3: E05001757 | S3: E05001758 | T3: E05001759 | U3: E05001760 | V3: E05001761 | W3: E05001762 | X3: E05001763 | Y3: E05001764 | Z3: E05001765 | AA3: E05001766 | AB3: E06000014 | AC3: E12000003 | AD3: E92000001 | AE3: 2001 Data | AF3: 2001 Data | AG3: 2001 Data | AH3: 2001 Data | AI3: 2001 Data | AJ3: 2001 Data | AK3: 2001 Data | AL3: 2001 Data | AM3: 2001 Data | AN3: 2001 Data | AO3: 2001 Data | AP3: 2001 Data | AQ3: 2001 Data | AR3: 2001 Data | AS3: 2001 Data | AT3: 2001 Data | AU3: 2001 Data | AV3: 2001 Data | AW3: 2001 Data | AX3: 2001 Data | AY3: 2001 Data | AZ3: 2001 Data | BA3: 2001 Data | BB3: 2001 Data | BC3: 2001 Data | BE3: =BE5&"!"&BG5 -> V:\Business Intelligence Hub\01 - The City\2011 Census\Data\2nd Release - Key Indicators\Lower Areas and Wards\Initial Briefing\Census 2011 Bulk Data Load\Ward Bulk Data\Key Statisitics Bulk Load\[KEYSTATS FILE2.xlsx]KS101EWDATA!$D$7:$D$28
A4: ColumnVariableCode | B4: ColumnVariableMeasurementUnit | C4: ColumnVariableStatisticalUnit | D4: Table | E4: ColumnVariableDescription | F4: Acomb | G4: Bishopthorpe | H4: Clifton | I4: Derwent | J4: Dringhouses and Woodthorpe | K4: Fishergate | L4: Fulford | M4: Guildhall | N4: Haxby and Wigginton | O4: Heslington | P4: Heworth | Q4: Heworth Without | R4: Holgate | S4: Hull Road | T4: Huntington and New Earswick | U4: Micklegate | V4: Osbaldwick | W4: Rural West York | X4: Skelton, Rawcliffe and Clifton Without | Y4: Strensall | Z4: Westfield | AA4: Wheldrake | AB4: York UA | AC4: YORKSHIRE AND THE HUMBER | AD4: ENGLAND | AE4: Acomb | AF4: Bishopthorpe | AG4: Clifton | AH4: Derwent | AI4: Dringhouses and Woodthorpe | AJ4: Fishergate | AK4: Fulford | AL4: Guildhall | AM4: Haxby and Wigginton | AN4: Heslington | AO4: Heworth | AP4: Heworth Without | AQ4: Holgate | AR4: Hull Road | AS4: Huntington and New Earswick | AT4: Micklegate | AU4: Osbaldwick | AV4: Rural West York | AW4: Skelton, Rawcliffe and Clifton Without | AX4: Strensall | AY4: Westfield | AZ4: Wheldrake | BA4: York UA | BB4: YORKSHIRE AND THE HUMBER | BC4: ENGLAND
A5: KS101EW0001 | B5: Count | C5: Person | D5: Usual resident population | E5: All categories: Sex | F5: 14 | G5: 18 | H5: 3 | I5: 20 | J5: 9 | K5: 12 | L5: 22 | M5: 13 | N5: 8 | O5: 16 | P5: 1 | Q5: 19 | R5: 5 | S5: 10 | T5: 7 | U5: 6 | V5: 21 | W5: 11 | X5: 4 | Y5: 15 | Z5: 2 | AA5: 17 | AB5: 198051 | AC5: 5283733 | AD5: 53012456 | AE5: =IFERROR(VLOOKUP($A5,'2001 Data'!$A$5:$AH$65001,York!AE$2,FALSE),"No Data") -> 7729 | AF5: =IFERROR(VLOOKUP($A5,'2001 Data'!$A$5:$AH$65001,York!AF$2,FALSE),"No Data") -> 3802 | AG5: =IFERROR(VLOOKUP($A5,'2001 Data'!$A$5:$AH$65001,York!AG$2,FALSE),"No Data") -> 12017 | AH5: =IFERROR(VLOOKUP($A5,'2001 Data'!$A$5:$AH$65001,York!AH$2,FALSE),"No Data") -> 3540 | AI5: =IFERROR(VLOOKUP($A5,'2001 Data'!$A$5:$AH$65001,York!AI$2,FALSE),"No Data") -> 10733 | AJ5: =IFERROR(VLOOKUP($A5,'2001 Data'!$A$5:$AH$65001,York!AJ$2,FALSE),"No Data") -> 7921 | AK5: =IFERROR(VLOOKUP($A5,'2001 Data'!$A$5:$AH$65001,York!AK$2,FALSE),"No Data") -> 2595 | AL5: =IFERROR(VLOOKUP($A5,'2001 Data'!$A$5:$AH$65001,York!AL$2,FALSE),"No Data") -> 6676 | AM5: =IFERROR(VLOOKUP($A5,'2001 Data'!$A$5:$AH$65001,York!AM$2,FALSE),"No Data") -> 12468 | AN5: =IFERROR(VLOOKUP($A5,'2001 Data'!$A$5:$AH$65001,York!AN$2,FALSE),"No Data") -> 4122 | AO5: =IFERROR(VLOOKUP($A5,'2001 Data'!$A$5:$AH$65001,York!AO$2,FALSE),"No Data") -> 11743 | AP5: =IFERROR(VLOOKUP($A5,'2001 Data'!$A$5:$AH$65001,York!AP$2,FALSE),"No Data") -> 3786 | AQ5: =IFERROR(VLOOKUP($A5,'2001 Data'!$A$5:$AH$65001,York!AQ$2,FALSE),"No Data") -> 11564 | AR5: =IFERROR(VLOOKUP($A5,'2001 Data'!$A$5:$AH$65001,York!AR$2,FALSE),"No Data") -> 8269 | AS5: =IFERROR(VLOOKUP($A5,'2001 Data'!$A$5:$AH$65001,York!AS$2,FALSE),"No Data") -> 12089 | AT5: =IFERROR(VLOOKUP($A5,'2001 Data'!$A$5:$AH$65001,York!AT$2,FALSE),"No Data") -> 10994 | AU5: =IFERROR(VLOOKUP($A5,'2001 Data'!$A$5:$AH$65001,York!AU$2,FALSE),"No Data") -> 3149 | AV5: =IFERROR(VLOOKUP($A5,'2001 Data'!$A$5:$AH$65001,York!AV$2,FALSE),"No Data") -> 10286 | AW5: =IFERROR(VLOOKUP($A5,'2001 Data'!$A$5:$AH$65001,York!AW$2,FALSE),"No Data") -> 12160 | AX5: =IFERROR(VLOOKUP($A5,'2001 Data'!$A$5:$AH$65001,York!AX$2,FALSE),"No Data") -> 7862 | AY5: =IFERROR(VLOOKUP($A5,'2001 Data'!$A$5:$AH$65001,York!AY$2,FALSE),"No Data") -> 13690 | AZ5: =IFERROR(VLOOKUP($A5,'2001 Data'!$A$5:$AH$65001,York!AZ$2,FALSE),"No Data") -> 3899 | BA5: =IFERROR(VLOOKUP($A5,'2001 Data'!$A$5:$AH$65001,York!BA$2,FALSE),"No Data") -> 181094 | BB5: =IFERROR(VLOOKUP($A5,'2001 Data'!$A$5:$AH$65001,York!BB$2,FALSE),"No Data") -> 52041916 | BC5: =IFERROR(VLOOKUP($A5,'2001 Data'!$A$5:$AH$65001,York!BC$2,FALSE),"No Data") -> 49138831 | BE5: =$BM$5&LEFT(A5,7)&"DATA" -> V:\Business Intelligence Hub\01 - The City\2011 Census\Data\2nd Release - Key Indicators\Lower Areas and Wards\Initial Briefing\Census 2011 Bulk Data Load\Ward Bulk Data\Key Statisitics Bulk Load\[KEYSTATS FILE2.xlsx]KS101EWDATA | BF5: =IF(BE5=BE4,BF4+1,1) -> 1 | BG5: =VLOOKUP(BF5,Sheet3!$B$2:$C$77,2,FALSE) -> $D$7:$D$28 | BH5: ="'"&BE5&"'!"&BG5 -> 'V:\Business Intelligence Hub\01 - The City\2011 Census\Data\2nd Release - Key Indicators\Lower Areas and Wards\Initial Briefing\Census 2011 Bulk Data Load\Ward Bulk Data\Key Statisitics Bulk Load\[KEYSTATS FILE2.xlsx]KS101EWDATA'!$D$7:$D$28 | BI5: =COUNTIF($BE$5:$BE$897,BE5) -> 12 | BJ5: =VLOOKUP(BI5,Sheet3!$B$2:$F$77,5,FALSE) -> $A$1:$o$28 | BK5: ="'"&BE5&"'!"&BJ5 -> 'V:\Business Intelligence Hub\01 - The City\2011 Census\Data\2nd Release - Key Indicators\Lower Areas and Wards\Initial Briefing\Census 2011 Bulk Data Load\Ward Bulk Data\Key Statisitics Bulk Load\[KEYSTATS FILE2.xlsx]KS101EWDATA'!$A$1:$o$28 | BM5: V:\Business Intelligence Hub\01 - The City\2011 Census\Data\2nd Release - Key Indicators\Lower Areas and Wards\Initial Briefing\Census 2011 Bulk Data Load\Ward Bulk Data\Key Statisitics Bulk Load\[KEYSTATS FILE2.xlsx]
A6: KS101EW0002 | B6: Count | C6: Person | D6: Usual resident population | E6: Males | F6: 14 | G6: 18 | H6: 2 | I6: 20 | J6: 10 | K6: 12 | L6: 22 | M6: 13 | N6: 8 | O6: 16 | P6: 1 | Q6: 19 | R6: 5 | S6: 9 | T6: 7 | U6: 6 | V6: 21 | W6: 11 | X6: 4 | Y6: 15 | Z6: 3 | AA6: 17 | AB6: 96254 | AC6: 2598078 | AD6: 26069148 | AE6: =IFERROR(VLOOKUP($A6,'2001 Data'!$A$5:$AH$65001,York!AE$2,FALSE),"No Data") -> 3779 | AF6: =IFERROR(VLOOKUP($A6,'2001 Data'!$A$5:$AH$65001,York!AF$2,FALSE),"No Data") -> 1819 | AG6: =IFERROR(VLOOKUP($A6,'2001 Data'!$A$5:$AH$65001,York!AG$2,FALSE),"No Data") -> 5683 | AH6: =IFERROR(VLOOKUP($A6,'2001 Data'!$A$5:$AH$65001,York!AH$2,FALSE),"No Data") -> 1723 | AI6: =IFERROR(VLOOKUP($A6,'2001 Data'!$A$5:$AH$65001,York!AI$2,FALSE),"No Data") -> 5198 | AJ6: =IFERROR(VLOOKUP($A6,'2001 Data'!$A$5:$AH$65001,York!AJ$2,FALSE),"No Data") -> 3905 | AK6: =IFERROR(VLOOKUP($A6,'2001 Data'!$A$5:$AH$65001,York!AK$2,FALSE),"No Data") -> 1209 | AL6: =IFERROR(VLOOKUP($A6,'2001 Data'!$A$5:$AH$65001,York!AL$2,FALSE),"No Data") -> 3138 | AM6: =IFERROR(VLOOKUP($A6,'2001 Data'!$A$5:$AH$65001,York!AM$2,FALSE),"No Data") -> 5886 | AN6: =IFERROR(VLOOKUP($A6,'2001 Data'!$A$5:$AH$65001,York!AN$2,FALSE),"No Data") -> 2107 | AO6: =IFERROR(VLOOKUP($A6,'2001 Data'!$A$5:$AH$65001,York!AO$2,FALSE),"No Data") -> 5497 | AP6: =IFERROR(VLOOKUP($A6,'2001 Data'!$A$5:$AH$65001,York!AP$2,FALSE),"No Data") -> 1822 | AQ6: =IFERROR(VLOOKUP($A6,'2001 Data'!$A$5:$AH$65001,York!AQ$2,FALSE),"No Data") -> 5702 | AR6: =IFERROR(VLOOKUP($A6,'2001 Data'!$A$5:$AH$65001,York!AR$2,FALSE),"No Data") -> 4010 | AS6: =IFERROR(VLOOKUP($A6,'2001 Data'!$A$5:$AH$65001,York!AS$2,FALSE),"No Data") -> 5728 | AT6: =IFERROR(VLOOKUP($A6,'2001 Data'!$A$5:$AH$65001,York!AT$2,FALSE),"No Data") -> 5316 | AU6: =IFERROR(VLOOKUP($A6,'2001 Data'!$A$5:$AH$65001,York!AU$2,FALSE),"No Data") -> 1502 | AV6: =IFERROR(VLOOKUP($A6,'2001 Data'!$A$5:$AH$65001,York!AV$2,FALSE),"No Data") -> 4942 | AW6: =IFERROR(VLOOKUP($A6,'2001 Data'!$A$5:$AH$65001,York!AW$2,FALSE),"No Data") -> 5911 | AX6: =IFERROR(VLOOKUP($A6,'2001 Data'!$A$5:$AH$65001,York!AX$2,FALSE),"No Data") -> 3869 | AY6: =IFERROR(VLOOKUP($A6,'2001 Data'!$A$5:$AH$65001,York!AY$2,FALSE),"No Data") -> 6491 | AZ6: =IFERROR(VLOOKUP($A6,'2001 Data'!$A$5:$AH$65001,York!AZ$2,FALSE),"No Data") -> 1900 | BA6: =IFERROR(VLOOKUP($A6,'2001 Data'!$A$5:$AH$65001,York!BA$2,FALSE),"No Data") -> 87137 | BB6: =IFERROR(VLOOKUP($A6,'2001 Data'!$A$5:$AH$65001,York!BB$2,FALSE),"No Data") -> 25325926 | BC6: =IFERROR(VLOOKUP($A6,'2001 Data'!$A$5:$AH$65001,York!BC$2,FALSE),"No Data") -> 23922144 | BE6: V:\Business Intelligence Hub\01 - The City\2011 Census\Data\2nd Release - Key Indicators\Lower Areas and Wards\Initial Briefing\Census 2011 Bulk Data Load\Ward Bulk Data\Key Statisitics Bulk Load\[KEYSTATS FILE2.xlsx]KS101EWDATA | BF6: =IF(BE6=BE5,BF5+1,1) -> 2 | BG6: =VLOOKUP(BF6,Sheet3!$B$2:$C$77,2,FALSE) -> $E$7:$E$28 | BH6: ="'"&BE6&"'!"&BG6 -> 'V:\Business Intelligence Hub\01 - The City\2011 Census\Data\2nd Release - Key Indicators\Lower Areas and Wards\Initial Briefing\Census 2011 Bulk Data Load\Ward Bulk Data\Key Statisitics Bulk Load\[KEYSTATS FILE2.xlsx]KS101EWDATA'!$E$7:$E$28 | BI6: =COUNTIF($BE$5:$BE$897,BE6) -> 12 | BJ6: =VLOOKUP(BI6,Sheet3!$B$2:$F$77,5,FALSE) -> $A$1:$o$28 | BK6: ="'"&BE6&"'!"&BJ6 -> 'V:\Business Intelligence Hub\01 - The City\2011 Census\Data\2nd Release - Key Indicators\Lower Areas and Wards\Initial Briefing\Census 2011 Bulk Data Load\Ward Bulk Data\Key Statisitics Bulk Load\[KEYSTATS FILE2.xlsx]KS101EWDATA'!$A$1:$o$28
A7: KS101EW0003 | B7: Count | C7: Person | D7: Usual resident population | E7: Females | F7: 14 | G7: 18 | H7: 2 | I7: 20 | J7: 9 | K7: 12 | L7: 22 | M7: 13 | N7: 7 | O7: 16 | P7: 3 | Q7: 19 | R7: 5 | S7: 11 | T7: 6 | U7: 8 | V7: 21 | W7: 10 | X7: 4 | Y7: 15 | Z7: 1 | AA7: 17 | AB7: 101797 | AC7: 2685655 | AD7: 26943308 | AE7: =IFERROR(VLOOKUP($A7,'2001 Data'!$A$5:$AH$65001,York!AE$2,FALSE),"No Data") -> 3950 | AF7: =IFERROR(VLOOKUP($A7,'2001 Data'!$A$5:$AH$65001,York!AF$2,FALSE),"No Data") -> 1983 | AG7: =IFERROR(VLOOKUP($A7,'2001 Data'!$A$5:$AH$65001,York!AG$2,FALSE),"No Data") -> 6334 | AH7: =IFERROR(VLOOKUP($A7,'2001 Data'!$A$5:$AH$65001,York!AH$2,FALSE),"No Data") -> 1817 | AI7: =IFERROR(VLOOKUP($A7,'2001 Data'!$A$5:$AH$65001,York!AI$2,FALSE),"No Data") -> 5535 | AJ7: =IFERROR(VLOOKUP($A7,'2001 Data'!$A$5:$AH$65001,York!AJ$2,FALSE),"No Data") -> 4016 | AK7: =IFERROR(VLOOKUP($A7,'2001 Data'!$A$5:$AH$65001,York!AK$2,FALSE),"No Data") -> 1386 | AL7: =IFERROR(VLOOKUP($A7,'2001 Data'!$A$5:$AH$65001,York!AL$2,FALSE),"No Data") -> 3538 | AM7: =IFERROR(VLOOKUP($A7,'2001 Data'!$A$5:$AH$65001,York!AM$2,FALSE),"No Data") -> 6582 | AN7: =IFERROR(VLOOKUP($A7,'2001 Data'!$A$5:$AH$65001,York!AN$2,FALSE),"No Data") -> 2015 | AO7: =IFERROR(VLOOKUP($A7,'2001 Data'!$A$5:$AH$65001,York!AO$2,FALSE),"No Data") -> 6246 | AP7: =IFERROR(VLOOKUP($A7,'2001 Data'!$A$5:$AH$65001,York!AP$2,FALSE),"No Data") -> 1964 | AQ7: =IFERROR(VLOOKUP($A7,'2001 Data'!$A$5:$AH$65001,York!AQ$2,FALSE),"No Data") -> 5862 | AR7: =IFERROR(VLOOKUP($A7,'2001 Data'!$A$5:$AH$65001,York!AR$2,FALSE),"No Data") -> 4259 | AS7: =IFERROR(VLOOKUP($A7,'2001 Data'!$A$5:$AH$65001,York!AS$2,FALSE),"No Data") -> 6361 | AT7: =IFERROR(VLOOKUP($A7,'2001 Data'!$A$5:$AH$65001,York!AT$2,FALSE),"No Data") -> 5678 | AU7: =IFERROR(VLOOKUP($A7,'2001 Data'!$A$5:$AH$65001,York!AU$2,FALSE),"No Data") -> 1647 | AV7: =IFERROR(VLOOKUP($A7,'2001 Data'!$A$5:$AH$65001,York!AV$2,FALSE),"No Data") -> 5344 | AW7: =IFERROR(VLOOKUP($A7,'2001 Data'!$A$5:$AH$65001,York!AW$2,FALSE),"No Data") -> 6249 | AX7: =IFERROR(VLOOKUP($A7,'2001 Data'!$A$5:$AH$65001,York!AX$2,FALSE),"No Data") -> 3993 | AY7: =IFERROR(VLOOKUP($A7,'2001 Data'!$A$5:$AH$65001,York!AY$2,FALSE),"No Data") -> 7199 | AZ7: =IFERROR(VLOOKUP($A7,'2001 Data'!$A$5:$AH$65001,York!AZ$2,FALSE),"No Data") -> 1999 | BA7: =IFERROR(VLOOKUP($A7,'2001 Data'!$A$5:$AH$65001,York!BA$2,FALSE),"No Data") -> 93957 | BB7: =IFERROR(VLOOKUP($A7,'2001 Data'!$A$5:$AH$65001,York!BB$2,FALSE),"No Data") -> 26715990 | BC7: =IFERROR(VLOOKUP($A7,'2001 Data'!$A$5:$AH$65001,York!BC$2,FALSE),"No Data") -> 25216687 | BE7: V:\Business Intelligence Hub\01 - The City\2011 Census\Data\2nd Release - Key Indicators\Lower Areas and Wards\Initial Briefing\Census 2011 Bulk Data Load\Ward Bulk Data\Key Statisitics Bulk Load\[KEYSTATS FILE2.xlsx]KS101EWDATA | BF7: 3 | BG7: =VLOOKUP(BF7,Sheet3!$B$2:$C$77,2,FALSE) -> $F$7:$F$28 | BH7: 'V:\Business Intelligence Hub\01 - The City\2011 Census\Data\2nd Release - Key Indicators\Lower Areas and Wards\Initial Briefing\Census 2011 Bulk Data Load\Ward Bulk Data\Key Statisitics Bulk Load\[KEYSTATS FILE2.xlsx]KS101EWDATA'!$F$7:$F$28 | BI7: 12 | BJ7: =VLOOKUP(BI7,Sheet3!$B$2:$F$77,5,FALSE) -> $A$1:$o$28 | BK7: 'V:\Business Intelligence Hub\01 - The City\2011 Census\Data\2nd Release - Key Indicators\Lower Areas and Wards\Initial Briefing\Census 2011 Bulk Data Load\Ward Bulk Data\Key Statisitics Bulk Load\[KEYSTATS FILE2.xlsx]KS101EWDATA'!$A$1:$o$28
A8: KS101EW0004 | B8: Count | C8: Person | D8: Usual resident population | E8: Lives in a household | F8: 13 | G8: 17 | H8: 4 | I8: 19 | J8: 9 | K8: 12 | L8: 21 | M8: 14 | N8: 8 | O8: 22 | P8: 1 | Q8: 18 | R8: 5 | S8: 10 | T8: 7 | U8: 6 | V8: 20 | W8: 11 | X8: 3 | Y8: 15 | Z8: 2 | AA8: 16 | AB8: 190392 | AC8: 5185677 | AD8: 52059931 | AE8: =IFERROR(VLOOKUP($A8,'2001 Data'!$A$5:$AH$65001,York!AE$2,FALSE),"No Data") -> 7696 | AF8: =IFERROR(VLOOKUP($A8,'2001 Data'!$A$5:$AH$65001,York!AF$2,FALSE),"No Data") -> 3795 | AG8: =IFERROR(VLOOKUP($A8,'2001 Data'!$A$5:$AH$65001,York!AG$2,FALSE),"No Data") -> 11652 | AH8: =IFERROR(VLOOKUP($A8,'2001 Data'!$A$5:$AH$65001,York!AH$2,FALSE),"No Data") -> 3487 | AI8: =IFERROR(VLOOKUP($A8,'2001 Data'!$A$5:$AH$65001,York!AI$2,FALSE),"No Data") -> 10690 | AJ8: =IFERROR(VLOOKUP($A8,'2001 Data'!$A$5:$AH$65001,York!AJ$2,FALSE),"No Data") -> 7492 | AK8: =IFERROR(VLOOKUP($A8,'2001 Data'!$A$5:$AH$65001,York!AK$2,FALSE),"No Data") -> 2489 | AL8: =IFERROR(VLOOKUP($A8,'2001 Data'!$A$5:$AH$65001,York!AL$2,FALSE),"No Data") -> 6378 | AM8: =IFERROR(VLOOKUP($A8,'2001 Data'!$A$5:$AH$65001,York!AM$2,FALSE),"No Data") -> 12292 | AN8: =IFERROR(VLOOKUP($A8,'2001 Data'!$A$5:$AH$65001,York!AN$2,FALSE),"No Data") -> 1114 | AO8: =IFERROR(VLOOKUP($A8,'2001 Data'!$A$5:$AH$65001,York!AO$2,FALSE),"No Data") -> 11524 | AP8: =IFERROR(VLOOKUP($A8,'2001 Data'!$A$5:$AH$65001,York!AP$2,FALSE),"No Data") -> 3771 | AQ8: =IFERROR(VLOOKUP($A8,'2001 Data'!$A$5:$AH$65001,York!AQ$2,FALSE),"No Data") -> 11452 | AR8: =IFERROR(VLOOKUP($A8,'2001 Data'!$A$5:$AH$65001,York!AR$2,FALSE),"No Data") -> 8195 | AS8: =IFERROR(VLOOKUP($A8,'2001 Data'!$A$5:$AH$65001,York!AS$2,FALSE),"No Data") -> 11963 | AT8: =IFERROR(VLOOKUP($A8,'2001 Data'!$A$5:$AH$65001,York!AT$2,FALSE),"No Data") -> 10762 | AU8: =IFERROR(VLOOKUP($A8,'2001 Data'!$A$5:$AH$65001,York!AU$2,FALSE),"No Data") -> 3093 | AV8: =IFERROR(VLOOKUP($A8,'2001 Data'!$A$5:$AH$65001,York!AV$2,FALSE),"No Data") -> 9966 | AW8: =IFERROR(VLOOKUP($A8,'2001 Data'!$A$5:$AH$65001,York!AW$2,FALSE),"No Data") -> 12104 | AX8: =IFERROR(VLOOKUP($A8,'2001 Data'!$A$5:$AH$65001,York!AX$2,FALSE),"No Data") -> 7606 | AY8: =IFERROR(VLOOKUP($A8,'2001 Data'!$A$5:$AH$65001,York!AY$2,FALSE),"No Data") -> 13516 | AZ8: =IFERROR(VLOOKUP($A8,'2001 Data'!$A$5:$AH$65001,York!AZ$2,FALSE),"No Data") -> 3847 | BA8: =IFERROR(VLOOKUP($A8,'2001 Data'!$A$5:$AH$65001,York!BA$2,FALSE),"No Data") -> 174884 | BB8: =IFERROR(VLOOKUP($A8,'2001 Data'!$A$5:$AH$65001,York!BB$2,FALSE),"No Data") -> 51107639 | BC8: =IFERROR(VLOOKUP($A8,'2001 Data'!$A$5:$AH$65001,York!BC$2,FALSE),"No Data") -> 48248150 | BE8: V:\Business Intelligence Hub\01 - The City\2011 Census\Data\2nd Release - Key Indicators\Lower Areas and Wards\Initial Briefing\Census 2011 Bulk Data Load\Ward Bulk Data\Key Statisitics Bulk Load\[KEYSTATS FILE2.xlsx]KS101EWDATA | BF8: 4 | BG8: =VLOOKUP(BF8,Sheet3!$B$2:$C$77,2,FALSE) -> $g$7:$g$28 | BH8: 'V:\Business Intelligence Hub\01 - The City\2011 Census\Data\2nd Release - Key Indicators\Lower Areas and Wards\Initial Briefing\Census 2011 Bulk Data Load\Ward Bulk Data\Key Statisitics Bulk Load\[KEYSTATS FILE2.xlsx]KS101EWDATA'!$g$7:$g$28 | BI8: 12 | BJ8: =VLOOKUP(BI8,Sheet3!$B$2:$F$77,5,FALSE) -> $A$1:$o$28 | BK8: 'V:\Business Intelligence Hub\01 - The City\2011 Census\Data\2nd Release - Key Indicators\Lower Areas and Wards\Initial Briefing\Census 2011 Bulk Data Load\Ward Bulk Data\Key Statisitics Bulk Load\[KEYSTATS FILE2.xlsx]KS101EWDATA'!$A$1:$o$28
A9: KS101EW0005 | B9: Count | C9: Person | D9: Usual resident population | E9: Lives in a communal establishment | F9: 15 | G9: 21 | H9: 3 | I9: 16 | J9: 18 | K9: 4 | L9: 13 | M9: 2 | N9: 8 | O9: 1 | P9: 10 | Q9: 22 | R9: 11 | S9: 17 | T9: 12 | U9: 7 | V9: 19 | W9: 5 | X9: 9 | Y9: 6 | Z9: 14 | AA9: 20 | AB9: 7659 | AC9: 98056 | AD9: 952525 | AE9: =IFERROR(VLOOKUP($A9,'2001 Data'!$A$5:$AH$65001,York!AE$2,FALSE),"No Data") -> 33 | AF9: =IFERROR(VLOOKUP($A9,'2001 Data'!$A$5:$AH$65001,York!AF$2,FALSE),"No Data") -> 7 | AG9: =IFERROR(VLOOKUP($A9,'2001 Data'!$A$5:$AH$65001,York!AG$2,FALSE),"No Data") -> 365 | AH9: =IFERROR(VLOOKUP($A9,'2001 Data'!$A$5:$AH$65001,York!AH$2,FALSE),"No Data") -> 53 | AI9: =IFERROR(VLOOKUP($A9,'2001 Data'!$A$5:$AH$65001,York!AI$2,FALSE),"No Data") -> 43 | AJ9: =IFERROR(VLOOKUP($A9,'2001 Data'!$A$5:$AH$65001,York!AJ$2,FALSE),"No Data") -> 429 | AK9: =IFERROR(VLOOKUP($A9,'2001 Data'!$A$5:$AH$65001,York!AK$2,FALSE),"No Data") -> 106 | AL9: =IFERROR(VLOOKUP($A9,'2001 Data'!$A$5:$AH$65001,York!AL$2,FALSE),"No Data") -> 298 | AM9: =IFERROR(VLOOKUP($A9,'2001 Data'!$A$5:$AH$65001,York!AM$2,FALSE),"No Data") -> 176 | AN9: =IFERROR(VLOOKUP($A9,'2001 Data'!$A$5:$AH$65001,York!AN$2,FALSE),"No Data") -> 3008 | AO9: =IFERROR(VLOOKUP($A9,'2001 Data'!$A$5:$AH$65001,York!AO$2,FALSE),"No Data") -> 219 | AP9: =IFERROR(VLOOKUP($A9,'2001 Data'!$A$5:$AH$65001,York!AP$2,FALSE),"No Data") -> 15 | AQ9: =IFERROR(VLOOKUP($A9,'2001 Data'!$A$5:$AH$65001,York!AQ$2,FALSE),"No Data") -> 112 | AR9: =IFERROR(VLOOKUP($A9,'2001 Data'!$A$5:$AH$65001,York!AR$2,FALSE),"No Data") -> 74 | AS9: =IFERROR(VLOOKUP($A9,'2001 Data'!$A$5:$AH$65001,York!AS$2,FALSE),"No Data") -> 126 | AT9: =IFERROR(VLOOKUP($A9,'2001 Data'!$A$5:$AH$65001,York!AT$2,FALSE),"No Data") -> 232 | AU9: =IFERROR(VLOOKUP($A9,'2001 Data'!$A$5:$AH$65001,York!AU$2,FALSE),"No Data") -> 56 | AV9: =IFERROR(VLOOKUP($A9,'2001 Data'!$A$5:$AH$65001,York!AV$2,FALSE),"No Data") -> 320 | AW9: =IFERROR(VLOOKUP($A9,'2001 Data'!$A$5:$AH$65001,York!AW$2,FALSE),"No Data") -> 56 | AX9: =IFERROR(VLOOKUP($A9,'2001 Data'!$A$5:$AH$65001,York!AX$2,FALSE),"No Data") -> 256 | AY9: =IFERROR(VLOOKUP($A9,'2001 Data'!$A$5:$AH$65001,York!AY$2,FALSE),"No Data") -> 174 | AZ9: =IFERROR(VLOOKUP($A9,'2001 Data'!$A$5:$AH$65001,York!AZ$2,FALSE),"No Data") -> 52 | BA9: =IFERROR(VLOOKUP($A9,'2001 Data'!$A$5:$AH$65001,York!BA$2,FALSE),"No Data") -> 6210 | BB9: =IFERROR(VLOOKUP($A9,'2001 Data'!$A$5:$AH$65001,York!BB$2,FALSE),"No Data") -> 934277 | BC9: =IFERROR(VLOOKUP($A9,'2001 Data'!$A$5:$AH$65001,York!BC$2,FALSE),"No Data") -> 890681 | BE9: V:\Business Intelligence Hub\01 - The City\2011 Census\Data\2nd Release - Key Indicators\Lower Areas and Wards\Initial Briefing\Census 2011 Bulk Data Load\Ward Bulk Data\Key Statisitics Bulk Load\[KEYSTATS FILE2.xlsx]KS101EWDATA | BF9: 5 | BG9: =VLOOKUP(BF9,Sheet3!$B$2:$C$77,2,FALSE) -> $h$7:$h$28 | BH9: 'V:\Business Intelligence Hub\01 - The City\2011 Census\Data\2nd Release - Key Indicators\Lower Areas and Wards\Initial Briefing\Census 2011 Bulk Data Load\Ward Bulk Data\Key Statisitics Bulk Load\[KEYSTATS FILE2.xlsx]KS101EWDATA'!$h$7:$h$28 | BI9: 12 | BJ9: =VLOOKUP(BI9,Sheet3!$B$2:$F$77,5,FALSE) -> $A$1:$o$28 | BK9: 'V:\Business Intelligence Hub\01 - The City\2011 Census\Data\2nd Release - Key Indicators\Lower Areas and Wards\Initial Briefing\Census 2011 Bulk Data Load\Ward Bulk Data\Key Statisitics Bulk Load\[KEYSTATS FILE2.xlsx]KS101EWDATA'!$A$1:$o$28
A10: KS101EW0006 | B10: Count | C10: Person | D10: Usual resident population | E10: Schoolchild or full-time student aged 4 and over at their non term-time address | F10: 17 | G10: 15 | H10: 5 | I10: 17 | J10: 8 | K10: 11 | L10: 21 | M10: 14 | N10: 2 | O10: 19 | P10: 7 | Q10: 20 | R10: 10 | S10: 13 | T10: 9 | U10: 6 | V10: 22 | W10: 1 | X10: 3 | Y10: 3 | Z10: 12 | AA10: 16 | AB10: 2638 | AC10: 54976 | AD10: 650145 | AE10: =IFERROR(VLOOKUP($A10,'2001 Data'!$A$5:$AH$65001,York!AE$2,FALSE),"No Data") -> No Data | AF10: =IFERROR(VLOOKUP($A10,'2001 Data'!$A$5:$AH$65001,York!AF$2,FALSE),"No Data") -> No Data | AG10: =IFERROR(VLOOKUP($A10,'2001 Data'!$A$5:$AH$65001,York!AG$2,FALSE),"No Data") -> No Data | AH10: =IFERROR(VLOOKUP($A10,'2001 Data'!$A$5:$AH$65001,York!AH$2,FALSE),"No Data") -> No Data | AI10: =IFERROR(VLOOKUP($A10,'2001 Data'!$A$5:$AH$65001,York!AI$2,FALSE),"No Data") -> No Data | AJ10: =IFERROR(VLOOKUP($A10,'2001 Data'!$A$5:$AH$65001,York!AJ$2,FALSE),"No Data") -> No Data | AK10: =IFERROR(VLOOKUP($A10,'2001 Data'!$A$5:$AH$65001,York!AK$2,FALSE),"No Data") -> No Data | AL10: =IFERROR(VLOOKUP($A10,'2001 Data'!$A$5:$AH$65001,York!AL$2,FALSE),"No Data") -> No Data | AM10: =IFERROR(VLOOKUP($A10,'2001 Data'!$A$5:$AH$65001,York!AM$2,FALSE),"No Data") -> No Data | AN10: =IFERROR(VLOOKUP($A10,'2001 Data'!$A$5:$AH$65001,York!AN$2,FALSE),"No Data") -> No Data | AO10: =IFERROR(VLOOKUP($A10,'2001 Data'!$A$5:$AH$65001,York!AO$2,FALSE),"No Data") -> No Data | AP10: =IFERROR(VLOOKUP($A10,'2001 Data'!$A$5:$AH$65001,York!AP$2,FALSE),"No Data") -> No Data | AQ10: =IFERROR(VLOOKUP($A10,'2001 Data'!$A$5:$AH$65001,York!AQ$2,FALSE),"No Data") -> No Data | AR10: =IFERROR(VLOOKUP($A10,'2001 Data'!$A$5:$AH$65001,York!AR$2,FALSE),"No Data") -> No Data | AS10: =IFERROR(VLOOKUP($A10,'2001 Data'!$A$5:$AH$65001,York!AS$2,FALSE),"No Data") -> No Data | AT10: =IFERROR(VLOOKUP($A10,'2001 Data'!$A$5:$AH$65001,York!AT$2,FALSE),"No Data") -> No Data | AU10: =IFERROR(VLOOKUP($A10,'2001 Data'!$A$5:$AH$65001,York!AU$2,FALSE),"No Data") -> No Data | AV10: =IFERROR(VLOOKUP($A10,'2001 Data'!$A$5:$AH$65001,York!AV$2,FALSE),"No Data") -> No Data | AW10: =IFERROR(VLOOKUP($A10,'2001 Data'!$A$5:$AH$65001,York!AW$2,FALSE),"No Data") -> No Data | AX10: =IFERROR(VLOOKUP($A10,'2001 Data'!$A$5:$AH$65001,York!AX$2,FALSE),"No Data") -> No Data | AY10: =IFERROR(VLOOKUP($A10,'2001 Data'!$A$5:$AH$65001,York!AY$2,FALSE),"No Data") -> No Data | AZ10: =IFERROR(VLOOKUP($A10,'2001 Data'!$A$5:$AH$65001,York!AZ$2,FALSE),"No Data") -> No Data | BA10: =IFERROR(VLOOKUP($A10,'2001 Data'!$A$5:$AH$65001,York!BA$2,FALSE),"No Data") -> No Data | BB10: =IFERROR(VLOOKUP($A10,'2001 Data'!$A$5:$AH$65001,York!BB$2,FALSE),"No Data") -> No Data | BC10: =IFERROR(VLOOKUP($A10,'2001 Data'!$A$5:$AH$65001,York!BC$2,FALSE),"No Data") -> No Data | BE10: V:\Business Intelligence Hub\01 - The City\2011 Census\Data\2nd Release - Key Indicators\Lower Areas and Wards\Initial Briefing\Census 2011 Bulk Data Load\Ward Bulk Data\Key Statisitics Bulk Load\[KEYSTATS FILE2.xlsx]KS101EWDATA | BF10: 6 | BG10: =VLOOKUP(BF10,Sheet3!$B$2:$C$77,2,FALSE) -> $i$7:$i$28 | BH10: 'V:\Business Intelligence Hub\01 - The City\2011 Census\Data\2nd Release - Key Indicators\Lower Areas and Wards\Initial Briefing\Census 2011 Bulk Data Load\Ward Bulk Data\Key Statisitics Bulk Load\[KEYSTATS FILE2.xlsx]KS101EWDATA'!$i$7:$i$28 | BI10: 12 | BJ10: =VLOOKUP(BI10,Sheet3!$B$2:$F$77,5,FALSE) -> $A$1:$o$28 | BK10: 'V:\Business Intelligence Hub\01 - The City\2011 Census\Data\2nd Release - Key Indicators\Lower Areas and Wards\Initial Briefing\Census 2011 Bulk Data Load\Ward Bulk Data\Key Statisitics Bulk Load\[KEYSTATS FILE2.xlsx]KS101EWDATA'!$A$1:$o$28
A11: KS101EW0007 | B11: Sum | C11: Area (Hectares) | D11: Usual resident population | E11: Area Hectares | F11: 20 | G11: 8 | H11: 18 | I11: 4 | J11: 12 | K11: 19 | L11: 10 | M11: 21 | N11: 6 | O11: 7 | P11: 17 | Q11: 14 | R11: 15 | S11: 22 | T11: 9 | U11: 13 | V11: 11 | W11: 1 | X11: 5 | Y11: 3 | Z11: 16 | AA11: 2 | AB11: 27193.63 | AC11: 1540763.62 | AD11: 13027842.85 | AE11: =IFERROR(VLOOKUP($A11,'2001 Data'!$A$5:$AH$65001,York!AE$2,FALSE),"No Data") -> No Data | AF11: =IFERROR(VLOOKUP($A11,'2001 Data'!$A$5:$AH$65001,York!AF$2,FALSE),"No Data") -> No Data | AG11: =IFERROR(VLOOKUP($A11,'2001 Data'!$A$5:$AH$65001,York!AG$2,FALSE),"No Data") -> No Data | AH11: =IFERROR(VLOOKUP($A11,'2001 Data'!$A$5:$AH$65001,York!AH$2,FALSE),"No Data") -> No Data | AI11: =IFERROR(VLOOKUP($A11,'2001 Data'!$A$5:$AH$65001,York!AI$2,FALSE),"No Data") -> No Data | AJ11: =IFERROR(VLOOKUP($A11,'2001 Data'!$A$5:$AH$65001,York!AJ$2,FALSE),"No Data") -> No Data | AK11: =IFERROR(VLOOKUP($A11,'2001 Data'!$A$5:$AH$65001,York!AK$2,FALSE),"No Data") -> No Data | AL11: =IFERROR(VLOOKUP($A11,'2001 Data'!$A$5:$AH$65001,York!AL$2,FALSE),"No Data") -> No Data | AM11: =IFERROR(VLOOKUP($A11,'2001 Data'!$A$5:$AH$65001,York!AM$2,FALSE),"No Data") -> No Data | AN11: =IFERROR(VLOOKUP($A11,'2001 Data'!$A$5:$AH$65001,York!AN$2,FALSE),"No Data") -> No Data | AO11: =IFERROR(VLOOKUP($A11,'2001 Data'!$A$5:$AH$65001,York!AO$2,FALSE),"No Data") -> No Data | AP11: =IFERROR(VLOOKUP($A11,'2001 Data'!$A$5:$AH$65001,York!AP$2,FALSE),"No Data") -> No Data | AQ11: =IFERROR(VLOOKUP($A11,'2001 Data'!$A$5:$AH$65001,York!AQ$2,FALSE),"No Data") -> No Data | AR11: =IFERROR(VLOOKUP($A11,'2001 Data'!$A$5:$AH$65001,York!AR$2,FALSE),"No Data") -> No Data | AS11: =IFERROR(VLOOKUP($A11,'2001 Data'!$A$5:$AH$65001,York!AS$2,FALSE),"No Data") -> No Data | AT11: =IFERROR(VLOOKUP($A11,'2001 Data'!$A$5:$AH$65001,York!AT$2,FALSE),"No Data") -> No Data | AU11: =IFERROR(VLOOKUP($A11,'2001 Data'!$A$5:$AH$65001,York!AU$2,FALSE),"No Data") -> No Data | AV11: =IFERROR(VLOOKUP($A11,'2001 Data'!$A$5:$AH$65001,York!AV$2,FALSE),"No Data") -> No Data | AW11: =IFERROR(VLOOKUP($A11,'2001 Data'!$A$5:$AH$65001,York!AW$2,FALSE),"No Data") -> No Data | AX11: =IFERROR(VLOOKUP($A11,'2001 Data'!$A$5:$AH$65001,York!AX$2,FALSE),"No Data") -> No Data | AY11: =IFERROR(VLOOKUP($A11,'2001 Data'!$A$5:$AH$65001,York!AY$2,FALSE),"No Data") -> No Data | AZ11: =IFERROR(VLOOKUP($A11,'2001 Data'!$A$5:$AH$65001,York!AZ$2,FALSE),"No Data") -> No Data | BA11: =IFERROR(VLOOKUP($A11,'2001 Data'!$A$5:$AH$65001,York!BA$2,FALSE),"No Data") -> No Data | BB11: =IFERROR(VLOOKUP($A11,'2001 Data'!$A$5:$AH$65001,York!BB$2,FALSE),"No Data") -> No Data | BC11: =IFERROR(VLOOKUP($A11,'2001 Data'!$A$5:$AH$65001,York!BC$2,FALSE),"No Data") -> No Data | BE11: V:\Business Intelligence Hub\01 - The City\2011 Census\Data\2nd Release - Key Indicators\Lower Areas and Wards\Initial Briefing\Census 2011 Bulk Data Load\Ward Bulk Data\Key Statisitics Bulk Load\[KEYSTATS FILE2.xlsx]KS101EWDATA | BF11: 7 | BG11: =VLOOKUP(BF11,Sheet3!$B$2:$C$77,2,FALSE) -> $j$7:$j$28 | BH11: 'V:\Business Intelligence Hub\01 - The City\2011 Census\Data\2nd Release - Key Indicators\Lower Areas and Wards\Initial Briefing\Census 2011 Bulk Data Load\Ward Bulk Data\Key Statisitics Bulk Load\[KEYSTATS FILE2.xlsx]KS101EWDATA'!$j$7:$j$28 | BI11: 12 | BJ11: =VLOOKUP(BI11,Sheet3!$B$2:$F$77,5,FALSE) -> $A$1:$o$28 | BK11: 'V:\Business Intelligence Hub\01 - The City\2011 Census\Data\2nd Release - Key Indicators\Lower Areas and Wards\Initial Briefing\Census 2011 Bulk Data Load\Ward Bulk Data\Key Statisitics Bulk Load\[KEYSTATS FILE2.xlsx]KS101EWDATA'!$A$1:$o$28
A12: KS101EW0008 | B12: Ratio | C12: Represents code used for SDMX series key completeness, as this codelist is not meaningfully used, for reason of concatenation, axis derivations etc | D12: Usual resident population | E12: Density (number of persons per hectare) | F12: 8 | G12: 18 | H12: 2 | I12: 21 | J12: 10 | K12: 7 | L12: 16 | M12: 5 | N12: 14 | O12: 17 | P12: 3 | Q12: 12 | R12: 6 | S12: 1 | T12: 11 | U12: 9 | V12: 15 | W12: 20 | X12: 13 | Y12: 19 | Z12: 4 | AA12: 22 | AB12: 25.79414023 | AC12: 1.156063837 | AD12: 52.18999191 | AE12: =IFERROR(VLOOKUP($A12,'2001 Data'!$A$5:$AH$65001,York!AE$2,FALSE),"No Data") -> No Data | AF12: =IFERROR(VLOOKUP($A12,'2001 Data'!$A$5:$AH$65001,York!AF$2,FALSE),"No Data") -> No Data | AG12: =IFERROR(VLOOKUP($A12,'2001 Data'!$A$5:$AH$65001,York!AG$2,FALSE),"No Data") -> No Data | AH12: =IFERROR(VLOOKUP($A12,'2001 Data'!$A$5:$AH$65001,York!AH$2,FALSE),"No Data") -> No Data | AI12: =IFERROR(VLOOKUP($A12,'2001 Data'!$A$5:$AH$65001,York!AI$2,FALSE),"No Data") -> No Data | AJ12: =IFERROR(VLOOKUP($A12,'2001 Data'!$A$5:$AH$65001,York!AJ$2,FALSE),"No Data") -> No Data | AK12: =IFERROR(VLOOKUP($A12,'2001 Data'!$A$5:$AH$65001,York!AK$2,FALSE),"No Data") -> No Data | AL12: =IFERROR(VLOOKUP($A12,'2001 Data'!$A$5:$AH$65001,York!AL$2,FALSE),"No Data") -> No Data | AM12: =IFERROR(VLOOKUP($A12,'2001 Data'!$A$5:$AH$65001,York!AM$2,FALSE),"No Data") -> No Data | AN12: =IFERROR(VLOOKUP($A12,'2001 Data'!$A$5:$AH$65001,York!AN$2,FALSE),"No Data") -> No Data | AO12: =IFERROR(VLOOKUP($A12,'2001 Data'!$A$5:$AH$65001,York!AO$2,FALSE),"No Data") -> No Data | AP12: =IFERROR(VLOOKUP($A12,'2001 Data'!$A$5:$AH$65001,York!AP$2,FALSE),"No Data") -> No Data | AQ12: =IFERROR(VLOOKUP($A12,'2001 Data'!$A$5:$AH$65001,York!AQ$2,FALSE),"No Data") -> No Data | AR12: =IFERROR(VLOOKUP($A12,'2001 Data'!$A$5:$AH$65001,York!AR$2,FALSE),"No Data") -> No Data | AS12: =IFERROR(VLOOKUP($A12,'2001 Data'!$A$5:$AH$65001,York!AS$2,FALSE),"No Data") -> No Data | AT12: =IFERROR(VLOOKUP($A12,'2001 Data'!$A$5:$AH$65001,York!AT$2,FALSE),"No Data") -> No Data | AU12: =IFERROR(VLOOKUP($A12,'2001 Data'!$A$5:$AH$65001,York!AU$2,FALSE),"No Data") -> No Data | AV12: =IFERROR(VLOOKUP($A12,'2001 Data'!$A$5:$AH$65001,York!AV$2,FALSE),"No Data") -> No Data | AW12: =IFERROR(VLOOKUP($A12,'2001 Data'!$A$5:$AH$65001,York!AW$2,FALSE),"No Data") -> No Data | AX12: =IFERROR(VLOOKUP($A12,'2001 Data'!$A$5:$AH$65001,York!AX$2,FALSE),"No Data") -> No Data | AY12: =IFERROR(VLOOKUP($A12,'2001 Data'!$A$5:$AH$65001,York!AY$2,FALSE),"No Data") -> No Data | AZ12: =IFERROR(VLOOKUP($A12,'2001 Data'!$A$5:$AH$65001,York!AZ$2,FALSE),"No Data") -> No Data | BA12: =IFERROR(VLOOKUP($A12,'2001 Data'!$A$5:$AH$65001,York!BA$2,FALSE),"No Data") -> No Data | BB12: =IFERROR(VLOOKUP($A12,'2001 Data'!$A$5:$AH$65001,York!BB$2,FALSE),"No Data") -> No Data | BC12: =IFERROR(VLOOKUP($A12,'2001 Data'!$A$5:$AH$65001,York!BC$2,FALSE),"No Data") -> No Data | BE12: V:\Business Intelligence Hub\01 - The City\2011 Census\Data\2nd Release - Key Indicators\Lower Areas and Wards\Initial Briefing\Census 2011 Bulk Data Load\Ward Bulk Data\Key Statisitics Bulk Load\[KEYSTATS FILE2.xlsx]KS101EWDATA | BF12: 8 | BG12: =VLOOKUP(BF12,Sheet3!$B$2:$C$77,2,FALSE) -> $k$7:$k$28 | BH12: 'V:\Business Intelligence Hub\01 - The City\2011 Census\Data\2nd Release - Key Indicators\Lower Areas and Wards\Initial Briefing\Census 2011 Bulk Data Load\Ward Bulk Data\Key Statisitics Bulk Load\[KEYSTATS FILE2.xlsx]KS101EWDATA'!$k$7:$k$28 | BI12: 12 | BJ12: =VLOOKUP(BI12,Sheet3!$B$2:$F$77,5,FALSE) -> $A$1:$o$28 | BK12: 'V:\Business Intelligence Hub\01 - The City\2011 Census\Data\2nd Release - Key Indicators\Lower Areas and Wards\Initial Briefing\Census 2011 Bulk Data Load\Ward Bulk Data\Key Statisitics Bulk Load\[KEYSTATS FILE2.xlsx]KS101EWDATA'!$A$1:$o$28
A13: KS101EW0009 | B13: Percentage | C13: Represents code used for SDMX series key completeness, as this codelist is not meaningfully used, for reason of concatenation, axis derivations etc | D13: Usual resident population | E13: Males | F13: 7 | G13: 15 | H13: 12 | I13: 13 | J13: 14 | K13: 1 | L13: 19 | M13: 2 | N13: 21 | O13: 22 | P13: 6 | Q13: 10 | R13: 5 | S13: 3 | T13: 20 | U13: 4 | V13: 16 | W13: 17 | X13: 9 | Y13: 8 | Z13: 18 | AA13: 11 | AB13: 0.486 | AC13: 0.4917 | AD13: 0.4918 | AE13: =IFERROR(VLOOKUP($A13,'2001 Data'!$A$5:$AH$65001,York!AE$2,FALSE),"No Data") -> No Data | AF13: =IFERROR(VLOOKUP($A13,'2001 Data'!$A$5:$AH$65001,York!AF$2,FALSE),"No Data") -> No Data | AG13: =IFERROR(VLOOKUP($A13,'2001 Data'!$A$5:$AH$65001,York!AG$2,FALSE),"No Data") -> No Data | AH13: =IFERROR(VLOOKUP($A13,'2001 Data'!$A$5:$AH$65001,York!AH$2,FALSE),"No Data") -> No Data | AI13: =IFERROR(VLOOKUP($A13,'2001 Data'!$A$5:$AH$65001,York!AI$2,FALSE),"No Data") -> No Data | AJ13: =IFERROR(VLOOKUP($A13,'2001 Data'!$A$5:$AH$65001,York!AJ$2,FALSE),"No Data") -> No Data | AK13: =IFERROR(VLOOKUP($A13,'2001 Data'!$A$5:$AH$65001,York!AK$2,FALSE),"No Data") -> No Data | AL13: =IFERROR(VLOOKUP($A13,'2001 Data'!$A$5:$AH$65001,York!AL$2,FALSE),"No Data") -> No Data | AM13: =IFERROR(VLOOKUP($A13,'2001 Data'!$A$5:$AH$65001,York!AM$2,FALSE),"No Data") -> No Data | AN13: =IFERROR(VLOOKUP($A13,'2001 Data'!$A$5:$AH$65001,York!AN$2,FALSE),"No Data") -> No Data | AO13: =IFERROR(VLOOKUP($A13,'2001 Data'!$A$5:$AH$65001,York!AO$2,FALSE),"No Data") -> No Data | AP13: =IFERROR(VLOOKUP($A13,'2001 Data'!$A$5:$AH$65001,York!AP$2,FALSE),"No Data") -> No Data | AQ13: =IFERROR(VLOOKUP($A13,'2001 Data'!$A$5:$AH$65001,York!AQ$2,FALSE),"No Data") -> No Data | AR13: =IFERROR(VLOOKUP($A13,'2001 Data'!$A$5:$AH$65001,York!AR$2,FALSE),"No Data") -> No Data | AS13: =IFERROR(VLOOKUP($A13,'2001 Data'!$A$5:$AH$65001,York!AS$2,FALSE),"No Data") -> No Data | AT13: =IFERROR(VLOOKUP($A13,'2001 Data'!$A$5:$AH$65001,York!AT$2,FALSE),"No Data") -> No Data | AU13: =IFERROR(VLOOKUP($A13,'2001 Data'!$A$5:$AH$65001,York!AU$2,FALSE),"No Data") -> No Data | AV13: =IFERROR(VLOOKUP($A13,'2001 Data'!$A$5:$AH$65001,York!AV$2,FALSE),"No Data") -> No Data | AW13: =IFERROR(VLOOKUP($A13,'2001 Data'!$A$5:$AH$65001,York!AW$2,FALSE),"No Data") -> No Data | AX13: =IFERROR(VLOOKUP($A13,'2001 Data'!$A$5:$AH$65001,York!AX$2,FALSE),"No Data") -> No Data | AY13: =IFERROR(VLOOKUP($A13,'2001 Data'!$A$5:$AH$65001,York!AY$2,FALSE),"No Data") -> No Data | AZ13: =IFERROR(VLOOKUP($A13,'2001 Data'!$A$5:$AH$65001,York!AZ$2,FALSE),"No Data") -> No Data | BA13: =IFERROR(VLOOKUP($A13,'2001 Data'!$A$5:$AH$65001,York!BA$2,FALSE),"No Data") -> No Data | BB13: =IFERROR(VLOOKUP($A13,'2001 Data'!$A$5:$AH$65001,York!BB$2,FALSE),"No Data") -> No Data | BC13: =IFERROR(VLOOKUP($A13,'2001 Data'!$A$5:$AH$65001,York!BC$2,FALSE),"No Data") -> No Data | BE13: V:\Business Intelligence Hub\01 - The City\2011 Census\Data\2nd Release - Key Indicators\Lower Areas and Wards\Initial Briefing\Census 2011 Bulk Data Load\Ward Bulk Data\Key Statisitics Bulk Load\[KEYSTATS FILE2.xlsx]KS101EWDATA | BF13: 9 | BG13: =VLOOKUP(BF13,Sheet3!$B$2:$C$77,2,FALSE) -> $l$7:$l$28 | BH13: 'V:\Business Intelligence Hub\01 - The City\2011 Census\Data\2nd Release - Key Indicators\Lower Areas and Wards\Initial Briefing\Census 2011 Bulk Data Load\Ward Bulk Data\Key Statisitics Bulk Load\[KEYSTATS FILE2.xlsx]KS101EWDATA'!$l$7:$l$28 | BI13: 12 | BJ13: =VLOOKUP(BI13,Sheet3!$B$2:$F$77,5,FALSE) -> $A$1:$o$28 | BK13: 'V:\Business Intelligence Hub\01 - The City\2011 Census\Data\2nd Release - Key Indicators\Lower Areas and Wards\Initial Briefing\Census 2011 Bulk Data Load\Ward Bulk Data\Key Statisitics Bulk Load\[KEYSTATS FILE2.xlsx]KS101EWDATA'!$A$1:$o$28
A14: KS101EW0010 | B14: Percentage | C14: Represents code used for SDMX series key completeness, as this codelist is not meaningfully used, for reason of concatenation, axis derivations etc | D14: Usual resident population | E14: Females | F14: 16 | G14: 8 | H14: 11 | I14: 10 | J14: 9 | K14: 22 | L14: 4 | M14: 21 | N14: 2 | O14: 1 | P14: 17 | Q14: 13 | R14: 18 | S14: 20 | T14: 3 | U14: 19 | V14: 7 | W14: 6 | X14: 14 | Y14: 15 | Z14: 5 | AA14: 12 | AB14: 0.514 | AC14: 0.5083 | AD14: 0.5082 | AE14: =IFERROR(VLOOKUP($A14,'2001 Data'!$A$5:$AH$65001,York!AE$2,FALSE),"No Data") -> No Data | AF14: =IFERROR(VLOOKUP($A14,'2001 Data'!$A$5:$AH$65001,York!AF$2,FALSE),"No Data") -> No Data | AG14: =IFERROR(VLOOKUP($A14,'2001 Data'!$A$5:$AH$65001,York!AG$2,FALSE),"No Data") -> No Data | AH14: =IFERROR(VLOOKUP($A14,'2001 Data'!$A$5:$AH$65001,York!AH$2,FALSE),"No Data") -> No Data | AI14: =IFERROR(VLOOKUP($A14,'2001 Data'!$A$5:$AH$65001,York!AI$2,FALSE),"No Data") -> No Data | AJ14: =IFERROR(VLOOKUP($A14,'2001 Data'!$A$5:$AH$65001,York!AJ$2,FALSE),"No Data") -> No Data | AK14: =IFERROR(VLOOKUP($A14,'2001 Data'!$A$5:$AH$65001,York!AK$2,FALSE),"No Data") -> No Data | AL14: =IFERROR(VLOOKUP($A14,'2001 Data'!$A$5:$AH$65001,York!AL$2,FALSE),"No Data") -> No Data | AM14: =IFERROR(VLOOKUP($A14,'2001 Data'!$A$5:$AH$65001,York!AM$2,FALSE),"No Data") -> No Data | AN14: =IFERROR(VLOOKUP($A14,'2001 Data'!$A$5:$AH$65001,York!AN$2,FALSE),"No Data") -> No Data | AO14: =IFERROR(VLOOKUP($A14,'2001 Data'!$A$5:$AH$65001,York!AO$2,FALSE),"No Data") -> No Data | AP14: =IFERROR(VLOOKUP($A14,'2001 Data'!$A$5:$AH$65001,York!AP$2,FALSE),"No Data") -> No Data | AQ14: =IFERROR(VLOOKUP($A14,'2001 Data'!$A$5:$AH$65001,York!AQ$2,FALSE),"No Data") -> No Data | AR14: =IFERROR(VLOOKUP($A14,'2001 Data'!$A$5:$AH$65001,York!AR$2,FALSE),"No Data") -> No Data | AS14: =IFERROR(VLOOKUP($A14,'2001 Data'!$A$5:$AH$65001,York!AS$2,FALSE),"No Data") -> No Data | AT14: =IFERROR(VLOOKUP($A14,'2001 Data'!$A$5:$AH$65001,York!AT$2,FALSE),"No Data") -> No Data | AU14: =IFERROR(VLOOKUP($A14,'2001 Data'!$A$5:$AH$65001,York!AU$2,FALSE),"No Data") -> No Data | AV14: =IFERROR(VLOOKUP($A14,'2001 Data'!$A$5:$AH$65001,York!AV$2,FALSE),"No Data") -> No Data | AW14: =IFERROR(VLOOKUP($A14,'2001 Data'!$A$5:$AH$65001,York!AW$2,FALSE),"No Data") -> No Data | AX14: =IFERROR(VLOOKUP($A14,'2001 Data'!$A$5:$AH$65001,York!AX$2,FALSE),"No Data") -> No Data | AY14: =IFERROR(VLOOKUP($A14,'2001 Data'!$A$5:$AH$65001,York!AY$2,FALSE),"No Data") -> No Data | AZ14: =IFERROR(VLOOKUP($A14,'2001 Data'!$A$5:$AH$65001,York!AZ$2,FALSE),"No Data") -> No Data | BA14: =IFERROR(VLOOKUP($A14,'2001 Data'!$A$5:$AH$65001,York!BA$2,FALSE),"No Data") -> No Data | BB14: =IFERROR(VLOOKUP($A14,'2001 Data'!$A$5:$AH$65001,York!BB$2,FALSE),"No Data") -> No Data | BC14: =IFERROR(VLOOKUP($A14,'2001 Data'!$A$5:$AH$65001,York!BC$2,FALSE),"No Data") -> No Data | BE14: V:\Business Intelligence Hub\01 - The City\2011 Census\Data\2nd Release - Key Indicators\Lower Areas and Wards\Initial Briefing\Census 2011 Bulk Data Load\Ward Bulk Data\Key Statisitics Bulk Load\[KEYSTATS FILE2.xlsx]KS101EWDATA | BF14: 10 | BG14: =VLOOKUP(BF14,Sheet3!$B$2:$C$77,2,FALSE) -> $m$7:$m$28 | BH14: 'V:\Business Intelligence Hub\01 - The City\2011 Census\Data\2nd Release - Key Indicators\Lower Areas and Wards\Initial Briefing\Census 2011 Bulk Data Load\Ward Bulk Data\Key Statisitics Bulk Load\[KEYSTATS FILE2.xlsx]KS101EWDATA'!$m$7:$m$28 | BI14: 12 | BJ14: =VLOOKUP(BI14,Sheet3!$B$2:$F$77,5,FALSE) -> $A$1:$o$28 | BK14: 'V:\Business Intelligence Hub\01 - The City\2011 Census\Data\2nd Release - Key Indicators\Lower Areas and Wards\Initial Briefing\Census 2011 Bulk Data Load\Ward Bulk Data\Key Statisitics Bulk Load\[KEYSTATS FILE2.xlsx]KS101EWDATA'!$A$1:$o$28
A15: KS101EW0011 | B15: Percentage | C15: Represents code used for SDMX series key completeness, as this codelist is not meaningfully used, for reason of concatenation, axis derivations etc | D15: Usual resident population | E15: Lives in a household | F15: 8 | G15: 2 | H15: 19 | I15: 15 | J15: 3 | K15: 20 | L15: 18 | M15: 21 | N15: 12 | O15: 22 | P15: 7 | Q15: 1 | R15: 9 | S15: 4 | T15: 6 | U15: 14 | V15: 13 | W15: 17 | X15: 10 | Y15: 16 | Z15: 5 | AA15: 11 | AB15: 0.9613 | AC15: 0.9814 | AD15: 0.982 | AE15: =IFERROR(VLOOKUP($A15,'2001 Data'!$A$5:$AH$65001,York!AE$2,FALSE),"No Data") -> No Data | AF15: =IFERROR(VLOOKUP($A15,'2001 Data'!$A$5:$AH$65001,York!AF$2,FALSE),"No Data") -> No Data | AG15: =IFERROR(VLOOKUP($A15,'2001 Data'!$A$5:$AH$65001,York!AG$2,FALSE),"No Data") -> No Data | AH15: =IFERROR(VLOOKUP($A15,'2001 Data'!$A$5:$AH$65001,York!AH$2,FALSE),"No Data") -> No Data | AI15: =IFERROR(VLOOKUP($A15,'2001 Data'!$A$5:$AH$65001,York!AI$2,FALSE),"No Data") -> No Data | AJ15: =IFERROR(VLOOKUP($A15,'2001 Data'!$A$5:$AH$65001,York!AJ$2,FALSE),"No Data") -> No Data | AK15: =IFERROR(VLOOKUP($A15,'2001 Data'!$A$5:$AH$65001,York!AK$2,FALSE),"No Data") -> No Data | AL15: =IFERROR(VLOOKUP($A15,'2001 Data'!$A$5:$AH$65001,York!AL$2,FALSE),"No Data") -> No Data | AM15: =IFERROR(VLOOKUP($A15,'2001 Data'!$A$5:$AH$65001,York!AM$2,FALSE),"No Data") -> No Data | AN15: =IFERROR(VLOOKUP($A15,'2001 Data'!$A$5:$AH$65001,York!AN$2,FALSE),"No Data") -> No Data | AO15: =IFERROR(VLOOKUP($A15,'2001 Data'!$A$5:$AH$65001,York!AO$2,FALSE),"No Data") -> No Data | AP15: =IFERROR(VLOOKUP($A15,'2001 Data'!$A$5:$AH$65001,York!AP$2,FALSE),"No Data") -> No Data | AQ15: =IFERROR(VLOOKUP($A15,'2001 Data'!$A$5:$AH$65001,York!AQ$2,FALSE),"No Data") -> No Data | AR15: =IFERROR(VLOOKUP($A15,'2001 Data'!$A$5:$AH$65001,York!AR$2,FALSE),"No Data") -> No Data | AS15: =IFERROR(VLOOKUP($A15,'2001 Data'!$A$5:$AH$65001,York!AS$2,FALSE),"No Data") -> No Data | AT15: =IFERROR(VLOOKUP($A15,'2001 Data'!$A$5:$AH$65001,York!AT$2,FALSE),"No Data") -> No Data | AU15: =IFERROR(VLOOKUP($A15,'2001 Data'!$A$5:$AH$65001,York!AU$2,FALSE),"No Data") -> No Data | AV15: =IFERROR(VLOOKUP($A15,'2001 Data'!$A$5:$AH$65001,York!AV$2,FALSE),"No Data") -> No Data | AW15: =IFERROR(VLOOKUP($A15,'2001 Data'!$A$5:$AH$65001,York!AW$2,FALSE),"No Data") -> No Data | AX15: =IFERROR(VLOOKUP($A15,'2001 Data'!$A$5:$AH$65001,York!AX$2,FALSE),"No Data") -> No Data | AY15: =IFERROR(VLOOKUP($A15,'2001 Data'!$A$5:$AH$65001,York!AY$2,FALSE),"No Data") -> No Data | AZ15: =IFERROR(VLOOKUP($A15,'2001 Data'!$A$5:$AH$65001,York!AZ$2,FALSE),"No Data") -> No Data | BA15: =IFERROR(VLOOKUP($A15,'2001 Data'!$A$5:$AH$65001,York!BA$2,FALSE),"No Data") -> No Data | BB15: =IFERROR(VLOOKUP($A15,'2001 Data'!$A$5:$AH$65001,York!BB$2,FALSE),"No Data") -> No Data | BC15: =IFERROR(VLOOKUP($A15,'2001 Data'!$A$5:$AH$65001,York!BC$2,FALSE),"No Data") -> No Data | BE15: V:\Business Intelligence Hub\01 - The City\2011 Census\Data\2nd Release - Key Indicators\Lower Areas and Wards\Initial Briefing\Census 2011 Bulk Data Load\Ward Bulk Data\Key Statisitics Bulk Load\[KEYSTATS FILE2.xlsx]KS101EWDATA | BF15: 11 | BG15: =VLOOKUP(BF15,Sheet3!$B$2:$C$77,2,FALSE) -> $n$7:$n$28 | BH15: 'V:\Business Intelligence Hub\01 - The City\2011 Census\Data\2nd Release - Key Indicators\Lower Areas and Wards\Initial Briefing\Census 2011 Bulk Data Load\Ward Bulk Data\Key Statisitics Bulk Load\[KEYSTATS FILE2.xlsx]KS101EWDATA'!$n$7:$n$28 | BI15: 12 | BJ15: =VLOOKUP(BI15,Sheet3!$B$2:$F$77,5,FALSE) -> $A$1:$o$28 | BK15: 'V:\Business Intelligence Hub\01 - The City\2011 Census\Data\2nd Release - Key Indicators\Lower Areas and Wards\Initial Briefing\Census 2011 Bulk Data Load\Ward Bulk Data\Key Statisitics Bulk Load\[KEYSTATS FILE2.xlsx]KS101EWDATA'!$A$1:$o$28
A16: KS101EW0012 | B16: Percentage | C16: Represents code used for SDMX series key completeness, as this codelist is not meaningfully used, for reason of concatenation, axis derivations etc | D16: Usual resident population | E16: Lives in a communal establishment | F16: 15 | G16: 21 | H16: 4 | I16: 8 | J16: 20 | K16: 3 | L16: 5 | M16: 2 | N16: 11 | O16: 1 | P16: 16 | Q16: 22 | R16: 14 | S16: 19 | T16: 17 | U16: 9 | V16: 10 | W16: 6 | X16: 13 | Y16: 7 | Z16: 18 | AA16: 12 | AB16: 0.0387 | AC16: 0.0186 | AD16: 0.018 | AE16: =IFERROR(VLOOKUP($A16,'2001 Data'!$A$5:$AH$65001,York!AE$2,FALSE),"No Data") -> No Data | AF16: =IFERROR(VLOOKUP($A16,'2001 Data'!$A$5:$AH$65001,York!AF$2,FALSE),"No Data") -> No Data | AG16: =IFERROR(VLOOKUP($A16,'2001 Data'!$A$5:$AH$65001,York!AG$2,FALSE),"No Data") -> No Data | AH16: =IFERROR(VLOOKUP($A16,'2001 Data'!$A$5:$AH$65001,York!AH$2,FALSE),"No Data") -> No Data | AI16: =IFERROR(VLOOKUP($A16,'2001 Data'!$A$5:$AH$65001,York!AI$2,FALSE),"No Data") -> No Data | AJ16: =IFERROR(VLOOKUP($A16,'2001 Data'!$A$5:$AH$65001,York!AJ$2,FALSE),"No Data") -> No Data | AK16: =IFERROR(VLOOKUP($A16,'2001 Data'!$A$5:$AH$65001,York!AK$2,FALSE),"No Data") -> No Data | AL16: =IFERROR(VLOOKUP($A16,'2001 Data'!$A$5:$AH$65001,York!AL$2,FALSE),"No Data") -> No Data | AM16: =IFERROR(VLOOKUP($A16,'2001 Data'!$A$5:$AH$65001,York!AM$2,FALSE),"No Data") -> No Data | AN16: =IFERROR(VLOOKUP($A16,'2001 Data'!$A$5:$AH$65001,York!AN$2,FALSE),"No Data") -> No Data | AO16: =IFERROR(VLOOKUP($A16,'2001 Data'!$A$5:$AH$65001,York!AO$2,FALSE),"No Data") -> No Data | AP16: =IFERROR(VLOOKUP($A16,'2001 Data'!$A$5:$AH$65001,York!AP$2,FALSE),"No Data") -> No Data | AQ16: =IFERROR(VLOOKUP($A16,'2001 Data'!$A$5:$AH$65001,York!AQ$2,FALSE),"No Data") -> No Data | AR16: =IFERROR(VLOOKUP($A16,'2001 Data'!$A$5:$AH$65001,York!AR$2,FALSE),"No Data") -> No Data | AS16: =IFERROR(VLOOKUP($A16,'2001 Data'!$A$5:$AH$65001,York!AS$2,FALSE),"No Data") -> No Data | AT16: =IFERROR(VLOOKUP($A16,'2001 Data'!$A$5:$AH$65001,York!AT$2,FALSE),"No Data") -> No Data | AU16: =IFERROR(VLOOKUP($A16,'2001 Data'!$A$5:$AH$65001,York!AU$2,FALSE),"No Data") -> No Data | AV16: =IFERROR(VLOOKUP($A16,'2001 Data'!$A$5:$AH$65001,York!AV$2,FALSE),"No Data") -> No Data | AW16: =IFERROR(VLOOKUP($A16,'2001 Data'!$A$5:$AH$65001,York!AW$2,FALSE),"No Data") -> No Data | AX16: =IFERROR(VLOOKUP($A16,'2001 Data'!$A$5:$AH$65001,York!AX$2,FALSE),"No Data") -> No Data | AY16: =IFERROR(VLOOKUP($A16,'2001 Data'!$A$5:$AH$65001,York!AY$2,FALSE),"No Data") -> No Data | AZ16: =IFERROR(VLOOKUP($A16,'2001 Data'!$A$5:$AH$65001,York!AZ$2,FALSE),"No Data") -> No Data | BA16: =IFERROR(VLOOKUP($A16,'2001 Data'!$A$5:$AH$65001,York!BA$2,FALSE),"No Data") -> No Data | BB16: =IFERROR(VLOOKUP($A16,'2001 Data'!$A$5:$AH$65001,York!BB$2,FALSE),"No Data") -> No Data | BC16: =IFERROR(VLOOKUP($A16,'2001 Data'!$A$5:$AH$65001,York!BC$2,FALSE),"No Data") -> No Data | BE16: V:\Business Intelligence Hub\01 - The City\2011 Census\Data\2nd Release - Key Indicators\Lower Areas and Wards\Initial Briefing\Census 2011 Bulk Data Load\Ward Bulk Data\Key Statisitics Bulk Load\[KEYSTATS FILE2.xlsx]KS101EWDATA | BF16: 12 | BG16: =VLOOKUP(BF16,Sheet3!$B$2:$C$77,2,FALSE) -> $o$7:$o$28 | BH16: 'V:\Business Intelligence Hub\01 - The City\2011 Census\Data\2nd Release - Key Indicators\Lower Areas and Wards\Initial Briefing\Census 2011 Bulk Data Load\Ward Bulk Data\Key Statisitics Bulk Load\[KEYSTATS FILE2.xlsx]KS101EWDATA'!$o$7:$o$28 | BI16: 12 | BJ16: =VLOOKUP(BI16,Sheet3!$B$2:$F$77,5,FALSE) -> $A$1:$o$28 | BK16: 'V:\Business Intelligence Hub\01 - The City\2011 Census\Data\2nd Release - Key Indicators\Lower Areas and Wards\Initial Briefing\Census 2011 Bulk Data Load\Ward Bulk Data\Key Statisitics Bulk Load\[KEYSTATS FILE2.xlsx]KS101EWDATA'!$A$1:$o$28
A17: KS102EW0001 | B17: Count | C17: Person | D17: Age structure | E17: All categories: Age | F17: 14 | G17: 18 | H17: 3 | I17: 20 | J17: 9 | K17: 12 | L17: 22 | M17: 13 | N17: 8 | O17: 16 | P17: 1 | Q17: 19 | R17: 5 | S17: 10 | T17: 7 | U17: 6 | V17: 21 | W17: 11 | X17: 4 | Y17: 15 | Z17: 2 | AA17: 17 | AB17: 198051 | AC17: 5283733 | AD17: 53012456 | AE17: =IFERROR(VLOOKUP($A17,'2001 Data'!$A$5:$AH$65001,York!AE$2,FALSE),"No Data") -> 7729 | AF17: =IFERROR(VLOOKUP($A17,'2001 Data'!$A$5:$AH$65001,York!AF$2,FALSE),"No Data") -> 3802 | AG17: =IFERROR(VLOOKUP($A17,'2001 Data'!$A$5:$AH$65001,York!AG$2,FALSE),"No Data") -> 12017 | AH17: =IFERROR(VLOOKUP($A17,'2001 Data'!$A$5:$AH$65001,York!AH$2,FALSE),"No Data") -> 3540 | AI17: =IFERROR(VLOOKUP($A17,'2001 Data'!$A$5:$AH$65001,York!AI$2,FALSE),"No Data") -> 10733 | AJ17: =IFERROR(VLOOKUP($A17,'2001 Data'!$A$5:$AH$65001,York!AJ$2,FALSE),"No Data") -> 7921 | AK17: =IFERROR(VLOOKUP($A17,'2001 Data'!$A$5:$AH$65001,York!AK$2,FALSE),"No Data") -> 2595 | AL17: =IFERROR(VLOOKUP($A17,'2001 Data'!$A$5:$AH$65001,York!AL$2,FALSE),"No Data") -> 6676 | AM17: =IFERROR(VLOOKUP($A17,'2001 Data'!$A$5:$AH$65001,York!AM$2,FALSE),"No Data") -> 12468 | AN17: =IFERROR(VLOOKUP($A17,'2001 Data'!$A$5:$AH$65001,York!AN$2,FALSE),"No Data") -> 4122 | AO17: =IFERROR(VLOOKUP($A17,'2001 Data'!$A$5:$AH$65001,York!AO$2,FALSE),"No Data") -> 11743 | AP17: =IFERROR(VLOOKUP($A17,'2001 Data'!$A$5:$AH$65001,York!AP$2,FALSE),"No Data") -> 3786 | AQ17: =IFERROR(VLOOKUP($A17,'2001 Data'!$A$5:$AH$65001,York!AQ$2,FALSE),"No Data") -> 11564 | AR17: =IFERROR(VLOOKUP($A17,'2001 Data'!$A$5:$AH$65001,York!AR$2,FALSE),"No Data") -> 8269 | AS17: =IFERROR(VLOOKUP($A17,'2001 Data'!$A$5:$AH$65001,York!AS$2,FALSE),"No Data") -> 12089 | AT17: =IFERROR(VLOOKUP($A17,'2001 Data'!$A$5:$AH$65001,York!AT$2,FALSE),"No Data") -> 10994 | AU17: =IFERROR(VLOOKUP($A17,'2001 Data'!$A$5:$AH$65001,York!AU$2,FALSE),"No Data") -> 3149 | AV17: =IFERROR(VLOOKUP($A17,'2001 Data'!$A$5:$AH$65001,York!AV$2,FALSE),"No Data") -> 10286 | AW17: =IFERROR(VLOOKUP($A17,'2001 Data'!$A$5:$AH$65001,York!AW$2,FALSE),"No Data") -> 12160 | AX17: =IFERROR(VLOOKUP($A17,'2001 Data'!$A$5:$AH$65001,York!AX$2,FALSE),"No Data") -> 7862 | AY17: =IFERROR(VLOOKUP($A17,'2001 Data'!$A$5:$AH$65001,York!AY$2,FALSE),"No Data") -> 13690 | AZ17: =IFERROR(VLOOKUP($A17,'2001 Data'!$A$5:$AH$65001,York!AZ$2,FALSE),"No Data") -> 3899 | BA17: =IFERROR(VLOOKUP($A17,'2001 Data'!$A$5:$AH$65001,York!BA$2,FALSE),"No Data") -> 181094 | BB17: =IFERROR(VLOOKUP($A17,'2001 Data'!$A$5:$AH$65001,York!BB$2,FALSE),"No Data") -> 52041916 | BC17: =IFERROR(VLOOKUP($A17,'2001 Data'!$A$5:$AH$65001,York!BC$2,FALSE),"No Data") -> 49138831 | BE17: V:\Business Intelligence Hub\01 - The City\2011 Census\Data\2nd Release - Key Indicators\Lower Areas and Wards\Initial Briefing\Census 2011 Bulk Data Load\Ward Bulk Data\Key Statisitics Bulk Load\[KEYSTATS FILE2.xlsx]KS102EWDATA | BF17: 1 | BG17: =VLOOKUP(BF17,Sheet3!$B$2:$C$77,2,FALSE) -> $D$7:$D$28 | BH17: 'V:\Business Intelligence Hub\01 - The City\2011 Census\Data\2nd Release - Key Indicators\Lower Areas and Wards\Initial Briefing\Census 2011 Bulk Data Load\Ward Bulk Data\Key Statisitics Bulk Load\[KEYSTATS FILE2.xlsx]KS102EWDATA'!$D$7:$D$28 | BI17: 35 | BJ17: =VLOOKUP(BI17,Sheet3!$B$2:$F$77,5,FALSE) -> $A$1:$al$28 | BK17: 'V:\Business Intelligence Hub\01 - The City\2011 Census\Data\2nd Release - Key Indicators\Lower Areas and Wards\Initial Briefing\Census 2011 Bulk Data Load\Ward Bulk Data\Key Statisitics Bulk Load\[KEYSTATS FILE2.xlsx]KS102EWDATA'!$A$1:$al$28
A18: KS102EW0002 | B18: Count | C18: Person | D18: Age structure | E18: Age 0 to 4 | F18: 9 | G18: 17 | H18: 5 | I18: 18 | J18: 7 | K18: 13 | L18: 21 | M18: 15 | N18: 8 | O18: 22 | P18: 4 | Q18: 20 | R18: 2 | S18: 12 | T18: 10 | U18: 6 | V18: 18 | W18: 11 | X18: 3 | Y18: 14 | Z18: 1 | AA18: 16 | AB18: 10677 | AC18: 328447 | AD18: 3318449 | AE18: =IFERROR(VLOOKUP($A18,'2001 Data'!$A$5:$AH$65001,York!AE$2,FALSE),"No Data") -> 430 | AF18: =IFERROR(VLOOKUP($A18,'2001 Data'!$A$5:$AH$65001,York!AF$2,FALSE),"No Data") -> 193 | AG18: =IFERROR(VLOOKUP($A18,'2001 Data'!$A$5:$AH$65001,York!AG$2,FALSE),"No Data") -> 648 | AH18: =IFERROR(VLOOKUP($A18,'2001 Data'!$A$5:$AH$65001,York!AH$2,FALSE),"No Data") -> 158 | AI18: =IFERROR(VLOOKUP($A18,'2001 Data'!$A$5:$AH$65001,York!AI$2,FALSE),"No Data") -> 550 | AJ18: =IFERROR(VLOOKUP($A18,'2001 Data'!$A$5:$AH$65001,York!AJ$2,FALSE),"No Data") -> 341 | AK18: =IFERROR(VLOOKUP($A18,'2001 Data'!$A$5:$AH$65001,York!AK$2,FALSE),"No Data") -> 94 | AL18: =IFERROR(VLOOKUP($A18,'2001 Data'!$A$5:$AH$65001,York!AL$2,FALSE),"No Data") -> 199 | AM18: =IFERROR(VLOOKUP($A18,'2001 Data'!$A$5:$AH$65001,York!AM$2,FALSE),"No Data") -> 531 | AN18: =IFERROR(VLOOKUP($A18,'2001 Data'!$A$5:$AH$65001,York!AN$2,FALSE),"No Data") -> 65 | AO18: =IFERROR(VLOOKUP($A18,'2001 Data'!$A$5:$AH$65001,York!AO$2,FALSE),"No Data") -> 636 | AP18: =IFERROR(VLOOKUP($A18,'2001 Data'!$A$5:$AH$65001,York!AP$2,FALSE),"No Data") -> 148 | AQ18: =IFERROR(VLOOKUP($A18,'2001 Data'!$A$5:$AH$65001,York!AQ$2,FALSE),"No Data") -> 710 | AR18: =IFERROR(VLOOKUP($A18,'2001 Data'!$A$5:$AH$65001,York!AR$2,FALSE),"No Data") -> 453 | AS18: =IFERROR(VLOOKUP($A18,'2001 Data'!$A$5:$AH$65001,York!AS$2,FALSE),"No Data") -> 542 | AT18: =IFERROR(VLOOKUP($A18,'2001 Data'!$A$5:$AH$65001,York!AT$2,FALSE),"No Data") -> 464 | AU18: =IFERROR(VLOOKUP($A18,'2001 Data'!$A$5:$AH$65001,York!AU$2,FALSE),"No Data") -> 162 | AV18: =IFERROR(VLOOKUP($A18,'2001 Data'!$A$5:$AH$65001,York!AV$2,FALSE),"No Data") -> 535 | AW18: =IFERROR(VLOOKUP($A18,'2001 Data'!$A$5:$AH$65001,York!AW$2,FALSE),"No Data") -> 879 | AX18: =IFERROR(VLOOKUP($A18,'2001 Data'!$A$5:$AH$65001,York!AX$2,FALSE),"No Data") -> 472 | AY18: =IFERROR(VLOOKUP($A18,'2001 Data'!$A$5:$AH$65001,York!AY$2,FALSE),"No Data") -> 918 | AZ18: =IFERROR(VLOOKUP($A18,'2001 Data'!$A$5:$AH$65001,York!AZ$2,FALSE),"No Data") -> 244 | BA18: =IFERROR(VLOOKUP($A18,'2001 Data'!$A$5:$AH$65001,York!BA$2,FALSE),"No Data") -> 9372 | BB18: =IFERROR(VLOOKUP($A18,'2001 Data'!$A$5:$AH$65001,York!BB$2,FALSE),"No Data") -> 3094141 | BC18: =IFERROR(VLOOKUP($A18,'2001 Data'!$A$5:$AH$65001,York!BC$2,FALSE),"No Data") -> 2926238 | BE18: V:\Business Intelligence Hub\01 - The City\2011 Census\Data\2nd Release - Key Indicators\Lower Areas and Wards\Initial Briefing\Census 2011 Bulk Data Load\Ward Bulk Data\Key Statisitics Bulk Load\[KEYSTATS FILE2.xlsx]KS102EWDATA | BF18: 2 | BG18: =VLOOKUP(BF18,Sheet3!$B$2:$C$77,2,FALSE) -> $E$7:$E$28 | BH18: 'V:\Business Intelligence Hub\01 - The City\2011 Census\Data\2nd Release - Key Indicators\Lower Areas and Wards\Initial Briefing\Census 2011 Bulk Data Load\Ward Bulk Data\Key Statisitics Bulk Load\[KEYSTATS FILE2.xlsx]KS102EWDATA'!$E$7:$E$28 | BI18: 35 | BJ18: =VLOOKUP(BI18,Sheet3!$B$2:$F$77,5,FALSE) -> $A$1:$al$28 | BK18: 'V:\Business Intelligence Hub\01 - The City\2011 Census\Data\2nd Release - Key Indicators\Lower Areas and Wards\Initial Briefing\Census 2011 Bulk Data Load\Ward Bulk Data\Key Statisitics Bulk Load\[KEYSTATS FILE2.xlsx]KS102EWDATA'!$A$1:$al$28
A19: KS102EW0003 | B19: Count | C19: Person | D19: Age structure | E19: Age 5 to 7 | F19: 12 | G19: 16 | H19: 4 | I19: 18 | J19: 11 | K19: 13 | L19: 20 | M19: 17 | N19: 6 | O19: 22 | P19: 3 | Q19: 21 | R19: 4 | S19: 13 | T19: 9 | U19: 8 | V19: 19 | W19: 7 | X19: 1 | Y19: 10 | Z19: 2 | AA19: 15 | AB19: 5747 | AC19: 182818 | AD19: 1827610 | AE19: =IFERROR(VLOOKUP($A19,'2001 Data'!$A$5:$AH$65001,York!AE$2,FALSE),"No Data") -> 279 | AF19: =IFERROR(VLOOKUP($A19,'2001 Data'!$A$5:$AH$65001,York!AF$2,FALSE),"No Data") -> 100 | AG19: =IFERROR(VLOOKUP($A19,'2001 Data'!$A$5:$AH$65001,York!AG$2,FALSE),"No Data") -> 358 | AH19: =IFERROR(VLOOKUP($A19,'2001 Data'!$A$5:$AH$65001,York!AH$2,FALSE),"No Data") -> 99 | AI19: =IFERROR(VLOOKUP($A19,'2001 Data'!$A$5:$AH$65001,York!AI$2,FALSE),"No Data") -> 324 | AJ19: =IFERROR(VLOOKUP($A19,'2001 Data'!$A$5:$AH$65001,York!AJ$2,FALSE),"No Data") -> 210 | AK19: =IFERROR(VLOOKUP($A19,'2001 Data'!$A$5:$AH$65001,York!AK$2,FALSE),"No Data") -> 74 | AL19: =IFERROR(VLOOKUP($A19,'2001 Data'!$A$5:$AH$65001,York!AL$2,FALSE),"No Data") -> 105 | AM19: =IFERROR(VLOOKUP($A19,'2001 Data'!$A$5:$AH$65001,York!AM$2,FALSE),"No Data") -> 361 | AN19: =IFERROR(VLOOKUP($A19,'2001 Data'!$A$5:$AH$65001,York!AN$2,FALSE),"No Data") -> 40 | AO19: =IFERROR(VLOOKUP($A19,'2001 Data'!$A$5:$AH$65001,York!AO$2,FALSE),"No Data") -> 462 | AP19: =IFERROR(VLOOKUP($A19,'2001 Data'!$A$5:$AH$65001,York!AP$2,FALSE),"No Data") -> 91 | AQ19: =IFERROR(VLOOKUP($A19,'2001 Data'!$A$5:$AH$65001,York!AQ$2,FALSE),"No Data") -> 322 | AR19: =IFERROR(VLOOKUP($A19,'2001 Data'!$A$5:$AH$65001,York!AR$2,FALSE),"No Data") -> 274 | AS19: =IFERROR(VLOOKUP($A19,'2001 Data'!$A$5:$AH$65001,York!AS$2,FALSE),"No Data") -> 421 | AT19: =IFERROR(VLOOKUP($A19,'2001 Data'!$A$5:$AH$65001,York!AT$2,FALSE),"No Data") -> 245 | AU19: =IFERROR(VLOOKUP($A19,'2001 Data'!$A$5:$AH$65001,York!AU$2,FALSE),"No Data") -> 87 | AV19: =IFERROR(VLOOKUP($A19,'2001 Data'!$A$5:$AH$65001,York!AV$2,FALSE),"No Data") -> 368 | AW19: =IFERROR(VLOOKUP($A19,'2001 Data'!$A$5:$AH$65001,York!AW$2,FALSE),"No Data") -> 489 | AX19: =IFERROR(VLOOKUP($A19,'2001 Data'!$A$5:$AH$65001,York!AX$2,FALSE),"No Data") -> 327 | AY19: =IFERROR(VLOOKUP($A19,'2001 Data'!$A$5:$AH$65001,York!AY$2,FALSE),"No Data") -> 559 | AZ19: =IFERROR(VLOOKUP($A19,'2001 Data'!$A$5:$AH$65001,York!AZ$2,FALSE),"No Data") -> 157 | BA19: =IFERROR(VLOOKUP($A19,'2001 Data'!$A$5:$AH$65001,York!BA$2,FALSE),"No Data") -> 5752 | BB19: =IFERROR(VLOOKUP($A19,'2001 Data'!$A$5:$AH$65001,York!BB$2,FALSE),"No Data") -> 1946817 | BC19: =IFERROR(VLOOKUP($A19,'2001 Data'!$A$5:$AH$65001,York!BC$2,FALSE),"No Data") -> 1838668 | BE19: V:\Business Intelligence Hub\01 - The City\2011 Census\Data\2nd Release - Key Indicators\Lower Areas and Wards\Initial Briefing\Census 2011 Bulk Data Load\Ward Bulk Data\Key Statisitics Bulk Load\[KEYSTATS FILE2.xlsx]KS102EWDATA | BF19: 3 | BG19: =VLOOKUP(BF19,Sheet3!$B$2:$C$77,2,FALSE) -> $F$7:$F$28 | BH19: 'V:\Business Intelligence Hub\01 - The City\2011 Census\Data\2nd Release - Key Indicators\Lower Areas and Wards\Initial Briefing\Census 2011 Bulk Data Load\Ward Bulk Data\Key Statisitics Bulk Load\[KEYSTATS FILE2.xlsx]KS102EWDATA'!$F$7:$F$28 | BI19: 35 | BJ19: =VLOOKUP(BI19,Sheet3!$B$2:$F$77,5,FALSE) -> $A$1:$al$28 | BK19: 'V:\Business Intelligence Hub\01 - The City\2011 Census\Data\2nd Release - Key Indicators\Lower Areas and Wards\Initial Briefing\Census 2011 Bulk Data Load\Ward Bulk Data\Key Statisitics Bulk Load\[KEYSTATS FILE2.xlsx]KS102EWDATA'!$A$1:$al$28
A20: KS102EW0004 | B20: Count | C20: Person | D20: Age structure | E20: Age 8 to 9 | F20: 8 | G20: 17 | H20: 8 | I20: 16 | J20: 5 | K20: 14 | L20: 21 | M20: 20 | N20: 10 | O20: 22 | P20: 3 | Q20: 18 | R20: 4 | S20: 13 | T20: 7 | U20: 12 | V20: 19 | W20: 6 | X20: 2 | Y20: 11 | Z20: 1 | AA20: 15 | AB20: 3601 | AC20: 114657 | AD20: 1145022 | AE20: =IFERROR(VLOOKUP($A20,'2001 Data'!$A$5:$AH$65001,York!AE$2,FALSE),"No Data") -> 190 | AF20: =IFERROR(VLOOKUP($A20,'2001 Data'!$A$5:$AH$65001,York!AF$2,FALSE),"No Data") -> 92 | AG20: =IFERROR(VLOOKUP($A20,'2001 Data'!$A$5:$AH$65001,York!AG$2,FALSE),"No Data") -> 270 | AH20: =IFERROR(VLOOKUP($A20,'2001 Data'!$A$5:$AH$65001,York!AH$2,FALSE),"No Data") -> 59 | AI20: =IFERROR(VLOOKUP($A20,'2001 Data'!$A$5:$AH$65001,York!AI$2,FALSE),"No Data") -> 240 | AJ20: =IFERROR(VLOOKUP($A20,'2001 Data'!$A$5:$AH$65001,York!AJ$2,FALSE),"No Data") -> 122 | AK20: =IFERROR(VLOOKUP($A20,'2001 Data'!$A$5:$AH$65001,York!AK$2,FALSE),"No Data") -> 55 | AL20: =IFERROR(VLOOKUP($A20,'2001 Data'!$A$5:$AH$65001,York!AL$2,FALSE),"No Data") -> 63 | AM20: =IFERROR(VLOOKUP($A20,'2001 Data'!$A$5:$AH$65001,York!AM$2,FALSE),"No Data") -> 274 | AN20: =IFERROR(VLOOKUP($A20,'2001 Data'!$A$5:$AH$65001,York!AN$2,FALSE),"No Data") -> 31 | AO20: =IFERROR(VLOOKUP($A20,'2001 Data'!$A$5:$AH$65001,York!AO$2,FALSE),"No Data") -> 290 | AP20: =IFERROR(VLOOKUP($A20,'2001 Data'!$A$5:$AH$65001,York!AP$2,FALSE),"No Data") -> 77 | AQ20: =IFERROR(VLOOKUP($A20,'2001 Data'!$A$5:$AH$65001,York!AQ$2,FALSE),"No Data") -> 249 | AR20: =IFERROR(VLOOKUP($A20,'2001 Data'!$A$5:$AH$65001,York!AR$2,FALSE),"No Data") -> 186 | AS20: =IFERROR(VLOOKUP($A20,'2001 Data'!$A$5:$AH$65001,York!AS$2,FALSE),"No Data") -> 311 | AT20: =IFERROR(VLOOKUP($A20,'2001 Data'!$A$5:$AH$65001,York!AT$2,FALSE),"No Data") -> 136 | AU20: =IFERROR(VLOOKUP($A20,'2001 Data'!$A$5:$AH$65001,York!AU$2,FALSE),"No Data") -> 55 | AV20: =IFERROR(VLOOKUP($A20,'2001 Data'!$A$5:$AH$65001,York!AV$2,FALSE),"No Data") -> 273 | AW20: =IFERROR(VLOOKUP($A20,'2001 Data'!$A$5:$AH$65001,York!AW$2,FALSE),"No Data") -> 313 | AX20: =IFERROR(VLOOKUP($A20,'2001 Data'!$A$5:$AH$65001,York!AX$2,FALSE),"No Data") -> 244 | AY20: =IFERROR(VLOOKUP($A20,'2001 Data'!$A$5:$AH$65001,York!AY$2,FALSE),"No Data") -> 389 | AZ20: =IFERROR(VLOOKUP($A20,'2001 Data'!$A$5:$AH$65001,York!AZ$2,FALSE),"No Data") -> 107 | BA20: =IFERROR(VLOOKUP($A20,'2001 Data'!$A$5:$AH$65001,York!BA$2,FALSE),"No Data") -> 4026 | BB20: =IFERROR(VLOOKUP($A20,'2001 Data'!$A$5:$AH$65001,York!BB$2,FALSE),"No Data") -> 1361037 | BC20: =IFERROR(VLOOKUP($A20,'2001 Data'!$A$5:$AH$65001,York!BC$2,FALSE),"No Data") -> 1283861 | BE20: V:\Business Intelligence Hub\01 - The City\2011 Census\Data\2nd Release - Key Indicators\Lower Areas and Wards\Initial Briefing\Census 2011 Bulk Data Load\Ward Bulk Data\Key Statisitics Bulk Load\[KEYSTATS FILE2.xlsx]KS102EWDATA | BF20: 4 | BG20: =VLOOKUP(BF20,Sheet3!$B$2:$C$77,2,FALSE) -> $g$7:$g$28 | BH20: 'V:\Business Intelligence Hub\01 - The City\2011 Census\Data\2nd Release - Key Indicators\Lower Areas and Wards\Initial Briefing\Census 2011 Bulk Data Load\Ward Bulk Data\Key Statisitics Bulk Load\[KEYSTATS FILE2.xlsx]KS102EWDATA'!$g$7:$g$28 | BI20: 35 | BJ20: =VLOOKUP(BI20,Sheet3!$B$2:$F$77,5,FALSE) -> $A$1:$al$28 | BK20: 'V:\Business Intelligence Hub\01 - The City\2011 Census\Data\2nd Release - Key Indicators\Lower Areas and Wards\Initial Briefing\Census 2011 Bulk Data Load\Ward Bulk Data\Key Statisitics Bulk Load\[KEYSTATS FILE2.xlsx]KS102EWDATA'!$A$1:$al$28
A21: KS102EW0005 | B21: Count | C21: Person | D21: Age structure | E21: Age 10 to 14 | F21: 12 | G21: 17 | H21: 5 | I21: 16 | J21: 6 | K21: 14 | L21: 21 | M21: 19 | N21: 8 | O21: 22 | P21: 3 | Q21: 20 | R21: 9 | S21: 13 | T21: 7 | U21: 11 | V21: 18 | W21: 4 | X21: 1 | Y21: 10 | Z21: 2 | AA21: 15 | AB21: 9712 | AC21: 306096 | AD21: 3080929 | AE21: =IFERROR(VLOOKUP($A21,'2001 Data'!$A$5:$AH$65001,York!AE$2,FALSE),"No Data") -> 565 | AF21: =IFERROR(VLOOKUP($A21,'2001 Data'!$A$5:$AH$65001,York!AF$2,FALSE),"No Data") -> 221 | AG21: =IFERROR(VLOOKUP($A21,'2001 Data'!$A$5:$AH$65001,York!AG$2,FALSE),"No Data") -> 775 | AH21: =IFERROR(VLOOKUP($A21,'2001 Data'!$A$5:$AH$65001,York!AH$2,FALSE),"No Data") -> 193 | AI21: =IFERROR(VLOOKUP($A21,'2001 Data'!$A$5:$AH$65001,York!AI$2,FALSE),"No Data") -> 643 | AJ21: =IFERROR(VLOOKUP($A21,'2001 Data'!$A$5:$AH$65001,York!AJ$2,FALSE),"No Data") -> 354 | AK21: =IFERROR(VLOOKUP($A21,'2001 Data'!$A$5:$AH$65001,York!AK$2,FALSE),"No Data") -> 138 | AL21: =IFERROR(VLOOKUP($A21,'2001 Data'!$A$5:$AH$65001,York!AL$2,FALSE),"No Data") -> 171 | AM21: =IFERROR(VLOOKUP($A21,'2001 Data'!$A$5:$AH$65001,York!AM$2,FALSE),"No Data") -> 753 | AN21: =IFERROR(VLOOKUP($A21,'2001 Data'!$A$5:$AH$65001,York!AN$2,FALSE),"No Data") -> 59 | AO21: =IFERROR(VLOOKUP($A21,'2001 Data'!$A$5:$AH$65001,York!AO$2,FALSE),"No Data") -> 856 | AP21: =IFERROR(VLOOKUP($A21,'2001 Data'!$A$5:$AH$65001,York!AP$2,FALSE),"No Data") -> 192 | AQ21: =IFERROR(VLOOKUP($A21,'2001 Data'!$A$5:$AH$65001,York!AQ$2,FALSE),"No Data") -> 607 | AR21: =IFERROR(VLOOKUP($A21,'2001 Data'!$A$5:$AH$65001,York!AR$2,FALSE),"No Data") -> 458 | AS21: =IFERROR(VLOOKUP($A21,'2001 Data'!$A$5:$AH$65001,York!AS$2,FALSE),"No Data") -> 817 | AT21: =IFERROR(VLOOKUP($A21,'2001 Data'!$A$5:$AH$65001,York!AT$2,FALSE),"No Data") -> 436 | AU21: =IFERROR(VLOOKUP($A21,'2001 Data'!$A$5:$AH$65001,York!AU$2,FALSE),"No Data") -> 172 | AV21: =IFERROR(VLOOKUP($A21,'2001 Data'!$A$5:$AH$65001,York!AV$2,FALSE),"No Data") -> 619 | AW21: =IFERROR(VLOOKUP($A21,'2001 Data'!$A$5:$AH$65001,York!AW$2,FALSE),"No Data") -> 728 | AX21: =IFERROR(VLOOKUP($A21,'2001 Data'!$A$5:$AH$65001,York!AX$2,FALSE),"No Data") -> 544 | AY21: =IFERROR(VLOOKUP($A21,'2001 Data'!$A$5:$AH$65001,York!AY$2,FALSE),"No Data") -> 1045 | AZ21: =IFERROR(VLOOKUP($A21,'2001 Data'!$A$5:$AH$65001,York!AZ$2,FALSE),"No Data") -> 256 | BA21: =IFERROR(VLOOKUP($A21,'2001 Data'!$A$5:$AH$65001,York!BA$2,FALSE),"No Data") -> 10602 | BB21: =IFERROR(VLOOKUP($A21,'2001 Data'!$A$5:$AH$65001,York!BB$2,FALSE),"No Data") -> 3425023 | BC21: =IFERROR(VLOOKUP($A21,'2001 Data'!$A$5:$AH$65001,York!BC$2,FALSE),"No Data") -> 3229047 | BE21: V:\Business Intelligence Hub\01 - The City\2011 Census\Data\2nd Release - Key Indicators\Lower Areas and Wards\Initial Briefing\Census 2011 Bulk Data Load\Ward Bulk Data\Key Statisitics Bulk Load\[KEYSTATS FILE2.xlsx]KS102EWDATA | BF21: 5 | BG21: =VLOOKUP(BF21,Sheet3!$B$2:$C$77,2,FALSE) -> $h$7:$h$28 | BH21: 'V:\Business Intelligence Hub\01 - The City\2011 Census\Data\2nd Release - Key Indicators\Lower Areas and Wards\Initial Briefing\Census 2011 Bulk Data Load\Ward Bulk Data\Key Statisitics Bulk Load\[KEYSTATS FILE2.xlsx]KS102EWDATA'!$h$7:$h$28 | BI21: 35 | BJ21: =VLOOKUP(BI21,Sheet3!$B$2:$F$77,5,FALSE) -> $A$1:$al$28 | BK21: 'V:\Business Intelligence Hub\01 - The City\2011 Census\Data\2nd Release - Key Indicators\Lower Areas and Wards\Initial Briefing\Census 2011 Bulk Data Load\Ward Bulk Data\Key Statisitics Bulk Load\[KEYSTATS FILE2.xlsx]KS102EWDATA'!$A$1:$al$28
A22: KS102EW0006 | B22: Count | C22: Person | D22: Age structure | E22: Age 15 | F22: 9 | G22: 18 | H22: 1 | I22: 17 | J22: 8 | K22: 14 | L22: 21 | M22: 16 | N22: 6 | O22: 22 | P22: 4 | Q22: 20 | R22: 9 | S22: 12 | T22: 6 | U22: 13 | V22: 19 | W22: 5 | X22: 3 | Y22: 11 | Z22: 2 | AA22: 15 | AB22: 2039 | AC22: 65774 | AD22: 650826 | AE22: =IFERROR(VLOOKUP($A22,'2001 Data'!$A$5:$AH$65001,York!AE$2,FALSE),"No Data") -> 110 | AF22: =IFERROR(VLOOKUP($A22,'2001 Data'!$A$5:$AH$65001,York!AF$2,FALSE),"No Data") -> 38 | AG22: =IFERROR(VLOOKUP($A22,'2001 Data'!$A$5:$AH$65001,York!AG$2,FALSE),"No Data") -> 151 | AH22: =IFERROR(VLOOKUP($A22,'2001 Data'!$A$5:$AH$65001,York!AH$2,FALSE),"No Data") -> 38 | AI22: =IFERROR(VLOOKUP($A22,'2001 Data'!$A$5:$AH$65001,York!AI$2,FALSE),"No Data") -> 126 | AJ22: =IFERROR(VLOOKUP($A22,'2001 Data'!$A$5:$AH$65001,York!AJ$2,FALSE),"No Data") -> 65 | AK22: =IFERROR(VLOOKUP($A22,'2001 Data'!$A$5:$AH$65001,York!AK$2,FALSE),"No Data") -> 33 | AL22: =IFERROR(VLOOKUP($A22,'2001 Data'!$A$5:$AH$65001,York!AL$2,FALSE),"No Data") -> 39 | AM22: =IFERROR(VLOOKUP($A22,'2001 Data'!$A$5:$AH$65001,York!AM$2,FALSE),"No Data") -> 171 | AN22: =IFERROR(VLOOKUP($A22,'2001 Data'!$A$5:$AH$65001,York!AN$2,FALSE),"No Data") -> 17 | AO22: =IFERROR(VLOOKUP($A22,'2001 Data'!$A$5:$AH$65001,York!AO$2,FALSE),"No Data") -> 156 | AP22: =IFERROR(VLOOKUP($A22,'2001 Data'!$A$5:$AH$65001,York!AP$2,FALSE),"No Data") -> 34 | AQ22: =IFERROR(VLOOKUP($A22,'2001 Data'!$A$5:$AH$65001,York!AQ$2,FALSE),"No Data") -> 123 | AR22: =IFERROR(VLOOKUP($A22,'2001 Data'!$A$5:$AH$65001,York!AR$2,FALSE),"No Data") -> 93 | AS22: =IFERROR(VLOOKUP($A22,'2001 Data'!$A$5:$AH$65001,York!AS$2,FALSE),"No Data") -> 135 | AT22: =IFERROR(VLOOKUP($A22,'2001 Data'!$A$5:$AH$65001,York!AT$2,FALSE),"No Data") -> 81 | AU22: =IFERROR(VLOOKUP($A22,'2001 Data'!$A$5:$AH$65001,York!AU$2,FALSE),"No Data") -> 32 | AV22: =IFERROR(VLOOKUP($A22,'2001 Data'!$A$5:$AH$65001,York!AV$2,FALSE),"No Data") -> 150 | AW22: =IFERROR(VLOOKUP($A22,'2001 Data'!$A$5:$AH$65001,York!AW$2,FALSE),"No Data") -> 143 | AX22: =IFERROR(VLOOKUP($A22,'2001 Data'!$A$5:$AH$65001,York!AX$2,FALSE),"No Data") -> 94 | AY22: =IFERROR(VLOOKUP($A22,'2001 Data'!$A$5:$AH$65001,York!AY$2,FALSE),"No Data") -> 167 | AZ22: =IFERROR(VLOOKUP($A22,'2001 Data'!$A$5:$AH$65001,York!AZ$2,FALSE),"No Data") -> 43 | BA22: =IFERROR(VLOOKUP($A22,'2001 Data'!$A$5:$AH$65001,York!BA$2,FALSE),"No Data") -> 2039 | BB22: =IFERROR(VLOOKUP($A22,'2001 Data'!$A$5:$AH$65001,York!BB$2,FALSE),"No Data") -> 661718 | BC22: =IFERROR(VLOOKUP($A22,'2001 Data'!$A$5:$AH$65001,York!BC$2,FALSE),"No Data") -> 623767 | BE22: V:\Business Intelligence Hub\01 - The City\2011 Census\Data\2nd Release - Key Indicators\Lower Areas and Wards\Initial Briefing\Census 2011 Bulk Data Load\Ward Bulk Data\Key Statisitics Bulk Load\[KEYSTATS FILE2.xlsx]KS102EWDATA | BF22: 6 | BG22: =VLOOKUP(BF22,Sheet3!$B$2:$C$77,2,FALSE) -> $i$7:$i$28 | BH22: 'V:\Business Intelligence Hub\01 - The City\2011 Census\Data\2nd Release - Key Indicators\Lower Areas and Wards\Initial Briefing\Census 2011 Bulk Data Load\Ward Bulk Data\Key Statisitics Bulk Load\[KEYSTATS FILE2.xlsx]KS102EWDATA'!$i$7:$i$28 | BI22: 35 | BJ22: =VLOOKUP(BI22,Sheet3!$B$2:$F$77,5,FALSE) -> $A$1:$al$28 | BK22: 'V:\Business Intelligence Hub\01 - The City\2011 Census\Data\2nd Release - Key Indicators\Lower Areas and Wards\Initial Briefing\Census 2011 Bulk Data Load\Ward Bulk Data\Key Statisitics Bulk Load\[KEYSTATS FILE2.xlsx]KS102EWDATA'!$A$1:$al$28
A23: KS102EW0007 | B23: Count | C23: Person | D23: Age structure | E23: Age 16 to 17 | F23: 10 | G23: 17 | H23: 6 | I23: 19 | J23: 7 | K23: 14 | L23: 21 | M23: 15 | N23: 8 | O23: 22 | P23: 1 | Q23: 18 | R23: 13 | S23: 12 | T23: 5 | U23: 11 | V23: 20 | W23: 4 | X23: 2 | Y23: 9 | Z23: 3 | AA23: 16 | AB23: 4179 | AC23: 130943 | AD23: 1314124 | AE23: =IFERROR(VLOOKUP($A23,'2001 Data'!$A$5:$AH$65001,York!AE$2,FALSE),"No Data") -> 209 | AF23: =IFERROR(VLOOKUP($A23,'2001 Data'!$A$5:$AH$65001,York!AF$2,FALSE),"No Data") -> 74 | AG23: =IFERROR(VLOOKUP($A23,'2001 Data'!$A$5:$AH$65001,York!AG$2,FALSE),"No Data") -> 304 | AH23: =IFERROR(VLOOKUP($A23,'2001 Data'!$A$5:$AH$65001,York!AH$2,FALSE),"No Data") -> 81 | AI23: =IFERROR(VLOOKUP($A23,'2001 Data'!$A$5:$AH$65001,York!AI$2,FALSE),"No Data") -> 293 | AJ23: =IFERROR(VLOOKUP($A23,'2001 Data'!$A$5:$AH$65001,York!AJ$2,FALSE),"No Data") -> 129 | AK23: =IFERROR(VLOOKUP($A23,'2001 Data'!$A$5:$AH$65001,York!AK$2,FALSE),"No Data") -> 42 | AL23: =IFERROR(VLOOKUP($A23,'2001 Data'!$A$5:$AH$65001,York!AL$2,FALSE),"No Data") -> 80 | AM23: =IFERROR(VLOOKUP($A23,'2001 Data'!$A$5:$AH$65001,York!AM$2,FALSE),"No Data") -> 384 | AN23: =IFERROR(VLOOKUP($A23,'2001 Data'!$A$5:$AH$65001,York!AN$2,FALSE),"No Data") -> 33 | AO23: =IFERROR(VLOOKUP($A23,'2001 Data'!$A$5:$AH$65001,York!AO$2,FALSE),"No Data") -> 273 | AP23: =IFERROR(VLOOKUP($A23,'2001 Data'!$A$5:$AH$65001,York!AP$2,FALSE),"No Data") -> 74 | AQ23: =IFERROR(VLOOKUP($A23,'2001 Data'!$A$5:$AH$65001,York!AQ$2,FALSE),"No Data") -> 227 | AR23: =IFERROR(VLOOKUP($A23,'2001 Data'!$A$5:$AH$65001,York!AR$2,FALSE),"No Data") -> 192 | AS23: =IFERROR(VLOOKUP($A23,'2001 Data'!$A$5:$AH$65001,York!AS$2,FALSE),"No Data") -> 304 | AT23: =IFERROR(VLOOKUP($A23,'2001 Data'!$A$5:$AH$65001,York!AT$2,FALSE),"No Data") -> 177 | AU23: =IFERROR(VLOOKUP($A23,'2001 Data'!$A$5:$AH$65001,York!AU$2,FALSE),"No Data") -> 63 | AV23: =IFERROR(VLOOKUP($A23,'2001 Data'!$A$5:$AH$65001,York!AV$2,FALSE),"No Data") -> 292 | AW23: =IFERROR(VLOOKUP($A23,'2001 Data'!$A$5:$AH$65001,York!AW$2,FALSE),"No Data") -> 263 | AX23: =IFERROR(VLOOKUP($A23,'2001 Data'!$A$5:$AH$65001,York!AX$2,FALSE),"No Data") -> 194 | AY23: =IFERROR(VLOOKUP($A23,'2001 Data'!$A$5:$AH$65001,York!AY$2,FALSE),"No Data") -> 362 | AZ23: =IFERROR(VLOOKUP($A23,'2001 Data'!$A$5:$AH$65001,York!AZ$2,FALSE),"No Data") -> 97 | BA23: =IFERROR(VLOOKUP($A23,'2001 Data'!$A$5:$AH$65001,York!BA$2,FALSE),"No Data") -> 4147 | BB23: =IFERROR(VLOOKUP($A23,'2001 Data'!$A$5:$AH$65001,York!BB$2,FALSE),"No Data") -> 1306500 | BC23: =IFERROR(VLOOKUP($A23,'2001 Data'!$A$5:$AH$65001,York!BC$2,FALSE),"No Data") -> 1231266 | BE23: V:\Business Intelligence Hub\01 - The City\2011 Census\Data\2nd Release - Key Indicators\Lower Areas and Wards\Initial Briefing\Census 2011 Bulk Data Load\Ward Bulk Data\Key Statisitics Bulk Load\[KEYSTATS FILE2.xlsx]KS102EWDATA | BF23: 7 | BG23: =VLOOKUP(BF23,Sheet3!$B$2:$C$77,2,FALSE) -> $j$7:$j$28 | BH23: 'V:\Business Intelligence Hub\01 - The City\2011 Census\Data\2nd Release - Key Indicators\Lower Areas and Wards\Initial Briefing\Census 2011 Bulk Data Load\Ward Bulk Data\Key Statisitics Bulk Load\[KEYSTATS FILE2.xlsx]KS102EWDATA'!$j$7:$j$28 | BI23: 35 | BJ23: =VLOOKUP(BI23,Sheet3!$B$2:$F$77,5,FALSE) -> $A$1:$al$28 | BK23: 'V:\Business Intelligence Hub\01 - The City\2011 Census\Data\2nd Release - Key Indicators\Lower Areas and Wards\Initial Briefing\Census 2011 Bulk Data Load\Ward Bulk Data\Key Statisitics Bulk Load\[KEYSTATS FILE2.xlsx]KS102EWDATA'!$A$1:$al$28
A24: KS102EW0008 | B24: Count | C24: Person | D24: Age structure | E24: Age 18 to 19 | F24: 15 | G24: 19 | H24: 2 | I24: 22 | J24: 13 | K24: 6 | L24: 20 | M24: 3 | N24: 14 | O24: 1 | P24: 4 | Q24: 20 | R24: 10 | S24: 5 | T24: 9 | U24: 12 | V24: 17 | W24: 8 | X24: 11 | Y24: 16 | Z24: 7 | AA24: 18 | AB24: 7879 | AC24: 151928 | AD24: 1375315 | AE24: =IFERROR(VLOOKUP($A24,'2001 Data'!$A$5:$AH$65001,York!AE$2,FALSE),"No Data") -> 162 | AF24: =IFERROR(VLOOKUP($A24,'2001 Data'!$A$5:$AH$65001,York!AF$2,FALSE),"No Data") -> 64 | AG24: =IFERROR(VLOOKUP($A24,'2001 Data'!$A$5:$AH$65001,York!AG$2,FALSE),"No Data") -> 485 | AH24: =IFERROR(VLOOKUP($A24,'2001 Data'!$A$5:$AH$65001,York!AH$2,FALSE),"No Data") -> 64 | AI24: =IFERROR(VLOOKUP($A24,'2001 Data'!$A$5:$AH$65001,York!AI$2,FALSE),"No Data") -> 220 | AJ24: =IFERROR(VLOOKUP($A24,'2001 Data'!$A$5:$AH$65001,York!AJ$2,FALSE),"No Data") -> 268 | AK24: =IFERROR(VLOOKUP($A24,'2001 Data'!$A$5:$AH$65001,York!AK$2,FALSE),"No Data") -> 52 | AL24: =IFERROR(VLOOKUP($A24,'2001 Data'!$A$5:$AH$65001,York!AL$2,FALSE),"No Data") -> 254 | AM24: =IFERROR(VLOOKUP($A24,'2001 Data'!$A$5:$AH$65001,York!AM$2,FALSE),"No Data") -> 276 | AN24: =IFERROR(VLOOKUP($A24,'2001 Data'!$A$5:$AH$65001,York!AN$2,FALSE),"No Data") -> 1253 | AO24: =IFERROR(VLOOKUP($A24,'2001 Data'!$A$5:$AH$65001,York!AO$2,FALSE),"No Data") -> 439 | AP24: =IFERROR(VLOOKUP($A24,'2001 Data'!$A$5:$AH$65001,York!AP$2,FALSE),"No Data") -> 87 | AQ24: =IFERROR(VLOOKUP($A24,'2001 Data'!$A$5:$AH$65001,York!AQ$2,FALSE),"No Data") -> 262 | AR24: =IFERROR(VLOOKUP($A24,'2001 Data'!$A$5:$AH$65001,York!AR$2,FALSE),"No Data") -> 292 | AS24: =IFERROR(VLOOKUP($A24,'2001 Data'!$A$5:$AH$65001,York!AS$2,FALSE),"No Data") -> 241 | AT24: =IFERROR(VLOOKUP($A24,'2001 Data'!$A$5:$AH$65001,York!AT$2,FALSE),"No Data") -> 304 | AU24: =IFERROR(VLOOKUP($A24,'2001 Data'!$A$5:$AH$65001,York!AU$2,FALSE),"No Data") -> 56 | AV24: =IFERROR(VLOOKUP($A24,'2001 Data'!$A$5:$AH$65001,York!AV$2,FALSE),"No Data") -> 259 | AW24: =IFERROR(VLOOKUP($A24,'2001 Data'!$A$5:$AH$65001,York!AW$2,FALSE),"No Data") -> 215 | AX24: =IFERROR(VLOOKUP($A24,'2001 Data'!$A$5:$AH$65001,York!AX$2,FALSE),"No Data") -> 147 | AY24: =IFERROR(VLOOKUP($A24,'2001 Data'!$A$5:$AH$65001,York!AY$2,FALSE),"No Data") -> 322 | AZ24: =IFERROR(VLOOKUP($A24,'2001 Data'!$A$5:$AH$65001,York!AZ$2,FALSE),"No Data") -> 55 | BA24: =IFERROR(VLOOKUP($A24,'2001 Data'!$A$5:$AH$65001,York!BA$2,FALSE),"No Data") -> 5777 | BB24: =IFERROR(VLOOKUP($A24,'2001 Data'!$A$5:$AH$65001,York!BB$2,FALSE),"No Data") -> 1249090 | BC24: =IFERROR(VLOOKUP($A24,'2001 Data'!$A$5:$AH$65001,York!BC$2,FALSE),"No Data") -> 1177571 | BE24: V:\Business Intelligence Hub\01 - The City\2011 Census\Data\2nd Release - Key Indicators\Lower Areas and Wards\Initial Briefing\Census 2011 Bulk Data Load\Ward Bulk Data\Key Statisitics Bulk Load\[KEYSTATS FILE2.xlsx]KS102EWDATA | BF24: 8 | BG24: =VLOOKUP(BF24,Sheet3!$B$2:$C$77,2,FALSE) -> $k$7:$k$28 | BH24: 'V:\Business Intelligence Hub\01 - The City\2011 Census\Data\2nd Release - Key Indicators\Lower Areas and Wards\Initial Briefing\Census 2011 Bulk Data Load\Ward Bulk Data\Key Statisitics Bulk Load\[KEYSTATS FILE2.xlsx]KS102EWDATA'!$k$7:$k$28 | BI24: 35 | BJ24: =VLOOKUP(BI24,Sheet3!$B$2:$F$77,5,FALSE) -> $A$1:$al$28 | BK24: 'V:\Business Intelligence Hub\01 - The City\2011 Census\Data\2nd Release - Key Indicators\Lower Areas and Wards\Initial Briefing\Census 2011 Bulk Data Load\Ward Bulk Data\Key Statisitics Bulk Load\[KEYSTATS FILE2.xlsx]KS102EWDATA'!$A$1:$al$28
A25: KS102EW0009 | B25: Count | C25: Person | D25: Age structure | E25: Age 20 to 24 | F25: 13 | G25: 22 | H25: 5 | I25: 19 | J25: 11 | K25: 2 | L25: 18 | M25: 4 | N25: 14 | O25: 6 | P25: 3 | Q25: 21 | R25: 8 | S25: 1 | T25: 10 | U25: 7 | V25: 16 | W25: 15 | X25: 12 | Y25: 17 | Z25: 9 | AA25: 20 | AB25: 19746 | AC25: 382679 | AD25: 3595321 | AE25: =IFERROR(VLOOKUP($A25,'2001 Data'!$A$5:$AH$65001,York!AE$2,FALSE),"No Data") -> 313 | AF25: =IFERROR(VLOOKUP($A25,'2001 Data'!$A$5:$AH$65001,York!AF$2,FALSE),"No Data") -> 139 | AG25: =IFERROR(VLOOKUP($A25,'2001 Data'!$A$5:$AH$65001,York!AG$2,FALSE),"No Data") -> 1229 | AH25: =IFERROR(VLOOKUP($A25,'2001 Data'!$A$5:$AH$65001,York!AH$2,FALSE),"No Data") -> 122 | AI25: =IFERROR(VLOOKUP($A25,'2001 Data'!$A$5:$AH$65001,York!AI$2,FALSE),"No Data") -> 428 | AJ25: =IFERROR(VLOOKUP($A25,'2001 Data'!$A$5:$AH$65001,York!AJ$2,FALSE),"No Data") -> 1273 | AK25: =IFERROR(VLOOKUP($A25,'2001 Data'!$A$5:$AH$65001,York!AK$2,FALSE),"No Data") -> 159 | AL25: =IFERROR(VLOOKUP($A25,'2001 Data'!$A$5:$AH$65001,York!AL$2,FALSE),"No Data") -> 1059 | AM25: =IFERROR(VLOOKUP($A25,'2001 Data'!$A$5:$AH$65001,York!AM$2,FALSE),"No Data") -> 576 | AN25: =IFERROR(VLOOKUP($A25,'2001 Data'!$A$5:$AH$65001,York!AN$2,FALSE),"No Data") -> 1405 | AO25: =IFERROR(VLOOKUP($A25,'2001 Data'!$A$5:$AH$65001,York!AO$2,FALSE),"No Data") -> 948 | AP25: =IFERROR(VLOOKUP($A25,'2001 Data'!$A$5:$AH$65001,York!AP$2,FALSE),"No Data") -> 134 | AQ25: =IFERROR(VLOOKUP($A25,'2001 Data'!$A$5:$AH$65001,York!AQ$2,FALSE),"No Data") -> 827 | AR25: =IFERROR(VLOOKUP($A25,'2001 Data'!$A$5:$AH$65001,York!AR$2,FALSE),"No Data") -> 1187 | AS25: =IFERROR(VLOOKUP($A25,'2001 Data'!$A$5:$AH$65001,York!AS$2,FALSE),"No Data") -> 441 | AT25: =IFERROR(VLOOKUP($A25,'2001 Data'!$A$5:$AH$65001,York!AT$2,FALSE),"No Data") -> 1492 | AU25: =IFERROR(VLOOKUP($A25,'2001 Data'!$A$5:$AH$65001,York!AU$2,FALSE),"No Data") -> 180 | AV25: =IFERROR(VLOOKUP($A25,'2001 Data'!$A$5:$AH$65001,York!AV$2,FALSE),"No Data") -> 423 | AW25: =IFERROR(VLOOKUP($A25,'2001 Data'!$A$5:$AH$65001,York!AW$2,FALSE),"No Data") -> 582 | AX25: =IFERROR(VLOOKUP($A25,'2001 Data'!$A$5:$AH$65001,York!AX$2,FALSE),"No Data") -> 317 | AY25: =IFERROR(VLOOKUP($A25,'2001 Data'!$A$5:$AH$65001,York!AY$2,FALSE),"No Data") -> 856 | AZ25: =IFERROR(VLOOKUP($A25,'2001 Data'!$A$5:$AH$65001,York!AZ$2,FALSE),"No Data") -> 108 | BA25: =IFERROR(VLOOKUP($A25,'2001 Data'!$A$5:$AH$65001,York!BA$2,FALSE),"No Data") -> 14198 | BB25: =IFERROR(VLOOKUP($A25,'2001 Data'!$A$5:$AH$65001,York!BB$2,FALSE),"No Data") -> 3122212 | BC25: =IFERROR(VLOOKUP($A25,'2001 Data'!$A$5:$AH$65001,York!BC$2,FALSE),"No Data") -> 2952719 | BE25: V:\Business Intelligence Hub\01 - The City\2011 Census\Data\2nd Release - Key Indicators\Lower Areas and Wards\Initial Briefing\Census 2011 Bulk Data Load\Ward Bulk Data\Key Statisitics Bulk Load\[KEYSTATS FILE2.xlsx]KS102EWDATA | BF25: 9 | BG25: =VLOOKUP(BF25,Sheet3!$B$2:$C$77,2,FALSE) -> $l$7:$l$28 | BH25: 'V:\Business Intelligence Hub\01 - The City\2011 Census\Data\2nd Release - Key Indicators\Lower Areas and Wards\Initial Briefing\Census 2011 Bulk Data Load\Ward Bulk Data\Key Statisitics Bulk Load\[KEYSTATS FILE2.xlsx]KS102EWDATA'!$l$7:$l$28 | BI25: 35 | BJ25: =VLOOKUP(BI25,Sheet3!$B$2:$F$77,5,FALSE) -> $A$1:$al$28 | BK25: 'V:\Business Intelligence Hub\01 - The City\2011 Census\Data\2nd Release - Key Indicators\Lower Areas and Wards\Initial Briefing\Census 2011 Bulk Data Load\Ward Bulk Data\Key Statisitics Bulk Load\[KEYSTATS FILE2.xlsx]KS102EWDATA'!$A$1:$al$28
A26: KS102EW0010 | B26: Count | C26: Person | D26: Age structure | E26: Age 25 to 29 | F26: 13 | G26: 20 | H26: 2 | I26: 22 | J26: 11 | K26: 7 | L26: 17 | M26: 4 | N26: 12 | O26: 16 | P26: 5 | Q26: 19 | R26: 3 | S26: 8 | T26: 10 | U26: 1 | V26: 18 | W26: 15 | X26: 9 | Y26: 14 | Z26: 6 | AA26: 21 | AB26: 14159 | AC26: 347304 | AD26: 3650881 | AE26: =IFERROR(VLOOKUP($A26,'2001 Data'!$A$5:$AH$65001,York!AE$2,FALSE),"No Data") -> 382 | AF26: =IFERROR(VLOOKUP($A26,'2001 Data'!$A$5:$AH$65001,York!AF$2,FALSE),"No Data") -> 150 | AG26: =IFERROR(VLOOKUP($A26,'2001 Data'!$A$5:$AH$65001,York!AG$2,FALSE),"No Data") -> 1002 | AH26: =IFERROR(VLOOKUP($A26,'2001 Data'!$A$5:$AH$65001,York!AH$2,FALSE),"No Data") -> 118 | AI26: =IFERROR(VLOOKUP($A26,'2001 Data'!$A$5:$AH$65001,York!AI$2,FALSE),"No Data") -> 612 | AJ26: =IFERROR(VLOOKUP($A26,'2001 Data'!$A$5:$AH$65001,York!AJ$2,FALSE),"No Data") -> 706 | AK26: =IFERROR(VLOOKUP($A26,'2001 Data'!$A$5:$AH$65001,York!AK$2,FALSE),"No Data") -> 141 | AL26: =IFERROR(VLOOKUP($A26,'2001 Data'!$A$5:$AH$65001,York!AL$2,FALSE),"No Data") -> 766 | AM26: =IFERROR(VLOOKUP($A26,'2001 Data'!$A$5:$AH$65001,York!AM$2,FALSE),"No Data") -> 531 | AN26: =IFERROR(VLOOKUP($A26,'2001 Data'!$A$5:$AH$65001,York!AN$2,FALSE),"No Data") -> 353 | AO26: =IFERROR(VLOOKUP($A26,'2001 Data'!$A$5:$AH$65001,York!AO$2,FALSE),"No Data") -> 658 | AP26: =IFERROR(VLOOKUP($A26,'2001 Data'!$A$5:$AH$65001,York!AP$2,FALSE),"No Data") -> 123 | AQ26: =IFERROR(VLOOKUP($A26,'2001 Data'!$A$5:$AH$65001,York!AQ$2,FALSE),"No Data") -> 1113 | AR26: =IFERROR(VLOOKUP($A26,'2001 Data'!$A$5:$AH$65001,York!AR$2,FALSE),"No Data") -> 597 | AS26: =IFERROR(VLOOKUP($A26,'2001 Data'!$A$5:$AH$65001,York!AS$2,FALSE),"No Data") -> 596 | AT26: =IFERROR(VLOOKUP($A26,'2001 Data'!$A$5:$AH$65001,York!AT$2,FALSE),"No Data") -> 1130 | AU26: =IFERROR(VLOOKUP($A26,'2001 Data'!$A$5:$AH$65001,York!AU$2,FALSE),"No Data") -> 141 | AV26: =IFERROR(VLOOKUP($A26,'2001 Data'!$A$5:$AH$65001,York!AV$2,FALSE),"No Data") -> 496 | AW26: =IFERROR(VLOOKUP($A26,'2001 Data'!$A$5:$AH$65001,York!AW$2,FALSE),"No Data") -> 889 | AX26: =IFERROR(VLOOKUP($A26,'2001 Data'!$A$5:$AH$65001,York!AX$2,FALSE),"No Data") -> 483 | AY26: =IFERROR(VLOOKUP($A26,'2001 Data'!$A$5:$AH$65001,York!AY$2,FALSE),"No Data") -> 935 | AZ26: =IFERROR(VLOOKUP($A26,'2001 Data'!$A$5:$AH$65001,York!AZ$2,FALSE),"No Data") -> 197 | BA26: =IFERROR(VLOOKUP($A26,'2001 Data'!$A$5:$AH$65001,York!BA$2,FALSE),"No Data") -> 12119 | BB26: =IFERROR(VLOOKUP($A26,'2001 Data'!$A$5:$AH$65001,York!BB$2,FALSE),"No Data") -> 3435008 | BC26: =IFERROR(VLOOKUP($A26,'2001 Data'!$A$5:$AH$65001,York!BC$2,FALSE),"No Data") -> 3268660 | BE26: V:\Business Intelligence Hub\01 - The City\2011 Census\Data\2nd Release - Key Indicators\Lower Areas and Wards\Initial Briefing\Census 2011 Bulk Data Load\Ward Bulk Data\Key Statisitics Bulk Load\[KEYSTATS FILE2.xlsx]KS102EWDATA | BF26: 10 | BG26: =VLOOKUP(BF26,Sheet3!$B$2:$C$77,2,FALSE) -> $m$7:$m$28 | BH26: 'V:\Business Intelligence Hub\01 - The City\2011 Census\Data\2nd Release - Key Indicators\Lower Areas and Wards\Initial Briefing\Census 2011 Bulk Data Load\Ward Bulk Data\Key Statisitics Bulk Load\[KEYSTATS FILE2.xlsx]KS102EWDATA'!$m$7:$m$28 | BI26: 35 | BJ26: =VLOOKUP(BI26,Sheet3!$B$2:$F$77,5,FALSE) -> $A$1:$al$28 | BK26: 'V:\Business Intelligence Hub\01 - The City\2011 Census\Data\2nd Release - Key Indicators\Lower Areas and Wards\Initial Briefing\Census 2011 Bulk Data Load\Ward Bulk Data\Key Statisitics Bulk Load\[KEYSTATS FILE2.xlsx]KS102EWDATA'!$A$1:$al$28
A27: KS102EW0011 | B27: Count | C27: Person | D27: Age structure | E27: Age 30 to 44 | F27: 13 | G27: 17 | H27: 4 | I27: 20 | J27: 7 | K27: 11 | L27: 21 | M27: 14 | N27: 9 | O27: 22 | P27: 6 | Q27: 18 | R27: 2 | S27: 15 | T27: 8 | U27: 1 | V27: 19 | W27: 10 | X27: 3 | Y27: 12 | Z27: 5 | AA27: 16 | AB27: 38818 | AC27: 1042121 | AD27: 10944271 | AE27: =IFERROR(VLOOKUP($A27,'2001 Data'!$A$5:$AH$65001,York!AE$2,FALSE),"No Data") -> 1755 | AF27: =IFERROR(VLOOKUP($A27,'2001 Data'!$A$5:$AH$65001,York!AF$2,FALSE),"No Data") -> 784 | AG27: =IFERROR(VLOOKUP($A27,'2001 Data'!$A$5:$AH$65001,York!AG$2,FALSE),"No Data") -> 2663 | AH27: =IFERROR(VLOOKUP($A27,'2001 Data'!$A$5:$AH$65001,York!AH$2,FALSE),"No Data") -> 631 | AI27: =IFERROR(VLOOKUP($A27,'2001 Data'!$A$5:$AH$65001,York!AI$2,FALSE),"No Data") -> 2381 | AJ27: =IFERROR(VLOOKUP($A27,'2001 Data'!$A$5:$AH$65001,York!AJ$2,FALSE),"No Data") -> 1700 | AK27: =IFERROR(VLOOKUP($A27,'2001 Data'!$A$5:$AH$65001,York!AK$2,FALSE),"No Data") -> 464 | AL27: =IFERROR(VLOOKUP($A27,'2001 Data'!$A$5:$AH$65001,York!AL$2,FALSE),"No Data") -> 1519 | AM27: =IFERROR(VLOOKUP($A27,'2001 Data'!$A$5:$AH$65001,York!AM$2,FALSE),"No Data") -> 2529 | AN27: =IFERROR(VLOOKUP($A27,'2001 Data'!$A$5:$AH$65001,York!AN$2,FALSE),"No Data") -> 385 | AO27: =IFERROR(VLOOKUP($A27,'2001 Data'!$A$5:$AH$65001,York!AO$2,FALSE),"No Data") -> 2600 | AP27: =IFERROR(VLOOKUP($A27,'2001 Data'!$A$5:$AH$65001,York!AP$2,FALSE),"No Data") -> 677 | AQ27: =IFERROR(VLOOKUP($A27,'2001 Data'!$A$5:$AH$65001,York!AQ$2,FALSE),"No Data") -> 2901 | AR27: =IFERROR(VLOOKUP($A27,'2001 Data'!$A$5:$AH$65001,York!AR$2,FALSE),"No Data") -> 1619 | AS27: =IFERROR(VLOOKUP($A27,'2001 Data'!$A$5:$AH$65001,York!AS$2,FALSE),"No Data") -> 2464 | AT27: =IFERROR(VLOOKUP($A27,'2001 Data'!$A$5:$AH$65001,York!AT$2,FALSE),"No Data") -> 2713 | AU27: =IFERROR(VLOOKUP($A27,'2001 Data'!$A$5:$AH$65001,York!AU$2,FALSE),"No Data") -> 617 | AV27: =IFERROR(VLOOKUP($A27,'2001 Data'!$A$5:$AH$65001,York!AV$2,FALSE),"No Data") -> 2098 | AW27: =IFERROR(VLOOKUP($A27,'2001 Data'!$A$5:$AH$65001,York!AW$2,FALSE),"No Data") -> 3341 | AX27: =IFERROR(VLOOKUP($A27,'2001 Data'!$A$5:$AH$65001,York!AX$2,FALSE),"No Data") -> 2107 | AY27: =IFERROR(VLOOKUP($A27,'2001 Data'!$A$5:$AH$65001,York!AY$2,FALSE),"No Data") -> 3030 | AZ27: =IFERROR(VLOOKUP($A27,'2001 Data'!$A$5:$AH$65001,York!AZ$2,FALSE),"No Data") -> 942 | BA27: =IFERROR(VLOOKUP($A27,'2001 Data'!$A$5:$AH$65001,York!BA$2,FALSE),"No Data") -> 39920 | BB27: =IFERROR(VLOOKUP($A27,'2001 Data'!$A$5:$AH$65001,York!BB$2,FALSE),"No Data") -> 11733473 | BC27: =IFERROR(VLOOKUP($A27,'2001 Data'!$A$5:$AH$65001,York!BC$2,FALSE),"No Data") -> 11127511 | BE27: V:\Business Intelligence Hub\01 - The City\2011 Census\Data\2nd Release - Key Indicators\Lower Areas and Wards\Initial Briefing\Census 2011 Bulk Data Load\Ward Bulk Data\Key Statisitics Bulk Load\[KEYSTATS FILE2.xlsx]KS102EWDATA | BF27: 11 | BG27: =VLOOKUP(BF27,Sheet3!$B$2:$C$77,2,FALSE) -> $n$7:$n$28 | BH27: 'V:\Business Intelligence Hub\01 - The City\2011 Census\Data\2nd Release - Key Indicators\Lower Areas and Wards\Initial Briefing\Census 2011 Bulk Data Load\Ward Bulk Data\Key Statisitics Bulk Load\[KEYSTATS FILE2.xlsx]KS102EWDATA'!$n$7:$n$28 | BI27: 35 | BJ27: =VLOOKUP(BI27,Sheet3!$B$2:$F$77,5,FALSE) -> $A$1:$al$28 | BK27: 'V:\Business Intelligence Hub\01 - The City\2011 Census\Data\2nd Release - Key Indicators\Lower Areas and Wards\Initial Briefing\Census 2011 Bulk Data Load\Ward Bulk Data\Key Statisitics Bulk Load\[KEYSTATS FILE2.xlsx]KS102EWDATA'!$A$1:$al$28
A28: KS102EW0012 | B28: Count | C28: Person | D28: Age structure | E28: Age 45 to 59 | F28: 12 | G28: 17 | H28: 10 | I28: 19 | J28: 8 | K28: 13 | L28: 21 | M28: 15 | N28: 2 | O28: 22 | P28: 5 | Q28: 18 | R28: 7 | S28: 14 | T28: 4 | U28: 9 | V28: 20 | W28: 6 | X28: 1 | Y28: 11 | Z28: 3 | AA28: 16 | AB28: 36363 | AC28: 1031066 | AD28: 10276902 | AE28: =IFERROR(VLOOKUP($A28,'2001 Data'!$A$5:$AH$65001,York!AE$2,FALSE),"No Data") -> 1556 | AF28: =IFERROR(VLOOKUP($A28,'2001 Data'!$A$5:$AH$65001,York!AF$2,FALSE),"No Data") -> 915 | AG28: =IFERROR(VLOOKUP($A28,'2001 Data'!$A$5:$AH$65001,York!AG$2,FALSE),"No Data") -> 1962 | AH28: =IFERROR(VLOOKUP($A28,'2001 Data'!$A$5:$AH$65001,York!AH$2,FALSE),"No Data") -> 873 | AI28: =IFERROR(VLOOKUP($A28,'2001 Data'!$A$5:$AH$65001,York!AI$2,FALSE),"No Data") -> 2319 | AJ28: =IFERROR(VLOOKUP($A28,'2001 Data'!$A$5:$AH$65001,York!AJ$2,FALSE),"No Data") -> 1187 | AK28: =IFERROR(VLOOKUP($A28,'2001 Data'!$A$5:$AH$65001,York!AK$2,FALSE),"No Data") -> 523 | AL28: =IFERROR(VLOOKUP($A28,'2001 Data'!$A$5:$AH$65001,York!AL$2,FALSE),"No Data") -> 1028 | AM28: =IFERROR(VLOOKUP($A28,'2001 Data'!$A$5:$AH$65001,York!AM$2,FALSE),"No Data") -> 2991 | AN28: =IFERROR(VLOOKUP($A28,'2001 Data'!$A$5:$AH$65001,York!AN$2,FALSE),"No Data") -> 237 | AO28: =IFERROR(VLOOKUP($A28,'2001 Data'!$A$5:$AH$65001,York!AO$2,FALSE),"No Data") -> 1874 | AP28: =IFERROR(VLOOKUP($A28,'2001 Data'!$A$5:$AH$65001,York!AP$2,FALSE),"No Data") -> 848 | AQ28: =IFERROR(VLOOKUP($A28,'2001 Data'!$A$5:$AH$65001,York!AQ$2,FALSE),"No Data") -> 2029 | AR28: =IFERROR(VLOOKUP($A28,'2001 Data'!$A$5:$AH$65001,York!AR$2,FALSE),"No Data") -> 1319 | AS28: =IFERROR(VLOOKUP($A28,'2001 Data'!$A$5:$AH$65001,York!AS$2,FALSE),"No Data") -> 2450 | AT28: =IFERROR(VLOOKUP($A28,'2001 Data'!$A$5:$AH$65001,York!AT$2,FALSE),"No Data") -> 1863 | AU28: =IFERROR(VLOOKUP($A28,'2001 Data'!$A$5:$AH$65001,York!AU$2,FALSE),"No Data") -> 583 | AV28: =IFERROR(VLOOKUP($A28,'2001 Data'!$A$5:$AH$65001,York!AV$2,FALSE),"No Data") -> 2366 | AW28: =IFERROR(VLOOKUP($A28,'2001 Data'!$A$5:$AH$65001,York!AW$2,FALSE),"No Data") -> 2105 | AX28: =IFERROR(VLOOKUP($A28,'2001 Data'!$A$5:$AH$65001,York!AX$2,FALSE),"No Data") -> 1525 | AY28: =IFERROR(VLOOKUP($A28,'2001 Data'!$A$5:$AH$65001,York!AY$2,FALSE),"No Data") -> 2218 | AZ28: =IFERROR(VLOOKUP($A28,'2001 Data'!$A$5:$AH$65001,York!AZ$2,FALSE),"No Data") -> 910 | BA28: =IFERROR(VLOOKUP($A28,'2001 Data'!$A$5:$AH$65001,York!BA$2,FALSE),"No Data") -> 33681 | BB28: =IFERROR(VLOOKUP($A28,'2001 Data'!$A$5:$AH$65001,York!BB$2,FALSE),"No Data") -> 9849369 | BC28: =IFERROR(VLOOKUP($A28,'2001 Data'!$A$5:$AH$65001,York!BC$2,FALSE),"No Data") -> 9279693 | BE28: V:\Business Intelligence Hub\01 - The City\2011 Census\Data\2nd Release - Key Indicators\Lower Areas and Wards\Initial Briefing\Census 2011 Bulk Data Load\Ward Bulk Data\Key Statisitics Bulk Load\[KEYSTATS FILE2.xlsx]KS102EWDATA | BF28: 12 | BG28: =VLOOKUP(BF28,Sheet3!$B$2:$C$77,2,FALSE) -> $o$7:$o$28 | BH28: 'V:\Business Intelligence Hub\01 - The City\2011 Census\Data\2nd Release - Key Indicators\Lower Areas and Wards\Initial Briefing\Census 2011 Bulk Data Load\Ward Bulk Data\Key Statisitics Bulk Load\[KEYSTATS FILE2.xlsx]KS102EWDATA'!$o$7:$o$28 | BI28: 35 | BJ28: =VLOOKUP(BI28,Sheet3!$B$2:$F$77,5,FALSE) -> $A$1:$al$28 | BK28: 'V:\Business Intelligence Hub\01 - The City\2011 Census\Data\2nd Release - Key Indicators\Lower Areas and Wards\Initial Briefing\Census 2011 Bulk Data Load\Ward Bulk Data\Key Statisitics Bulk Load\[KEYSTATS FILE2.xlsx]KS102EWDATA'!$A$1:$al$28
A29: KS102EW0013 | B29: Count | C29: Person | D29: Age structure | E29: Age 60 to 64 | F29: 12 | G29: 15 | H29: 10 | I29: 18 | J29: 4 | K29: 13 | L29: 21 | M29: 16 | N29: 1 | O29: 22 | P29: 7 | Q29: 17 | R29: 8 | S29: 14 | T29: 3 | U29: 9 | V29: 20 | W29: 2 | X29: 6 | Y29: 11 | Z29: 5 | AA29: 19 | AB29: 11716 | AC29: 325329 | AD29: 3172277 | AE29: =IFERROR(VLOOKUP($A29,'2001 Data'!$A$5:$AH$65001,York!AE$2,FALSE),"No Data") -> 388 | AF29: =IFERROR(VLOOKUP($A29,'2001 Data'!$A$5:$AH$65001,York!AF$2,FALSE),"No Data") -> 250 | AG29: =IFERROR(VLOOKUP($A29,'2001 Data'!$A$5:$AH$65001,York!AG$2,FALSE),"No Data") -> 417 | AH29: =IFERROR(VLOOKUP($A29,'2001 Data'!$A$5:$AH$65001,York!AH$2,FALSE),"No Data") -> 269 | AI29: =IFERROR(VLOOKUP($A29,'2001 Data'!$A$5:$AH$65001,York!AI$2,FALSE),"No Data") -> 593 | AJ29: =IFERROR(VLOOKUP($A29,'2001 Data'!$A$5:$AH$65001,York!AJ$2,FALSE),"No Data") -> 321 | AK29: =IFERROR(VLOOKUP($A29,'2001 Data'!$A$5:$AH$65001,York!AK$2,FALSE),"No Data") -> 169 | AL29: =IFERROR(VLOOKUP($A29,'2001 Data'!$A$5:$AH$65001,York!AL$2,FALSE),"No Data") -> 301 | AM29: =IFERROR(VLOOKUP($A29,'2001 Data'!$A$5:$AH$65001,York!AM$2,FALSE),"No Data") -> 657 | AN29: =IFERROR(VLOOKUP($A29,'2001 Data'!$A$5:$AH$65001,York!AN$2,FALSE),"No Data") -> 51 | AO29: =IFERROR(VLOOKUP($A29,'2001 Data'!$A$5:$AH$65001,York!AO$2,FALSE),"No Data") -> 518 | AP29: =IFERROR(VLOOKUP($A29,'2001 Data'!$A$5:$AH$65001,York!AP$2,FALSE),"No Data") -> 344 | AQ29: =IFERROR(VLOOKUP($A29,'2001 Data'!$A$5:$AH$65001,York!AQ$2,FALSE),"No Data") -> 472 | AR29: =IFERROR(VLOOKUP($A29,'2001 Data'!$A$5:$AH$65001,York!AR$2,FALSE),"No Data") -> 407 | AS29: =IFERROR(VLOOKUP($A29,'2001 Data'!$A$5:$AH$65001,York!AS$2,FALSE),"No Data") -> 752 | AT29: =IFERROR(VLOOKUP($A29,'2001 Data'!$A$5:$AH$65001,York!AT$2,FALSE),"No Data") -> 444 | AU29: =IFERROR(VLOOKUP($A29,'2001 Data'!$A$5:$AH$65001,York!AU$2,FALSE),"No Data") -> 208 | AV29: =IFERROR(VLOOKUP($A29,'2001 Data'!$A$5:$AH$65001,York!AV$2,FALSE),"No Data") -> 572 | AW29: =IFERROR(VLOOKUP($A29,'2001 Data'!$A$5:$AH$65001,York!AW$2,FALSE),"No Data") -> 623 | AX29: =IFERROR(VLOOKUP($A29,'2001 Data'!$A$5:$AH$65001,York!AX$2,FALSE),"No Data") -> 365 | AY29: =IFERROR(VLOOKUP($A29,'2001 Data'!$A$5:$AH$65001,York!AY$2,FALSE),"No Data") -> 587 | AZ29: =IFERROR(VLOOKUP($A29,'2001 Data'!$A$5:$AH$65001,York!AZ$2,FALSE),"No Data") -> 193 | BA29: =IFERROR(VLOOKUP($A29,'2001 Data'!$A$5:$AH$65001,York!BA$2,FALSE),"No Data") -> 8901 | BB29: =IFERROR(VLOOKUP($A29,'2001 Data'!$A$5:$AH$65001,York!BB$2,FALSE),"No Data") -> 2544754 | BC29: =IFERROR(VLOOKUP($A29,'2001 Data'!$A$5:$AH$65001,York!BC$2,FALSE),"No Data") -> 2391830 | BE29: V:\Business Intelligence Hub\01 - The City\2011 Census\Data\2nd Release - Key Indicators\Lower Areas and Wards\Initial Briefing\Census 2011 Bulk Data Load\Ward Bulk Data\Key Statisitics Bulk Load\[KEYSTATS FILE2.xlsx]KS102EWDATA | BF29: 13 | BG29: =VLOOKUP(BF29,Sheet3!$B$2:$C$77,2,FALSE) -> $p$7:$p$28 | BH29: 'V:\Business Intelligence Hub\01 - The City\2011 Census\Data\2nd Release - Key Indicators\Lower Areas and Wards\Initial Briefing\Census 2011 Bulk Data Load\Ward Bulk Data\Key Statisitics Bulk Load\[KEYSTATS FILE2.xlsx]KS102EWDATA'!$p$7:$p$28 | BI29: 35 | BJ29: =VLOOKUP(BI29,Sheet3!$B$2:$F$77,5,FALSE) -> $A$1:$al$28 | BK29: 'V:\Business Intelligence Hub\01 - The City\2011 Census\Data\2nd Release - Key Indicators\Lower Areas and Wards\Initial Briefing\Census 2011 Bulk Data Load\Ward Bulk Data\Key Statisitics Bulk Load\[KEYSTATS FILE2.xlsx]KS102EWDATA'!$A$1:$al$28
A30: KS102EW0014 | B30: Count | C30: Person | D30: Age structure | E30: Age 65 to 74 | F30: 11 | G30: 15 | H30: 8 | I30: 17 | J30: 3 | K30: 16 | L30: 21 | M30: 18 | N30: 2 | O30: 22 | P30: 9 | Q30: 14 | R30: 7 | S30: 13 | T30: 1 | U30: 10 | V30: 19 | W30: 4 | X30: 5 | Y30: 12 | Z30: 6 | AA30: 20 | AB30: 16929 | AC30: 463849 | AD30: 4552283 | AE30: =IFERROR(VLOOKUP($A30,'2001 Data'!$A$5:$AH$65001,York!AE$2,FALSE),"No Data") -> 772 | AF30: =IFERROR(VLOOKUP($A30,'2001 Data'!$A$5:$AH$65001,York!AF$2,FALSE),"No Data") -> 431 | AG30: =IFERROR(VLOOKUP($A30,'2001 Data'!$A$5:$AH$65001,York!AG$2,FALSE),"No Data") -> 809 | AH30: =IFERROR(VLOOKUP($A30,'2001 Data'!$A$5:$AH$65001,York!AH$2,FALSE),"No Data") -> 411 | AI30: =IFERROR(VLOOKUP($A30,'2001 Data'!$A$5:$AH$65001,York!AI$2,FALSE),"No Data") -> 1060 | AJ30: =IFERROR(VLOOKUP($A30,'2001 Data'!$A$5:$AH$65001,York!AJ$2,FALSE),"No Data") -> 565 | AK30: =IFERROR(VLOOKUP($A30,'2001 Data'!$A$5:$AH$65001,York!AK$2,FALSE),"No Data") -> 280 | AL30: =IFERROR(VLOOKUP($A30,'2001 Data'!$A$5:$AH$65001,York!AL$2,FALSE),"No Data") -> 536 | AM30: =IFERROR(VLOOKUP($A30,'2001 Data'!$A$5:$AH$65001,York!AM$2,FALSE),"No Data") -> 1225 | AN30: =IFERROR(VLOOKUP($A30,'2001 Data'!$A$5:$AH$65001,York!AN$2,FALSE),"No Data") -> 89 | AO30: =IFERROR(VLOOKUP($A30,'2001 Data'!$A$5:$AH$65001,York!AO$2,FALSE),"No Data") -> 997 | AP30: =IFERROR(VLOOKUP($A30,'2001 Data'!$A$5:$AH$65001,York!AP$2,FALSE),"No Data") -> 557 | AQ30: =IFERROR(VLOOKUP($A30,'2001 Data'!$A$5:$AH$65001,York!AQ$2,FALSE),"No Data") -> 862 | AR30: =IFERROR(VLOOKUP($A30,'2001 Data'!$A$5:$AH$65001,York!AR$2,FALSE),"No Data") -> 653 | AS30: =IFERROR(VLOOKUP($A30,'2001 Data'!$A$5:$AH$65001,York!AS$2,FALSE),"No Data") -> 1410 | AT30: =IFERROR(VLOOKUP($A30,'2001 Data'!$A$5:$AH$65001,York!AT$2,FALSE),"No Data") -> 674 | AU30: =IFERROR(VLOOKUP($A30,'2001 Data'!$A$5:$AH$65001,York!AU$2,FALSE),"No Data") -> 428 | AV30: =IFERROR(VLOOKUP($A30,'2001 Data'!$A$5:$AH$65001,York!AV$2,FALSE),"No Data") -> 1042 | AW30: =IFERROR(VLOOKUP($A30,'2001 Data'!$A$5:$AH$65001,York!AW$2,FALSE),"No Data") -> 952 | AX30: =IFERROR(VLOOKUP($A30,'2001 Data'!$A$5:$AH$65001,York!AX$2,FALSE),"No Data") -> 545 | AY30: =IFERROR(VLOOKUP($A30,'2001 Data'!$A$5:$AH$65001,York!AY$2,FALSE),"No Data") -> 1170 | AZ30: =IFERROR(VLOOKUP($A30,'2001 Data'!$A$5:$AH$65001,York!AZ$2,FALSE),"No Data") -> 336 | BA30: =IFERROR(VLOOKUP($A30,'2001 Data'!$A$5:$AH$65001,York!BA$2,FALSE),"No Data") -> 15804 | BB30: =IFERROR(VLOOKUP($A30,'2001 Data'!$A$5:$AH$65001,York!BB$2,FALSE),"No Data") -> 4367032 | BC30: =IFERROR(VLOOKUP($A30,'2001 Data'!$A$5:$AH$65001,York!BC$2,FALSE),"No Data") -> 4102841 | BE30: V:\Business Intelligence Hub\01 - The City\2011 Census\Data\2nd Release - Key Indicators\Lower Areas and Wards\Initial Briefing\Census 2011 Bulk Data Load\Ward Bulk Data\Key Statisitics Bulk Load\[KEYSTATS FILE2.xlsx]KS102EWDATA | BF30: 14 | BG30: =VLOOKUP(BF30,Sheet3!$B$2:$C$77,2,FALSE) -> $q$7:$q$28 | BH30: 'V:\Business Intelligence Hub\01 - The City\2011 Census\Data\2nd Release - Key Indicators\Lower Areas and Wards\Initial Briefing\Census 2011 Bulk Data Load\Ward Bulk Data\Key Statisitics Bulk Load\[KEYSTATS FILE2.xlsx]KS102EWDATA'!$q$7:$q$28 | BI30: 35 | BJ30: =VLOOKUP(BI30,Sheet3!$B$2:$F$77,5,FALSE) -> $A$1:$al$28 | BK30: 'V:\Business Intelligence Hub\01 - The City\2011 Census\Data\2nd Release - Key Indicators\Lower Areas and Wards\Initial Briefing\Census 2011 Bulk Data Load\Ward Bulk Data\Key Statisitics Bulk Load\[KEYSTATS FILE2.xlsx]KS102EWDATA'!$A$1:$al$28
A31: KS102EW0015 | B31: Count | C31: Person | D31: Age structure | E31: Age 75 to 84 | F31: 9 | G31: 19 | H31: 10 | I31: 18 | J31: 4 | K31: 15 | L31: 21 | M31: 16 | N31: 2 | O31: 22 | P31: 7 | Q31: 14 | R31: 8 | S31: 13 | T31: 1 | U31: 12 | V31: 17 | W31: 3 | X31: 6 | Y31: 11 | Z31: 5 | AA31: 20 | AB31: 11629 | AC31: 296421 | AD31: 2928118 | AE31: =IFERROR(VLOOKUP($A31,'2001 Data'!$A$5:$AH$65001,York!AE$2,FALSE),"No Data") -> 495 | AF31: =IFERROR(VLOOKUP($A31,'2001 Data'!$A$5:$AH$65001,York!AF$2,FALSE),"No Data") -> 264 | AG31: =IFERROR(VLOOKUP($A31,'2001 Data'!$A$5:$AH$65001,York!AG$2,FALSE),"No Data") -> 684 | AH31: =IFERROR(VLOOKUP($A31,'2001 Data'!$A$5:$AH$65001,York!AH$2,FALSE),"No Data") -> 309 | AI31: =IFERROR(VLOOKUP($A31,'2001 Data'!$A$5:$AH$65001,York!AI$2,FALSE),"No Data") -> 765 | AJ31: =IFERROR(VLOOKUP($A31,'2001 Data'!$A$5:$AH$65001,York!AJ$2,FALSE),"No Data") -> 449 | AK31: =IFERROR(VLOOKUP($A31,'2001 Data'!$A$5:$AH$65001,York!AK$2,FALSE),"No Data") -> 223 | AL31: =IFERROR(VLOOKUP($A31,'2001 Data'!$A$5:$AH$65001,York!AL$2,FALSE),"No Data") -> 422 | AM31: =IFERROR(VLOOKUP($A31,'2001 Data'!$A$5:$AH$65001,York!AM$2,FALSE),"No Data") -> 887 | AN31: =IFERROR(VLOOKUP($A31,'2001 Data'!$A$5:$AH$65001,York!AN$2,FALSE),"No Data") -> 64 | AO31: =IFERROR(VLOOKUP($A31,'2001 Data'!$A$5:$AH$65001,York!AO$2,FALSE),"No Data") -> 788 | AP31: =IFERROR(VLOOKUP($A31,'2001 Data'!$A$5:$AH$65001,York!AP$2,FALSE),"No Data") -> 324 | AQ31: =IFERROR(VLOOKUP($A31,'2001 Data'!$A$5:$AH$65001,York!AQ$2,FALSE),"No Data") -> 639 | AR31: =IFERROR(VLOOKUP($A31,'2001 Data'!$A$5:$AH$65001,York!AR$2,FALSE),"No Data") -> 412 | AS31: =IFERROR(VLOOKUP($A31,'2001 Data'!$A$5:$AH$65001,York!AS$2,FALSE),"No Data") -> 921 | AT31: =IFERROR(VLOOKUP($A31,'2001 Data'!$A$5:$AH$65001,York!AT$2,FALSE),"No Data") -> 588 | AU31: =IFERROR(VLOOKUP($A31,'2001 Data'!$A$5:$AH$65001,York!AU$2,FALSE),"No Data") -> 285 | AV31: =IFERROR(VLOOKUP($A31,'2001 Data'!$A$5:$AH$65001,York!AV$2,FALSE),"No Data") -> 633 | AW31: =IFERROR(VLOOKUP($A31,'2001 Data'!$A$5:$AH$65001,York!AW$2,FALSE),"No Data") -> 490 | AX31: =IFERROR(VLOOKUP($A31,'2001 Data'!$A$5:$AH$65001,York!AX$2,FALSE),"No Data") -> 363 | AY31: =IFERROR(VLOOKUP($A31,'2001 Data'!$A$5:$AH$65001,York!AY$2,FALSE),"No Data") -> 842 | AZ31: =IFERROR(VLOOKUP($A31,'2001 Data'!$A$5:$AH$65001,York!AZ$2,FALSE),"No Data") -> 185 | BA31: =IFERROR(VLOOKUP($A31,'2001 Data'!$A$5:$AH$65001,York!BA$2,FALSE),"No Data") -> 11032 | BB31: =IFERROR(VLOOKUP($A31,'2001 Data'!$A$5:$AH$65001,York!BB$2,FALSE),"No Data") -> 2933337 | BC31: =IFERROR(VLOOKUP($A31,'2001 Data'!$A$5:$AH$65001,York!BC$2,FALSE),"No Data") -> 2751135 | BE31: V:\Business Intelligence Hub\01 - The City\2011 Census\Data\2nd Release - Key Indicators\Lower Areas and Wards\Initial Briefing\Census 2011 Bulk Data Load\Ward Bulk Data\Key Statisitics Bulk Load\[KEYSTATS FILE2.xlsx]KS102EWDATA | BF31: 15 | BG31: =VLOOKUP(BF31,Sheet3!$B$2:$C$77,2,FALSE) -> $r$7:$r$28 | BH31: 'V:\Business Intelligence Hub\01 - The City\2011 Census\Data\2nd Release - Key Indicators\Lower Areas and Wards\Initial Briefing\Census 2011 Bulk Data Load\Ward Bulk Data\Key Statisitics Bulk Load\[KEYSTATS FILE2.xlsx]KS102EWDATA'!$r$7:$r$28 | BI31: 35 | BJ31: =VLOOKUP(BI31,Sheet3!$B$2:$F$77,5,FALSE) -> $A$1:$al$28 | BK31: 'V:\Business Intelligence Hub\01 - The City\2011 Census\Data\2nd Release - Key Indicators\Lower Areas and Wards\Initial Briefing\Census 2011 Bulk Data Load\Ward Bulk Data\Key Statisitics Bulk Load\[KEYSTATS FILE2.xlsx]KS102EWDATA'!$A$1:$al$28
A32: KS102EW0016 | B32: Count | C32: Person | D32: Age structure | E32: Age 85 to 89 | F32: 11 | G32: 19 | H32: 6 | I32: 14 | J32: 5 | K32: 9 | L32: 20 | M32: 15 | N32: 1 | O32: 22 | P32: 4 | Q32: 18 | R32: 8 | S32: 16 | T32: 2 | U32: 12 | V32: 17 | W32: 7 | X32: 10 | Y32: 13 | Z32: 3 | AA32: 21 | AB32: 3200 | AC32: 75868 | AD32: 776311 | AE32: =IFERROR(VLOOKUP($A32,'2001 Data'!$A$5:$AH$65001,York!AE$2,FALSE),"No Data") -> 87 | AF32: =IFERROR(VLOOKUP($A32,'2001 Data'!$A$5:$AH$65001,York!AF$2,FALSE),"No Data") -> 68 | AG32: =IFERROR(VLOOKUP($A32,'2001 Data'!$A$5:$AH$65001,York!AG$2,FALSE),"No Data") -> 180 | AH32: =IFERROR(VLOOKUP($A32,'2001 Data'!$A$5:$AH$65001,York!AH$2,FALSE),"No Data") -> 73 | AI32: =IFERROR(VLOOKUP($A32,'2001 Data'!$A$5:$AH$65001,York!AI$2,FALSE),"No Data") -> 134 | AJ32: =IFERROR(VLOOKUP($A32,'2001 Data'!$A$5:$AH$65001,York!AJ$2,FALSE),"No Data") -> 134 | AK32: =IFERROR(VLOOKUP($A32,'2001 Data'!$A$5:$AH$65001,York!AK$2,FALSE),"No Data") -> 84 | AL32: =IFERROR(VLOOKUP($A32,'2001 Data'!$A$5:$AH$65001,York!AL$2,FALSE),"No Data") -> 83 | AM32: =IFERROR(VLOOKUP($A32,'2001 Data'!$A$5:$AH$65001,York!AM$2,FALSE),"No Data") -> 198 | AN32: =IFERROR(VLOOKUP($A32,'2001 Data'!$A$5:$AH$65001,York!AN$2,FALSE),"No Data") -> 28 | AO32: =IFERROR(VLOOKUP($A32,'2001 Data'!$A$5:$AH$65001,York!AO$2,FALSE),"No Data") -> 178 | AP32: =IFERROR(VLOOKUP($A32,'2001 Data'!$A$5:$AH$65001,York!AP$2,FALSE),"No Data") -> 50 | AQ32: =IFERROR(VLOOKUP($A32,'2001 Data'!$A$5:$AH$65001,York!AQ$2,FALSE),"No Data") -> 139 | AR32: =IFERROR(VLOOKUP($A32,'2001 Data'!$A$5:$AH$65001,York!AR$2,FALSE),"No Data") -> 81 | AS32: =IFERROR(VLOOKUP($A32,'2001 Data'!$A$5:$AH$65001,York!AS$2,FALSE),"No Data") -> 195 | AT32: =IFERROR(VLOOKUP($A32,'2001 Data'!$A$5:$AH$65001,York!AT$2,FALSE),"No Data") -> 164 | AU32: =IFERROR(VLOOKUP($A32,'2001 Data'!$A$5:$AH$65001,York!AU$2,FALSE),"No Data") -> 46 | AV32: =IFERROR(VLOOKUP($A32,'2001 Data'!$A$5:$AH$65001,York!AV$2,FALSE),"No Data") -> 108 | AW32: =IFERROR(VLOOKUP($A32,'2001 Data'!$A$5:$AH$65001,York!AW$2,FALSE),"No Data") -> 98 | AX32: =IFERROR(VLOOKUP($A32,'2001 Data'!$A$5:$AH$65001,York!AX$2,FALSE),"No Data") -> 90 | AY32: =IFERROR(VLOOKUP($A32,'2001 Data'!$A$5:$AH$65001,York!AY$2,FALSE),"No Data") -> 200 | AZ32: =IFERROR(VLOOKUP($A32,'2001 Data'!$A$5:$AH$65001,York!AZ$2,FALSE),"No Data") -> 41 | BA32: =IFERROR(VLOOKUP($A32,'2001 Data'!$A$5:$AH$65001,York!BA$2,FALSE),"No Data") -> 2459 | BB32: =IFERROR(VLOOKUP($A32,'2001 Data'!$A$5:$AH$65001,York!BB$2,FALSE),"No Data") -> 676678 | BC32: =IFERROR(VLOOKUP($A32,'2001 Data'!$A$5:$AH$65001,York!BC$2,FALSE),"No Data") -> 637701 | BE32: V:\Business Intelligence Hub\01 - The City\2011 Census\Data\2nd Release - Key Indicators\Lower Areas and Wards\Initial Briefing\Census 2011 Bulk Data Load\Ward Bulk Data\Key Statisitics Bulk Load\[KEYSTATS FILE2.xlsx]KS102EWDATA | BF32: 16 | BG32: =VLOOKUP(BF32,Sheet3!$B$2:$C$77,2,FALSE) -> $s$7:$s$28 | BH32: 'V:\Business Intelligence Hub\01 - The City\2011 Census\Data\2nd Release - Key Indicators\Lower Areas and Wards\Initial Briefing\Census 2011 Bulk Data Load\Ward Bulk Data\Key Statisitics Bulk Load\[KEYSTATS FILE2.xlsx]KS102EWDATA'!$s$7:$s$28 | BI32: 35 | BJ32: =VLOOKUP(BI32,Sheet3!$B$2:$F$77,5,FALSE) -> $A$1:$al$28 | BK32: 'V:\Business Intelligence Hub\01 - The City\2011 Census\Data\2nd Release - Key Indicators\Lower Areas and Wards\Initial Briefing\Census 2011 Bulk Data Load\Ward Bulk Data\Key Statisitics Bulk Load\[KEYSTATS FILE2.xlsx]KS102EWDATA'!$A$1:$al$28
A33: KS102EW0017 | B33: Count | C33: Person | D33: Age structure | E33: Age 90 and over | F33: 13 | G33: 19 | H33: 5 | I33: 14 | J33: 4 | K33: 10 | L33: 9 | M33: 15 | N33: 1 | O33: 22 | P33: 7 | Q33: 20 | R33: 12 | S33: 21 | T33: 2 | U33: 10 | V33: 17 | W33: 6 | X33: 8 | Y33: 16 | Z33: 3 | AA33: 18 | AB33: 1657 | AC33: 38433 | AD33: 403817 | AE33: =IFERROR(VLOOKUP($A33,'2001 Data'!$A$5:$AH$65001,York!AE$2,FALSE),"No Data") -> 36 | AF33: =IFERROR(VLOOKUP($A33,'2001 Data'!$A$5:$AH$65001,York!AF$2,FALSE),"No Data") -> 19 | AG33: =IFERROR(VLOOKUP($A33,'2001 Data'!$A$5:$AH$65001,York!AG$2,FALSE),"No Data") -> 80 | AH33: =IFERROR(VLOOKUP($A33,'2001 Data'!$A$5:$AH$65001,York!AH$2,FALSE),"No Data") -> 42 | AI33: =IFERROR(VLOOKUP($A33,'2001 Data'!$A$5:$AH$65001,York!AI$2,FALSE),"No Data") -> 45 | AJ33: =IFERROR(VLOOKUP($A33,'2001 Data'!$A$5:$AH$65001,York!AJ$2,FALSE),"No Data") -> 97 | AK33: =IFERROR(VLOOKUP($A33,'2001 Data'!$A$5:$AH$65001,York!AK$2,FALSE),"No Data") -> 64 | AL33: =IFERROR(VLOOKUP($A33,'2001 Data'!$A$5:$AH$65001,York!AL$2,FALSE),"No Data") -> 51 | AM33: =IFERROR(VLOOKUP($A33,'2001 Data'!$A$5:$AH$65001,York!AM$2,FALSE),"No Data") -> 124 | AN33: =IFERROR(VLOOKUP($A33,'2001 Data'!$A$5:$AH$65001,York!AN$2,FALSE),"No Data") -> 12 | AO33: =IFERROR(VLOOKUP($A33,'2001 Data'!$A$5:$AH$65001,York!AO$2,FALSE),"No Data") -> 70 | AP33: =IFERROR(VLOOKUP($A33,'2001 Data'!$A$5:$AH$65001,York!AP$2,FALSE),"No Data") -> 26 | AQ33: =IFERROR(VLOOKUP($A33,'2001 Data'!$A$5:$AH$65001,York!AQ$2,FALSE),"No Data") -> 82 | AR33: =IFERROR(VLOOKUP($A33,'2001 Data'!$A$5:$AH$65001,York!AR$2,FALSE),"No Data") -> 46 | AS33: =IFERROR(VLOOKUP($A33,'2001 Data'!$A$5:$AH$65001,York!AS$2,FALSE),"No Data") -> 89 | AT33: =IFERROR(VLOOKUP($A33,'2001 Data'!$A$5:$AH$65001,York!AT$2,FALSE),"No Data") -> 83 | AU33: =IFERROR(VLOOKUP($A33,'2001 Data'!$A$5:$AH$65001,York!AU$2,FALSE),"No Data") -> 34 | AV33: =IFERROR(VLOOKUP($A33,'2001 Data'!$A$5:$AH$65001,York!AV$2,FALSE),"No Data") -> 52 | AW33: =IFERROR(VLOOKUP($A33,'2001 Data'!$A$5:$AH$65001,York!AW$2,FALSE),"No Data") -> 50 | AX33: =IFERROR(VLOOKUP($A33,'2001 Data'!$A$5:$AH$65001,York!AX$2,FALSE),"No Data") -> 45 | AY33: =IFERROR(VLOOKUP($A33,'2001 Data'!$A$5:$AH$65001,York!AY$2,FALSE),"No Data") -> 90 | AZ33: =IFERROR(VLOOKUP($A33,'2001 Data'!$A$5:$AH$65001,York!AZ$2,FALSE),"No Data") -> 28 | BA33: =IFERROR(VLOOKUP($A33,'2001 Data'!$A$5:$AH$65001,York!BA$2,FALSE),"No Data") -> 1265 | BB33: =IFERROR(VLOOKUP($A33,'2001 Data'!$A$5:$AH$65001,York!BB$2,FALSE),"No Data") -> 335727 | BC33: =IFERROR(VLOOKUP($A33,'2001 Data'!$A$5:$AH$65001,York!BC$2,FALSE),"No Data") -> 316323 | BE33: V:\Business Intelligence Hub\01 - The City\2011 Census\Data\2nd Release - Key Indicators\Lower Areas and Wards\Initial Briefing\Census 2011 Bulk Data Load\Ward Bulk Data\Key Statisitics Bulk Load\[KEYSTATS FILE2.xlsx]KS102EWDATA | BF33: 17 | BG33: =VLOOKUP(BF33,Sheet3!$B$2:$C$77,2,FALSE) -> $t$7:$t$28 | BH33: 'V:\Business Intelligence Hub\01 - The City\2011 Census\Data\2nd Release - Key Indicators\Lower Areas and Wards\Initial Briefing\Census 2011 Bulk Data Load\Ward Bulk Data\Key Statisitics Bulk Load\[KEYSTATS FILE2.xlsx]KS102EWDATA'!$t$7:$t$28 | BI33: 35 | BJ33: =VLOOKUP(BI33,Sheet3!$B$2:$F$77,5,FALSE) -> $A$1:$al$28 | BK33: 'V:\Business Intelligence Hub\01 - The City\2011 Census\Data\2nd Release - Key Indicators\Lower Areas and Wards\Initial Briefing\Census 2011 Bulk Data Load\Ward Bulk Data\Key Statisitics Bulk Load\[KEYSTATS FILE2.xlsx]KS102EWDATA'!$A$1:$al$28
A34: KS102EW0018 | B34: Years | C34: Person | D34: Age structure | E34: Mean age | F34: 11 | G34: 3 | H34: 18 | I34: 2 | J34: 9 | K34: 20 | L34: 6 | M34: 19 | N34: 4 | O34: 22 | P34: 17 | Q34: 1 | R34: 15 | S34: 21 | T34: 5 | U34: 16 | V34: 7 | W34: 8 | X34: 13 | Y34: 12 | Z34: 14 | AA34: 10 | AB34: 39.52210289 | AC34: 39.37753838 | AD34: 39.29956892 | AE34: =IFERROR(VLOOKUP($A34,'2001 Data'!$A$5:$AH$65001,York!AE$2,FALSE),"No Data") -> 40.04 | AF34: =IFERROR(VLOOKUP($A34,'2001 Data'!$A$5:$AH$65001,York!AF$2,FALSE),"No Data") -> 43.51 | AG34: =IFERROR(VLOOKUP($A34,'2001 Data'!$A$5:$AH$65001,York!AG$2,FALSE),"No Data") -> 36.82 | AH34: =IFERROR(VLOOKUP($A34,'2001 Data'!$A$5:$AH$65001,York!AH$2,FALSE),"No Data") -> 45.68 | AI34: =IFERROR(VLOOKUP($A34,'2001 Data'!$A$5:$AH$65001,York!AI$2,FALSE),"No Data") -> 41.42 | AJ34: =IFERROR(VLOOKUP($A34,'2001 Data'!$A$5:$AH$65001,York!AJ$2,FALSE),"No Data") -> 37.87 | AK34: =IFERROR(VLOOKUP($A34,'2001 Data'!$A$5:$AH$65001,York!AK$2,FALSE),"No Data") -> 45.23 | AL34: =IFERROR(VLOOKUP($A34,'2001 Data'!$A$5:$AH$65001,York!AL$2,FALSE),"No Data") -> 39.37 | AM34: =IFERROR(VLOOKUP($A34,'2001 Data'!$A$5:$AH$65001,York!AM$2,FALSE),"No Data") -> 42.55 | AN34: =IFERROR(VLOOKUP($A34,'2001 Data'!$A$5:$AH$65001,York!AN$2,FALSE),"No Data") -> 26.45 | AO34: =IFERROR(VLOOKUP($A34,'2001 Data'!$A$5:$AH$65001,York!AO$2,FALSE),"No Data") -> 38.19 | AP34: =IFERROR(VLOOKUP($A34,'2001 Data'!$A$5:$AH$65001,York!AP$2,FALSE),"No Data") -> 46.28 | AQ34: =IFERROR(VLOOKUP($A34,'2001 Data'!$A$5:$AH$65001,York!AQ$2,FALSE),"No Data") -> 38.11 | AR34: =IFERROR(VLOOKUP($A34,'2001 Data'!$A$5:$AH$65001,York!AR$2,FALSE),"No Data") -> 36.72 | AS34: =IFERROR(VLOOKUP($A34,'2001 Data'!$A$5:$AH$65001,York!AS$2,FALSE),"No Data") -> 42.55 | AT34: =IFERROR(VLOOKUP($A34,'2001 Data'!$A$5:$AH$65001,York!AT$2,FALSE),"No Data") -> 38.14 | AU34: =IFERROR(VLOOKUP($A34,'2001 Data'!$A$5:$AH$65001,York!AU$2,FALSE),"No Data") -> 44.26 | AV34: =IFERROR(VLOOKUP($A34,'2001 Data'!$A$5:$AH$65001,York!AV$2,FALSE),"No Data") -> 40.91 | AW34: =IFERROR(VLOOKUP($A34,'2001 Data'!$A$5:$AH$65001,York!AW$2,FALSE),"No Data") -> 37.07 | AX34: =IFERROR(VLOOKUP($A34,'2001 Data'!$A$5:$AH$65001,York!AX$2,FALSE),"No Data") -> 37.69 | AY34: =IFERROR(VLOOKUP($A34,'2001 Data'!$A$5:$AH$65001,York!AY$2,FALSE),"No Data") -> 37.6 | AZ34: =IFERROR(VLOOKUP($A34,'2001 Data'!$A$5:$AH$65001,York!AZ$2,FALSE),"No Data") -> 39.64 | BA34: =IFERROR(VLOOKUP($A34,'2001 Data'!$A$5:$AH$65001,York!BA$2,FALSE),"No Data") -> 39.32 | BB34: =IFERROR(VLOOKUP($A34,'2001 Data'!$A$5:$AH$65001,York!BB$2,FALSE),"No Data") -> 38.65 | BC34: =IFERROR(VLOOKUP($A34,'2001 Data'!$A$5:$AH$65001,York!BC$2,FALSE),"No Data") -> 38.6 | BE34: V:\Business Intelligence Hub\01 - The City\2011 Census\Data\2nd Release - Key Indicators\Lower Areas and Wards\Initial Briefing\Census 2011 Bulk Data Load\Ward Bulk Data\Key Statisitics Bulk Load\[KEYSTATS FILE2.xlsx]KS102EWDATA | BF34: 18 | BG34: =VLOOKUP(BF34,Sheet3!$B$2:$C$77,2,FALSE) -> $u$7:$u$28 | BH34: 'V:\Business Intelligence Hub\01 - The City\2011 Census\Data\2nd Release - Key Indicators\Lower Areas and Wards\Initial Briefing\Census 2011 Bulk Data Load\Ward Bulk Data\Key Statisitics Bulk Load\[KEYSTATS FILE2.xlsx]KS102EWDATA'!$u$7:$u$28 | BI34: 35 | BJ34: =VLOOKUP(BI34,Sheet3!$B$2:$F$77,5,FALSE) -> $A$1:$al$28 | BK34: 'V:\Business Intelligence Hub\01 - The City\2011 Census\Data\2nd Release - Key Indicators\Lower Areas and Wards\Initial Briefing\Census 2011 Bulk Data Load\Ward Bulk Data\Key Statisitics Bulk Load\[KEYSTATS FILE2.xlsx]KS102EWDATA'!$A$1:$al$28
A35: KS102EW0019 | B35: Years | C35: Person | D35: Age structure | E35: Median age | F35: 12 | G35: 3 | H35: 18 | I35: 2 | J35: 7 | K35: 19 | L35: 7 | M35: 19 | N35: 3 | O35: 22 | P35: 17 | Q35: 1 | R35: 15 | S35: 21 | T35: 5 | U35: 16 | V35: 7 | W35: 5 | X35: 13 | Y35: 11 | Z35: 14 | AA35: 7 | AB35: 38 | AC35: 39 | AD35: 39 | AE35: =IFERROR(VLOOKUP($A35,'2001 Data'!$A$5:$AH$65001,York!AE$2,FALSE),"No Data") -> 40 | AF35: =IFERROR(VLOOKUP($A35,'2001 Data'!$A$5:$AH$65001,York!AF$2,FALSE),"No Data") -> 45 | AG35: =IFERROR(VLOOKUP($A35,'2001 Data'!$A$5:$AH$65001,York!AG$2,FALSE),"No Data") -> 33 | AH35: =IFERROR(VLOOKUP($A35,'2001 Data'!$A$5:$AH$65001,York!AH$2,FALSE),"No Data") -> 49 | AI35: =IFERROR(VLOOKUP($A35,'2001 Data'!$A$5:$AH$65001,York!AI$2,FALSE),"No Data") -> 42 | AJ35: =IFERROR(VLOOKUP($A35,'2001 Data'!$A$5:$AH$65001,York!AJ$2,FALSE),"No Data") -> 33 | AK35: =IFERROR(VLOOKUP($A35,'2001 Data'!$A$5:$AH$65001,York!AK$2,FALSE),"No Data") -> 46 | AL35: =IFERROR(VLOOKUP($A35,'2001 Data'!$A$5:$AH$65001,York!AL$2,FALSE),"No Data") -> 34 | AM35: =IFERROR(VLOOKUP($A35,'2001 Data'!$A$5:$AH$65001,York!AM$2,FALSE),"No Data") -> 44 | AN35: =IFERROR(VLOOKUP($A35,'2001 Data'!$A$5:$AH$65001,York!AN$2,FALSE),"No Data") -> 21 | AO35: =IFERROR(VLOOKUP($A35,'2001 Data'!$A$5:$AH$65001,York!AO$2,FALSE),"No Data") -> 36 | AP35: =IFERROR(VLOOKUP($A35,'2001 Data'!$A$5:$AH$65001,York!AP$2,FALSE),"No Data") -> 50 | AQ35: =IFERROR(VLOOKUP($A35,'2001 Data'!$A$5:$AH$65001,York!AQ$2,FALSE),"No Data") -> 36 | AR35: =IFERROR(VLOOKUP($A35,'2001 Data'!$A$5:$AH$65001,York!AR$2,FALSE),"No Data") -> 33 | AS35: =IFERROR(VLOOKUP($A35,'2001 Data'!$A$5:$AH$65001,York!AS$2,FALSE),"No Data") -> 43 | AT35: =IFERROR(VLOOKUP($A35,'2001 Data'!$A$5:$AH$65001,York!AT$2,FALSE),"No Data") -> 34 | AU35: =IFERROR(VLOOKUP($A35,'2001 Data'!$A$5:$AH$65001,York!AU$2,FALSE),"No Data") -> 45 | AV35: =IFERROR(VLOOKUP($A35,'2001 Data'!$A$5:$AH$65001,York!AV$2,FALSE),"No Data") -> 42 | AW35: =IFERROR(VLOOKUP($A35,'2001 Data'!$A$5:$AH$65001,York!AW$2,FALSE),"No Data") -> 36 | AX35: =IFERROR(VLOOKUP($A35,'2001 Data'!$A$5:$AH$65001,York!AX$2,FALSE),"No Data") -> 37 | AY35: =IFERROR(VLOOKUP($A35,'2001 Data'!$A$5:$AH$65001,York!AY$2,FALSE),"No Data") -> 36 | AZ35: =IFERROR(VLOOKUP($A35,'2001 Data'!$A$5:$AH$65001,York!AZ$2,FALSE),"No Data") -> 40 | BA35: =IFERROR(VLOOKUP($A35,'2001 Data'!$A$5:$AH$65001,York!BA$2,FALSE),"No Data") -> 38 | BB35: =IFERROR(VLOOKUP($A35,'2001 Data'!$A$5:$AH$65001,York!BB$2,FALSE),"No Data") -> 37 | BC35: =IFERROR(VLOOKUP($A35,'2001 Data'!$A$5:$AH$65001,York!BC$2,FALSE),"No Data") -> 37 | BE35: V:\Business Intelligence Hub\01 - The City\2011 Census\Data\2nd Release - Key Indicators\Lower Areas and Wards\Initial Briefing\Census 2011 Bulk Data Load\Ward Bulk Data\Key Statisitics Bulk Load\[KEYSTATS FILE2.xlsx]KS102EWDATA | BF35: 19 | BG35: =VLOOKUP(BF35,Sheet3!$B$2:$C$77,2,FALSE) -> $v$7:$v$28 | BH35: 'V:\Business Intelligence Hub\01 - The City\2011 Census\Data\2nd Release - Key Indicators\Lower Areas and Wards\Initial Briefing\Census 2011 Bulk Data Load\Ward Bulk Data\Key Statisitics Bulk Load\[KEYSTATS FILE2.xlsx]KS102EWDATA'!$v$7:$v$28 | BI35: 35 | BJ35: =VLOOKUP(BI35,Sheet3!$B$2:$F$77,5,FALSE) -> $A$1:$al$28 | BK35: 'V:\Business Intelligence Hub\01 - The City\2011 Census\Data\2nd Release - Key Indicators\Lower Areas and Wards\Initial Briefing\Census 2011 Bulk Data Load\Ward Bulk Data\Key Statisitics Bulk Load\[KEYSTATS FILE2.xlsx]KS102EWDATA'!$A$1:$al$28
A36: KS102EW0020 | B36: Percentage | C36: Person | D36: Age structure | E36: Age 0 to 4 | F36: 3 | G36: 14 | H36: 8 | I36: 19 | J36: 10 | K36: 12 | L36: 17 | M36: 21 | N36: 13 | O36: 22 | P36: 5 | Q36: 20 | R36: 2 | S36: 15 | T36: 16 | U36: 7 | V36: 18 | W36: 11 | X36: 4 | Y36: 6 | Z36: 1 | AA36: 9 | AB36: 0.0539 | AC36: 0.0622 | AD36: 0.0626 | AE36: =IFERROR(VLOOKUP($A36,'2001 Data'!$A$5:$AH$65001,York!AE$2,FALSE),"No Data") -> 5.56 | AF36: =IFERROR(VLOOKUP($A36,'2001 Data'!$A$5:$AH$65001,York!AF$2,FALSE),"No Data") -> 5.08 | AG36: =IFERROR(VLOOKUP($A36,'2001 Data'!$A$5:$AH$65001,York!AG$2,FALSE),"No Data") -> 5.39 | AH36: =IFERROR(VLOOKUP($A36,'2001 Data'!$A$5:$AH$65001,York!AH$2,FALSE),"No Data") -> 4.46 | AI36: =IFERROR(VLOOKUP($A36,'2001 Data'!$A$5:$AH$65001,York!AI$2,FALSE),"No Data") -> 5.12 | AJ36: =IFERROR(VLOOKUP($A36,'2001 Data'!$A$5:$AH$65001,York!AJ$2,FALSE),"No Data") -> 4.31 | AK36: =IFERROR(VLOOKUP($A36,'2001 Data'!$A$5:$AH$65001,York!AK$2,FALSE),"No Data") -> 3.62 | AL36: =IFERROR(VLOOKUP($A36,'2001 Data'!$A$5:$AH$65001,York!AL$2,FALSE),"No Data") -> 2.98 | AM36: =IFERROR(VLOOKUP($A36,'2001 Data'!$A$5:$AH$65001,York!AM$2,FALSE),"No Data") -> 4.26 | AN36: =IFERROR(VLOOKUP($A36,'2001 Data'!$A$5:$AH$65001,York!AN$2,FALSE),"No Data") -> 1.58 | AO36: =IFERROR(VLOOKUP($A36,'2001 Data'!$A$5:$AH$65001,York!AO$2,FALSE),"No Data") -> 5.42 | AP36: =IFERROR(VLOOKUP($A36,'2001 Data'!$A$5:$AH$65001,York!AP$2,FALSE),"No Data") -> 3.91 | AQ36: =IFERROR(VLOOKUP($A36,'2001 Data'!$A$5:$AH$65001,York!AQ$2,FALSE),"No Data") -> 6.14 | AR36: =IFERROR(VLOOKUP($A36,'2001 Data'!$A$5:$AH$65001,York!AR$2,FALSE),"No Data") -> 5.48 | AS36: =IFERROR(VLOOKUP($A36,'2001 Data'!$A$5:$AH$65001,York!AS$2,FALSE),"No Data") -> 4.48 | AT36: =IFERROR(VLOOKUP($A36,'2001 Data'!$A$5:$AH$65001,York!AT$2,FALSE),"No Data") -> 4.22 | AU36: =IFERROR(VLOOKUP($A36,'2001 Data'!$A$5:$AH$65001,York!AU$2,FALSE),"No Data") -> 5.14 | AV36: =IFERROR(VLOOKUP($A36,'2001 Data'!$A$5:$AH$65001,York!AV$2,FALSE),"No Data") -> 5.2 | AW36: =IFERROR(VLOOKUP($A36,'2001 Data'!$A$5:$AH$65001,York!AW$2,FALSE),"No Data") -> 7.23 | AX36: =IFERROR(VLOOKUP($A36,'2001 Data'!$A$5:$AH$65001,York!AX$2,FALSE),"No Data") -> 6 | AY36: =IFERROR(VLOOKUP($A36,'2001 Data'!$A$5:$AH$65001,York!AY$2,FALSE),"No Data") -> 6.71 | AZ36: =IFERROR(VLOOKUP($A36,'2001 Data'!$A$5:$AH$65001,York!AZ$2,FALSE),"No Data") -> 6.26 | BA36: =IFERROR(VLOOKUP($A36,'2001 Data'!$A$5:$AH$65001,York!BA$2,FALSE),"No Data") -> 5.18 | BB36: =IFERROR(VLOOKUP($A36,'2001 Data'!$A$5:$AH$65001,York!BB$2,FALSE),"No Data") -> 5.95 | BC36: =IFERROR(VLOOKUP($A36,'2001 Data'!$A$5:$AH$65001,York!BC$2,FALSE),"No Data") -> 5.96 | BE36: V:\Business Intelligence Hub\01 - The City\2011 Census\Data\2nd Release - Key Indicators\Lower Areas and Wards\Initial Briefing\Census 2011 Bulk Data Load\Ward Bulk Data\Key Statisitics Bulk Load\[KEYSTATS FILE2.xlsx]KS102EWDATA | BF36: 20 | BG36: =VLOOKUP(BF36,Sheet3!$B$2:$C$77,2,FALSE) -> $w$7:$w$28 | BH36: 'V:\Business Intelligence Hub\01 - The City\2011 Census\Data\2nd Release - Key Indicators\Lower Areas and Wards\Initial Briefing\Census 2011 Bulk Data Load\Ward Bulk Data\Key Statisitics Bulk Load\[KEYSTATS FILE2.xlsx]KS102EWDATA'!$w$7:$w$28 | BI36: 35 | BJ36: =VLOOKUP(BI36,Sheet3!$B$2:$F$77,5,FALSE) -> $A$1:$al$28 | BK36: 'V:\Business Intelligence Hub\01 - The City\2011 Census\Data\2nd Release - Key Indicators\Lower Areas and Wards\Initial Briefing\Census 2011 Bulk Data Load\Ward Bulk Data\Key Statisitics Bulk Load\[KEYSTATS FILE2.xlsx]KS102EWDATA'!$A$1:$al$28
A37: KS102EW0021 | B37: Percentage | C37: Person | D37: Age structure | E37: Age 5 to 7 | F37: 6 | G37: 8 | H37: 13 | I37: 9 | J37: 14 | K37: 18 | L37: 7 | M37: 21 | N37: 10 | O37: 22 | P37: 12 | Q37: 19 | R37: 11 | S37: 20 | T37: 17 | U37: 16 | V37: 15 | W37: 5 | X37: 3 | Y37: 2 | Z37: 4 | AA37: 1 | AB37: 0.029 | AC37: 0.0346 | AD37: 0.0345 | AE37: =IFERROR(VLOOKUP($A37,'2001 Data'!$A$5:$AH$65001,York!AE$2,FALSE),"No Data") -> 3.61 | AF37: =IFERROR(VLOOKUP($A37,'2001 Data'!$A$5:$AH$65001,York!AF$2,FALSE),"No Data") -> 2.63 | AG37: =IFERROR(VLOOKUP($A37,'2001 Data'!$A$5:$AH$65001,York!AG$2,FALSE),"No Data") -> 2.98 | AH37: =IFERROR(VLOOKUP($A37,'2001 Data'!$A$5:$AH$65001,York!AH$2,FALSE),"No Data") -> 2.8 | AI37: =IFERROR(VLOOKUP($A37,'2001 Data'!$A$5:$AH$65001,York!AI$2,FALSE),"No Data") -> 3.02 | AJ37: =IFERROR(VLOOKUP($A37,'2001 Data'!$A$5:$AH$65001,York!AJ$2,FALSE),"No Data") -> 2.65 | AK37: =IFERROR(VLOOKUP($A37,'2001 Data'!$A$5:$AH$65001,York!AK$2,FALSE),"No Data") -> 2.85 | AL37: =IFERROR(VLOOKUP($A37,'2001 Data'!$A$5:$AH$65001,York!AL$2,FALSE),"No Data") -> 1.57 | AM37: =IFERROR(VLOOKUP($A37,'2001 Data'!$A$5:$AH$65001,York!AM$2,FALSE),"No Data") -> 2.9 | AN37: =IFERROR(VLOOKUP($A37,'2001 Data'!$A$5:$AH$65001,York!AN$2,FALSE),"No Data") -> 0.97 | AO37: =IFERROR(VLOOKUP($A37,'2001 Data'!$A$5:$AH$65001,York!AO$2,FALSE),"No Data") -> 3.93 | AP37: =IFERROR(VLOOKUP($A37,'2001 Data'!$A$5:$AH$65001,York!AP$2,FALSE),"No Data") -> 2.4 | AQ37: =IFERROR(VLOOKUP($A37,'2001 Data'!$A$5:$AH$65001,York!AQ$2,FALSE),"No Data") -> 2.78 | AR37: =IFERROR(VLOOKUP($A37,'2001 Data'!$A$5:$AH$65001,York!AR$2,FALSE),"No Data") -> 3.31 | AS37: =IFERROR(VLOOKUP($A37,'2001 Data'!$A$5:$AH$65001,York!AS$2,FALSE),"No Data") -> 3.48 | AT37: =IFERROR(VLOOKUP($A37,'2001 Data'!$A$5:$AH$65001,York!AT$2,FALSE),"No Data") -> 2.23 | AU37: =IFERROR(VLOOKUP($A37,'2001 Data'!$A$5:$AH$65001,York!AU$2,FALSE),"No Data") -> 2.76 | AV37: =IFERROR(VLOOKUP($A37,'2001 Data'!$A$5:$AH$65001,York!AV$2,FALSE),"No Data") -> 3.58 | AW37: =IFERROR(VLOOKUP($A37,'2001 Data'!$A$5:$AH$65001,York!AW$2,FALSE),"No Data") -> 4.02 | AX37: =IFERROR(VLOOKUP($A37,'2001 Data'!$A$5:$AH$65001,York!AX$2,FALSE),"No Data") -> 4.16 | AY37: =IFERROR(VLOOKUP($A37,'2001 Data'!$A$5:$AH$65001,York!AY$2,FALSE),"No Data") -> 4.08 | AZ37: =IFERROR(VLOOKUP($A37,'2001 Data'!$A$5:$AH$65001,York!AZ$2,FALSE),"No Data") -> 4.03 | BA37: =IFERROR(VLOOKUP($A37,'2001 Data'!$A$5:$AH$65001,York!BA$2,FALSE),"No Data") -> 3.18 | BB37: =IFERROR(VLOOKUP($A37,'2001 Data'!$A$5:$AH$65001,York!BB$2,FALSE),"No Data") -> 3.74 | BC37: =IFERROR(VLOOKUP($A37,'2001 Data'!$A$5:$AH$65001,York!BC$2,FALSE),"No Data") -> 3.74 | BE37: V:\Business Intelligence Hub\01 - The City\2011 Census\Data\2nd Release - Key Indicators\Lower Areas and Wards\Initial Briefing\Census 2011 Bulk Data Load\Ward Bulk Data\Key Statisitics Bulk Load\[KEYSTATS FILE2.xlsx]KS102EWDATA | BF37: 21 | BG37: =VLOOKUP(BF37,Sheet3!$B$2:$C$77,2,FALSE) -> $x$7:$x$28 | BH37: 'V:\Business Intelligence Hub\01 - The City\2011 Census\Data\2nd Release - Key Indicators\Lower Areas and Wards\Initial Briefing\Census 2011 Bulk Data Load\Ward Bulk Data\Key Statisitics Bulk Load\[KEYSTATS FILE2.xlsx]KS102EWDATA'!$x$7:$x$28 | BI37: 35 | BJ37: =VLOOKUP(BI37,Sheet3!$B$2:$F$77,5,FALSE) -> $A$1:$al$28 | BK37: 'V:\Business Intelligence Hub\01 - The City\2011 Census\Data\2nd Release - Key Indicators\Lower Areas and Wards\Initial Briefing\Census 2011 Bulk Data Load\Ward Bulk Data\Key Statisitics Bulk Load\[KEYSTATS FILE2.xlsx]KS102EWDATA'!$A$1:$al$28
A38: KS102EW0022 | B38: Percentage | C38: Person | D38: Age structure | E38: Age 8 to 9 | F38: 3 | G38: 10 | H38: 17 | I38: 1 | J38: 9 | K38: 20 | L38: 5 | M38: 21 | N38: 16 | O38: 22 | P38: 14 | Q38: 12 | R38: 13 | S38: 18 | T38: 15 | U38: 19 | V38: 11 | W38: 7 | X38: 6 | Y38: 4 | Z38: 8 | AA38: 2 | AB38: 0.0182 | AC38: 0.0217 | AD38: 0.0216 | AE38: =IFERROR(VLOOKUP($A38,'2001 Data'!$A$5:$AH$65001,York!AE$2,FALSE),"No Data") -> 2.46 | AF38: =IFERROR(VLOOKUP($A38,'2001 Data'!$A$5:$AH$65001,York!AF$2,FALSE),"No Data") -> 2.42 | AG38: =IFERROR(VLOOKUP($A38,'2001 Data'!$A$5:$AH$65001,York!AG$2,FALSE),"No Data") -> 2.25 | AH38: =IFERROR(VLOOKUP($A38,'2001 Data'!$A$5:$AH$65001,York!AH$2,FALSE),"No Data") -> 1.67 | AI38: =IFERROR(VLOOKUP($A38,'2001 Data'!$A$5:$AH$65001,York!AI$2,FALSE),"No Data") -> 2.24 | AJ38: =IFERROR(VLOOKUP($A38,'2001 Data'!$A$5:$AH$65001,York!AJ$2,FALSE),"No Data") -> 1.54 | AK38: =IFERROR(VLOOKUP($A38,'2001 Data'!$A$5:$AH$65001,York!AK$2,FALSE),"No Data") -> 2.12 | AL38: =IFERROR(VLOOKUP($A38,'2001 Data'!$A$5:$AH$65001,York!AL$2,FALSE),"No Data") -> 0.94 | AM38: =IFERROR(VLOOKUP($A38,'2001 Data'!$A$5:$AH$65001,York!AM$2,FALSE),"No Data") -> 2.2 | AN38: =IFERROR(VLOOKUP($A38,'2001 Data'!$A$5:$AH$65001,York!AN$2,FALSE),"No Data") -> 0.75 | AO38: =IFERROR(VLOOKUP($A38,'2001 Data'!$A$5:$AH$65001,York!AO$2,FALSE),"No Data") -> 2.47 | AP38: =IFERROR(VLOOKUP($A38,'2001 Data'!$A$5:$AH$65001,York!AP$2,FALSE),"No Data") -> 2.03 | AQ38: =IFERROR(VLOOKUP($A38,'2001 Data'!$A$5:$AH$65001,York!AQ$2,FALSE),"No Data") -> 2.15 | AR38: =IFERROR(VLOOKUP($A38,'2001 Data'!$A$5:$AH$65001,York!AR$2,FALSE),"No Data") -> 2.25 | AS38: =IFERROR(VLOOKUP($A38,'2001 Data'!$A$5:$AH$65001,York!AS$2,FALSE),"No Data") -> 2.57 | AT38: =IFERROR(VLOOKUP($A38,'2001 Data'!$A$5:$AH$65001,York!AT$2,FALSE),"No Data") -> 1.24 | AU38: =IFERROR(VLOOKUP($A38,'2001 Data'!$A$5:$AH$65001,York!AU$2,FALSE),"No Data") -> 1.75 | AV38: =IFERROR(VLOOKUP($A38,'2001 Data'!$A$5:$AH$65001,York!AV$2,FALSE),"No Data") -> 2.65 | AW38: =IFERROR(VLOOKUP($A38,'2001 Data'!$A$5:$AH$65001,York!AW$2,FALSE),"No Data") -> 2.57 | AX38: =IFERROR(VLOOKUP($A38,'2001 Data'!$A$5:$AH$65001,York!AX$2,FALSE),"No Data") -> 3.1 | AY38: =IFERROR(VLOOKUP($A38,'2001 Data'!$A$5:$AH$65001,York!AY$2,FALSE),"No Data") -> 2.84 | AZ38: =IFERROR(VLOOKUP($A38,'2001 Data'!$A$5:$AH$65001,York!AZ$2,FALSE),"No Data") -> 2.74 | BA38: =IFERROR(VLOOKUP($A38,'2001 Data'!$A$5:$AH$65001,York!BA$2,FALSE),"No Data") -> 2.22 | BB38: =IFERROR(VLOOKUP($A38,'2001 Data'!$A$5:$AH$65001,York!BB$2,FALSE),"No Data") -> 2.62 | BC38: =IFERROR(VLOOKUP($A38,'2001 Data'!$A$5:$AH$65001,York!BC$2,FALSE),"No Data") -> 2.61 | BE38: V:\Business Intelligence Hub\01 - The City\2011 Census\Data\2nd Release - Key Indicators\Lower Areas and Wards\Initial Briefing\Census 2011 Bulk Data Load\Ward Bulk Data\Key Statisitics Bulk Load\[KEYSTATS FILE2.xlsx]KS102EWDATA | BF38: 22 | BG38: =VLOOKUP(BF38,Sheet3!$B$2:$C$77,2,FALSE) -> $y$7:$y$28 | BH38: 'V:\Business Intelligence Hub\01 - The City\2011 Census\Data\2nd Release - Key Indicators\Lower Areas and Wards\Initial Briefing\Census 2011 Bulk Data Load\Ward Bulk Data\Key Statisitics Bulk Load\[KEYSTATS FILE2.xlsx]KS102EWDATA'!$y$7:$y$28 | BI38: 35 | BJ38: =VLOOKUP(BI38,Sheet3!$B$2:$F$77,5,FALSE) -> $A$1:$al$28 | BK38: 'V:\Business Intelligence Hub\01 - The City\2011 Census\Data\2nd Release - Key Indicators\Lower Areas and Wards\Initial Briefing\Census 2011 Bulk Data Load\Ward Bulk Data\Key Statisitics Bulk Load\[KEYSTATS FILE2.xlsx]KS102EWDATA'!$A$1:$al$28
A39: KS102EW0023 | B39: Percentage | C39: Person | D39: Age structure | E39: Age 10 to 14 | F39: 7 | G39: 9 | H39: 16 | I39: 3 | J39: 8 | K39: 20 | L39: 11 | M39: 21 | N39: 14 | O39: 22 | P39: 13 | Q39: 15 | R39: 17 | S39: 18 | T39: 12 | U39: 19 | V39: 10 | W39: 4 | X39: 5 | Y39: 2 | Z39: 6 | AA39: 1 | AB39: 0.049 | AC39: 0.0579 | AD39: 0.0581 | AE39: =IFERROR(VLOOKUP($A39,'2001 Data'!$A$5:$AH$65001,York!AE$2,FALSE),"No Data") -> 7.31 | AF39: =IFERROR(VLOOKUP($A39,'2001 Data'!$A$5:$AH$65001,York!AF$2,FALSE),"No Data") -> 5.81 | AG39: =IFERROR(VLOOKUP($A39,'2001 Data'!$A$5:$AH$65001,York!AG$2,FALSE),"No Data") -> 6.45 | AH39: =IFERROR(VLOOKUP($A39,'2001 Data'!$A$5:$AH$65001,York!AH$2,FALSE),"No Data") -> 5.45 | AI39: =IFERROR(VLOOKUP($A39,'2001 Data'!$A$5:$AH$65001,York!AI$2,FALSE),"No Data") -> 5.99 | AJ39: =IFERROR(VLOOKUP($A39,'2001 Data'!$A$5:$AH$65001,York!AJ$2,FALSE),"No Data") -> 4.47 | AK39: =IFERROR(VLOOKUP($A39,'2001 Data'!$A$5:$AH$65001,York!AK$2,FALSE),"No Data") -> 5.32 | AL39: =IFERROR(VLOOKUP($A39,'2001 Data'!$A$5:$AH$65001,York!AL$2,FALSE),"No Data") -> 2.56 | AM39: =IFERROR(VLOOKUP($A39,'2001 Data'!$A$5:$AH$65001,York!AM$2,FALSE),"No Data") -> 6.04 | AN39: =IFERROR(VLOOKUP($A39,'2001 Data'!$A$5:$AH$65001,York!AN$2,FALSE),"No Data") -> 1.43 | AO39: =IFERROR(VLOOKUP($A39,'2001 Data'!$A$5:$AH$65001,York!AO$2,FALSE),"No Data") -> 7.29 | AP39: =IFERROR(VLOOKUP($A39,'2001 Data'!$A$5:$AH$65001,York!AP$2,FALSE),"No Data") -> 5.07 | AQ39: =IFERROR(VLOOKUP($A39,'2001 Data'!$A$5:$AH$65001,York!AQ$2,FALSE),"No Data") -> 5.25 | AR39: =IFERROR(VLOOKUP($A39,'2001 Data'!$A$5:$AH$65001,York!AR$2,FALSE),"No Data") -> 5.54 | AS39: =IFERROR(VLOOKUP($A39,'2001 Data'!$A$5:$AH$65001,York!AS$2,FALSE),"No Data") -> 6.76 | AT39: =IFERROR(VLOOKUP($A39,'2001 Data'!$A$5:$AH$65001,York!AT$2,FALSE),"No Data") -> 3.97 | AU39: =IFERROR(VLOOKUP($A39,'2001 Data'!$A$5:$AH$65001,York!AU$2,FALSE),"No Data") -> 5.46 | AV39: =IFERROR(VLOOKUP($A39,'2001 Data'!$A$5:$AH$65001,York!AV$2,FALSE),"No Data") -> 6.02 | AW39: =IFERROR(VLOOKUP($A39,'2001 Data'!$A$5:$AH$65001,York!AW$2,FALSE),"No Data") -> 5.99 | AX39: =IFERROR(VLOOKUP($A39,'2001 Data'!$A$5:$AH$65001,York!AX$2,FALSE),"No Data") -> 6.92 | AY39: =IFERROR(VLOOKUP($A39,'2001 Data'!$A$5:$AH$65001,York!AY$2,FALSE),"No Data") -> 7.63 | AZ39: =IFERROR(VLOOKUP($A39,'2001 Data'!$A$5:$AH$65001,York!AZ$2,FALSE),"No Data") -> 6.57 | BA39: =IFERROR(VLOOKUP($A39,'2001 Data'!$A$5:$AH$65001,York!BA$2,FALSE),"No Data") -> 5.85 | BB39: =IFERROR(VLOOKUP($A39,'2001 Data'!$A$5:$AH$65001,York!BB$2,FALSE),"No Data") -> 6.58 | BC39: =IFERROR(VLOOKUP($A39,'2001 Data'!$A$5:$AH$65001,York!BC$2,FALSE),"No Data") -> 6.57 | BE39: V:\Business Intelligence Hub\01 - The City\2011 Census\Data\2nd Release - Key Indicators\Lower Areas and Wards\Initial Briefing\Census 2011 Bulk Data Load\Ward Bulk Data\Key Statisitics Bulk Load\[KEYSTATS FILE2.xlsx]KS102EWDATA | BF39: 23 | BG39: =VLOOKUP(BF39,Sheet3!$B$2:$C$77,2,FALSE) -> $z$7:$z$28 | BH39: 'V:\Business Intelligence Hub\01 - The City\2011 Census\Data\2nd Release - Key Indicators\Lower Areas and Wards\Initial Briefing\Census 2011 Bulk Data Load\Ward Bulk Data\Key Statisitics Bulk Load\[KEYSTATS FILE2.xlsx]KS102EWDATA'!$z$7:$z$28 | BI39: 35 | BJ39: =VLOOKUP(BI39,Sheet3!$B$2:$F$77,5,FALSE) -> $A$1:$al$28 | BK39: 'V:\Business Intelligence Hub\01 - The City\2011 Census\Data\2nd Release - Key Indicators\Lower Areas and Wards\Initial Briefing\Census 2011 Bulk Data Load\Ward Bulk Data\Key Statisitics Bulk Load\[KEYSTATS FILE2.xlsx]KS102EWDATA'!$A$1:$al$28
A40: KS102EW0024 | B40: Percentage | C40: Person | D40: Age structure | E40: Age 15 | F40: 4 | G40: 15 | H40: 3 | I40: 8 | J40: 11 | K40: 19 | L40: 13 | M40: 21 | N40: 9 | O40: 22 | P40: 12 | Q40: 16 | R40: 18 | S40: 17 | T40: 10 | U40: 20 | V40: 14 | W40: 5 | X40: 7 | Y40: 2 | Z40: 6 | AA40: 1 | AB40: 0.0103 | AC40: 0.0124 | AD40: 0.0123 | AE40: =IFERROR(VLOOKUP($A40,'2001 Data'!$A$5:$AH$65001,York!AE$2,FALSE),"No Data") -> 1.42 | AF40: =IFERROR(VLOOKUP($A40,'2001 Data'!$A$5:$AH$65001,York!AF$2,FALSE),"No Data") -> 1 | AG40: =IFERROR(VLOOKUP($A40,'2001 Data'!$A$5:$AH$65001,York!AG$2,FALSE),"No Data") -> 1.26 | AH40: =IFERROR(VLOOKUP($A40,'2001 Data'!$A$5:$AH$65001,York!AH$2,FALSE),"No Data") -> 1.07 | AI40: =IFERROR(VLOOKUP($A40,'2001 Data'!$A$5:$AH$65001,York!AI$2,FALSE),"No Data") -> 1.17 | AJ40: =IFERROR(VLOOKUP($A40,'2001 Data'!$A$5:$AH$65001,York!AJ$2,FALSE),"No Data") -> 0.82 | AK40: =IFERROR(VLOOKUP($A40,'2001 Data'!$A$5:$AH$65001,York!AK$2,FALSE),"No Data") -> 1.27 | AL40: =IFERROR(VLOOKUP($A40,'2001 Data'!$A$5:$AH$65001,York!AL$2,FALSE),"No Data") -> 0.58 | AM40: =IFERROR(VLOOKUP($A40,'2001 Data'!$A$5:$AH$65001,York!AM$2,FALSE),"No Data") -> 1.37 | AN40: =IFERROR(VLOOKUP($A40,'2001 Data'!$A$5:$AH$65001,York!AN$2,FALSE),"No Data") -> 0.41 | AO40: =IFERROR(VLOOKUP($A40,'2001 Data'!$A$5:$AH$65001,York!AO$2,FALSE),"No Data") -> 1.33 | AP40: =IFERROR(VLOOKUP($A40,'2001 Data'!$A$5:$AH$65001,York!AP$2,FALSE),"No Data") -> 0.9 | AQ40: =IFERROR(VLOOKUP($A40,'2001 Data'!$A$5:$AH$65001,York!AQ$2,FALSE),"No Data") -> 1.06 | AR40: =IFERROR(VLOOKUP($A40,'2001 Data'!$A$5:$AH$65001,York!AR$2,FALSE),"No Data") -> 1.12 | AS40: =IFERROR(VLOOKUP($A40,'2001 Data'!$A$5:$AH$65001,York!AS$2,FALSE),"No Data") -> 1.12 | AT40: =IFERROR(VLOOKUP($A40,'2001 Data'!$A$5:$AH$65001,York!AT$2,FALSE),"No Data") -> 0.74 | AU40: =IFERROR(VLOOKUP($A40,'2001 Data'!$A$5:$AH$65001,York!AU$2,FALSE),"No Data") -> 1.02 | AV40: =IFERROR(VLOOKUP($A40,'2001 Data'!$A$5:$AH$65001,York!AV$2,FALSE),"No Data") -> 1.46 | AW40: =IFERROR(VLOOKUP($A40,'2001 Data'!$A$5:$AH$65001,York!AW$2,FALSE),"No Data") -> 1.18 | AX40: =IFERROR(VLOOKUP($A40,'2001 Data'!$A$5:$AH$65001,York!AX$2,FALSE),"No Data") -> 1.2 | AY40: =IFERROR(VLOOKUP($A40,'2001 Data'!$A$5:$AH$65001,York!AY$2,FALSE),"No Data") -> 1.22 | AZ40: =IFERROR(VLOOKUP($A40,'2001 Data'!$A$5:$AH$65001,York!AZ$2,FALSE),"No Data") -> 1.1 | BA40: =IFERROR(VLOOKUP($A40,'2001 Data'!$A$5:$AH$65001,York!BA$2,FALSE),"No Data") -> 1.13 | BB40: =IFERROR(VLOOKUP($A40,'2001 Data'!$A$5:$AH$65001,York!BB$2,FALSE),"No Data") -> 1.27 | BC40: =IFERROR(VLOOKUP($A40,'2001 Data'!$A$5:$AH$65001,York!BC$2,FALSE),"No Data") -> 1.27 | BE40: V:\Business Intelligence Hub\01 - The City\2011 Census\Data\2nd Release - Key Indicators\Lower Areas and Wards\Initial Briefing\Census 2011 Bulk Data Load\Ward Bulk Data\Key Statisitics Bulk Load\[KEYSTATS FILE2.xlsx]KS102EWDATA | BF40: 24 | BG40: =VLOOKUP(BF40,Sheet3!$B$2:$C$77,2,FALSE) -> $aa$7:$aa$28 | BH40: 'V:\Business Intelligence Hub\01 - The City\2011 Census\Data\2nd Release - Key Indicators\Lower Areas and Wards\Initial Briefing\Census 2011 Bulk Data Load\Ward Bulk Data\Key Statisitics Bulk Load\[KEYSTATS FILE2.xlsx]KS102EWDATA'!$aa$7:$aa$28 | BI40: 35 | BJ40: =VLOOKUP(BI40,Sheet3!$B$2:$F$77,5,FALSE) -> $A$1:$al$28 | BK40: 'V:\Business Intelligence Hub\01 - The City\2011 Census\Data\2nd Release - Key Indicators\Lower Areas and Wards\Initial Briefing\Census 2011 Bulk Data Load\Ward Bulk Data\Key Statisitics Bulk Load\[KEYSTATS FILE2.xlsx]KS102EWDATA'!$A$1:$al$28
A41: KS102EW0025 | B41: Percentage | C41: Person | D41: Age structure | E41: Age 16 to 17 | F41: 4 | G41: 13 | H41: 14 | I41: 12 | J41: 10 | K41: 19 | L41: 5 | M41: 21 | N41: 15 | O41: 22 | P41: 6 | Q41: 11 | R41: 20 | S41: 17 | T41: 3 | U41: 18 | V41: 16 | W41: 1 | X41: 7 | Y41: 2 | Z41: 9 | AA41: 8 | AB41: 0.0211 | AC41: 0.0248 | AD41: 0.0248 | AE41: =IFERROR(VLOOKUP($A41,'2001 Data'!$A$5:$AH$65001,York!AE$2,FALSE),"No Data") -> 2.7 | AF41: =IFERROR(VLOOKUP($A41,'2001 Data'!$A$5:$AH$65001,York!AF$2,FALSE),"No Data") -> 1.95 | AG41: =IFERROR(VLOOKUP($A41,'2001 Data'!$A$5:$AH$65001,York!AG$2,FALSE),"No Data") -> 2.53 | AH41: =IFERROR(VLOOKUP($A41,'2001 Data'!$A$5:$AH$65001,York!AH$2,FALSE),"No Data") -> 2.29 | AI41: =IFERROR(VLOOKUP($A41,'2001 Data'!$A$5:$AH$65001,York!AI$2,FALSE),"No Data") -> 2.73 | AJ41: =IFERROR(VLOOKUP($A41,'2001 Data'!$A$5:$AH$65001,York!AJ$2,FALSE),"No Data") -> 1.63 | AK41: =IFERROR(VLOOKUP($A41,'2001 Data'!$A$5:$AH$65001,York!AK$2,FALSE),"No Data") -> 1.62 | AL41: =IFERROR(VLOOKUP($A41,'2001 Data'!$A$5:$AH$65001,York!AL$2,FALSE),"No Data") -> 1.2 | AM41: =IFERROR(VLOOKUP($A41,'2001 Data'!$A$5:$AH$65001,York!AM$2,FALSE),"No Data") -> 3.08 | AN41: =IFERROR(VLOOKUP($A41,'2001 Data'!$A$5:$AH$65001,York!AN$2,FALSE),"No Data") -> 0.8 | AO41: =IFERROR(VLOOKUP($A41,'2001 Data'!$A$5:$AH$65001,York!AO$2,FALSE),"No Data") -> 2.32 | AP41: =IFERROR(VLOOKUP($A41,'2001 Data'!$A$5:$AH$65001,York!AP$2,FALSE),"No Data") -> 1.95 | AQ41: =IFERROR(VLOOKUP($A41,'2001 Data'!$A$5:$AH$65001,York!AQ$2,FALSE),"No Data") -> 1.96 | AR41: =IFERROR(VLOOKUP($A41,'2001 Data'!$A$5:$AH$65001,York!AR$2,FALSE),"No Data") -> 2.32 | AS41: =IFERROR(VLOOKUP($A41,'2001 Data'!$A$5:$AH$65001,York!AS$2,FALSE),"No Data") -> 2.51 | AT41: =IFERROR(VLOOKUP($A41,'2001 Data'!$A$5:$AH$65001,York!AT$2,FALSE),"No Data") -> 1.61 | AU41: =IFERROR(VLOOKUP($A41,'2001 Data'!$A$5:$AH$65001,York!AU$2,FALSE),"No Data") -> 2 | AV41: =IFERROR(VLOOKUP($A41,'2001 Data'!$A$5:$AH$65001,York!AV$2,FALSE),"No Data") -> 2.84 | AW41: =IFERROR(VLOOKUP($A41,'2001 Data'!$A$5:$AH$65001,York!AW$2,FALSE),"No Data") -> 2.16 | AX41: =IFERROR(VLOOKUP($A41,'2001 Data'!$A$5:$AH$65001,York!AX$2,FALSE),"No Data") -> 2.47 | AY41: =IFERROR(VLOOKUP($A41,'2001 Data'!$A$5:$AH$65001,York!AY$2,FALSE),"No Data") -> 2.64 | AZ41: =IFERROR(VLOOKUP($A41,'2001 Data'!$A$5:$AH$65001,York!AZ$2,FALSE),"No Data") -> 2.49 | BA41: =IFERROR(VLOOKUP($A41,'2001 Data'!$A$5:$AH$65001,York!BA$2,FALSE),"No Data") -> 2.29 | BB41: =IFERROR(VLOOKUP($A41,'2001 Data'!$A$5:$AH$65001,York!BB$2,FALSE),"No Data") -> 2.51 | BC41: =IFERROR(VLOOKUP($A41,'2001 Data'!$A$5:$AH$65001,York!BC$2,FALSE),"No Data") -> 2.51 | BE41: V:\Business Intelligence Hub\01 - The City\2011 Census\Data\2nd Release - Key Indicators\Lower Areas and Wards\Initial Briefing\Census 2011 Bulk Data Load\Ward Bulk Data\Key Statisitics Bulk Load\[KEYSTATS FILE2.xlsx]KS102EWDATA | BF41: 25 | BG41: =VLOOKUP(BF41,Sheet3!$B$2:$C$77,2,FALSE) -> $ab$7:$ab$28 | BH41: 'V:\Business Intelligence Hub\01 - The City\2011 Census\Data\2nd Release - Key Indicators\Lower Areas and Wards\Initial Briefing\Census 2011 Bulk Data Load\Ward Bulk Data\Key Statisitics Bulk Load\[KEYSTATS FILE2.xlsx]KS102EWDATA'!$ab$7:$ab$28 | BI41: 35 | BJ41: =VLOOKUP(BI41,Sheet3!$B$2:$F$77,5,FALSE) -> $A$1:$al$28 | BK41: 'V:\Business Intelligence Hub\01 - The City\2011 Census\Data\2nd Release - Key Indicators\Lower Areas and Wards\Initial Briefing\Census 2011 Bulk Data Load\Ward Bulk Data\Key Statisitics Bulk Load\[KEYSTATS FILE2.xlsx]KS102EWDATA'!$A$1:$al$28
A42: KS102EW0026 | B42: Percentage | C42: Person | D42: Age structure | E42: Age 18 to 19 | F42: 13 | G42: 19 | H42: 3 | I42: 22 | J42: 14 | K42: 5 | L42: 10 | M42: 2 | N42: 21 | O42: 1 | P42: 6 | Q42: 18 | R42: 15 | S42: 4 | T42: 11 | U42: 16 | V42: 7 | W42: 8 | X42: 17 | Y42: 12 | Z42: 9 | AA42: 20 | AB42: 0.0398 | AC42: 0.0288 | AD42: 0.0259 | AE42: =IFERROR(VLOOKUP($A42,'2001 Data'!$A$5:$AH$65001,York!AE$2,FALSE),"No Data") -> 2.1 | AF42: =IFERROR(VLOOKUP($A42,'2001 Data'!$A$5:$AH$65001,York!AF$2,FALSE),"No Data") -> 1.68 | AG42: =IFERROR(VLOOKUP($A42,'2001 Data'!$A$5:$AH$65001,York!AG$2,FALSE),"No Data") -> 4.04 | AH42: =IFERROR(VLOOKUP($A42,'2001 Data'!$A$5:$AH$65001,York!AH$2,FALSE),"No Data") -> 1.81 | AI42: =IFERROR(VLOOKUP($A42,'2001 Data'!$A$5:$AH$65001,York!AI$2,FALSE),"No Data") -> 2.05 | AJ42: =IFERROR(VLOOKUP($A42,'2001 Data'!$A$5:$AH$65001,York!AJ$2,FALSE),"No Data") -> 3.38 | AK42: =IFERROR(VLOOKUP($A42,'2001 Data'!$A$5:$AH$65001,York!AK$2,FALSE),"No Data") -> 2 | AL42: =IFERROR(VLOOKUP($A42,'2001 Data'!$A$5:$AH$65001,York!AL$2,FALSE),"No Data") -> 3.8 | AM42: =IFERROR(VLOOKUP($A42,'2001 Data'!$A$5:$AH$65001,York!AM$2,FALSE),"No Data") -> 2.21 | AN42: =IFERROR(VLOOKUP($A42,'2001 Data'!$A$5:$AH$65001,York!AN$2,FALSE),"No Data") -> 30.4 | AO42: =IFERROR(VLOOKUP($A42,'2001 Data'!$A$5:$AH$65001,York!AO$2,FALSE),"No Data") -> 3.74 | AP42: =IFERROR(VLOOKUP($A42,'2001 Data'!$A$5:$AH$65001,York!AP$2,FALSE),"No Data") -> 2.3 | AQ42: =IFERROR(VLOOKUP($A42,'2001 Data'!$A$5:$AH$65001,York!AQ$2,FALSE),"No Data") -> 2.27 | AR42: =IFERROR(VLOOKUP($A42,'2001 Data'!$A$5:$AH$65001,York!AR$2,FALSE),"No Data") -> 3.53 | AS42: =IFERROR(VLOOKUP($A42,'2001 Data'!$A$5:$AH$65001,York!AS$2,FALSE),"No Data") -> 1.99 | AT42: =IFERROR(VLOOKUP($A42,'2001 Data'!$A$5:$AH$65001,York!AT$2,FALSE),"No Data") -> 2.77 | AU42: =IFERROR(VLOOKUP($A42,'2001 Data'!$A$5:$AH$65001,York!AU$2,FALSE),"No Data") -> 1.78 | AV42: =IFERROR(VLOOKUP($A42,'2001 Data'!$A$5:$AH$65001,York!AV$2,FALSE),"No Data") -> 2.52 | AW42: =IFERROR(VLOOKUP($A42,'2001 Data'!$A$5:$AH$65001,York!AW$2,FALSE),"No Data") -> 1.77 | AX42: =IFERROR(VLOOKUP($A42,'2001 Data'!$A$5:$AH$65001,York!AX$2,FALSE),"No Data") -> 1.87 | AY42: =IFERROR(VLOOKUP($A42,'2001 Data'!$A$5:$AH$65001,York!AY$2,FALSE),"No Data") -> 2.35 | AZ42: =IFERROR(VLOOKUP($A42,'2001 Data'!$A$5:$AH$65001,York!AZ$2,FALSE),"No Data") -> 1.41 | BA42: =IFERROR(VLOOKUP($A42,'2001 Data'!$A$5:$AH$65001,York!BA$2,FALSE),"No Data") -> 3.19 | BB42: =IFERROR(VLOOKUP($A42,'2001 Data'!$A$5:$AH$65001,York!BB$2,FALSE),"No Data") -> 2.4 | BC42: =IFERROR(VLOOKUP($A42,'2001 Data'!$A$5:$AH$65001,York!BC$2,FALSE),"No Data") -> 2.4 | BE42: V:\Business Intelligence Hub\01 - The City\2011 Census\Data\2nd Release - Key Indicators\Lower Areas and Wards\Initial Briefing\Census 2011 Bulk Data Load\Ward Bulk Data\Key Statisitics Bulk Load\[KEYSTATS FILE2.xlsx]KS102EWDATA | BF42: 26 | BG42: =VLOOKUP(BF42,Sheet3!$B$2:$C$77,2,FALSE) -> $ac$7:$ac$28 | BH42: 'V:\Business Intelligence Hub\01 - The City\2011 Census\Data\2nd Release - Key Indicators\Lower Areas and Wards\Initial Briefing\Census 2011 Bulk Data Load\Ward Bulk Data\Key Statisitics Bulk Load\[KEYSTATS FILE2.xlsx]KS102EWDATA'!$ac$7:$ac$28 | BI42: 35 | BJ42: =VLOOKUP(BI42,Sheet3!$B$2:$F$77,5,FALSE) -> $A$1:$al$28 | BK42: 'V:\Business Intelligence Hub\01 - The City\2011 Census\Data\2nd Release - Key Indicators\Lower Areas and Wards\Initial Briefing\Census 2011 Bulk Data Load\Ward Bulk Data\Key Statisitics Bulk Load\[KEYSTATS FILE2.xlsx]KS102EWDATA'!$A$1:$al$28
A43: KS102EW0027 | B43: Percentage | C43: Person | D43: Age structure | E43: Age 20 to 24 | F43: 12 | G43: 22 | H43: 5 | I43: 18 | J43: 14 | K43: 3 | L43: 10 | M43: 4 | N43: 16 | O43: 2 | P43: 6 | Q43: 20 | R43: 9 | S43: 1 | T43: 13 | U43: 7 | V43: 8 | W43: 19 | X43: 15 | Y43: 17 | Z43: 11 | AA43: 21 | AB43: 0.0997 | AC43: 0.0724 | AD43: 0.0678 | AE43: =IFERROR(VLOOKUP($A43,'2001 Data'!$A$5:$AH$65001,York!AE$2,FALSE),"No Data") -> 4.05 | AF43: =IFERROR(VLOOKUP($A43,'2001 Data'!$A$5:$AH$65001,York!AF$2,FALSE),"No Data") -> 3.66 | AG43: =IFERROR(VLOOKUP($A43,'2001 Data'!$A$5:$AH$65001,York!AG$2,FALSE),"No Data") -> 10.23 | AH43: =IFERROR(VLOOKUP($A43,'2001 Data'!$A$5:$AH$65001,York!AH$2,FALSE),"No Data") -> 3.45 | AI43: =IFERROR(VLOOKUP($A43,'2001 Data'!$A$5:$AH$65001,York!AI$2,FALSE),"No Data") -> 3.99 | AJ43: =IFERROR(VLOOKUP($A43,'2001 Data'!$A$5:$AH$65001,York!AJ$2,FALSE),"No Data") -> 16.07 | AK43: =IFERROR(VLOOKUP($A43,'2001 Data'!$A$5:$AH$65001,York!AK$2,FALSE),"No Data") -> 6.13 | AL43: =IFERROR(VLOOKUP($A43,'2001 Data'!$A$5:$AH$65001,York!AL$2,FALSE),"No Data") -> 15.86 | AM43: =IFERROR(VLOOKUP($A43,'2001 Data'!$A$5:$AH$65001,York!AM$2,FALSE),"No Data") -> 4.62 | AN43: =IFERROR(VLOOKUP($A43,'2001 Data'!$A$5:$AH$65001,York!AN$2,FALSE),"No Data") -> 34.09 | AO43: =IFERROR(VLOOKUP($A43,'2001 Data'!$A$5:$AH$65001,York!AO$2,FALSE),"No Data") -> 8.07 | AP43: =IFERROR(VLOOKUP($A43,'2001 Data'!$A$5:$AH$65001,York!AP$2,FALSE),"No Data") -> 3.54 | AQ43: =IFERROR(VLOOKUP($A43,'2001 Data'!$A$5:$AH$65001,York!AQ$2,FALSE),"No Data") -> 7.15 | AR43: =IFERROR(VLOOKUP($A43,'2001 Data'!$A$5:$AH$65001,York!AR$2,FALSE),"No Data") -> 14.35 | AS43: =IFERROR(VLOOKUP($A43,'2001 Data'!$A$5:$AH$65001,York!AS$2,FALSE),"No Data") -> 3.65 | AT43: =IFERROR(VLOOKUP($A43,'2001 Data'!$A$5:$AH$65001,York!AT$2,FALSE),"No Data") -> 13.57 | AU43: =IFERROR(VLOOKUP($A43,'2001 Data'!$A$5:$AH$65001,York!AU$2,FALSE),"No Data") -> 5.72 | AV43: =IFERROR(VLOOKUP($A43,'2001 Data'!$A$5:$AH$65001,York!AV$2,FALSE),"No Data") -> 4.11 | AW43: =IFERROR(VLOOKUP($A43,'2001 Data'!$A$5:$AH$65001,York!AW$2,FALSE),"No Data") -> 4.79 | AX43: =IFERROR(VLOOKUP($A43,'2001 Data'!$A$5:$AH$65001,York!AX$2,FALSE),"No Data") -> 4.03 | AY43: =IFERROR(VLOOKUP($A43,'2001 Data'!$A$5:$AH$65001,York!AY$2,FALSE),"No Data") -> 6.25 | AZ43: =IFERROR(VLOOKUP($A43,'2001 Data'!$A$5:$AH$65001,York!AZ$2,FALSE),"No Data") -> 2.77 | BA43: =IFERROR(VLOOKUP($A43,'2001 Data'!$A$5:$AH$65001,York!BA$2,FALSE),"No Data") -> 7.84 | BB43: =IFERROR(VLOOKUP($A43,'2001 Data'!$A$5:$AH$65001,York!BB$2,FALSE),"No Data") -> 6 | BC43: =IFERROR(VLOOKUP($A43,'2001 Data'!$A$5:$AH$65001,York!BC$2,FALSE),"No Data") -> 6.01 | BE43: V:\Business Intelligence Hub\01 - The City\2011 Census\Data\2nd Release - Key Indicators\Lower Areas and Wards\Initial Briefing\Census 2011 Bulk Data Load\Ward Bulk Data\Key Statisitics Bulk Load\[KEYSTATS FILE2.xlsx]KS102EWDATA | BF43: 27 | BG43: =VLOOKUP(BF43,Sheet3!$B$2:$C$77,2,FALSE) -> $ad$7:$ad$28 | BH43: 'V:\Business Intelligence Hub\01 - The City\2011 Census\Data\2nd Release - Key Indicators\Lower Areas and Wards\Initial Briefing\Census 2011 Bulk Data Load\Ward Bulk Data\Key Statisitics Bulk Load\[KEYSTATS FILE2.xlsx]KS102EWDATA'!$ad$7:$ad$28 | BI43: 35 | BJ43: =VLOOKUP(BI43,Sheet3!$B$2:$F$77,5,FALSE) -> $A$1:$al$28 | BK43: 'V:\Business Intelligence Hub\01 - The City\2011 Census\Data\2nd Release - Key Indicators\Lower Areas and Wards\Initial Briefing\Census 2011 Bulk Data Load\Ward Bulk Data\Key Statisitics Bulk Load\[KEYSTATS FILE2.xlsx]KS102EWDATA'!$A$1:$al$28
A44: KS102EW0028 | B44: Percentage | C44: Person | D44: Age structure | E44: Age 25 to 29 | F44: 10 | G44: 20 | H44: 5 | I44: 22 | J44: 12 | K44: 3 | L44: 11 | M44: 1 | N44: 15 | O44: 16 | P44: 7 | Q44: 19 | R44: 4 | S44: 6 | T44: 13 | U44: 2 | V44: 17 | W44: 18 | X44: 9 | Y44: 14 | Z44: 8 | AA44: 21 | AB44: 0.0715 | AC44: 0.0657 | AD44: 0.0689 | AE44: =IFERROR(VLOOKUP($A44,'2001 Data'!$A$5:$AH$65001,York!AE$2,FALSE),"No Data") -> 4.94 | AF44: =IFERROR(VLOOKUP($A44,'2001 Data'!$A$5:$AH$65001,York!AF$2,FALSE),"No Data") -> 3.95 | AG44: =IFERROR(VLOOKUP($A44,'2001 Data'!$A$5:$AH$65001,York!AG$2,FALSE),"No Data") -> 8.34 | AH44: =IFERROR(VLOOKUP($A44,'2001 Data'!$A$5:$AH$65001,York!AH$2,FALSE),"No Data") -> 3.33 | AI44: =IFERROR(VLOOKUP($A44,'2001 Data'!$A$5:$AH$65001,York!AI$2,FALSE),"No Data") -> 5.7 | AJ44: =IFERROR(VLOOKUP($A44,'2001 Data'!$A$5:$AH$65001,York!AJ$2,FALSE),"No Data") -> 8.91 | AK44: =IFERROR(VLOOKUP($A44,'2001 Data'!$A$5:$AH$65001,York!AK$2,FALSE),"No Data") -> 5.43 | AL44: =IFERROR(VLOOKUP($A44,'2001 Data'!$A$5:$AH$65001,York!AL$2,FALSE),"No Data") -> 11.47 | AM44: =IFERROR(VLOOKUP($A44,'2001 Data'!$A$5:$AH$65001,York!AM$2,FALSE),"No Data") -> 4.26 | AN44: =IFERROR(VLOOKUP($A44,'2001 Data'!$A$5:$AH$65001,York!AN$2,FALSE),"No Data") -> 8.56 | AO44: =IFERROR(VLOOKUP($A44,'2001 Data'!$A$5:$AH$65001,York!AO$2,FALSE),"No Data") -> 5.6 | AP44: =IFERROR(VLOOKUP($A44,'2001 Data'!$A$5:$AH$65001,York!AP$2,FALSE),"No Data") -> 3.25 | AQ44: =IFERROR(VLOOKUP($A44,'2001 Data'!$A$5:$AH$65001,York!AQ$2,FALSE),"No Data") -> 9.62 | AR44: =IFERROR(VLOOKUP($A44,'2001 Data'!$A$5:$AH$65001,York!AR$2,FALSE),"No Data") -> 7.22 | AS44: =IFERROR(VLOOKUP($A44,'2001 Data'!$A$5:$AH$65001,York!AS$2,FALSE),"No Data") -> 4.93 | AT44: =IFERROR(VLOOKUP($A44,'2001 Data'!$A$5:$AH$65001,York!AT$2,FALSE),"No Data") -> 10.28 | AU44: =IFERROR(VLOOKUP($A44,'2001 Data'!$A$5:$AH$65001,York!AU$2,FALSE),"No Data") -> 4.48 | AV44: =IFERROR(VLOOKUP($A44,'2001 Data'!$A$5:$AH$65001,York!AV$2,FALSE),"No Data") -> 4.82 | AW44: =IFERROR(VLOOKUP($A44,'2001 Data'!$A$5:$AH$65001,York!AW$2,FALSE),"No Data") -> 7.31 | AX44: =IFERROR(VLOOKUP($A44,'2001 Data'!$A$5:$AH$65001,York!AX$2,FALSE),"No Data") -> 6.14 | AY44: =IFERROR(VLOOKUP($A44,'2001 Data'!$A$5:$AH$65001,York!AY$2,FALSE),"No Data") -> 6.83 | AZ44: =IFERROR(VLOOKUP($A44,'2001 Data'!$A$5:$AH$65001,York!AZ$2,FALSE),"No Data") -> 5.05 | BA44: =IFERROR(VLOOKUP($A44,'2001 Data'!$A$5:$AH$65001,York!BA$2,FALSE),"No Data") -> 6.69 | BB44: =IFERROR(VLOOKUP($A44,'2001 Data'!$A$5:$AH$65001,York!BB$2,FALSE),"No Data") -> 6.6 | BC44: =IFERROR(VLOOKUP($A44,'2001 Data'!$A$5:$AH$65001,York!BC$2,FALSE),"No Data") -> 6.65 | BE44: V:\Business Intelligence Hub\01 - The City\2011 Census\Data\2nd Release - Key Indicators\Lower Areas and Wards\Initial Briefing\Census 2011 Bulk Data Load\Ward Bulk Data\Key Statisitics Bulk Load\[KEYSTATS FILE2.xlsx]KS102EWDATA | BF44: 28 | BG44: =VLOOKUP(BF44,Sheet3!$B$2:$C$77,2,FALSE) -> $ae$7:$ae$28 | BH44: 'V:\Business Intelligence Hub\01 - The City\2011 Census\Data\2nd Release - Key Indicators\Lower Areas and Wards\Initial Briefing\Census 2011 Bulk Data Load\Ward Bulk Data\Key Statisitics Bulk Load\[KEYSTATS FILE2.xlsx]KS102EWDATA'!$ae$7:$ae$28 | BI44: 35 | BJ44: =VLOOKUP(BI44,Sheet3!$B$2:$F$77,5,FALSE) -> $A$1:$al$28 | BK44: 'V:\Business Intelligence Hub\01 - The City\2011 Census\Data\2nd Release - Key Indicators\Lower Areas and Wards\Initial Briefing\Census 2011 Bulk Data Load\Ward Bulk Data\Key Statisitics Bulk Load\[KEYSTATS FILE2.xlsx]KS102EWDATA'!$A$1:$al$28
A45: KS102EW0029 | B45: Percentage | C45: Person | D45: Age structure | E45: Age 30 to 44 | F45: 7 | G45: 17 | H45: 5 | I45: 20 | J45: 10 | K45: 12 | L45: 15 | M45: 11 | N45: 16 | O45: 22 | P45: 9 | Q45: 19 | R45: 2 | S45: 21 | T45: 14 | U45: 1 | V45: 18 | W45: 13 | X45: 3 | Y45: 4 | Z45: 6 | AA45: 8 | AB45: 0.196 | AC45: 0.1972 | AD45: 0.2064 | AE45: =IFERROR(VLOOKUP($A45,'2001 Data'!$A$5:$AH$65001,York!AE$2,FALSE),"No Data") -> 22.71 | AF45: =IFERROR(VLOOKUP($A45,'2001 Data'!$A$5:$AH$65001,York!AF$2,FALSE),"No Data") -> 20.62 | AG45: =IFERROR(VLOOKUP($A45,'2001 Data'!$A$5:$AH$65001,York!AG$2,FALSE),"No Data") -> 22.16 | AH45: =IFERROR(VLOOKUP($A45,'2001 Data'!$A$5:$AH$65001,York!AH$2,FALSE),"No Data") -> 17.82 | AI45: =IFERROR(VLOOKUP($A45,'2001 Data'!$A$5:$AH$65001,York!AI$2,FALSE),"No Data") -> 22.18 | AJ45: =IFERROR(VLOOKUP($A45,'2001 Data'!$A$5:$AH$65001,York!AJ$2,FALSE),"No Data") -> 21.46 | AK45: =IFERROR(VLOOKUP($A45,'2001 Data'!$A$5:$AH$65001,York!AK$2,FALSE),"No Data") -> 17.88 | AL45: =IFERROR(VLOOKUP($A45,'2001 Data'!$A$5:$AH$65001,York!AL$2,FALSE),"No Data") -> 22.75 | AM45: =IFERROR(VLOOKUP($A45,'2001 Data'!$A$5:$AH$65001,York!AM$2,FALSE),"No Data") -> 20.28 | AN45: =IFERROR(VLOOKUP($A45,'2001 Data'!$A$5:$AH$65001,York!AN$2,FALSE),"No Data") -> 9.34 | AO45: =IFERROR(VLOOKUP($A45,'2001 Data'!$A$5:$AH$65001,York!AO$2,FALSE),"No Data") -> 22.14 | AP45: =IFERROR(VLOOKUP($A45,'2001 Data'!$A$5:$AH$65001,York!AP$2,FALSE),"No Data") -> 17.88 | AQ45: =IFERROR(VLOOKUP($A45,'2001 Data'!$A$5:$AH$65001,York!AQ$2,FALSE),"No Data") -> 25.09 | AR45: =IFERROR(VLOOKUP($A45,'2001 Data'!$A$5:$AH$65001,York!AR$2,FALSE),"No Data") -> 19.58 | AS45: =IFERROR(VLOOKUP($A45,'2001 Data'!$A$5:$AH$65001,York!AS$2,FALSE),"No Data") -> 20.38 | AT45: =IFERROR(VLOOKUP($A45,'2001 Data'!$A$5:$AH$65001,York!AT$2,FALSE),"No Data") -> 24.68 | AU45: =IFERROR(VLOOKUP($A45,'2001 Data'!$A$5:$AH$65001,York!AU$2,FALSE),"No Data") -> 19.59 | AV45: =IFERROR(VLOOKUP($A45,'2001 Data'!$A$5:$AH$65001,York!AV$2,FALSE),"No Data") -> 20.4 | AW45: =IFERROR(VLOOKUP($A45,'2001 Data'!$A$5:$AH$65001,York!AW$2,FALSE),"No Data") -> 27.48 | AX45: =IFERROR(VLOOKUP($A45,'2001 Data'!$A$5:$AH$65001,York!AX$2,FALSE),"No Data") -> 26.8 | AY45: =IFERROR(VLOOKUP($A45,'2001 Data'!$A$5:$AH$65001,York!AY$2,FALSE),"No Data") -> 22.13 | AZ45: =IFERROR(VLOOKUP($A45,'2001 Data'!$A$5:$AH$65001,York!AZ$2,FALSE),"No Data") -> 24.16 | BA45: =IFERROR(VLOOKUP($A45,'2001 Data'!$A$5:$AH$65001,York!BA$2,FALSE),"No Data") -> 22.04 | BB45: =IFERROR(VLOOKUP($A45,'2001 Data'!$A$5:$AH$65001,York!BB$2,FALSE),"No Data") -> 22.55 | BC45: =IFERROR(VLOOKUP($A45,'2001 Data'!$A$5:$AH$65001,York!BC$2,FALSE),"No Data") -> 22.65 | BE45: V:\Business Intelligence Hub\01 - The City\2011 Census\Data\2nd Release - Key Indicators\Lower Areas and Wards\Initial Briefing\Census 2011 Bulk Data Load\Ward Bulk Data\Key Statisitics Bulk Load\[KEYSTATS FILE2.xlsx]KS102EWDATA | BF45: 29 | BG45: =VLOOKUP(BF45,Sheet3!$B$2:$C$77,2,FALSE) -> $af$7:$af$28 | BH45: 'V:\Business Intelligence Hub\01 - The City\2011 Census\Data\2nd Release - Key Indicators\Lower Areas and Wards\Initial Briefing\Census 2011 Bulk Data Load\Ward Bulk Data\Key Statisitics Bulk Load\[KEYSTATS FILE2.xlsx]KS102EWDATA'!$af$7:$af$28 | BI45: 35 | BJ45: =VLOOKUP(BI45,Sheet3!$B$2:$F$77,5,FALSE) -> $A$1:$al$28 | BK45: 'V:\Business Intelligence Hub\01 - The City\2011 Census\Data\2nd Release - Key Indicators\Lower Areas and Wards\Initial Briefing\Census 2011 Bulk Data Load\Ward Bulk Data\Key Statisitics Bulk Load\[KEYSTATS FILE2.xlsx]KS102EWDATA'!$A$1:$al$28
A46: KS102EW0030 | B46: Percentage | C46: Person | D46: Age structure | E46: Age 45 to 59 | F46: 9 | G46: 1 | H46: 18 | I46: 10 | J46: 7 | K46: 20 | L46: 16 | M46: 19 | N46: 4 | O46: 22 | P46: 17 | Q46: 8 | R46: 14 | S46: 21 | T46: 11 | U46: 13 | V46: 15 | W46: 3 | X46: 6 | Y46: 5 | Z46: 12 | AA46: 2 | AB46: 0.1836 | AC46: 0.1951 | AD46: 0.1939 | AE46: =IFERROR(VLOOKUP($A46,'2001 Data'!$A$5:$AH$65001,York!AE$2,FALSE),"No Data") -> 20.13 | AF46: =IFERROR(VLOOKUP($A46,'2001 Data'!$A$5:$AH$65001,York!AF$2,FALSE),"No Data") -> 24.07 | AG46: =IFERROR(VLOOKUP($A46,'2001 Data'!$A$5:$AH$65001,York!AG$2,FALSE),"No Data") -> 16.33 | AH46: =IFERROR(VLOOKUP($A46,'2001 Data'!$A$5:$AH$65001,York!AH$2,FALSE),"No Data") -> 24.66 | AI46: =IFERROR(VLOOKUP($A46,'2001 Data'!$A$5:$AH$65001,York!AI$2,FALSE),"No Data") -> 21.61 | AJ46: =IFERROR(VLOOKUP($A46,'2001 Data'!$A$5:$AH$65001,York!AJ$2,FALSE),"No Data") -> 14.99 | AK46: =IFERROR(VLOOKUP($A46,'2001 Data'!$A$5:$AH$65001,York!AK$2,FALSE),"No Data") -> 20.15 | AL46: =IFERROR(VLOOKUP($A46,'2001 Data'!$A$5:$AH$65001,York!AL$2,FALSE),"No Data") -> 15.4 | AM46: =IFERROR(VLOOKUP($A46,'2001 Data'!$A$5:$AH$65001,York!AM$2,FALSE),"No Data") -> 23.99 | AN46: =IFERROR(VLOOKUP($A46,'2001 Data'!$A$5:$AH$65001,York!AN$2,FALSE),"No Data") -> 5.75 | AO46: =IFERROR(VLOOKUP($A46,'2001 Data'!$A$5:$AH$65001,York!AO$2,FALSE),"No Data") -> 15.96 | AP46: =IFERROR(VLOOKUP($A46,'2001 Data'!$A$5:$AH$65001,York!AP$2,FALSE),"No Data") -> 22.4 | AQ46: =IFERROR(VLOOKUP($A46,'2001 Data'!$A$5:$AH$65001,York!AQ$2,FALSE),"No Data") -> 17.55 | AR46: =IFERROR(VLOOKUP($A46,'2001 Data'!$A$5:$AH$65001,York!AR$2,FALSE),"No Data") -> 15.95 | AS46: =IFERROR(VLOOKUP($A46,'2001 Data'!$A$5:$AH$65001,York!AS$2,FALSE),"No Data") -> 20.27 | AT46: =IFERROR(VLOOKUP($A46,'2001 Data'!$A$5:$AH$65001,York!AT$2,FALSE),"No Data") -> 16.95 | AU46: =IFERROR(VLOOKUP($A46,'2001 Data'!$A$5:$AH$65001,York!AU$2,FALSE),"No Data") -> 18.51 | AV46: =IFERROR(VLOOKUP($A46,'2001 Data'!$A$5:$AH$65001,York!AV$2,FALSE),"No Data") -> 23 | AW46: =IFERROR(VLOOKUP($A46,'2001 Data'!$A$5:$AH$65001,York!AW$2,FALSE),"No Data") -> 17.31 | AX46: =IFERROR(VLOOKUP($A46,'2001 Data'!$A$5:$AH$65001,York!AX$2,FALSE),"No Data") -> 19.4 | AY46: =IFERROR(VLOOKUP($A46,'2001 Data'!$A$5:$AH$65001,York!AY$2,FALSE),"No Data") -> 16.2 | AZ46: =IFERROR(VLOOKUP($A46,'2001 Data'!$A$5:$AH$65001,York!AZ$2,FALSE),"No Data") -> 23.34 | BA46: =IFERROR(VLOOKUP($A46,'2001 Data'!$A$5:$AH$65001,York!BA$2,FALSE),"No Data") -> 18.6 | BB46: =IFERROR(VLOOKUP($A46,'2001 Data'!$A$5:$AH$65001,York!BB$2,FALSE),"No Data") -> 18.93 | BC46: =IFERROR(VLOOKUP($A46,'2001 Data'!$A$5:$AH$65001,York!BC$2,FALSE),"No Data") -> 18.88 | BE46: V:\Business Intelligence Hub\01 - The City\2011 Census\Data\2nd Release - Key Indicators\Lower Areas and Wards\Initial Briefing\Census 2011 Bulk Data Load\Ward Bulk Data\Key Statisitics Bulk Load\[KEYSTATS FILE2.xlsx]KS102EWDATA | BF46: 30 | BG46: =VLOOKUP(BF46,Sheet3!$B$2:$C$77,2,FALSE) -> $ag$7:$ag$28 | BH46: 'V:\Business Intelligence Hub\01 - The City\2011 Census\Data\2nd Release - Key Indicators\Lower Areas and Wards\Initial Briefing\Census 2011 Bulk Data Load\Ward Bulk Data\Key Statisitics Bulk Load\[KEYSTATS FILE2.xlsx]KS102EWDATA'!$ag$7:$ag$28 | BI46: 35 | BJ46: =VLOOKUP(BI46,Sheet3!$B$2:$F$77,5,FALSE) -> $A$1:$al$28 | BK46: 'V:\Business Intelligence Hub\01 - The City\2011 Census\Data\2nd Release - Key Indicators\Lower Areas and Wards\Initial Briefing\Census 2011 Bulk Data Load\Ward Bulk Data\Key Statisitics Bulk Load\[KEYSTATS FILE2.xlsx]KS102EWDATA'!$A$1:$al$28
A47: KS102EW0031 | B47: Percentage | C47: Person | D47: Age structure | E47: Age 60 to 64 | F47: 12 | G47: 4 | H47: 18 | I47: 3 | J47: 6 | K47: 19 | L47: 9 | M47: 20 | N47: 1 | O47: 22 | P47: 17 | Q47: 2 | R47: 15 | S47: 21 | T47: 7 | U47: 16 | V47: 11 | W47: 5 | X47: 13 | Y47: 10 | Z47: 14 | AA47: 8 | AB47: 0.0592 | AC47: 0.0616 | AD47: 0.0598 | AE47: =IFERROR(VLOOKUP($A47,'2001 Data'!$A$5:$AH$65001,York!AE$2,FALSE),"No Data") -> 5.02 | AF47: =IFERROR(VLOOKUP($A47,'2001 Data'!$A$5:$AH$65001,York!AF$2,FALSE),"No Data") -> 6.58 | AG47: =IFERROR(VLOOKUP($A47,'2001 Data'!$A$5:$AH$65001,York!AG$2,FALSE),"No Data") -> 3.47 | AH47: =IFERROR(VLOOKUP($A47,'2001 Data'!$A$5:$AH$65001,York!AH$2,FALSE),"No Data") -> 7.6 | AI47: =IFERROR(VLOOKUP($A47,'2001 Data'!$A$5:$AH$65001,York!AI$2,FALSE),"No Data") -> 5.53 | AJ47: =IFERROR(VLOOKUP($A47,'2001 Data'!$A$5:$AH$65001,York!AJ$2,FALSE),"No Data") -> 4.05 | AK47: =IFERROR(VLOOKUP($A47,'2001 Data'!$A$5:$AH$65001,York!AK$2,FALSE),"No Data") -> 6.51 | AL47: =IFERROR(VLOOKUP($A47,'2001 Data'!$A$5:$AH$65001,York!AL$2,FALSE),"No Data") -> 4.51 | AM47: =IFERROR(VLOOKUP($A47,'2001 Data'!$A$5:$AH$65001,York!AM$2,FALSE),"No Data") -> 5.27 | AN47: =IFERROR(VLOOKUP($A47,'2001 Data'!$A$5:$AH$65001,York!AN$2,FALSE),"No Data") -> 1.24 | AO47: =IFERROR(VLOOKUP($A47,'2001 Data'!$A$5:$AH$65001,York!AO$2,FALSE),"No Data") -> 4.41 | AP47: =IFERROR(VLOOKUP($A47,'2001 Data'!$A$5:$AH$65001,York!AP$2,FALSE),"No Data") -> 9.09 | AQ47: =IFERROR(VLOOKUP($A47,'2001 Data'!$A$5:$AH$65001,York!AQ$2,FALSE),"No Data") -> 4.08 | AR47: =IFERROR(VLOOKUP($A47,'2001 Data'!$A$5:$AH$65001,York!AR$2,FALSE),"No Data") -> 4.92 | AS47: =IFERROR(VLOOKUP($A47,'2001 Data'!$A$5:$AH$65001,York!AS$2,FALSE),"No Data") -> 6.22 | AT47: =IFERROR(VLOOKUP($A47,'2001 Data'!$A$5:$AH$65001,York!AT$2,FALSE),"No Data") -> 4.04 | AU47: =IFERROR(VLOOKUP($A47,'2001 Data'!$A$5:$AH$65001,York!AU$2,FALSE),"No Data") -> 6.61 | AV47: =IFERROR(VLOOKUP($A47,'2001 Data'!$A$5:$AH$65001,York!AV$2,FALSE),"No Data") -> 5.56 | AW47: =IFERROR(VLOOKUP($A47,'2001 Data'!$A$5:$AH$65001,York!AW$2,FALSE),"No Data") -> 5.12 | AX47: =IFERROR(VLOOKUP($A47,'2001 Data'!$A$5:$AH$65001,York!AX$2,FALSE),"No Data") -> 4.64 | AY47: =IFERROR(VLOOKUP($A47,'2001 Data'!$A$5:$AH$65001,York!AY$2,FALSE),"No Data") -> 4.29 | AZ47: =IFERROR(VLOOKUP($A47,'2001 Data'!$A$5:$AH$65001,York!AZ$2,FALSE),"No Data") -> 4.95 | BA47: =IFERROR(VLOOKUP($A47,'2001 Data'!$A$5:$AH$65001,York!BA$2,FALSE),"No Data") -> 4.92 | BB47: =IFERROR(VLOOKUP($A47,'2001 Data'!$A$5:$AH$65001,York!BB$2,FALSE),"No Data") -> 4.89 | BC47: =IFERROR(VLOOKUP($A47,'2001 Data'!$A$5:$AH$65001,York!BC$2,FALSE),"No Data") -> 4.87 | BE47: V:\Business Intelligence Hub\01 - The City\2011 Census\Data\2nd Release - Key Indicators\Lower Areas and Wards\Initial Briefing\Census 2011 Bulk Data Load\Ward Bulk Data\Key Statisitics Bulk Load\[KEYSTATS FILE2.xlsx]KS102EWDATA | BF47: 31 | BG47: =VLOOKUP(BF47,Sheet3!$B$2:$C$77,2,FALSE) -> $ah$7:$ah$28 | BH47: 'V:\Business Intelligence Hub\01 - The City\2011 Census\Data\2nd Release - Key Indicators\Lower Areas and Wards\Initial Briefing\Census 2011 Bulk Data Load\Ward Bulk Data\Key Statisitics Bulk Load\[KEYSTATS FILE2.xlsx]KS102EWDATA'!$ah$7:$ah$28 | BI47: 35 | BJ47: =VLOOKUP(BI47,Sheet3!$B$2:$F$77,5,FALSE) -> $A$1:$al$28 | BK47: 'V:\Business Intelligence Hub\01 - The City\2011 Census\Data\2nd Release - Key Indicators\Lower Areas and Wards\Initial Briefing\Census 2011 Bulk Data Load\Ward Bulk Data\Key Statisitics Bulk Load\[KEYSTATS FILE2.xlsx]KS102EWDATA'!$A$1:$al$28
A48: KS102EW0032 | B48: Percentage | C48: Person | D48: Age structure | E48: Age 65 to 74 | F48: 12 | G48: 3 | H48: 17 | I48: 2 | J48: 9 | K48: 20 | L48: 6 | M48: 21 | N48: 5 | O48: 22 | P48: 18 | Q48: 1 | R48: 15 | S48: 19 | T48: 4 | U48: 16 | V48: 7 | W48: 8 | X48: 13 | Y48: 11 | Z48: 14 | AA48: 10 | AB48: 0.0855 | AC48: 0.0878 | AD48: 0.0859 | AE48: =IFERROR(VLOOKUP($A48,'2001 Data'!$A$5:$AH$65001,York!AE$2,FALSE),"No Data") -> 9.99 | AF48: =IFERROR(VLOOKUP($A48,'2001 Data'!$A$5:$AH$65001,York!AF$2,FALSE),"No Data") -> 11.34 | AG48: =IFERROR(VLOOKUP($A48,'2001 Data'!$A$5:$AH$65001,York!AG$2,FALSE),"No Data") -> 6.73 | AH48: =IFERROR(VLOOKUP($A48,'2001 Data'!$A$5:$AH$65001,York!AH$2,FALSE),"No Data") -> 11.61 | AI48: =IFERROR(VLOOKUP($A48,'2001 Data'!$A$5:$AH$65001,York!AI$2,FALSE),"No Data") -> 9.88 | AJ48: =IFERROR(VLOOKUP($A48,'2001 Data'!$A$5:$AH$65001,York!AJ$2,FALSE),"No Data") -> 7.13 | AK48: =IFERROR(VLOOKUP($A48,'2001 Data'!$A$5:$AH$65001,York!AK$2,FALSE),"No Data") -> 10.79 | AL48: =IFERROR(VLOOKUP($A48,'2001 Data'!$A$5:$AH$65001,York!AL$2,FALSE),"No Data") -> 8.03 | AM48: =IFERROR(VLOOKUP($A48,'2001 Data'!$A$5:$AH$65001,York!AM$2,FALSE),"No Data") -> 9.83 | AN48: =IFERROR(VLOOKUP($A48,'2001 Data'!$A$5:$AH$65001,York!AN$2,FALSE),"No Data") -> 2.16 | AO48: =IFERROR(VLOOKUP($A48,'2001 Data'!$A$5:$AH$65001,York!AO$2,FALSE),"No Data") -> 8.49 | AP48: =IFERROR(VLOOKUP($A48,'2001 Data'!$A$5:$AH$65001,York!AP$2,FALSE),"No Data") -> 14.71 | AQ48: =IFERROR(VLOOKUP($A48,'2001 Data'!$A$5:$AH$65001,York!AQ$2,FALSE),"No Data") -> 7.45 | AR48: =IFERROR(VLOOKUP($A48,'2001 Data'!$A$5:$AH$65001,York!AR$2,FALSE),"No Data") -> 7.9 | AS48: =IFERROR(VLOOKUP($A48,'2001 Data'!$A$5:$AH$65001,York!AS$2,FALSE),"No Data") -> 11.66 | AT48: =IFERROR(VLOOKUP($A48,'2001 Data'!$A$5:$AH$65001,York!AT$2,FALSE),"No Data") -> 6.13 | AU48: =IFERROR(VLOOKUP($A48,'2001 Data'!$A$5:$AH$65001,York!AU$2,FALSE),"No Data") -> 13.59 | AV48: =IFERROR(VLOOKUP($A48,'2001 Data'!$A$5:$AH$65001,York!AV$2,FALSE),"No Data") -> 10.13 | AW48: =IFERROR(VLOOKUP($A48,'2001 Data'!$A$5:$AH$65001,York!AW$2,FALSE),"No Data") -> 7.83 | AX48: =IFERROR(VLOOKUP($A48,'2001 Data'!$A$5:$AH$65001,York!AX$2,FALSE),"No Data") -> 6.93 | AY48: =IFERROR(VLOOKUP($A48,'2001 Data'!$A$5:$AH$65001,York!AY$2,FALSE),"No Data") -> 8.55 | AZ48: =IFERROR(VLOOKUP($A48,'2001 Data'!$A$5:$AH$65001,York!AZ$2,FALSE),"No Data") -> 8.62 | BA48: =IFERROR(VLOOKUP($A48,'2001 Data'!$A$5:$AH$65001,York!BA$2,FALSE),"No Data") -> 8.73 | BB48: =IFERROR(VLOOKUP($A48,'2001 Data'!$A$5:$AH$65001,York!BB$2,FALSE),"No Data") -> 8.39 | BC48: =IFERROR(VLOOKUP($A48,'2001 Data'!$A$5:$AH$65001,York!BC$2,FALSE),"No Data") -> 8.35 | BE48: V:\Business Intelligence Hub\01 - The City\2011 Census\Data\2nd Release - Key Indicators\Lower Areas and Wards\Initial Briefing\Census 2011 Bulk Data Load\Ward Bulk Data\Key Statisitics Bulk Load\[KEYSTATS FILE2.xlsx]KS102EWDATA | BF48: 32 | BG48: =VLOOKUP(BF48,Sheet3!$B$2:$C$77,2,FALSE) -> $ai$7:$ai$28 | BH48: 'V:\Business Intelligence Hub\01 - The City\2011 Census\Data\2nd Release - Key Indicators\Lower Areas and Wards\Initial Briefing\Census 2011 Bulk Data Load\Ward Bulk Data\Key Statisitics Bulk Load\[KEYSTATS FILE2.xlsx]KS102EWDATA'!$ai$7:$ai$28 | BI48: 35 | BJ48: =VLOOKUP(BI48,Sheet3!$B$2:$F$77,5,FALSE) -> $A$1:$al$28 | BK48: 'V:\Business Intelligence Hub\01 - The City\2011 Census\Data\2nd Release - Key Indicators\Lower Areas and Wards\Initial Briefing\Census 2011 Bulk Data Load\Ward Bulk Data\Key Statisitics Bulk Load\[KEYSTATS FILE2.xlsx]KS102EWDATA'!$A$1:$al$28
A49: KS102EW0033 | B49: Percentage | C49: Person | D49: Age structure | E49: Age 75 to 84 | F49: 10 | G49: 6 | H49: 17 | I49: 4 | J49: 9 | K49: 19 | L49: 8 | M49: 18 | N49: 5 | O49: 22 | P49: 15 | Q49: 1 | R49: 16 | S49: 20 | T49: 3 | U49: 21 | V49: 2 | W49: 7 | X49: 13 | Y49: 14 | Z49: 12 | AA49: 11 | AB49: 0.0587 | AC49: 0.0561 | AD49: 0.0552 | AE49: =IFERROR(VLOOKUP($A49,'2001 Data'!$A$5:$AH$65001,York!AE$2,FALSE),"No Data") -> 6.4 | AF49: =IFERROR(VLOOKUP($A49,'2001 Data'!$A$5:$AH$65001,York!AF$2,FALSE),"No Data") -> 6.94 | AG49: =IFERROR(VLOOKUP($A49,'2001 Data'!$A$5:$AH$65001,York!AG$2,FALSE),"No Data") -> 5.69 | AH49: =IFERROR(VLOOKUP($A49,'2001 Data'!$A$5:$AH$65001,York!AH$2,FALSE),"No Data") -> 8.73 | AI49: =IFERROR(VLOOKUP($A49,'2001 Data'!$A$5:$AH$65001,York!AI$2,FALSE),"No Data") -> 7.13 | AJ49: =IFERROR(VLOOKUP($A49,'2001 Data'!$A$5:$AH$65001,York!AJ$2,FALSE),"No Data") -> 5.67 | AK49: =IFERROR(VLOOKUP($A49,'2001 Data'!$A$5:$AH$65001,York!AK$2,FALSE),"No Data") -> 8.59 | AL49: =IFERROR(VLOOKUP($A49,'2001 Data'!$A$5:$AH$65001,York!AL$2,FALSE),"No Data") -> 6.32 | AM49: =IFERROR(VLOOKUP($A49,'2001 Data'!$A$5:$AH$65001,York!AM$2,FALSE),"No Data") -> 7.11 | AN49: =IFERROR(VLOOKUP($A49,'2001 Data'!$A$5:$AH$65001,York!AN$2,FALSE),"No Data") -> 1.55 | AO49: =IFERROR(VLOOKUP($A49,'2001 Data'!$A$5:$AH$65001,York!AO$2,FALSE),"No Data") -> 6.71 | AP49: =IFERROR(VLOOKUP($A49,'2001 Data'!$A$5:$AH$65001,York!AP$2,FALSE),"No Data") -> 8.56 | AQ49: =IFERROR(VLOOKUP($A49,'2001 Data'!$A$5:$AH$65001,York!AQ$2,FALSE),"No Data") -> 5.53 | AR49: =IFERROR(VLOOKUP($A49,'2001 Data'!$A$5:$AH$65001,York!AR$2,FALSE),"No Data") -> 4.98 | AS49: =IFERROR(VLOOKUP($A49,'2001 Data'!$A$5:$AH$65001,York!AS$2,FALSE),"No Data") -> 7.62 | AT49: =IFERROR(VLOOKUP($A49,'2001 Data'!$A$5:$AH$65001,York!AT$2,FALSE),"No Data") -> 5.35 | AU49: =IFERROR(VLOOKUP($A49,'2001 Data'!$A$5:$AH$65001,York!AU$2,FALSE),"No Data") -> 9.05 | AV49: =IFERROR(VLOOKUP($A49,'2001 Data'!$A$5:$AH$65001,York!AV$2,FALSE),"No Data") -> 6.15 | AW49: =IFERROR(VLOOKUP($A49,'2001 Data'!$A$5:$AH$65001,York!AW$2,FALSE),"No Data") -> 4.03 | AX49: =IFERROR(VLOOKUP($A49,'2001 Data'!$A$5:$AH$65001,York!AX$2,FALSE),"No Data") -> 4.62 | AY49: =IFERROR(VLOOKUP($A49,'2001 Data'!$A$5:$AH$65001,York!AY$2,FALSE),"No Data") -> 6.15 | AZ49: =IFERROR(VLOOKUP($A49,'2001 Data'!$A$5:$AH$65001,York!AZ$2,FALSE),"No Data") -> 4.74 | BA49: =IFERROR(VLOOKUP($A49,'2001 Data'!$A$5:$AH$65001,York!BA$2,FALSE),"No Data") -> 6.09 | BB49: =IFERROR(VLOOKUP($A49,'2001 Data'!$A$5:$AH$65001,York!BB$2,FALSE),"No Data") -> 5.64 | BC49: =IFERROR(VLOOKUP($A49,'2001 Data'!$A$5:$AH$65001,York!BC$2,FALSE),"No Data") -> 5.6 | BE49: V:\Business Intelligence Hub\01 - The City\2011 Census\Data\2nd Release - Key Indicators\Lower Areas and Wards\Initial Briefing\Census 2011 Bulk Data Load\Ward Bulk Data\Key Statisitics Bulk Load\[KEYSTATS FILE2.xlsx]KS102EWDATA | BF49: 33 | BG49: =VLOOKUP(BF49,Sheet3!$B$2:$C$77,2,FALSE) -> $aj$7:$aj$28 | BH49: 'V:\Business Intelligence Hub\01 - The City\2011 Census\Data\2nd Release - Key Indicators\Lower Areas and Wards\Initial Briefing\Census 2011 Bulk Data Load\Ward Bulk Data\Key Statisitics Bulk Load\[KEYSTATS FILE2.xlsx]KS102EWDATA'!$aj$7:$aj$28 | BI49: 35 | BJ49: =VLOOKUP(BI49,Sheet3!$B$2:$F$77,5,FALSE) -> $A$1:$al$28 | BK49: 'V:\Business Intelligence Hub\01 - The City\2011 Census\Data\2nd Release - Key Indicators\Lower Areas and Wards\Initial Briefing\Census 2011 Bulk Data Load\Ward Bulk Data\Key Statisitics Bulk Load\[KEYSTATS FILE2.xlsx]KS102EWDATA'!$A$1:$al$28
A50: KS102EW0034 | B50: Percentage | C50: Person | D50: Age structure | E50: Age 85 to 89 | F50: 11 | G50: 7 | H50: 15 | I50: 1 | J50: 8 | K50: 12 | L50: 2 | M50: 19 | N50: 4 | O50: 22 | P50: 13 | Q50: 6 | R50: 17 | S50: 21 | T50: 5 | U50: 20 | V50: 3 | W50: 9 | X50: 18 | Y50: 16 | Z50: 10 | AA50: 14 | AB50: 0.0162 | AC50: 0.0144 | AD50: 0.0146 | AE50: =IFERROR(VLOOKUP($A50,'2001 Data'!$A$5:$AH$65001,York!AE$2,FALSE),"No Data") -> 1.13 | AF50: =IFERROR(VLOOKUP($A50,'2001 Data'!$A$5:$AH$65001,York!AF$2,FALSE),"No Data") -> 1.79 | AG50: =IFERROR(VLOOKUP($A50,'2001 Data'!$A$5:$AH$65001,York!AG$2,FALSE),"No Data") -> 1.5 | AH50: =IFERROR(VLOOKUP($A50,'2001 Data'!$A$5:$AH$65001,York!AH$2,FALSE),"No Data") -> 2.06 | AI50: =IFERROR(VLOOKUP($A50,'2001 Data'!$A$5:$AH$65001,York!AI$2,FALSE),"No Data") -> 1.25 | AJ50: =IFERROR(VLOOKUP($A50,'2001 Data'!$A$5:$AH$65001,York!AJ$2,FALSE),"No Data") -> 1.69 | AK50: =IFERROR(VLOOKUP($A50,'2001 Data'!$A$5:$AH$65001,York!AK$2,FALSE),"No Data") -> 3.24 | AL50: =IFERROR(VLOOKUP($A50,'2001 Data'!$A$5:$AH$65001,York!AL$2,FALSE),"No Data") -> 1.24 | AM50: =IFERROR(VLOOKUP($A50,'2001 Data'!$A$5:$AH$65001,York!AM$2,FALSE),"No Data") -> 1.59 | AN50: =IFERROR(VLOOKUP($A50,'2001 Data'!$A$5:$AH$65001,York!AN$2,FALSE),"No Data") -> 0.68 | AO50: =IFERROR(VLOOKUP($A50,'2001 Data'!$A$5:$AH$65001,York!AO$2,FALSE),"No Data") -> 1.52 | AP50: =IFERROR(VLOOKUP($A50,'2001 Data'!$A$5:$AH$65001,York!AP$2,FALSE),"No Data") -> 1.32 | AQ50: =IFERROR(VLOOKUP($A50,'2001 Data'!$A$5:$AH$65001,York!AQ$2,FALSE),"No Data") -> 1.2 | AR50: =IFERROR(VLOOKUP($A50,'2001 Data'!$A$5:$AH$65001,York!AR$2,FALSE),"No Data") -> 0.98 | AS50: =IFERROR(VLOOKUP($A50,'2001 Data'!$A$5:$AH$65001,York!AS$2,FALSE),"No Data") -> 1.61 | AT50: =IFERROR(VLOOKUP($A50,'2001 Data'!$A$5:$AH$65001,York!AT$2,FALSE),"No Data") -> 1.49 | AU50: =IFERROR(VLOOKUP($A50,'2001 Data'!$A$5:$AH$65001,York!AU$2,FALSE),"No Data") -> 1.46 | AV50: =IFERROR(VLOOKUP($A50,'2001 Data'!$A$5:$AH$65001,York!AV$2,FALSE),"No Data") -> 1.05 | AW50: =IFERROR(VLOOKUP($A50,'2001 Data'!$A$5:$AH$65001,York!AW$2,FALSE),"No Data") -> 0.81 | AX50: =IFERROR(VLOOKUP($A50,'2001 Data'!$A$5:$AH$65001,York!AX$2,FALSE),"No Data") -> 1.14 | AY50: =IFERROR(VLOOKUP($A50,'2001 Data'!$A$5:$AH$65001,York!AY$2,FALSE),"No Data") -> 1.46 | AZ50: =IFERROR(VLOOKUP($A50,'2001 Data'!$A$5:$AH$65001,York!AZ$2,FALSE),"No Data") -> 1.05 | BA50: =IFERROR(VLOOKUP($A50,'2001 Data'!$A$5:$AH$65001,York!BA$2,FALSE),"No Data") -> 1.36 | BB50: =IFERROR(VLOOKUP($A50,'2001 Data'!$A$5:$AH$65001,York!BB$2,FALSE),"No Data") -> 1.3 | BC50: =IFERROR(VLOOKUP($A50,'2001 Data'!$A$5:$AH$65001,York!BC$2,FALSE),"No Data") -> 1.3 | BE50: V:\Business Intelligence Hub\01 - The City\2011 Census\Data\2nd Release - Key Indicators\Lower Areas and Wards\Initial Briefing\Census 2011 Bulk Data Load\Ward Bulk Data\Key Statisitics Bulk Load\[KEYSTATS FILE2.xlsx]KS102EWDATA | BF50: 34 | BG50: =VLOOKUP(BF50,Sheet3!$B$2:$C$77,2,FALSE) -> $ak$7:$ak$28 | BH50: 'V:\Business Intelligence Hub\01 - The City\2011 Census\Data\2nd Release - Key Indicators\Lower Areas and Wards\Initial Briefing\Census 2011 Bulk Data Load\Ward Bulk Data\Key Statisitics Bulk Load\[KEYSTATS FILE2.xlsx]KS102EWDATA'!$ak$7:$ak$28 | BI50: 35 | BJ50: =VLOOKUP(BI50,Sheet3!$B$2:$F$77,5,FALSE) -> $A$1:$al$28 | BK50: 'V:\Business Intelligence Hub\01 - The City\2011 Census\Data\2nd Release - Key Indicators\Lower Areas and Wards\Initial Briefing\Census 2011 Bulk Data Load\Ward Bulk Data\Key Statisitics Bulk Load\[KEYSTATS FILE2.xlsx]KS102EWDATA'!$A$1:$al$28
A51: KS102EW0035 | B51: Percentage | C51: Person | D51: Age structure | E51: Age 90 and over | F51: 12 | G51: 6 | H51: 14 | I51: 2 | J51: 9 | K51: 13 | L51: 1 | M51: 16 | N51: 3 | O51: 22 | P51: 18 | Q51: 7 | R51: 20 | S51: 21 | T51: 5 | U51: 19 | V51: 4 | W51: 10 | X51: 17 | Y51: 15 | Z51: 11 | AA51: 8 | AB51: 0.0084 | AC51: 0.0073 | AD51: 0.0076 | AE51: =IFERROR(VLOOKUP($A51,'2001 Data'!$A$5:$AH$65001,York!AE$2,FALSE),"No Data") -> 0.47 | AF51: =IFERROR(VLOOKUP($A51,'2001 Data'!$A$5:$AH$65001,York!AF$2,FALSE),"No Data") -> 0.5 | AG51: =IFERROR(VLOOKUP($A51,'2001 Data'!$A$5:$AH$65001,York!AG$2,FALSE),"No Data") -> 0.67 | AH51: =IFERROR(VLOOKUP($A51,'2001 Data'!$A$5:$AH$65001,York!AH$2,FALSE),"No Data") -> 1.19 | AI51: =IFERROR(VLOOKUP($A51,'2001 Data'!$A$5:$AH$65001,York!AI$2,FALSE),"No Data") -> 0.42 | AJ51: =IFERROR(VLOOKUP($A51,'2001 Data'!$A$5:$AH$65001,York!AJ$2,FALSE),"No Data") -> 1.22 | AK51: =IFERROR(VLOOKUP($A51,'2001 Data'!$A$5:$AH$65001,York!AK$2,FALSE),"No Data") -> 2.47 | AL51: =IFERROR(VLOOKUP($A51,'2001 Data'!$A$5:$AH$65001,York!AL$2,FALSE),"No Data") -> 0.76 | AM51: =IFERROR(VLOOKUP($A51,'2001 Data'!$A$5:$AH$65001,York!AM$2,FALSE),"No Data") -> 0.99 | AN51: =IFERROR(VLOOKUP($A51,'2001 Data'!$A$5:$AH$65001,York!AN$2,FALSE),"No Data") -> 0.29 | AO51: =IFERROR(VLOOKUP($A51,'2001 Data'!$A$5:$AH$65001,York!AO$2,FALSE),"No Data") -> 0.6 | AP51: =IFERROR(VLOOKUP($A51,'2001 Data'!$A$5:$AH$65001,York!AP$2,FALSE),"No Data") -> 0.69 | AQ51: =IFERROR(VLOOKUP($A51,'2001 Data'!$A$5:$AH$65001,York!AQ$2,FALSE),"No Data") -> 0.71 | AR51: =IFERROR(VLOOKUP($A51,'2001 Data'!$A$5:$AH$65001,York!AR$2,FALSE),"No Data") -> 0.56 | AS51: =IFERROR(VLOOKUP($A51,'2001 Data'!$A$5:$AH$65001,York!AS$2,FALSE),"No Data") -> 0.74 | AT51: =IFERROR(VLOOKUP($A51,'2001 Data'!$A$5:$AH$65001,York!AT$2,FALSE),"No Data") -> 0.75 | AU51: =IFERROR(VLOOKUP($A51,'2001 Data'!$A$5:$AH$65001,York!AU$2,FALSE),"No Data") -> 1.08 | AV51: =IFERROR(VLOOKUP($A51,'2001 Data'!$A$5:$AH$65001,York!AV$2,FALSE),"No Data") -> 0.51 | AW51: =IFERROR(VLOOKUP($A51,'2001 Data'!$A$5:$AH$65001,York!AW$2,FALSE),"No Data") -> 0.41 | AX51: =IFERROR(VLOOKUP($A51,'2001 Data'!$A$5:$AH$65001,York!AX$2,FALSE),"No Data") -> 0.57 | AY51: =IFERROR(VLOOKUP($A51,'2001 Data'!$A$5:$AH$65001,York!AY$2,FALSE),"No Data") -> 0.66 | AZ51: =IFERROR(VLOOKUP($A51,'2001 Data'!$A$5:$AH$65001,York!AZ$2,FALSE),"No Data") -> 0.72 | BA51: =IFERROR(VLOOKUP($A51,'2001 Data'!$A$5:$AH$65001,York!BA$2,FALSE),"No Data") -> 0.7 | BB51: =IFERROR(VLOOKUP($A51,'2001 Data'!$A$5:$AH$65001,York!BB$2,FALSE),"No Data") -> 0.65 | BC51: =IFERROR(VLOOKUP($A51,'2001 Data'!$A$5:$AH$65001,York!BC$2,FALSE),"No Data") -> 0.64 | BE51: V:\Business Intelligence Hub\01 - The City\2011 Census\Data\2nd Release - Key Indicators\Lower Areas and Wards\Initial Briefing\Census 2011 Bulk Data Load\Ward Bulk Data\Key Statisitics Bulk Load\[KEYSTATS FILE2.xlsx]KS102EWDATA | BF51: 35 | BG51: =VLOOKUP(BF51,Sheet3!$B$2:$C$77,2,FALSE) -> $al$7:$al$28 | BH51: 'V:\Business Intelligence Hub\01 - The City\2011 Census\Data\2nd Release - Key Indicators\Lower Areas and Wards\Initial Briefing\Census 2011 Bulk Data Load\Ward Bulk Data\Key Statisitics Bulk Load\[KEYSTATS FILE2.xlsx]KS102EWDATA'!$al$7:$al$28 | BI51: 35 | BJ51: =VLOOKUP(BI51,Sheet3!$B$2:$F$77,5,FALSE) -> $A$1:$al$28 | BK51: 'V:\Business Intelligence Hub\01 - The City\2011 Census\Data\2nd Release - Key Indicators\Lower Areas and Wards\Initial Briefing\Census 2011 Bulk Data Load\Ward Bulk Data\Key Statisitics Bulk Load\[KEYSTATS FILE2.xlsx]KS102EWDATA'!$A$1:$al$28
A52: KS103EW0001 | B52: Count | C52: Person | D52: Marital and civil partnership status | E52: All categories: Marital and civil partnership status | F52: 14 | G52: 18 | H52: 2 | I52: 21 | J52: 10 | K52: 12 | L52: 22 | M52: 13 | N52: 8 | O52: 16 | P52: 1 | Q52: 19 | R52: 6 | S52: 9 | T52: 7 | U52: 5 | V52: 20 | W52: 11 | X52: 4 | Y52: 15 | Z52: 3 | AA52: 17 | AB52: 166275 | AC52: 4285941 | AD52: 42989620 | AE52: =IFERROR(VLOOKUP($A52,'2001 Data'!$A$5:$AH$65001,York!AE$2,FALSE),"No Data") -> 6155 | AF52: =IFERROR(VLOOKUP($A52,'2001 Data'!$A$5:$AH$65001,York!AF$2,FALSE),"No Data") -> 3158 | AG52: =IFERROR(VLOOKUP($A52,'2001 Data'!$A$5:$AH$65001,York!AG$2,FALSE),"No Data") -> 9815 | AH52: =IFERROR(VLOOKUP($A52,'2001 Data'!$A$5:$AH$65001,York!AH$2,FALSE),"No Data") -> 2993 | AI52: =IFERROR(VLOOKUP($A52,'2001 Data'!$A$5:$AH$65001,York!AI$2,FALSE),"No Data") -> 8850 | AJ52: =IFERROR(VLOOKUP($A52,'2001 Data'!$A$5:$AH$65001,York!AJ$2,FALSE),"No Data") -> 6829 | AK52: =IFERROR(VLOOKUP($A52,'2001 Data'!$A$5:$AH$65001,York!AK$2,FALSE),"No Data") -> 2201 | AL52: =IFERROR(VLOOKUP($A52,'2001 Data'!$A$5:$AH$65001,York!AL$2,FALSE),"No Data") -> 6099 | AM52: =IFERROR(VLOOKUP($A52,'2001 Data'!$A$5:$AH$65001,York!AM$2,FALSE),"No Data") -> 10378 | AN52: =IFERROR(VLOOKUP($A52,'2001 Data'!$A$5:$AH$65001,York!AN$2,FALSE),"No Data") -> 3910 | AO52: =IFERROR(VLOOKUP($A52,'2001 Data'!$A$5:$AH$65001,York!AO$2,FALSE),"No Data") -> 9343 | AP52: =IFERROR(VLOOKUP($A52,'2001 Data'!$A$5:$AH$65001,York!AP$2,FALSE),"No Data") -> 3244 | AQ52: =IFERROR(VLOOKUP($A52,'2001 Data'!$A$5:$AH$65001,York!AQ$2,FALSE),"No Data") -> 9553 | AR52: =IFERROR(VLOOKUP($A52,'2001 Data'!$A$5:$AH$65001,York!AR$2,FALSE),"No Data") -> 6805 | AS52: =IFERROR(VLOOKUP($A52,'2001 Data'!$A$5:$AH$65001,York!AS$2,FALSE),"No Data") -> 9863 | AT52: =IFERROR(VLOOKUP($A52,'2001 Data'!$A$5:$AH$65001,York!AT$2,FALSE),"No Data") -> 9632 | AU52: =IFERROR(VLOOKUP($A52,'2001 Data'!$A$5:$AH$65001,York!AU$2,FALSE),"No Data") -> 2641 | AV52: =IFERROR(VLOOKUP($A52,'2001 Data'!$A$5:$AH$65001,York!AV$2,FALSE),"No Data") -> 8341 | AW52: =IFERROR(VLOOKUP($A52,'2001 Data'!$A$5:$AH$65001,York!AW$2,FALSE),"No Data") -> 9608 | AX52: =IFERROR(VLOOKUP($A52,'2001 Data'!$A$5:$AH$65001,York!AX$2,FALSE),"No Data") -> 6181 | AY52: =IFERROR(VLOOKUP($A52,'2001 Data'!$A$5:$AH$65001,York!AY$2,FALSE),"No Data") -> 10612 | AZ52: =IFERROR(VLOOKUP($A52,'2001 Data'!$A$5:$AH$65001,York!AZ$2,FALSE),"No Data") -> 3092 | BA52: =IFERROR(VLOOKUP($A52,'2001 Data'!$A$5:$AH$65001,York!BA$2,FALSE),"No Data") -> 149303 | BB52: =IFERROR(VLOOKUP($A52,'2001 Data'!$A$5:$AH$65001,York!BB$2,FALSE),"No Data") -> 41553180 | BC52: =IFERROR(VLOOKUP($A52,'2001 Data'!$A$5:$AH$65001,York!BC$2,FALSE),"No Data") -> 39237250 | BE52: V:\Business Intelligence Hub\01 - The City\2011 Census\Data\2nd Release - Key Indicators\Lower Areas and Wards\Initial Briefing\Census 2011 Bulk Data Load\Ward Bulk Data\Key Statisitics Bulk Load\[KEYSTATS FILE2.xlsx]KS103EWDATA | BF52: 1 | BG52: =VLOOKUP(BF52,Sheet3!$B$2:$C$77,2,FALSE) -> $D$7:$D$28 | BH52: 'V:\Business Intelligence Hub\01 - The City\2011 Census\Data\2nd Release - Key Indicators\Lower Areas and Wards\Initial Briefing\Census 2011 Bulk Data Load\Ward Bulk Data\Key Statisitics Bulk Load\[KEYSTATS FILE2.xlsx]KS103EWDATA'!$D$7:$D$28 | BI52: 13 | BJ52: =VLOOKUP(BI52,Sheet3!$B$2:$F$77,5,FALSE) -> $A$1:$p$28 | BK52: 'V:\Business Intelligence Hub\01 - The City\2011 Census\Data\2nd Release - Key Indicators\Lower Areas and Wards\Initial Briefing\Census 2011 Bulk Data Load\Ward Bulk Data\Key Statisitics Bulk Load\[KEYSTATS FILE2.xlsx]KS103EWDATA'!$A$1:$p$28
A53: KS103EW0002 | B53: Count | C53: Person | D53: Marital and civil partnership status | E53: Single (never married or never registered a same-sex civil partnership) | F53: 14 | G53: 21 | H53: 1 | I53: 22 | J53: 12 | K53: 6 | L53: 18 | M53: 5 | N53: 13 | O53: 9 | P53: 3 | Q53: 19 | R53: 7 | S53: 2 | T53: 11 | U53: 4 | V53: 17 | W53: 15 | X53: 10 | Y53: 16 | Z53: 8 | AA53: 19 | AB53: 64211 | AC53: 1453124 | AD53: 14889928 | AE53: =IFERROR(VLOOKUP($A53,'2001 Data'!$A$5:$AH$65001,York!AE$2,FALSE),"No Data") -> 1510 | AF53: =IFERROR(VLOOKUP($A53,'2001 Data'!$A$5:$AH$65001,York!AF$2,FALSE),"No Data") -> 627 | AG53: =IFERROR(VLOOKUP($A53,'2001 Data'!$A$5:$AH$65001,York!AG$2,FALSE),"No Data") -> 4184 | AH53: =IFERROR(VLOOKUP($A53,'2001 Data'!$A$5:$AH$65001,York!AH$2,FALSE),"No Data") -> 547 | AI53: =IFERROR(VLOOKUP($A53,'2001 Data'!$A$5:$AH$65001,York!AI$2,FALSE),"No Data") -> 2105 | AJ53: =IFERROR(VLOOKUP($A53,'2001 Data'!$A$5:$AH$65001,York!AJ$2,FALSE),"No Data") -> 3163 | AK53: =IFERROR(VLOOKUP($A53,'2001 Data'!$A$5:$AH$65001,York!AK$2,FALSE),"No Data") -> 533 | AL53: =IFERROR(VLOOKUP($A53,'2001 Data'!$A$5:$AH$65001,York!AL$2,FALSE),"No Data") -> 3151 | AM53: =IFERROR(VLOOKUP($A53,'2001 Data'!$A$5:$AH$65001,York!AM$2,FALSE),"No Data") -> 2216 | AN53: =IFERROR(VLOOKUP($A53,'2001 Data'!$A$5:$AH$65001,York!AN$2,FALSE),"No Data") -> 3213 | AO53: =IFERROR(VLOOKUP($A53,'2001 Data'!$A$5:$AH$65001,York!AO$2,FALSE),"No Data") -> 3214 | AP53: =IFERROR(VLOOKUP($A53,'2001 Data'!$A$5:$AH$65001,York!AP$2,FALSE),"No Data") -> 636 | AQ53: =IFERROR(VLOOKUP($A53,'2001 Data'!$A$5:$AH$65001,York!AQ$2,FALSE),"No Data") -> 3366 | AR53: =IFERROR(VLOOKUP($A53,'2001 Data'!$A$5:$AH$65001,York!AR$2,FALSE),"No Data") -> 2763 | AS53: =IFERROR(VLOOKUP($A53,'2001 Data'!$A$5:$AH$65001,York!AS$2,FALSE),"No Data") -> 2238 | AT53: =IFERROR(VLOOKUP($A53,'2001 Data'!$A$5:$AH$65001,York!AT$2,FALSE),"No Data") -> 4650 | AU53: =IFERROR(VLOOKUP($A53,'2001 Data'!$A$5:$AH$65001,York!AU$2,FALSE),"No Data") -> 602 | AV53: =IFERROR(VLOOKUP($A53,'2001 Data'!$A$5:$AH$65001,York!AV$2,FALSE),"No Data") -> 1791 | AW53: =IFERROR(VLOOKUP($A53,'2001 Data'!$A$5:$AH$65001,York!AW$2,FALSE),"No Data") -> 2399 | AX53: =IFERROR(VLOOKUP($A53,'2001 Data'!$A$5:$AH$65001,York!AX$2,FALSE),"No Data") -> 1383 | AY53: =IFERROR(VLOOKUP($A53,'2001 Data'!$A$5:$AH$65001,York!AY$2,FALSE),"No Data") -> 3375 | AZ53: =IFERROR(VLOOKUP($A53,'2001 Data'!$A$5:$AH$65001,York!AZ$2,FALSE),"No Data") -> 613 | BA53: =IFERROR(VLOOKUP($A53,'2001 Data'!$A$5:$AH$65001,York!BA$2,FALSE),"No Data") -> 48279 | BB53: =IFERROR(VLOOKUP($A53,'2001 Data'!$A$5:$AH$65001,York!BB$2,FALSE),"No Data") -> 12511319 | BC53: =IFERROR(VLOOKUP($A53,'2001 Data'!$A$5:$AH$65001,York!BC$2,FALSE),"No Data") -> 11861807 | BE53: V:\Business Intelligence Hub\01 - The City\2011 Census\Data\2nd Release - Key Indicators\Lower Areas and Wards\Initial Briefing\Census 2011 Bulk Data Load\Ward Bulk Data\Key Statisitics Bulk Load\[KEYSTATS FILE2.xlsx]KS103EWDATA | BF53: 2 | BG53: =VLOOKUP(BF53,Sheet3!$B$2:$C$77,2,FALSE) -> $E$7:$E$28 | BH53: 'V:\Business Intelligence Hub\01 - The City\2011 Census\Data\2nd Release - Key Indicators\Lower Areas and Wards\Initial Briefing\Census 2011 Bulk Data Load\Ward Bulk Data\Key Statisitics Bulk Load\[KEYSTATS FILE2.xlsx]KS103EWDATA'!$E$7:$E$28 | BI53: 13 | BJ53: =VLOOKUP(BI53,Sheet3!$B$2:$F$77,5,FALSE) -> $A$1:$p$28 | BK53: 'V:\Business Intelligence Hub\01 - The City\2011 Census\Data\2nd Release - Key Indicators\Lower Areas and Wards\Initial Briefing\Census 2011 Bulk Data Load\Ward Bulk Data\Key Statisitics Bulk Load\[KEYSTATS FILE2.xlsx]KS103EWDATA'!$A$1:$p$28
A54: KS103EW0003 | B54: Count | C54: Person | D54: Marital and civil partnership status | E54: Married | F54: 12 | G54: 16 | H54: 10 | I54: 18 | J54: 5 | K54: 13 | L54: 21 | M54: 19 | N54: 1 | O54: 22 | P54: 8 | Q54: 17 | R54: 7 | S54: 14 | T54: 4 | U54: 11 | V54: 20 | W54: 3 | X54: 2 | Y54: 9 | Z54: 6 | AA54: 15 | AB54: 73159 | AC54: 2005463 | AD54: 20029369 | AE54: =IFERROR(VLOOKUP($A54,'2001 Data'!$A$5:$AH$65001,York!AE$2,FALSE),"No Data") -> 3004 | AF54: =IFERROR(VLOOKUP($A54,'2001 Data'!$A$5:$AH$65001,York!AF$2,FALSE),"No Data") -> 1690 | AG54: =IFERROR(VLOOKUP($A54,'2001 Data'!$A$5:$AH$65001,York!AG$2,FALSE),"No Data") -> 2996 | AH54: =IFERROR(VLOOKUP($A54,'2001 Data'!$A$5:$AH$65001,York!AH$2,FALSE),"No Data") -> 1688 | AI54: =IFERROR(VLOOKUP($A54,'2001 Data'!$A$5:$AH$65001,York!AI$2,FALSE),"No Data") -> 4451 | AJ54: =IFERROR(VLOOKUP($A54,'2001 Data'!$A$5:$AH$65001,York!AJ$2,FALSE),"No Data") -> 2089 | AK54: =IFERROR(VLOOKUP($A54,'2001 Data'!$A$5:$AH$65001,York!AK$2,FALSE),"No Data") -> 1010 | AL54: =IFERROR(VLOOKUP($A54,'2001 Data'!$A$5:$AH$65001,York!AL$2,FALSE),"No Data") -> 1302 | AM54: =IFERROR(VLOOKUP($A54,'2001 Data'!$A$5:$AH$65001,York!AM$2,FALSE),"No Data") -> 5438 | AN54: =IFERROR(VLOOKUP($A54,'2001 Data'!$A$5:$AH$65001,York!AN$2,FALSE),"No Data") -> 442 | AO54: =IFERROR(VLOOKUP($A54,'2001 Data'!$A$5:$AH$65001,York!AO$2,FALSE),"No Data") -> 3457 | AP54: =IFERROR(VLOOKUP($A54,'2001 Data'!$A$5:$AH$65001,York!AP$2,FALSE),"No Data") -> 1802 | AQ54: =IFERROR(VLOOKUP($A54,'2001 Data'!$A$5:$AH$65001,York!AQ$2,FALSE),"No Data") -> 3656 | AR54: =IFERROR(VLOOKUP($A54,'2001 Data'!$A$5:$AH$65001,York!AR$2,FALSE),"No Data") -> 2470 | AS54: =IFERROR(VLOOKUP($A54,'2001 Data'!$A$5:$AH$65001,York!AS$2,FALSE),"No Data") -> 4885 | AT54: =IFERROR(VLOOKUP($A54,'2001 Data'!$A$5:$AH$65001,York!AT$2,FALSE),"No Data") -> 2617 | AU54: =IFERROR(VLOOKUP($A54,'2001 Data'!$A$5:$AH$65001,York!AU$2,FALSE),"No Data") -> 1348 | AV54: =IFERROR(VLOOKUP($A54,'2001 Data'!$A$5:$AH$65001,York!AV$2,FALSE),"No Data") -> 4603 | AW54: =IFERROR(VLOOKUP($A54,'2001 Data'!$A$5:$AH$65001,York!AW$2,FALSE),"No Data") -> 4838 | AX54: =IFERROR(VLOOKUP($A54,'2001 Data'!$A$5:$AH$65001,York!AX$2,FALSE),"No Data") -> 3290 | AY54: =IFERROR(VLOOKUP($A54,'2001 Data'!$A$5:$AH$65001,York!AY$2,FALSE),"No Data") -> 3852 | AZ54: =IFERROR(VLOOKUP($A54,'2001 Data'!$A$5:$AH$65001,York!AZ$2,FALSE),"No Data") -> 1727 | BA54: =IFERROR(VLOOKUP($A54,'2001 Data'!$A$5:$AH$65001,York!BA$2,FALSE),"No Data") -> 62655 | BB54: =IFERROR(VLOOKUP($A54,'2001 Data'!$A$5:$AH$65001,York!BB$2,FALSE),"No Data") -> 18100838 | BC54: =IFERROR(VLOOKUP($A54,'2001 Data'!$A$5:$AH$65001,York!BC$2,FALSE),"No Data") -> 17069327 | BE54: V:\Business Intelligence Hub\01 - The City\2011 Census\Data\2nd Release - Key Indicators\Lower Areas and Wards\Initial Briefing\Census 2011 Bulk Data Load\Ward Bulk Data\Key Statisitics Bulk Load\[KEYSTATS FILE2.xlsx]KS103EWDATA | BF54: 3 | BG54: =VLOOKUP(BF54,Sheet3!$B$2:$C$77,2,FALSE) -> $F$7:$F$28 | BH54: 'V:\Business Intelligence Hub\01 - The City\2011 Census\Data\2nd Release - Key Indicators\Lower Areas and Wards\Initial Briefing\Census 2011 Bulk Data Load\Ward Bulk Data\Key Statisitics Bulk Load\[KEYSTATS FILE2.xlsx]KS103EWDATA'!$F$7:$F$28 | BI54: 13 | BJ54: =VLOOKUP(BI54,Sheet3!$B$2:$F$77,5,FALSE) -> $A$1:$p$28 | BK54: 'V:\Business Intelligence Hub\01 - The City\2011 Census\Data\2nd Release - Key Indicators\Lower Areas and Wards\Initial Briefing\Census 2011 Bulk Data Load\Ward Bulk Data\Key Statisitics Bulk Load\[KEYSTATS FILE2.xlsx]KS103EWDATA'!$A$1:$p$28
A55: KS103EW0004 | B55: Count | C55: Person | D55: Marital and civil partnership status | E55: In a registered same-sex civil partnership | F55: 8 | G55: 12 | H55: 3 | I55: 14 | J55: 11 | K55: 7 | L55: 20 | M55: 3 | N55: 14 | O55: 19 | P55: 5 | Q55: 20 | R55: 5 | S55: 10 | T55: 17 | U55: 1 | V55: 22 | W55: 12 | X55: 16 | Y55: 9 | Z55: 2 | AA55: 17 | AB55: 435 | AC55: 8474 | AD55: 100288 | AE55: =IFERROR(VLOOKUP($A55,'2001 Data'!$A$5:$AH$65001,York!AE$2,FALSE),"No Data") -> No Data | AF55: =IFERROR(VLOOKUP($A55,'2001 Data'!$A$5:$AH$65001,York!AF$2,FALSE),"No Data") -> No Data | AG55: =IFERROR(VLOOKUP($A55,'2001 Data'!$A$5:$AH$65001,York!AG$2,FALSE),"No Data") -> No Data | AH55: =IFERROR(VLOOKUP($A55,'2001 Data'!$A$5:$AH$65001,York!AH$2,FALSE),"No Data") -> No Data | AI55: =IFERROR(VLOOKUP($A55,'2001 Data'!$A$5:$AH$65001,York!AI$2,FALSE),"No Data") -> No Data | AJ55: =IFERROR(VLOOKUP($A55,'2001 Data'!$A$5:$AH$65001,York!AJ$2,FALSE),"No Data") -> No Data | AK55: =IFERROR(VLOOKUP($A55,'2001 Data'!$A$5:$AH$65001,York!AK$2,FALSE),"No Data") -> No Data | AL55: =IFERROR(VLOOKUP($A55,'2001 Data'!$A$5:$AH$65001,York!AL$2,FALSE),"No Data") -> No Data | AM55: =IFERROR(VLOOKUP($A55,'2001 Data'!$A$5:$AH$65001,York!AM$2,FALSE),"No Data") -> No Data | AN55: =IFERROR(VLOOKUP($A55,'2001 Data'!$A$5:$AH$65001,York!AN$2,FALSE),"No Data") -> No Data | AO55: =IFERROR(VLOOKUP($A55,'2001 Data'!$A$5:$AH$65001,York!AO$2,FALSE),"No Data") -> No Data | AP55: =IFERROR(VLOOKUP($A55,'2001 Data'!$A$5:$AH$65001,York!AP$2,FALSE),"No Data") -> No Data | AQ55: =IFERROR(VLOOKUP($A55,'2001 Data'!$A$5:$AH$65001,York!AQ$2,FALSE),"No Data") -> No Data | AR55: =IFERROR(VLOOKUP($A55,'2001 Data'!$A$5:$AH$65001,York!AR$2,FALSE),"No Data") -> No Data | AS55: =IFERROR(VLOOKUP($A55,'2001 Data'!$A$5:$AH$65001,York!AS$2,FALSE),"No Data") -> No Data | AT55: =IFERROR(VLOOKUP($A55,'2001 Data'!$A$5:$AH$65001,York!AT$2,FALSE),"No Data") -> No Data | AU55: =IFERROR(VLOOKUP($A55,'2001 Data'!$A$5:$AH$65001,York!AU$2,FALSE),"No Data") -> No Data | AV55: =IFERROR(VLOOKUP($A55,'2001 Data'!$A$5:$AH$65001,York!AV$2,FALSE),"No Data") -> No Data | AW55: =IFERROR(VLOOKUP($A55,'2001 Data'!$A$5:$AH$65001,York!AW$2,FALSE),"No Data") -> No Data | AX55: =IFERROR(VLOOKUP($A55,'2001 Data'!$A$5:$AH$65001,York!AX$2,FALSE),"No Data") -> No Data | AY55: =IFERROR(VLOOKUP($A55,'2001 Data'!$A$5:$AH$65001,York!AY$2,FALSE),"No Data") -> No Data | AZ55: =IFERROR(VLOOKUP($A55,'2001 Data'!$A$5:$AH$65001,York!AZ$2,FALSE),"No Data") -> No Data | BA55: =IFERROR(VLOOKUP($A55,'2001 Data'!$A$5:$AH$65001,York!BA$2,FALSE),"No Data") -> No Data | BB55: =IFERROR(VLOOKUP($A55,'2001 Data'!$A$5:$AH$65001,York!BB$2,FALSE),"No Data") -> No Data | BC55: =IFERROR(VLOOKUP($A55,'2001 Data'!$A$5:$AH$65001,York!BC$2,FALSE),"No Data") -> No Data | BE55: V:\Business Intelligence Hub\01 - The City\2011 Census\Data\2nd Release - Key Indicators\Lower Areas and Wards\Initial Briefing\Census 2011 Bulk Data Load\Ward Bulk Data\Key Statisitics Bulk Load\[KEYSTATS FILE2.xlsx]KS103EWDATA | BF55: 4 | BG55: =VLOOKUP(BF55,Sheet3!$B$2:$C$77,2,FALSE) -> $g$7:$g$28 | BH55: 'V:\Business Intelligence Hub\01 - The City\2011 Census\Data\2nd Release - Key Indicators\Lower Areas and Wards\Initial Briefing\Census 2011 Bulk Data Load\Ward Bulk Data\Key Statisitics Bulk Load\[KEYSTATS FILE2.xlsx]KS103EWDATA'!$g$7:$g$28 | BI55: 13 | BJ55: =VLOOKUP(BI55,Sheet3!$B$2:$F$77,5,FALSE) -> $A$1:$p$28 | BK55: 'V:\Business Intelligence Hub\01 - The City\2011 Census\Data\2nd Release - Key Indicators\Lower Areas and Wards\Initial Briefing\Census 2011 Bulk Data Load\Ward Bulk Data\Key Statisitics Bulk Load\[KEYSTATS FILE2.xlsx]KS103EWDATA'!$A$1:$p$28
A56: KS103EW0005 | B56: Count | C56: Person | D56: Marital and civil partnership status | E56: Separated (but still legally married or still legally in a same-sex civil partnership) | F56: 13 | G56: 18 | H56: 3 | I56: 20 | J56: 9 | K56: 12 | L56: 21 | M56: 7 | N56: 10 | O56: 22 | P56: 5 | Q56: 16 | R56: 4 | S56: 14 | T56: 7 | U56: 2 | V56: 19 | W56: 11 | X56: 6 | Y56: 14 | Z56: 1 | AA56: 17 | AB56: 3291 | AC56: 110247 | AD56: 1141196 | AE56: =IFERROR(VLOOKUP($A56,'2001 Data'!$A$5:$AH$65001,York!AE$2,FALSE),"No Data") -> 115 | AF56: =IFERROR(VLOOKUP($A56,'2001 Data'!$A$5:$AH$65001,York!AF$2,FALSE),"No Data") -> 57 | AG56: =IFERROR(VLOOKUP($A56,'2001 Data'!$A$5:$AH$65001,York!AG$2,FALSE),"No Data") -> 243 | AH56: =IFERROR(VLOOKUP($A56,'2001 Data'!$A$5:$AH$65001,York!AH$2,FALSE),"No Data") -> 39 | AI56: =IFERROR(VLOOKUP($A56,'2001 Data'!$A$5:$AH$65001,York!AI$2,FALSE),"No Data") -> 147 | AJ56: =IFERROR(VLOOKUP($A56,'2001 Data'!$A$5:$AH$65001,York!AJ$2,FALSE),"No Data") -> 142 | AK56: =IFERROR(VLOOKUP($A56,'2001 Data'!$A$5:$AH$65001,York!AK$2,FALSE),"No Data") -> 44 | AL56: =IFERROR(VLOOKUP($A56,'2001 Data'!$A$5:$AH$65001,York!AL$2,FALSE),"No Data") -> 178 | AM56: =IFERROR(VLOOKUP($A56,'2001 Data'!$A$5:$AH$65001,York!AM$2,FALSE),"No Data") -> 140 | AN56: =IFERROR(VLOOKUP($A56,'2001 Data'!$A$5:$AH$65001,York!AN$2,FALSE),"No Data") -> 22 | AO56: =IFERROR(VLOOKUP($A56,'2001 Data'!$A$5:$AH$65001,York!AO$2,FALSE),"No Data") -> 219 | AP56: =IFERROR(VLOOKUP($A56,'2001 Data'!$A$5:$AH$65001,York!AP$2,FALSE),"No Data") -> 40 | AQ56: =IFERROR(VLOOKUP($A56,'2001 Data'!$A$5:$AH$65001,York!AQ$2,FALSE),"No Data") -> 256 | AR56: =IFERROR(VLOOKUP($A56,'2001 Data'!$A$5:$AH$65001,York!AR$2,FALSE),"No Data") -> 128 | AS56: =IFERROR(VLOOKUP($A56,'2001 Data'!$A$5:$AH$65001,York!AS$2,FALSE),"No Data") -> 187 | AT56: =IFERROR(VLOOKUP($A56,'2001 Data'!$A$5:$AH$65001,York!AT$2,FALSE),"No Data") -> 217 | AU56: =IFERROR(VLOOKUP($A56,'2001 Data'!$A$5:$AH$65001,York!AU$2,FALSE),"No Data") -> 34 | AV56: =IFERROR(VLOOKUP($A56,'2001 Data'!$A$5:$AH$65001,York!AV$2,FALSE),"No Data") -> 129 | AW56: =IFERROR(VLOOKUP($A56,'2001 Data'!$A$5:$AH$65001,York!AW$2,FALSE),"No Data") -> 210 | AX56: =IFERROR(VLOOKUP($A56,'2001 Data'!$A$5:$AH$65001,York!AX$2,FALSE),"No Data") -> 99 | AY56: =IFERROR(VLOOKUP($A56,'2001 Data'!$A$5:$AH$65001,York!AY$2,FALSE),"No Data") -> 324 | AZ56: =IFERROR(VLOOKUP($A56,'2001 Data'!$A$5:$AH$65001,York!AZ$2,FALSE),"No Data") -> 60 | BA56: =IFERROR(VLOOKUP($A56,'2001 Data'!$A$5:$AH$65001,York!BA$2,FALSE),"No Data") -> 3030 | BB56: =IFERROR(VLOOKUP($A56,'2001 Data'!$A$5:$AH$65001,York!BB$2,FALSE),"No Data") -> 985699 | BC56: =IFERROR(VLOOKUP($A56,'2001 Data'!$A$5:$AH$65001,York!BC$2,FALSE),"No Data") -> 941880 | BE56: V:\Business Intelligence Hub\01 - The City\2011 Census\Data\2nd Release - Key Indicators\Lower Areas and Wards\Initial Briefing\Census 2011 Bulk Data Load\Ward Bulk Data\Key Statisitics Bulk Load\[KEYSTATS FILE2.xlsx]KS103EWDATA | BF56: 5 | BG56: =VLOOKUP(BF56,Sheet3!$B$2:$C$77,2,FALSE) -> $h$7:$h$28 | BH56: 'V:\Business Intelligence Hub\01 - The City\2011 Census\Data\2nd Release - Key Indicators\Lower Areas and Wards\Initial Briefing\Census 2011 Bulk Data Load\Ward Bulk Data\Key Statisitics Bulk Load\[KEYSTATS FILE2.xlsx]KS103EWDATA'!$h$7:$h$28 | BI56: 13 | BJ56: =VLOOKUP(BI56,Sheet3!$B$2:$F$77,5,FALSE) -> $A$1:$p$28 | BK56: 'V:\Business Intelligence Hub\01 - The City\2011 Census\Data\2nd Release - Key Indicators\Lower Areas and Wards\Initial Briefing\Census 2011 Bulk Data Load\Ward Bulk Data\Key Statisitics Bulk Load\[KEYSTATS FILE2.xlsx]KS103EWDATA'!$A$1:$p$28
A57: KS103EW0006 | B57: Count | C57: Person | D57: Marital and civil partnership status | E57: Divorced or formerly in a same-sex civil partnership which is now legally dissolved | F57: 11 | G57: 16 | H57: 7 | I57: 21 | J57: 10 | K57: 13 | L57: 20 | M57: 8 | N57: 9 | O57: 22 | P57: 4 | Q57: 17 | R57: 3 | S57: 14 | T57: 5 | U57: 2 | V57: 18 | W57: 12 | X57: 6 | Y57: 15 | Z57: 1 | AA57: 19 | AB57: 14110 | AC57: 399528 | AD57: 3857137 | AE57: =IFERROR(VLOOKUP($A57,'2001 Data'!$A$5:$AH$65001,York!AE$2,FALSE),"No Data") -> 482 | AF57: =IFERROR(VLOOKUP($A57,'2001 Data'!$A$5:$AH$65001,York!AF$2,FALSE),"No Data") -> 205 | AG57: =IFERROR(VLOOKUP($A57,'2001 Data'!$A$5:$AH$65001,York!AG$2,FALSE),"No Data") -> 948 | AH57: =IFERROR(VLOOKUP($A57,'2001 Data'!$A$5:$AH$65001,York!AH$2,FALSE),"No Data") -> 162 | AI57: =IFERROR(VLOOKUP($A57,'2001 Data'!$A$5:$AH$65001,York!AI$2,FALSE),"No Data") -> 660 | AJ57: =IFERROR(VLOOKUP($A57,'2001 Data'!$A$5:$AH$65001,York!AJ$2,FALSE),"No Data") -> 536 | AK57: =IFERROR(VLOOKUP($A57,'2001 Data'!$A$5:$AH$65001,York!AK$2,FALSE),"No Data") -> 153 | AL57: =IFERROR(VLOOKUP($A57,'2001 Data'!$A$5:$AH$65001,York!AL$2,FALSE),"No Data") -> 694 | AM57: =IFERROR(VLOOKUP($A57,'2001 Data'!$A$5:$AH$65001,York!AM$2,FALSE),"No Data") -> 655 | AN57: =IFERROR(VLOOKUP($A57,'2001 Data'!$A$5:$AH$65001,York!AN$2,FALSE),"No Data") -> 79 | AO57: =IFERROR(VLOOKUP($A57,'2001 Data'!$A$5:$AH$65001,York!AO$2,FALSE),"No Data") -> 894 | AP57: =IFERROR(VLOOKUP($A57,'2001 Data'!$A$5:$AH$65001,York!AP$2,FALSE),"No Data") -> 191 | AQ57: =IFERROR(VLOOKUP($A57,'2001 Data'!$A$5:$AH$65001,York!AQ$2,FALSE),"No Data") -> 904 | AR57: =IFERROR(VLOOKUP($A57,'2001 Data'!$A$5:$AH$65001,York!AR$2,FALSE),"No Data") -> 540 | AS57: =IFERROR(VLOOKUP($A57,'2001 Data'!$A$5:$AH$65001,York!AS$2,FALSE),"No Data") -> 779 | AT57: =IFERROR(VLOOKUP($A57,'2001 Data'!$A$5:$AH$65001,York!AT$2,FALSE),"No Data") -> 929 | AU57: =IFERROR(VLOOKUP($A57,'2001 Data'!$A$5:$AH$65001,York!AU$2,FALSE),"No Data") -> 184 | AV57: =IFERROR(VLOOKUP($A57,'2001 Data'!$A$5:$AH$65001,York!AV$2,FALSE),"No Data") -> 518 | AW57: =IFERROR(VLOOKUP($A57,'2001 Data'!$A$5:$AH$65001,York!AW$2,FALSE),"No Data") -> 728 | AX57: =IFERROR(VLOOKUP($A57,'2001 Data'!$A$5:$AH$65001,York!AX$2,FALSE),"No Data") -> 397 | AY57: =IFERROR(VLOOKUP($A57,'2001 Data'!$A$5:$AH$65001,York!AY$2,FALSE),"No Data") -> 1159 | AZ57: =IFERROR(VLOOKUP($A57,'2001 Data'!$A$5:$AH$65001,York!AZ$2,FALSE),"No Data") -> 170 | BA57: =IFERROR(VLOOKUP($A57,'2001 Data'!$A$5:$AH$65001,York!BA$2,FALSE),"No Data") -> 11967 | BB57: =IFERROR(VLOOKUP($A57,'2001 Data'!$A$5:$AH$65001,York!BB$2,FALSE),"No Data") -> 3420951 | BC57: =IFERROR(VLOOKUP($A57,'2001 Data'!$A$5:$AH$65001,York!BC$2,FALSE),"No Data") -> 3219960 | BE57: V:\Business Intelligence Hub\01 - The City\2011 Census\Data\2nd Release - Key Indicators\Lower Areas and Wards\Initial Briefing\Census 2011 Bulk Data Load\Ward Bulk Data\Key Statisitics Bulk Load\[KEYSTATS FILE2.xlsx]KS103EWDATA | BF57: 6 | BG57: =VLOOKUP(BF57,Sheet3!$B$2:$C$77,2,FALSE) -> $i$7:$i$28 | BH57: 'V:\Business Intelligence Hub\01 - The City\2011 Census\Data\2nd Release - Key Indicators\Lower Areas and Wards\Initial Briefing\Census 2011 Bulk Data Load\Ward Bulk Data\Key Statisitics Bulk Load\[KEYSTATS FILE2.xlsx]KS103EWDATA'!$i$7:$i$28 | BI57: 13 | BJ57: =VLOOKUP(BI57,Sheet3!$B$2:$F$77,5,FALSE) -> $A$1:$p$28 | BK57: 'V:\Business Intelligence Hub\01 - The City\2011 Census\Data\2nd Release - Key Indicators\Lower Areas and Wards\Initial Briefing\Census 2011 Bulk Data Load\Ward Bulk Data\Key Statisitics Bulk Load\[KEYSTATS FILE2.xlsx]KS103EWDATA'!$A$1:$p$28
A58: KS103EW0007 | B58: Count | C58: Person | D58: Marital and civil partnership status | E58: Widowed or surviving partner from a same-sex civil partnership | F58: 10 | G58: 19 | H58: 7 | I58: 16 | J58: 4 | K58: 12 | L58: 20 | M58: 14 | N58: 2 | O58: 22 | P58: 6 | Q58: 17 | R58: 8 | S58: 15 | T58: 1 | U58: 11 | V58: 18 | W58: 9 | X58: 5 | Y58: 13 | Z58: 3 | AA58: 21 | AB58: 11069 | AC58: 309105 | AD58: 2971702 | AE58: =IFERROR(VLOOKUP($A58,'2001 Data'!$A$5:$AH$65001,York!AE$2,FALSE),"No Data") -> 534 | AF58: =IFERROR(VLOOKUP($A58,'2001 Data'!$A$5:$AH$65001,York!AF$2,FALSE),"No Data") -> 283 | AG58: =IFERROR(VLOOKUP($A58,'2001 Data'!$A$5:$AH$65001,York!AG$2,FALSE),"No Data") -> 818 | AH58: =IFERROR(VLOOKUP($A58,'2001 Data'!$A$5:$AH$65001,York!AH$2,FALSE),"No Data") -> 283 | AI58: =IFERROR(VLOOKUP($A58,'2001 Data'!$A$5:$AH$65001,York!AI$2,FALSE),"No Data") -> 753 | AJ58: =IFERROR(VLOOKUP($A58,'2001 Data'!$A$5:$AH$65001,York!AJ$2,FALSE),"No Data") -> 542 | AK58: =IFERROR(VLOOKUP($A58,'2001 Data'!$A$5:$AH$65001,York!AK$2,FALSE),"No Data") -> 282 | AL58: =IFERROR(VLOOKUP($A58,'2001 Data'!$A$5:$AH$65001,York!AL$2,FALSE),"No Data") -> 474 | AM58: =IFERROR(VLOOKUP($A58,'2001 Data'!$A$5:$AH$65001,York!AM$2,FALSE),"No Data") -> 1000 | AN58: =IFERROR(VLOOKUP($A58,'2001 Data'!$A$5:$AH$65001,York!AN$2,FALSE),"No Data") -> 90 | AO58: =IFERROR(VLOOKUP($A58,'2001 Data'!$A$5:$AH$65001,York!AO$2,FALSE),"No Data") -> 880 | AP58: =IFERROR(VLOOKUP($A58,'2001 Data'!$A$5:$AH$65001,York!AP$2,FALSE),"No Data") -> 302 | AQ58: =IFERROR(VLOOKUP($A58,'2001 Data'!$A$5:$AH$65001,York!AQ$2,FALSE),"No Data") -> 708 | AR58: =IFERROR(VLOOKUP($A58,'2001 Data'!$A$5:$AH$65001,York!AR$2,FALSE),"No Data") -> 485 | AS58: =IFERROR(VLOOKUP($A58,'2001 Data'!$A$5:$AH$65001,York!AS$2,FALSE),"No Data") -> 944 | AT58: =IFERROR(VLOOKUP($A58,'2001 Data'!$A$5:$AH$65001,York!AT$2,FALSE),"No Data") -> 705 | AU58: =IFERROR(VLOOKUP($A58,'2001 Data'!$A$5:$AH$65001,York!AU$2,FALSE),"No Data") -> 291 | AV58: =IFERROR(VLOOKUP($A58,'2001 Data'!$A$5:$AH$65001,York!AV$2,FALSE),"No Data") -> 611 | AW58: =IFERROR(VLOOKUP($A58,'2001 Data'!$A$5:$AH$65001,York!AW$2,FALSE),"No Data") -> 592 | AX58: =IFERROR(VLOOKUP($A58,'2001 Data'!$A$5:$AH$65001,York!AX$2,FALSE),"No Data") -> 385 | AY58: =IFERROR(VLOOKUP($A58,'2001 Data'!$A$5:$AH$65001,York!AY$2,FALSE),"No Data") -> 1025 | AZ58: =IFERROR(VLOOKUP($A58,'2001 Data'!$A$5:$AH$65001,York!AZ$2,FALSE),"No Data") -> 216 | BA58: =IFERROR(VLOOKUP($A58,'2001 Data'!$A$5:$AH$65001,York!BA$2,FALSE),"No Data") -> 12203 | BB58: =IFERROR(VLOOKUP($A58,'2001 Data'!$A$5:$AH$65001,York!BB$2,FALSE),"No Data") -> 3476740 | BC58: =IFERROR(VLOOKUP($A58,'2001 Data'!$A$5:$AH$65001,York!BC$2,FALSE),"No Data") -> 3259109 | BE58: V:\Business Intelligence Hub\01 - The City\2011 Census\Data\2nd Release - Key Indicators\Lower Areas and Wards\Initial Briefing\Census 2011 Bulk Data Load\Ward Bulk Data\Key Statisitics Bulk Load\[KEYSTATS FILE2.xlsx]KS103EWDATA | BF58: 7 | BG58: =VLOOKUP(BF58,Sheet3!$B$2:$C$77,2,FALSE) -> $j$7:$j$28 | BH58: 'V:\Business Intelligence Hub\01 - The City\2011 Census\Data\2nd Release - Key Indicators\Lower Areas and Wards\Initial Briefing\Census 2011 Bulk Data Load\Ward Bulk Data\Key Statisitics Bulk Load\[KEYSTATS FILE2.xlsx]KS103EWDATA'!$j$7:$j$28 | BI58: 13 | BJ58: =VLOOKUP(BI58,Sheet3!$B$2:$F$77,5,FALSE) -> $A$1:$p$28 | BK58: 'V:\Business Intelligence Hub\01 - The City\2011 Census\Data\2nd Release - Key Indicators\Lower Areas and Wards\Initial Briefing\Census 2011 Bulk Data Load\Ward Bulk Data\Key Statisitics Bulk Load\[KEYSTATS FILE2.xlsx]KS103EWDATA'!$A$1:$p$28
A59: KS103EW0008 | B59: Percentage | C59: Person | D59: Marital and civil partnership status | E59: Single (never married or never registered a same-sex civil partnership) | F59: 11 | G59: 21 | H59: 5 | I59: 22 | J59: 13 | K59: 4 | L59: 12 | M59: 2 | N59: 17 | O59: 1 | P59: 7 | Q59: 19 | R59: 8 | S59: 3 | T59: 14 | U59: 6 | V59: 10 | W59: 18 | X59: 15 | Y59: 16 | Z59: 9 | AA59: 20 | AB59: 0.3862 | AC59: 0.339 | AD59: 0.3464 | AE59: =IFERROR(VLOOKUP($A59,'2001 Data'!$A$5:$AH$65001,York!AE$2,FALSE),"No Data") -> 24.53 | AF59: =IFERROR(VLOOKUP($A59,'2001 Data'!$A$5:$AH$65001,York!AF$2,FALSE),"No Data") -> 19.85 | AG59: =IFERROR(VLOOKUP($A59,'2001 Data'!$A$5:$AH$65001,York!AG$2,FALSE),"No Data") -> 42.63 | AH59: =IFERROR(VLOOKUP($A59,'2001 Data'!$A$5:$AH$65001,York!AH$2,FALSE),"No Data") -> 18.28 | AI59: =IFERROR(VLOOKUP($A59,'2001 Data'!$A$5:$AH$65001,York!AI$2,FALSE),"No Data") -> 23.79 | AJ59: =IFERROR(VLOOKUP($A59,'2001 Data'!$A$5:$AH$65001,York!AJ$2,FALSE),"No Data") -> 46.32 | AK59: =IFERROR(VLOOKUP($A59,'2001 Data'!$A$5:$AH$65001,York!AK$2,FALSE),"No Data") -> 24.22 | AL59: =IFERROR(VLOOKUP($A59,'2001 Data'!$A$5:$AH$65001,York!AL$2,FALSE),"No Data") -> 51.66 | AM59: =IFERROR(VLOOKUP($A59,'2001 Data'!$A$5:$AH$65001,York!AM$2,FALSE),"No Data") -> 21.35 | AN59: =IFERROR(VLOOKUP($A59,'2001 Data'!$A$5:$AH$65001,York!AN$2,FALSE),"No Data") -> 82.17 | AO59: =IFERROR(VLOOKUP($A59,'2001 Data'!$A$5:$AH$65001,York!AO$2,FALSE),"No Data") -> 34.4 | AP59: =IFERROR(VLOOKUP($A59,'2001 Data'!$A$5:$AH$65001,York!AP$2,FALSE),"No Data") -> 19.61 | AQ59: =IFERROR(VLOOKUP($A59,'2001 Data'!$A$5:$AH$65001,York!AQ$2,FALSE),"No Data") -> 35.24 | AR59: =IFERROR(VLOOKUP($A59,'2001 Data'!$A$5:$AH$65001,York!AR$2,FALSE),"No Data") -> 40.6 | AS59: =IFERROR(VLOOKUP($A59,'2001 Data'!$A$5:$AH$65001,York!AS$2,FALSE),"No Data") -> 22.69 | AT59: =IFERROR(VLOOKUP($A59,'2001 Data'!$A$5:$AH$65001,York!AT$2,FALSE),"No Data") -> 48.28 | AU59: =IFERROR(VLOOKUP($A59,'2001 Data'!$A$5:$AH$65001,York!AU$2,FALSE),"No Data") -> 22.79 | AV59: =IFERROR(VLOOKUP($A59,'2001 Data'!$A$5:$AH$65001,York!AV$2,FALSE),"No Data") -> 21.47 | AW59: =IFERROR(VLOOKUP($A59,'2001 Data'!$A$5:$AH$65001,York!AW$2,FALSE),"No Data") -> 24.97 | AX59: =IFERROR(VLOOKUP($A59,'2001 Data'!$A$5:$AH$65001,York!AX$2,FALSE),"No Data") -> 22.38 | AY59: =IFERROR(VLOOKUP($A59,'2001 Data'!$A$5:$AH$65001,York!AY$2,FALSE),"No Data") -> 31.8 | AZ59: =IFERROR(VLOOKUP($A59,'2001 Data'!$A$5:$AH$65001,York!AZ$2,FALSE),"No Data") -> 19.83 | BA59: =IFERROR(VLOOKUP($A59,'2001 Data'!$A$5:$AH$65001,York!BA$2,FALSE),"No Data") -> 32.34 | BB59: =IFERROR(VLOOKUP($A59,'2001 Data'!$A$5:$AH$65001,York!BB$2,FALSE),"No Data") -> 30.11 | BC59: =IFERROR(VLOOKUP($A59,'2001 Data'!$A$5:$AH$65001,York!BC$2,FALSE),"No Data") -> 30.23 | BE59: V:\Business Intelligence Hub\01 - The City\2011 Census\Data\2nd Release - Key Indicators\Lower Areas and Wards\Initial Briefing\Census 2011 Bulk Data Load\Ward Bulk Data\Key Statisitics Bulk Load\[KEYSTATS FILE2.xlsx]KS103EWDATA | BF59: 8 | BG59: =VLOOKUP(BF59,Sheet3!$B$2:$C$77,2,FALSE) -> $k$7:$k$28 | BH59: 'V:\Business Intelligence Hub\01 - The City\2011 Census\Data\2nd Release - Key Indicators\Lower Areas and Wards\Initial Briefing\Census 2011 Bulk Data Load\Ward Bulk Data\Key Statisitics Bulk Load\[KEYSTATS FILE2.xlsx]KS103EWDATA'!$k$7:$k$28 | BI59: 13 | BJ59: =VLOOKUP(BI59,Sheet3!$B$2:$F$77,5,FALSE) -> $A$1:$p$28 | BK59: 'V:\Business Intelligence Hub\01 - The City\2011 Census\Data\2nd Release - Key Indicators\Lower Areas and Wards\Initial Briefing\Census 2011 Bulk Data Load\Ward Bulk Data\Key Statisitics Bulk Load\[KEYSTATS FILE2.xlsx]KS103EWDATA'!$A$1:$p$28
A60: KS103EW0009 | B60: Percentage | C60: Person | D60: Marital and civil partnership status | E60: Married | F60: 11 | G60: 4 | H60: 18 | I60: 3 | J60: 9 | K60: 19 | L60: 13 | M60: 21 | N60: 6 | O60: 22 | P60: 16 | Q60: 7 | R60: 14 | S60: 20 | T60: 10 | U60: 17 | V60: 12 | W60: 2 | X60: 8 | Y60: 5 | Z60: 15 | AA60: 1 | AB60: 0.44 | AC60: 0.4679 | AD60: 0.4659 | AE60: =IFERROR(VLOOKUP($A60,'2001 Data'!$A$5:$AH$65001,York!AE$2,FALSE),"No Data") -> 48.81 | AF60: =IFERROR(VLOOKUP($A60,'2001 Data'!$A$5:$AH$65001,York!AF$2,FALSE),"No Data") -> 53.51 | AG60: =IFERROR(VLOOKUP($A60,'2001 Data'!$A$5:$AH$65001,York!AG$2,FALSE),"No Data") -> 30.52 | AH60: =IFERROR(VLOOKUP($A60,'2001 Data'!$A$5:$AH$65001,York!AH$2,FALSE),"No Data") -> 56.4 | AI60: =IFERROR(VLOOKUP($A60,'2001 Data'!$A$5:$AH$65001,York!AI$2,FALSE),"No Data") -> 50.29 | AJ60: =IFERROR(VLOOKUP($A60,'2001 Data'!$A$5:$AH$65001,York!AJ$2,FALSE),"No Data") -> 30.59 | AK60: =IFERROR(VLOOKUP($A60,'2001 Data'!$A$5:$AH$65001,York!AK$2,FALSE),"No Data") -> 45.89 | AL60: =IFERROR(VLOOKUP($A60,'2001 Data'!$A$5:$AH$65001,York!AL$2,FALSE),"No Data") -> 21.35 | AM60: =IFERROR(VLOOKUP($A60,'2001 Data'!$A$5:$AH$65001,York!AM$2,FALSE),"No Data") -> 52.4 | AN60: =IFERROR(VLOOKUP($A60,'2001 Data'!$A$5:$AH$65001,York!AN$2,FALSE),"No Data") -> 11.3 | AO60: =IFERROR(VLOOKUP($A60,'2001 Data'!$A$5:$AH$65001,York!AO$2,FALSE),"No Data") -> 37 | AP60: =IFERROR(VLOOKUP($A60,'2001 Data'!$A$5:$AH$65001,York!AP$2,FALSE),"No Data") -> 55.55 | AQ60: =IFERROR(VLOOKUP($A60,'2001 Data'!$A$5:$AH$65001,York!AQ$2,FALSE),"No Data") -> 38.27 | AR60: =IFERROR(VLOOKUP($A60,'2001 Data'!$A$5:$AH$65001,York!AR$2,FALSE),"No Data") -> 36.3 | AS60: =IFERROR(VLOOKUP($A60,'2001 Data'!$A$5:$AH$65001,York!AS$2,FALSE),"No Data") -> 49.53 | AT60: =IFERROR(VLOOKUP($A60,'2001 Data'!$A$5:$AH$65001,York!AT$2,FALSE),"No Data") -> 27.17 | AU60: =IFERROR(VLOOKUP($A60,'2001 Data'!$A$5:$AH$65001,York!AU$2,FALSE),"No Data") -> 51.04 | AV60: =IFERROR(VLOOKUP($A60,'2001 Data'!$A$5:$AH$65001,York!AV$2,FALSE),"No Data") -> 55.19 | AW60: =IFERROR(VLOOKUP($A60,'2001 Data'!$A$5:$AH$65001,York!AW$2,FALSE),"No Data") -> 50.35 | AX60: =IFERROR(VLOOKUP($A60,'2001 Data'!$A$5:$AH$65001,York!AX$2,FALSE),"No Data") -> 53.23 | AY60: =IFERROR(VLOOKUP($A60,'2001 Data'!$A$5:$AH$65001,York!AY$2,FALSE),"No Data") -> 36.3 | AZ60: =IFERROR(VLOOKUP($A60,'2001 Data'!$A$5:$AH$65001,York!AZ$2,FALSE),"No Data") -> 55.85 | BA60: =IFERROR(VLOOKUP($A60,'2001 Data'!$A$5:$AH$65001,York!BA$2,FALSE),"No Data") -> 41.96 | BB60: =IFERROR(VLOOKUP($A60,'2001 Data'!$A$5:$AH$65001,York!BB$2,FALSE),"No Data") -> 43.56 | BC60: =IFERROR(VLOOKUP($A60,'2001 Data'!$A$5:$AH$65001,York!BC$2,FALSE),"No Data") -> 43.5 | BE60: V:\Business Intelligence Hub\01 - The City\2011 Census\Data\2nd Release - Key Indicators\Lower Areas and Wards\Initial Briefing\Census 2011 Bulk Data Load\Ward Bulk Data\Key Statisitics Bulk Load\[KEYSTATS FILE2.xlsx]KS103EWDATA | BF60: 9 | BG60: =VLOOKUP(BF60,Sheet3!$B$2:$C$77,2,FALSE) -> $l$7:$l$28 | BH60: 'V:\Business Intelligence Hub\01 - The City\2011 Census\Data\2nd Release - Key Indicators\Lower Areas and Wards\Initial Briefing\Census 2011 Bulk Data Load\Ward Bulk Data\Key Statisitics Bulk Load\[KEYSTATS FILE2.xlsx]KS103EWDATA'!$l$7:$l$28 | BI60: 13 | BJ60: =VLOOKUP(BI60,Sheet3!$B$2:$F$77,5,FALSE) -> $A$1:$p$28 | BK60: 'V:\Business Intelligence Hub\01 - The City\2011 Census\Data\2nd Release - Key Indicators\Lower Areas and Wards\Initial Briefing\Census 2011 Bulk Data Load\Ward Bulk Data\Key Statisitics Bulk Load\[KEYSTATS FILE2.xlsx]KS103EWDATA'!$A$1:$p$28
A61: KS103EW0010 | B61: Percentage | C61: Person | D61: Marital and civil partnership status | E61: In a registered same-sex civil partnership | F61: 10 | G61: 3 | H61: 6 | I61: 5 | J61: 17 | K61: 8 | L61: 7 | M61: 2 | N61: 19 | O61: 15 | P61: 13 | Q61: 14 | R61: 11 | S61: 16 | T61: 21 | U61: 1 | V61: 22 | W61: 18 | X61: 20 | Y61: 12 | Z61: 4 | AA61: 9 | AB61: 0.0026 | AC61: 0.002 | AD61: 0.0023 | AE61: =IFERROR(VLOOKUP($A61,'2001 Data'!$A$5:$AH$65001,York!AE$2,FALSE),"No Data") -> No Data | AF61: =IFERROR(VLOOKUP($A61,'2001 Data'!$A$5:$AH$65001,York!AF$2,FALSE),"No Data") -> No Data | AG61: =IFERROR(VLOOKUP($A61,'2001 Data'!$A$5:$AH$65001,York!AG$2,FALSE),"No Data") -> No Data | AH61: =IFERROR(VLOOKUP($A61,'2001 Data'!$A$5:$AH$65001,York!AH$2,FALSE),"No Data") -> No Data | AI61: =IFERROR(VLOOKUP($A61,'2001 Data'!$A$5:$AH$65001,York!AI$2,FALSE),"No Data") -> No Data | AJ61: =IFERROR(VLOOKUP($A61,'2001 Data'!$A$5:$AH$65001,York!AJ$2,FALSE),"No Data") -> No Data | AK61: =IFERROR(VLOOKUP($A61,'2001 Data'!$A$5:$AH$65001,York!AK$2,FALSE),"No Data") -> No Data | AL61: =IFERROR(VLOOKUP($A61,'2001 Data'!$A$5:$AH$65001,York!AL$2,FALSE),"No Data") -> No Data | AM61: =IFERROR(VLOOKUP($A61,'2001 Data'!$A$5:$AH$65001,York!AM$2,FALSE),"No Data") -> No Data | AN61: =IFERROR(VLOOKUP($A61,'2001 Data'!$A$5:$AH$65001,York!AN$2,FALSE),"No Data") -> No Data | AO61: =IFERROR(VLOOKUP($A61,'2001 Data'!$A$5:$AH$65001,York!AO$2,FALSE),"No Data") -> No Data | AP61: =IFERROR(VLOOKUP($A61,'2001 Data'!$A$5:$AH$65001,York!AP$2,FALSE),"No Data") -> No Data | AQ61: =IFERROR(VLOOKUP($A61,'2001 Data'!$A$5:$AH$65001,York!AQ$2,FALSE),"No Data") -> No Data | AR61: =IFERROR(VLOOKUP($A61,'2001 Data'!$A$5:$AH$65001,York!AR$2,FALSE),"No Data") -> No Data | AS61: =IFERROR(VLOOKUP($A61,'2001 Data'!$A$5:$AH$65001,York!AS$2,FALSE),"No Data") -> No Data | AT61: =IFERROR(VLOOKUP($A61,'2001 Data'!$A$5:$AH$65001,York!AT$2,FALSE),"No Data") -> No Data | AU61: =IFERROR(VLOOKUP($A61,'2001 Data'!$A$5:$AH$65001,York!AU$2,FALSE),"No Data") -> No Data | AV61: =IFERROR(VLOOKUP($A61,'2001 Data'!$A$5:$AH$65001,York!AV$2,FALSE),"No Data") -> No Data | AW61: =IFERROR(VLOOKUP($A61,'2001 Data'!$A$5:$AH$65001,York!AW$2,FALSE),"No Data") -> No Data | AX61: =IFERROR(VLOOKUP($A61,'2001 Data'!$A$5:$AH$65001,York!AX$2,FALSE),"No Data") -> No Data | AY61: =IFERROR(VLOOKUP($A61,'2001 Data'!$A$5:$AH$65001,York!AY$2,FALSE),"No Data") -> No Data | AZ61: =IFERROR(VLOOKUP($A61,'2001 Data'!$A$5:$AH$65001,York!AZ$2,FALSE),"No Data") -> No Data | BA61: =IFERROR(VLOOKUP($A61,'2001 Data'!$A$5:$AH$65001,York!BA$2,FALSE),"No Data") -> No Data | BB61: =IFERROR(VLOOKUP($A61,'2001 Data'!$A$5:$AH$65001,York!BB$2,FALSE),"No Data") -> No Data | BC61: =IFERROR(VLOOKUP($A61,'2001 Data'!$A$5:$AH$65001,York!BC$2,FALSE),"No Data") -> No Data | BE61: V:\Business Intelligence Hub\01 - The City\2011 Census\Data\2nd Release - Key Indicators\Lower Areas and Wards\Initial Briefing\Census 2011 Bulk Data Load\Ward Bulk Data\Key Statisitics Bulk Load\[KEYSTATS FILE2.xlsx]KS103EWDATA | BF61: 10 | BG61: =VLOOKUP(BF61,Sheet3!$B$2:$C$77,2,FALSE) -> $m$7:$m$28 | BH61: 'V:\Business Intelligence Hub\01 - The City\2011 Census\Data\2nd Release - Key Indicators\Lower Areas and Wards\Initial Briefing\Census 2011 Bulk Data Load\Ward Bulk Data\Key Statisitics Bulk Load\[KEYSTATS FILE2.xlsx]KS103EWDATA'!$m$7:$m$28 | BI61: 13 | BJ61: =VLOOKUP(BI61,Sheet3!$B$2:$F$77,5,FALSE) -> $A$1:$p$28 | BK61: 'V:\Business Intelligence Hub\01 - The City\2011 Census\Data\2nd Release - Key Indicators\Lower Areas and Wards\Initial Briefing\Census 2011 Bulk Data Load\Ward Bulk Data\Key Statisitics Bulk Load\[KEYSTATS FILE2.xlsx]KS103EWDATA'!$A$1:$p$28
A62: KS103EW0011 | B62: Percentage | C62: Person | D62: Marital and civil partnership status | E62: Separated (but still legally married or still legally in a same-sex civil partnership) | F62: 9 | G62: 16 | H62: 4 | I62: 19 | J62: 10 | K62: 17 | L62: 14 | M62: 5 | N62: 20 | O62: 22 | P62: 6 | Q62: 7 | R62: 3 | S62: 21 | T62: 11 | U62: 2 | V62: 18 | W62: 15 | X62: 8 | Y62: 13 | Z62: 1 | AA62: 12 | AB62: 0.0198 | AC62: 0.0257 | AD62: 0.0265 | AE62: =IFERROR(VLOOKUP($A62,'2001 Data'!$A$5:$AH$65001,York!AE$2,FALSE),"No Data") -> 1.87 | AF62: =IFERROR(VLOOKUP($A62,'2001 Data'!$A$5:$AH$65001,York!AF$2,FALSE),"No Data") -> 1.8 | AG62: =IFERROR(VLOOKUP($A62,'2001 Data'!$A$5:$AH$65001,York!AG$2,FALSE),"No Data") -> 2.48 | AH62: =IFERROR(VLOOKUP($A62,'2001 Data'!$A$5:$AH$65001,York!AH$2,FALSE),"No Data") -> 1.3 | AI62: =IFERROR(VLOOKUP($A62,'2001 Data'!$A$5:$AH$65001,York!AI$2,FALSE),"No Data") -> 1.66 | AJ62: =IFERROR(VLOOKUP($A62,'2001 Data'!$A$5:$AH$65001,York!AJ$2,FALSE),"No Data") -> 2.08 | AK62: =IFERROR(VLOOKUP($A62,'2001 Data'!$A$5:$AH$65001,York!AK$2,FALSE),"No Data") -> 2 | AL62: =IFERROR(VLOOKUP($A62,'2001 Data'!$A$5:$AH$65001,York!AL$2,FALSE),"No Data") -> 2.92 | AM62: =IFERROR(VLOOKUP($A62,'2001 Data'!$A$5:$AH$65001,York!AM$2,FALSE),"No Data") -> 1.35 | AN62: =IFERROR(VLOOKUP($A62,'2001 Data'!$A$5:$AH$65001,York!AN$2,FALSE),"No Data") -> 0.56 | AO62: =IFERROR(VLOOKUP($A62,'2001 Data'!$A$5:$AH$65001,York!AO$2,FALSE),"No Data") -> 2.34 | AP62: =IFERROR(VLOOKUP($A62,'2001 Data'!$A$5:$AH$65001,York!AP$2,FALSE),"No Data") -> 1.23 | AQ62: =IFERROR(VLOOKUP($A62,'2001 Data'!$A$5:$AH$65001,York!AQ$2,FALSE),"No Data") -> 2.68 | AR62: =IFERROR(VLOOKUP($A62,'2001 Data'!$A$5:$AH$65001,York!AR$2,FALSE),"No Data") -> 1.88 | AS62: =IFERROR(VLOOKUP($A62,'2001 Data'!$A$5:$AH$65001,York!AS$2,FALSE),"No Data") -> 1.9 | AT62: =IFERROR(VLOOKUP($A62,'2001 Data'!$A$5:$AH$65001,York!AT$2,FALSE),"No Data") -> 2.25 | AU62: =IFERROR(VLOOKUP($A62,'2001 Data'!$A$5:$AH$65001,York!AU$2,FALSE),"No Data") -> 1.29 | AV62: =IFERROR(VLOOKUP($A62,'2001 Data'!$A$5:$AH$65001,York!AV$2,FALSE),"No Data") -> 1.55 | AW62: =IFERROR(VLOOKUP($A62,'2001 Data'!$A$5:$AH$65001,York!AW$2,FALSE),"No Data") -> 2.19 | AX62: =IFERROR(VLOOKUP($A62,'2001 Data'!$A$5:$AH$65001,York!AX$2,FALSE),"No Data") -> 1.6 | AY62: =IFERROR(VLOOKUP($A62,'2001 Data'!$A$5:$AH$65001,York!AY$2,FALSE),"No Data") -> 3.05 | AZ62: =IFERROR(VLOOKUP($A62,'2001 Data'!$A$5:$AH$65001,York!AZ$2,FALSE),"No Data") -> 1.94 | BA62: =IFERROR(VLOOKUP($A62,'2001 Data'!$A$5:$AH$65001,York!BA$2,FALSE),"No Data") -> 2.03 | BB62: =IFERROR(VLOOKUP($A62,'2001 Data'!$A$5:$AH$65001,York!BB$2,FALSE),"No Data") -> 2.37 | BC62: =IFERROR(VLOOKUP($A62,'2001 Data'!$A$5:$AH$65001,York!BC$2,FALSE),"No Data") -> 2.4 | BE62: V:\Business Intelligence Hub\01 - The City\2011 Census\Data\2nd Release - Key Indicators\Lower Areas and Wards\Initial Briefing\Census 2011 Bulk Data Load\Ward Bulk Data\Key Statisitics Bulk Load\[KEYSTATS FILE2.xlsx]KS103EWDATA | BF62: 11 | BG62: =VLOOKUP(BF62,Sheet3!$B$2:$C$77,2,FALSE) -> $n$7:$n$28 | BH62: 'V:\Business Intelligence Hub\01 - The City\2011 Census\Data\2nd Release - Key Indicators\Lower Areas and Wards\Initial Briefing\Census 2011 Bulk Data Load\Ward Bulk Data\Key Statisitics Bulk Load\[KEYSTATS FILE2.xlsx]KS103EWDATA'!$n$7:$n$28 | BI62: 13 | BJ62: =VLOOKUP(BI62,Sheet3!$B$2:$F$77,5,FALSE) -> $A$1:$p$28 | BK62: 'V:\Business Intelligence Hub\01 - The City\2011 Census\Data\2nd Release - Key Indicators\Lower Areas and Wards\Initial Briefing\Census 2011 Bulk Data Load\Ward Bulk Data\Key Statisitics Bulk Load\[KEYSTATS FILE2.xlsx]KS103EWDATA'!$A$1:$p$28
A63: KS103EW0012 | B63: Percentage | C63: Person | D63: Marital and civil partnership status | E63: Divorced or formerly in a same-sex civil partnership which is now legally dissolved | F63: 6 | G63: 15 | H63: 12 | I63: 18 | J63: 11 | K63: 19 | L63: 7 | M63: 5 | N63: 16 | O63: 22 | P63: 8 | Q63: 14 | R63: 3 | S63: 21 | T63: 4 | U63: 2 | V63: 10 | W63: 17 | X63: 9 | Y63: 13 | Z63: 1 | AA63: 20 | AB63: 0.0849 | AC63: 0.0932 | AD63: 0.0897 | AE63: =IFERROR(VLOOKUP($A63,'2001 Data'!$A$5:$AH$65001,York!AE$2,FALSE),"No Data") -> 7.83 | AF63: =IFERROR(VLOOKUP($A63,'2001 Data'!$A$5:$AH$65001,York!AF$2,FALSE),"No Data") -> 6.49 | AG63: =IFERROR(VLOOKUP($A63,'2001 Data'!$A$5:$AH$65001,York!AG$2,FALSE),"No Data") -> 9.66 | AH63: =IFERROR(VLOOKUP($A63,'2001 Data'!$A$5:$AH$65001,York!AH$2,FALSE),"No Data") -> 5.41 | AI63: =IFERROR(VLOOKUP($A63,'2001 Data'!$A$5:$AH$65001,York!AI$2,FALSE),"No Data") -> 7.46 | AJ63: =IFERROR(VLOOKUP($A63,'2001 Data'!$A$5:$AH$65001,York!AJ$2,FALSE),"No Data") -> 7.85 | AK63: =IFERROR(VLOOKUP($A63,'2001 Data'!$A$5:$AH$65001,York!AK$2,FALSE),"No Data") -> 6.95 | AL63: =IFERROR(VLOOKUP($A63,'2001 Data'!$A$5:$AH$65001,York!AL$2,FALSE),"No Data") -> 11.38 | AM63: =IFERROR(VLOOKUP($A63,'2001 Data'!$A$5:$AH$65001,York!AM$2,FALSE),"No Data") -> 6.31 | AN63: =IFERROR(VLOOKUP($A63,'2001 Data'!$A$5:$AH$65001,York!AN$2,FALSE),"No Data") -> 2.02 | AO63: =IFERROR(VLOOKUP($A63,'2001 Data'!$A$5:$AH$65001,York!AO$2,FALSE),"No Data") -> 9.57 | AP63: =IFERROR(VLOOKUP($A63,'2001 Data'!$A$5:$AH$65001,York!AP$2,FALSE),"No Data") -> 5.89 | AQ63: =IFERROR(VLOOKUP($A63,'2001 Data'!$A$5:$AH$65001,York!AQ$2,FALSE),"No Data") -> 9.46 | AR63: =IFERROR(VLOOKUP($A63,'2001 Data'!$A$5:$AH$65001,York!AR$2,FALSE),"No Data") -> 7.94 | AS63: =IFERROR(VLOOKUP($A63,'2001 Data'!$A$5:$AH$65001,York!AS$2,FALSE),"No Data") -> 7.9 | AT63: =IFERROR(VLOOKUP($A63,'2001 Data'!$A$5:$AH$65001,York!AT$2,FALSE),"No Data") -> 9.64 | AU63: =IFERROR(VLOOKUP($A63,'2001 Data'!$A$5:$AH$65001,York!AU$2,FALSE),"No Data") -> 6.97 | AV63: =IFERROR(VLOOKUP($A63,'2001 Data'!$A$5:$AH$65001,York!AV$2,FALSE),"No Data") -> 6.21 | AW63: =IFERROR(VLOOKUP($A63,'2001 Data'!$A$5:$AH$65001,York!AW$2,FALSE),"No Data") -> 7.58 | AX63: =IFERROR(VLOOKUP($A63,'2001 Data'!$A$5:$AH$65001,York!AX$2,FALSE),"No Data") -> 6.42 | AY63: =IFERROR(VLOOKUP($A63,'2001 Data'!$A$5:$AH$65001,York!AY$2,FALSE),"No Data") -> 10.92 | AZ63: =IFERROR(VLOOKUP($A63,'2001 Data'!$A$5:$AH$65001,York!AZ$2,FALSE),"No Data") -> 5.5 | BA63: =IFERROR(VLOOKUP($A63,'2001 Data'!$A$5:$AH$65001,York!BA$2,FALSE),"No Data") -> 8.02 | BB63: =IFERROR(VLOOKUP($A63,'2001 Data'!$A$5:$AH$65001,York!BB$2,FALSE),"No Data") -> 8.23 | BC63: =IFERROR(VLOOKUP($A63,'2001 Data'!$A$5:$AH$65001,York!BC$2,FALSE),"No Data") -> 8.21 | BE63: V:\Business Intelligence Hub\01 - The City\2011 Census\Data\2nd Release - Key Indicators\Lower Areas and Wards\Initial Briefing\Census 2011 Bulk Data Load\Ward Bulk Data\Key Statisitics Bulk Load\[KEYSTATS FILE2.xlsx]KS103EWDATA | BF63: 12 | BG63: =VLOOKUP(BF63,Sheet3!$B$2:$C$77,2,FALSE) -> $o$7:$o$28 | BH63: 'V:\Business Intelligence Hub\01 - The City\2011 Census\Data\2nd Release - Key Indicators\Lower Areas and Wards\Initial Briefing\Census 2011 Bulk Data Load\Ward Bulk Data\Key Statisitics Bulk Load\[KEYSTATS FILE2.xlsx]KS103EWDATA'!$o$7:$o$28 | BI63: 13 | BJ63: =VLOOKUP(BI63,Sheet3!$B$2:$F$77,5,FALSE) -> $A$1:$p$28 | BK63: 'V:\Business Intelligence Hub\01 - The City\2011 Census\Data\2nd Release - Key Indicators\Lower Areas and Wards\Initial Briefing\Census 2011 Bulk Data Load\Ward Bulk Data\Key Statisitics Bulk Load\[KEYSTATS FILE2.xlsx]KS103EWDATA'!$A$1:$p$28
A64: KS103EW0013 | B64: Percentage | C64: Person | D64: Marital and civil partnership status | E64: Widowed or surviving partner from a same-sex civil partnership | F64: 9 | G64: 7 | H64: 17 | I64: 2 | J64: 10 | K64: 18 | L64: 1 | M64: 19 | N64: 4 | O64: 22 | P64: 16 | Q64: 5 | R64: 15 | S64: 21 | T64: 3 | U64: 20 | V64: 6 | W64: 11 | X64: 12 | Y64: 14 | Z64: 8 | AA64: 13 | AB64: 0.0666 | AC64: 0.0721 | AD64: 0.0691 | AE64: =IFERROR(VLOOKUP($A64,'2001 Data'!$A$5:$AH$65001,York!AE$2,FALSE),"No Data") -> 8.68 | AF64: =IFERROR(VLOOKUP($A64,'2001 Data'!$A$5:$AH$65001,York!AF$2,FALSE),"No Data") -> 8.96 | AG64: =IFERROR(VLOOKUP($A64,'2001 Data'!$A$5:$AH$65001,York!AG$2,FALSE),"No Data") -> 8.33 | AH64: =IFERROR(VLOOKUP($A64,'2001 Data'!$A$5:$AH$65001,York!AH$2,FALSE),"No Data") -> 9.46 | AI64: =IFERROR(VLOOKUP($A64,'2001 Data'!$A$5:$AH$65001,York!AI$2,FALSE),"No Data") -> 8.51 | AJ64: =IFERROR(VLOOKUP($A64,'2001 Data'!$A$5:$AH$65001,York!AJ$2,FALSE),"No Data") -> 7.94 | AK64: =IFERROR(VLOOKUP($A64,'2001 Data'!$A$5:$AH$65001,York!AK$2,FALSE),"No Data") -> 12.81 | AL64: =IFERROR(VLOOKUP($A64,'2001 Data'!$A$5:$AH$65001,York!AL$2,FALSE),"No Data") -> 7.77 | AM64: =IFERROR(VLOOKUP($A64,'2001 Data'!$A$5:$AH$65001,York!AM$2,FALSE),"No Data") -> 9.64 | AN64: =IFERROR(VLOOKUP($A64,'2001 Data'!$A$5:$AH$65001,York!AN$2,FALSE),"No Data") -> 2.3 | AO64: =IFERROR(VLOOKUP($A64,'2001 Data'!$A$5:$AH$65001,York!AO$2,FALSE),"No Data") -> 9.42 | AP64: =IFERROR(VLOOKUP($A64,'2001 Data'!$A$5:$AH$65001,York!AP$2,FALSE),"No Data") -> 9.31 | AQ64: =IFERROR(VLOOKUP($A64,'2001 Data'!$A$5:$AH$65001,York!AQ$2,FALSE),"No Data") -> 7.41 | AR64: =IFERROR(VLOOKUP($A64,'2001 Data'!$A$5:$AH$65001,York!AR$2,FALSE),"No Data") -> 7.13 | AS64: =IFERROR(VLOOKUP($A64,'2001 Data'!$A$5:$AH$65001,York!AS$2,FALSE),"No Data") -> 9.57 | AT64: =IFERROR(VLOOKUP($A64,'2001 Data'!$A$5:$AH$65001,York!AT$2,FALSE),"No Data") -> 7.32 | AU64: =IFERROR(VLOOKUP($A64,'2001 Data'!$A$5:$AH$65001,York!AU$2,FALSE),"No Data") -> 11.02 | AV64: =IFERROR(VLOOKUP($A64,'2001 Data'!$A$5:$AH$65001,York!AV$2,FALSE),"No Data") -> 7.33 | AW64: =IFERROR(VLOOKUP($A64,'2001 Data'!$A$5:$AH$65001,York!AW$2,FALSE),"No Data") -> 6.16 | AX64: =IFERROR(VLOOKUP($A64,'2001 Data'!$A$5:$AH$65001,York!AX$2,FALSE),"No Data") -> 6.23 | AY64: =IFERROR(VLOOKUP($A64,'2001 Data'!$A$5:$AH$65001,York!AY$2,FALSE),"No Data") -> 9.66 | AZ64: =IFERROR(VLOOKUP($A64,'2001 Data'!$A$5:$AH$65001,York!AZ$2,FALSE),"No Data") -> 6.99 | BA64: =IFERROR(VLOOKUP($A64,'2001 Data'!$A$5:$AH$65001,York!BA$2,FALSE),"No Data") -> 8.17 | BB64: =IFERROR(VLOOKUP($A64,'2001 Data'!$A$5:$AH$65001,York!BB$2,FALSE),"No Data") -> 8.37 | BC64: =IFERROR(VLOOKUP($A64,'2001 Data'!$A$5:$AH$65001,York!BC$2,FALSE),"No Data") -> 8.31 | BE64: V:\Business Intelligence Hub\01 - The City\2011 Census\Data\2nd Release - Key Indicators\Lower Areas and Wards\Initial Briefing\Census 2011 Bulk Data Load\Ward Bulk Data\Key Statisitics Bulk Load\[KEYSTATS FILE2.xlsx]KS103EWDATA | BF64: 13 | BG64: =VLOOKUP(BF64,Sheet3!$B$2:$C$77,2,FALSE) -> $p$7:$p$28 | BH64: 'V:\Business Intelligence Hub\01 - The City\2011 Census\Data\2nd Release - Key Indicators\Lower Areas and Wards\Initial Briefing\Census 2011 Bulk Data Load\Ward Bulk Data\Key Statisitics Bulk Load\[KEYSTATS FILE2.xlsx]KS103EWDATA'!$p$7:$p$28 | BI64: 13 | BJ64: =VLOOKUP(BI64,Sheet3!$B$2:$F$77,5,FALSE) -> $A$1:$p$28 | BK64: 'V:\Business Intelligence Hub\01 - The City\2011 Census\Data\2nd Release - Key Indicators\Lower Areas and Wards\Initial Briefing\Census 2011 Bulk Data Load\Ward Bulk Data\Key Statisitics Bulk Load\[KEYSTATS FILE2.xlsx]KS103EWDATA'!$A$1:$p$28
A65: KS104EW0001 | B65: Count | C65: Person | D65: Living arrangements | E65: All categories: Living arrangements | F65: 14 | G65: 16 | H65: 3 | I65: 20 | J65: 10 | K65: 12 | L65: 21 | M65: 13 | N65: 8 | O65: 22 | P65: 1 | Q65: 18 | R65: 6 | S65: 9 | T65: 7 | U65: 5 | V65: 19 | W65: 11 | X65: 4 | Y65: 15 | Z65: 2 | AA65: 17 | AB65: 158773 | AC65: 4190549 | AD65: 42077356 | AE65: =IFERROR(VLOOKUP($A65,'2001 Data'!$A$5:$AH$65001,York!AE$2,FALSE),"No Data") -> 6122 | AF65: =IFERROR(VLOOKUP($A65,'2001 Data'!$A$5:$AH$65001,York!AF$2,FALSE),"No Data") -> 3151 | AG65: =IFERROR(VLOOKUP($A65,'2001 Data'!$A$5:$AH$65001,York!AG$2,FALSE),"No Data") -> 9558 | AH65: =IFERROR(VLOOKUP($A65,'2001 Data'!$A$5:$AH$65001,York!AH$2,FALSE),"No Data") -> 2940 | AI65: =IFERROR(VLOOKUP($A65,'2001 Data'!$A$5:$AH$65001,York!AI$2,FALSE),"No Data") -> 8807 | AJ65: =IFERROR(VLOOKUP($A65,'2001 Data'!$A$5:$AH$65001,York!AJ$2,FALSE),"No Data") -> 6401 | AK65: =IFERROR(VLOOKUP($A65,'2001 Data'!$A$5:$AH$65001,York!AK$2,FALSE),"No Data") -> 2096 | AL65: =IFERROR(VLOOKUP($A65,'2001 Data'!$A$5:$AH$65001,York!AL$2,FALSE),"No Data") -> 5803 | AM65: =IFERROR(VLOOKUP($A65,'2001 Data'!$A$5:$AH$65001,York!AM$2,FALSE),"No Data") -> 10202 | AN65: =IFERROR(VLOOKUP($A65,'2001 Data'!$A$5:$AH$65001,York!AN$2,FALSE),"No Data") -> 917 | AO65: =IFERROR(VLOOKUP($A65,'2001 Data'!$A$5:$AH$65001,York!AO$2,FALSE),"No Data") -> 9124 | AP65: =IFERROR(VLOOKUP($A65,'2001 Data'!$A$5:$AH$65001,York!AP$2,FALSE),"No Data") -> 3229 | AQ65: =IFERROR(VLOOKUP($A65,'2001 Data'!$A$5:$AH$65001,York!AQ$2,FALSE),"No Data") -> 9443 | AR65: =IFERROR(VLOOKUP($A65,'2001 Data'!$A$5:$AH$65001,York!AR$2,FALSE),"No Data") -> 6731 | AS65: =IFERROR(VLOOKUP($A65,'2001 Data'!$A$5:$AH$65001,York!AS$2,FALSE),"No Data") -> 9737 | AT65: =IFERROR(VLOOKUP($A65,'2001 Data'!$A$5:$AH$65001,York!AT$2,FALSE),"No Data") -> 9446 | AU65: =IFERROR(VLOOKUP($A65,'2001 Data'!$A$5:$AH$65001,York!AU$2,FALSE),"No Data") -> 2585 | AV65: =IFERROR(VLOOKUP($A65,'2001 Data'!$A$5:$AH$65001,York!AV$2,FALSE),"No Data") -> 8033 | AW65: =IFERROR(VLOOKUP($A65,'2001 Data'!$A$5:$AH$65001,York!AW$2,FALSE),"No Data") -> 9552 | AX65: =IFERROR(VLOOKUP($A65,'2001 Data'!$A$5:$AH$65001,York!AX$2,FALSE),"No Data") -> 5926 | AY65: =IFERROR(VLOOKUP($A65,'2001 Data'!$A$5:$AH$65001,York!AY$2,FALSE),"No Data") -> 10438 | AZ65: =IFERROR(VLOOKUP($A65,'2001 Data'!$A$5:$AH$65001,York!AZ$2,FALSE),"No Data") -> 3040 | BA65: =IFERROR(VLOOKUP($A65,'2001 Data'!$A$5:$AH$65001,York!BA$2,FALSE),"No Data") -> 143281 | BB65: =IFERROR(VLOOKUP($A65,'2001 Data'!$A$5:$AH$65001,York!BB$2,FALSE),"No Data") -> 40666546 | BC65: =IFERROR(VLOOKUP($A65,'2001 Data'!$A$5:$AH$65001,York!BC$2,FALSE),"No Data") -> 38393304 | BE65: V:\Business Intelligence Hub\01 - The City\2011 Census\Data\2nd Release - Key Indicators\Lower Areas and Wards\Initial Briefing\Census 2011 Bulk Data Load\Ward Bulk Data\Key Statisitics Bulk Load\[KEYSTATS FILE2.xlsx]KS104EWDATA | BF65: 1 | BG65: =VLOOKUP(BF65,Sheet3!$B$2:$C$77,2,FALSE) -> $D$7:$D$28 | BH65: 'V:\Business Intelligence Hub\01 - The City\2011 Census\Data\2nd Release - Key Indicators\Lower Areas and Wards\Initial Briefing\Census 2011 Bulk Data Load\Ward Bulk Data\Key Statisitics Bulk Load\[KEYSTATS FILE2.xlsx]KS104EWDATA'!$D$7:$D$28 | BI65: 15 | BJ65: =VLOOKUP(BI65,Sheet3!$B$2:$F$77,5,FALSE) -> $A$1:$r$28 | BK65: 'V:\Business Intelligence Hub\01 - The City\2011 Census\Data\2nd Release - Key Indicators\Lower Areas and Wards\Initial Briefing\Census 2011 Bulk Data Load\Ward Bulk Data\Key Statisitics Bulk Load\[KEYSTATS FILE2.xlsx]KS104EWDATA'!$A$1:$r$28
A66: KS104EW0002 | B66: Count | C66: Person | D66: Living arrangements | E66: Living in a couple: Married or in a registered same-sex civil partnership | F66: 12 | G66: 16 | H66: 10 | I66: 18 | J66: 5 | K66: 13 | L66: 21 | M66: 19 | N66: 1 | O66: 22 | P66: 8 | Q66: 17 | R66: 7 | S66: 14 | T66: 4 | U66: 11 | V66: 20 | W66: 3 | X66: 2 | Y66: 9 | Z66: 6 | AA66: 15 | AB66: 70887 | AC66: 1937452 | AD66: 19296455 | AE66: =IFERROR(VLOOKUP($A66,'2001 Data'!$A$5:$AH$65001,York!AE$2,FALSE),"No Data") -> 3464 | AF66: =IFERROR(VLOOKUP($A66,'2001 Data'!$A$5:$AH$65001,York!AF$2,FALSE),"No Data") -> 1966 | AG66: =IFERROR(VLOOKUP($A66,'2001 Data'!$A$5:$AH$65001,York!AG$2,FALSE),"No Data") -> 3492 | AH66: =IFERROR(VLOOKUP($A66,'2001 Data'!$A$5:$AH$65001,York!AH$2,FALSE),"No Data") -> 1938 | AI66: =IFERROR(VLOOKUP($A66,'2001 Data'!$A$5:$AH$65001,York!AI$2,FALSE),"No Data") -> 5112 | AJ66: =IFERROR(VLOOKUP($A66,'2001 Data'!$A$5:$AH$65001,York!AJ$2,FALSE),"No Data") -> 2342 | AK66: =IFERROR(VLOOKUP($A66,'2001 Data'!$A$5:$AH$65001,York!AK$2,FALSE),"No Data") -> 1146 | AL66: =IFERROR(VLOOKUP($A66,'2001 Data'!$A$5:$AH$65001,York!AL$2,FALSE),"No Data") -> 1504 | AM66: =IFERROR(VLOOKUP($A66,'2001 Data'!$A$5:$AH$65001,York!AM$2,FALSE),"No Data") -> 6302 | AN66: =IFERROR(VLOOKUP($A66,'2001 Data'!$A$5:$AH$65001,York!AN$2,FALSE),"No Data") -> 436 | AO66: =IFERROR(VLOOKUP($A66,'2001 Data'!$A$5:$AH$65001,York!AO$2,FALSE),"No Data") -> 4046 | AP66: =IFERROR(VLOOKUP($A66,'2001 Data'!$A$5:$AH$65001,York!AP$2,FALSE),"No Data") -> 2054 | AQ66: =IFERROR(VLOOKUP($A66,'2001 Data'!$A$5:$AH$65001,York!AQ$2,FALSE),"No Data") -> 4226 | AR66: =IFERROR(VLOOKUP($A66,'2001 Data'!$A$5:$AH$65001,York!AR$2,FALSE),"No Data") -> 2830 | AS66: =IFERROR(VLOOKUP($A66,'2001 Data'!$A$5:$AH$65001,York!AS$2,FALSE),"No Data") -> 5654 | AT66: =IFERROR(VLOOKUP($A66,'2001 Data'!$A$5:$AH$65001,York!AT$2,FALSE),"No Data") -> 3024 | AU66: =IFERROR(VLOOKUP($A66,'2001 Data'!$A$5:$AH$65001,York!AU$2,FALSE),"No Data") -> 1508 | AV66: =IFERROR(VLOOKUP($A66,'2001 Data'!$A$5:$AH$65001,York!AV$2,FALSE),"No Data") -> 5231 | AW66: =IFERROR(VLOOKUP($A66,'2001 Data'!$A$5:$AH$65001,York!AW$2,FALSE),"No Data") -> 5620 | AX66: =IFERROR(VLOOKUP($A66,'2001 Data'!$A$5:$AH$65001,York!AX$2,FALSE),"No Data") -> 3864 | AY66: =IFERROR(VLOOKUP($A66,'2001 Data'!$A$5:$AH$65001,York!AY$2,FALSE),"No Data") -> 4640 | AZ66: =IFERROR(VLOOKUP($A66,'2001 Data'!$A$5:$AH$65001,York!AZ$2,FALSE),"No Data") -> 2006 | BA66: =IFERROR(VLOOKUP($A66,'2001 Data'!$A$5:$AH$65001,York!BA$2,FALSE),"No Data") -> 72405 | BB66: =IFERROR(VLOOKUP($A66,'2001 Data'!$A$5:$AH$65001,York!BB$2,FALSE),"No Data") -> 20635166 | BC66: =IFERROR(VLOOKUP($A66,'2001 Data'!$A$5:$AH$65001,York!BC$2,FALSE),"No Data") -> 19455195 | BE66: V:\Business Intelligence Hub\01 - The City\2011 Census\Data\2nd Release - Key Indicators\Lower Areas and Wards\Initial Briefing\Census 2011 Bulk Data Load\Ward Bulk Data\Key Statisitics Bulk Load\[KEYSTATS FILE2.xlsx]KS104EWDATA | BF66: 2 | BG66: =VLOOKUP(BF66,Sheet3!$B$2:$C$77,2,FALSE) -> $E$7:$E$28 | BH66: 'V:\Business Intelligence Hub\01 - The City\2011 Census\Data\2nd Release - Key Indicators\Lower Areas and Wards\Initial Briefing\Census 2011 Bulk Data Load\Ward Bulk Data\Key Statisitics Bulk Load\[KEYSTATS FILE2.xlsx]KS104EWDATA'!$E$7:$E$28 | BI66: 15 | BJ66: =VLOOKUP(BI66,Sheet3!$B$2:$F$77,5,FALSE) -> $A$1:$r$28 | BK66: 'V:\Business Intelligence Hub\01 - The City\2011 Census\Data\2nd Release - Key Indicators\Lower Areas and Wards\Initial Briefing\Census 2011 Bulk Data Load\Ward Bulk Data\Key Statisitics Bulk Load\[KEYSTATS FILE2.xlsx]KS104EWDATA'!$A$1:$r$28
A67: KS104EW0003 | B67: Count | C67: Person | D67: Living arrangements | E67: Living in a couple: Cohabiting | F67: 13 | G67: 19 | H67: 4 | I67: 21 | J67: 11 | K67: 10 | L67: 20 | M67: 8 | N67: 12 | O67: 22 | P67: 5 | Q67: 18 | R67: 2 | S67: 9 | T67: 7 | U67: 1 | V67: 17 | W67: 14 | X67: 6 | Y67: 15 | Z67: 3 | AA67: 16 | AB67: 20905 | AC67: 536601 | AD67: 5024849 | AE67: =IFERROR(VLOOKUP($A67,'2001 Data'!$A$5:$AH$65001,York!AE$2,FALSE),"No Data") -> 570 | AF67: =IFERROR(VLOOKUP($A67,'2001 Data'!$A$5:$AH$65001,York!AF$2,FALSE),"No Data") -> 206 | AG67: =IFERROR(VLOOKUP($A67,'2001 Data'!$A$5:$AH$65001,York!AG$2,FALSE),"No Data") -> 1278 | AH67: =IFERROR(VLOOKUP($A67,'2001 Data'!$A$5:$AH$65001,York!AH$2,FALSE),"No Data") -> 162 | AI67: =IFERROR(VLOOKUP($A67,'2001 Data'!$A$5:$AH$65001,York!AI$2,FALSE),"No Data") -> 772 | AJ67: =IFERROR(VLOOKUP($A67,'2001 Data'!$A$5:$AH$65001,York!AJ$2,FALSE),"No Data") -> 820 | AK67: =IFERROR(VLOOKUP($A67,'2001 Data'!$A$5:$AH$65001,York!AK$2,FALSE),"No Data") -> 176 | AL67: =IFERROR(VLOOKUP($A67,'2001 Data'!$A$5:$AH$65001,York!AL$2,FALSE),"No Data") -> 808 | AM67: =IFERROR(VLOOKUP($A67,'2001 Data'!$A$5:$AH$65001,York!AM$2,FALSE),"No Data") -> 668 | AN67: =IFERROR(VLOOKUP($A67,'2001 Data'!$A$5:$AH$65001,York!AN$2,FALSE),"No Data") -> 88 | AO67: =IFERROR(VLOOKUP($A67,'2001 Data'!$A$5:$AH$65001,York!AO$2,FALSE),"No Data") -> 992 | AP67: =IFERROR(VLOOKUP($A67,'2001 Data'!$A$5:$AH$65001,York!AP$2,FALSE),"No Data") -> 186 | AQ67: =IFERROR(VLOOKUP($A67,'2001 Data'!$A$5:$AH$65001,York!AQ$2,FALSE),"No Data") -> 1382 | AR67: =IFERROR(VLOOKUP($A67,'2001 Data'!$A$5:$AH$65001,York!AR$2,FALSE),"No Data") -> 662 | AS67: =IFERROR(VLOOKUP($A67,'2001 Data'!$A$5:$AH$65001,York!AS$2,FALSE),"No Data") -> 798 | AT67: =IFERROR(VLOOKUP($A67,'2001 Data'!$A$5:$AH$65001,York!AT$2,FALSE),"No Data") -> 1416 | AU67: =IFERROR(VLOOKUP($A67,'2001 Data'!$A$5:$AH$65001,York!AU$2,FALSE),"No Data") -> 204 | AV67: =IFERROR(VLOOKUP($A67,'2001 Data'!$A$5:$AH$65001,York!AV$2,FALSE),"No Data") -> 572 | AW67: =IFERROR(VLOOKUP($A67,'2001 Data'!$A$5:$AH$65001,York!AW$2,FALSE),"No Data") -> 1130 | AX67: =IFERROR(VLOOKUP($A67,'2001 Data'!$A$5:$AH$65001,York!AX$2,FALSE),"No Data") -> 526 | AY67: =IFERROR(VLOOKUP($A67,'2001 Data'!$A$5:$AH$65001,York!AY$2,FALSE),"No Data") -> 1244 | AZ67: =IFERROR(VLOOKUP($A67,'2001 Data'!$A$5:$AH$65001,York!AZ$2,FALSE),"No Data") -> 280 | BA67: =IFERROR(VLOOKUP($A67,'2001 Data'!$A$5:$AH$65001,York!BA$2,FALSE),"No Data") -> 14940 | BB67: =IFERROR(VLOOKUP($A67,'2001 Data'!$A$5:$AH$65001,York!BB$2,FALSE),"No Data") -> 4001144 | BC67: =IFERROR(VLOOKUP($A67,'2001 Data'!$A$5:$AH$65001,York!BC$2,FALSE),"No Data") -> 3801689 | BE67: V:\Business Intelligence Hub\01 - The City\2011 Census\Data\2nd Release - Key Indicators\Lower Areas and Wards\Initial Briefing\Census 2011 Bulk Data Load\Ward Bulk Data\Key Statisitics Bulk Load\[KEYSTATS FILE2.xlsx]KS104EWDATA | BF67: 3 | BG67: =VLOOKUP(BF67,Sheet3!$B$2:$C$77,2,FALSE) -> $F$7:$F$28 | BH67: 'V:\Business Intelligence Hub\01 - The City\2011 Census\Data\2nd Release - Key Indicators\Lower Areas and Wards\Initial Briefing\Census 2011 Bulk Data Load\Ward Bulk Data\Key Statisitics Bulk Load\[KEYSTATS FILE2.xlsx]KS104EWDATA'!$F$7:$F$28 | BI67: 15 | BJ67: =VLOOKUP(BI67,Sheet3!$B$2:$F$77,5,FALSE) -> $A$1:$r$28 | BK67: 'V:\Business Intelligence Hub\01 - The City\2011 Census\Data\2nd Release - Key Indicators\Lower Areas and Wards\Initial Briefing\Census 2011 Bulk Data Load\Ward Bulk Data\Key Statisitics Bulk Load\[KEYSTATS FILE2.xlsx]KS104EWDATA'!$A$1:$r$28
A68: KS104EW0004 | B68: Count | C68: Person | D68: Living arrangements | E68: Not living in a couple: Single (never married or never registered a same-sex civil partnership) | F68: 13 | G68: 19 | H68: 3 | I68: 21 | J68: 11 | K68: 6 | L68: 17 | M68: 5 | N68: 12 | O68: 22 | P68: 2 | Q68: 18 | R68: 8 | S68: 1 | T68: 9 | U68: 4 | V68: 16 | W68: 14 | X68: 10 | Y68: 15 | Z68: 7 | AA68: 20 | AB68: 42917 | AC68: 1027115 | AD68: 10862019 | AE68: =IFERROR(VLOOKUP($A68,'2001 Data'!$A$5:$AH$65001,York!AE$2,FALSE),"No Data") -> 1156 | AF68: =IFERROR(VLOOKUP($A68,'2001 Data'!$A$5:$AH$65001,York!AF$2,FALSE),"No Data") -> 501 | AG68: =IFERROR(VLOOKUP($A68,'2001 Data'!$A$5:$AH$65001,York!AG$2,FALSE),"No Data") -> 3098 | AH68: =IFERROR(VLOOKUP($A68,'2001 Data'!$A$5:$AH$65001,York!AH$2,FALSE),"No Data") -> 450 | AI68: =IFERROR(VLOOKUP($A68,'2001 Data'!$A$5:$AH$65001,York!AI$2,FALSE),"No Data") -> 1582 | AJ68: =IFERROR(VLOOKUP($A68,'2001 Data'!$A$5:$AH$65001,York!AJ$2,FALSE),"No Data") -> 2285 | AK68: =IFERROR(VLOOKUP($A68,'2001 Data'!$A$5:$AH$65001,York!AK$2,FALSE),"No Data") -> 420 | AL68: =IFERROR(VLOOKUP($A68,'2001 Data'!$A$5:$AH$65001,York!AL$2,FALSE),"No Data") -> 2320 | AM68: =IFERROR(VLOOKUP($A68,'2001 Data'!$A$5:$AH$65001,York!AM$2,FALSE),"No Data") -> 1778 | AN68: =IFERROR(VLOOKUP($A68,'2001 Data'!$A$5:$AH$65001,York!AN$2,FALSE),"No Data") -> 252 | AO68: =IFERROR(VLOOKUP($A68,'2001 Data'!$A$5:$AH$65001,York!AO$2,FALSE),"No Data") -> 2375 | AP68: =IFERROR(VLOOKUP($A68,'2001 Data'!$A$5:$AH$65001,York!AP$2,FALSE),"No Data") -> 518 | AQ68: =IFERROR(VLOOKUP($A68,'2001 Data'!$A$5:$AH$65001,York!AQ$2,FALSE),"No Data") -> 2264 | AR68: =IFERROR(VLOOKUP($A68,'2001 Data'!$A$5:$AH$65001,York!AR$2,FALSE),"No Data") -> 2285 | AS68: =IFERROR(VLOOKUP($A68,'2001 Data'!$A$5:$AH$65001,York!AS$2,FALSE),"No Data") -> 1719 | AT68: =IFERROR(VLOOKUP($A68,'2001 Data'!$A$5:$AH$65001,York!AT$2,FALSE),"No Data") -> 3397 | AU68: =IFERROR(VLOOKUP($A68,'2001 Data'!$A$5:$AH$65001,York!AU$2,FALSE),"No Data") -> 470 | AV68: =IFERROR(VLOOKUP($A68,'2001 Data'!$A$5:$AH$65001,York!AV$2,FALSE),"No Data") -> 1227 | AW68: =IFERROR(VLOOKUP($A68,'2001 Data'!$A$5:$AH$65001,York!AW$2,FALSE),"No Data") -> 1610 | AX68: =IFERROR(VLOOKUP($A68,'2001 Data'!$A$5:$AH$65001,York!AX$2,FALSE),"No Data") -> 885 | AY68: =IFERROR(VLOOKUP($A68,'2001 Data'!$A$5:$AH$65001,York!AY$2,FALSE),"No Data") -> 2502 | AZ68: =IFERROR(VLOOKUP($A68,'2001 Data'!$A$5:$AH$65001,York!AZ$2,FALSE),"No Data") -> 422 | BA68: =IFERROR(VLOOKUP($A68,'2001 Data'!$A$5:$AH$65001,York!BA$2,FALSE),"No Data") -> 33516 | BB68: =IFERROR(VLOOKUP($A68,'2001 Data'!$A$5:$AH$65001,York!BB$2,FALSE),"No Data") -> 9363291 | BC68: =IFERROR(VLOOKUP($A68,'2001 Data'!$A$5:$AH$65001,York!BC$2,FALSE),"No Data") -> 8863762 | BE68: V:\Business Intelligence Hub\01 - The City\2011 Census\Data\2nd Release - Key Indicators\Lower Areas and Wards\Initial Briefing\Census 2011 Bulk Data Load\Ward Bulk Data\Key Statisitics Bulk Load\[KEYSTATS FILE2.xlsx]KS104EWDATA | BF68: 4 | BG68: =VLOOKUP(BF68,Sheet3!$B$2:$C$77,2,FALSE) -> $g$7:$g$28 | BH68: 'V:\Business Intelligence Hub\01 - The City\2011 Census\Data\2nd Release - Key Indicators\Lower Areas and Wards\Initial Briefing\Census 2011 Bulk Data Load\Ward Bulk Data\Key Statisitics Bulk Load\[KEYSTATS FILE2.xlsx]KS104EWDATA'!$g$7:$g$28 | BI68: 15 | BJ68: =VLOOKUP(BI68,Sheet3!$B$2:$F$77,5,FALSE) -> $A$1:$r$28 | BK68: 'V:\Business Intelligence Hub\01 - The City\2011 Census\Data\2nd Release - Key Indicators\Lower Areas and Wards\Initial Briefing\Census 2011 Bulk Data Load\Ward Bulk Data\Key Statisitics Bulk Load\[KEYSTATS FILE2.xlsx]KS104EWDATA'!$A$1:$r$28
A69: KS104EW0005 | B69: Count | C69: Person | D69: Living arrangements | E69: Not living in a couple: Married or in a registered same-sex civil partnership | F69: 15 | G69: 17 | H69: 3 | I69: 19 | J69: 12 | K69: 5 | L69: 16 | M69: 2 | N69: 11 | O69: 22 | P69: 4 | Q69: 21 | R69: 10 | S69: 6 | T69: 9 | U69: 1 | V69: 19 | W69: 14 | X69: 7 | Y69: 13 | Z69: 7 | AA69: 18 | AB69: 1888 | AC69: 52906 | AD69: 613991 | AE69: =IFERROR(VLOOKUP($A69,'2001 Data'!$A$5:$AH$65001,York!AE$2,FALSE),"No Data") -> 33 | AF69: =IFERROR(VLOOKUP($A69,'2001 Data'!$A$5:$AH$65001,York!AF$2,FALSE),"No Data") -> 20 | AG69: =IFERROR(VLOOKUP($A69,'2001 Data'!$A$5:$AH$65001,York!AG$2,FALSE),"No Data") -> 79 | AH69: =IFERROR(VLOOKUP($A69,'2001 Data'!$A$5:$AH$65001,York!AH$2,FALSE),"No Data") -> 4 | AI69: =IFERROR(VLOOKUP($A69,'2001 Data'!$A$5:$AH$65001,York!AI$2,FALSE),"No Data") -> 53 | AJ69: =IFERROR(VLOOKUP($A69,'2001 Data'!$A$5:$AH$65001,York!AJ$2,FALSE),"No Data") -> 44 | AK69: =IFERROR(VLOOKUP($A69,'2001 Data'!$A$5:$AH$65001,York!AK$2,FALSE),"No Data") -> 18 | AL69: =IFERROR(VLOOKUP($A69,'2001 Data'!$A$5:$AH$65001,York!AL$2,FALSE),"No Data") -> 77 | AM69: =IFERROR(VLOOKUP($A69,'2001 Data'!$A$5:$AH$65001,York!AM$2,FALSE),"No Data") -> 45 | AN69: =IFERROR(VLOOKUP($A69,'2001 Data'!$A$5:$AH$65001,York!AN$2,FALSE),"No Data") -> 11 | AO69: =IFERROR(VLOOKUP($A69,'2001 Data'!$A$5:$AH$65001,York!AO$2,FALSE),"No Data") -> 66 | AP69: =IFERROR(VLOOKUP($A69,'2001 Data'!$A$5:$AH$65001,York!AP$2,FALSE),"No Data") -> 17 | AQ69: =IFERROR(VLOOKUP($A69,'2001 Data'!$A$5:$AH$65001,York!AQ$2,FALSE),"No Data") -> 59 | AR69: =IFERROR(VLOOKUP($A69,'2001 Data'!$A$5:$AH$65001,York!AR$2,FALSE),"No Data") -> 47 | AS69: =IFERROR(VLOOKUP($A69,'2001 Data'!$A$5:$AH$65001,York!AS$2,FALSE),"No Data") -> 30 | AT69: =IFERROR(VLOOKUP($A69,'2001 Data'!$A$5:$AH$65001,York!AT$2,FALSE),"No Data") -> 85 | AU69: =IFERROR(VLOOKUP($A69,'2001 Data'!$A$5:$AH$65001,York!AU$2,FALSE),"No Data") -> 9 | AV69: =IFERROR(VLOOKUP($A69,'2001 Data'!$A$5:$AH$65001,York!AV$2,FALSE),"No Data") -> 47 | AW69: =IFERROR(VLOOKUP($A69,'2001 Data'!$A$5:$AH$65001,York!AW$2,FALSE),"No Data") -> 50 | AX69: =IFERROR(VLOOKUP($A69,'2001 Data'!$A$5:$AH$65001,York!AX$2,FALSE),"No Data") -> 28 | AY69: =IFERROR(VLOOKUP($A69,'2001 Data'!$A$5:$AH$65001,York!AY$2,FALSE),"No Data") -> 62 | AZ69: =IFERROR(VLOOKUP($A69,'2001 Data'!$A$5:$AH$65001,York!AZ$2,FALSE),"No Data") -> 19 | BA69: =IFERROR(VLOOKUP($A69,'2001 Data'!$A$5:$AH$65001,York!BA$2,FALSE),"No Data") -> 903 | BB69: =IFERROR(VLOOKUP($A69,'2001 Data'!$A$5:$AH$65001,York!BB$2,FALSE),"No Data") -> 375244 | BC69: =IFERROR(VLOOKUP($A69,'2001 Data'!$A$5:$AH$65001,York!BC$2,FALSE),"No Data") -> 359329 | BE69: =$BM$5&LEFT(A69,7)&"DATA" -> V:\Business Intelligence Hub\01 - The City\2011 Census\Data\2nd Release - Key Indicators\Lower Areas and Wards\Initial Briefing\Census 2011 Bulk Data Load\Ward Bulk Data\Key Statisitics Bulk Load\[KEYSTATS FILE2.xlsx]KS104EWDATA | BF69: 5 | BG69: =VLOOKUP(BF69,Sheet3!$B$2:$C$77,2,FALSE) -> $h$7:$h$28 | BH69: 'V:\Business Intelligence Hub\01 - The City\2011 Census\Data\2nd Release - Key Indicators\Lower Areas and Wards\Initial Briefing\Census 2011 Bulk Data Load\Ward Bulk Data\Key Statisitics Bulk Load\[KEYSTATS FILE2.xlsx]KS104EWDATA'!$h$7:$h$28 | BI69: 15 | BJ69: =VLOOKUP(BI69,Sheet3!$B$2:$F$77,5,FALSE) -> $A$1:$r$28 | BK69: 'V:\Business Intelligence Hub\01 - The City\2011 Census\Data\2nd Release - Key Indicators\Lower Areas and Wards\Initial Briefing\Census 2011 Bulk Data Load\Ward Bulk Data\Key Statisitics Bulk Load\[KEYSTATS FILE2.xlsx]KS104EWDATA'!$A$1:$r$28
A70: KS104EW0006 | B70: Count | C70: Person | D70: Living arrangements | E70: Not living in a couple: Separated (but still legally married or still legally in a same-sex civil partnership) | F70: 12 | G70: 16 | H70: 3 | I70: 18 | J70: 8 | K70: 13 | L70: 21 | M70: 7 | N70: 11 | O70: 22 | P70: 5 | Q70: 17 | R70: 4 | S70: 14 | T70: 9 | U70: 2 | V70: 20 | W70: 10 | X70: 6 | Y70: 15 | Z70: 1 | AA70: 18 | AB70: 2486 | AC70: 86572 | AD70: 898194 | AE70: =IFERROR(VLOOKUP($A70,'2001 Data'!$A$5:$AH$65001,York!AE$2,FALSE),"No Data") -> 85 | AF70: =IFERROR(VLOOKUP($A70,'2001 Data'!$A$5:$AH$65001,York!AF$2,FALSE),"No Data") -> 44 | AG70: =IFERROR(VLOOKUP($A70,'2001 Data'!$A$5:$AH$65001,York!AG$2,FALSE),"No Data") -> 202 | AH70: =IFERROR(VLOOKUP($A70,'2001 Data'!$A$5:$AH$65001,York!AH$2,FALSE),"No Data") -> 34 | AI70: =IFERROR(VLOOKUP($A70,'2001 Data'!$A$5:$AH$65001,York!AI$2,FALSE),"No Data") -> 122 | AJ70: =IFERROR(VLOOKUP($A70,'2001 Data'!$A$5:$AH$65001,York!AJ$2,FALSE),"No Data") -> 109 | AK70: =IFERROR(VLOOKUP($A70,'2001 Data'!$A$5:$AH$65001,York!AK$2,FALSE),"No Data") -> 36 | AL70: =IFERROR(VLOOKUP($A70,'2001 Data'!$A$5:$AH$65001,York!AL$2,FALSE),"No Data") -> 139 | AM70: =IFERROR(VLOOKUP($A70,'2001 Data'!$A$5:$AH$65001,York!AM$2,FALSE),"No Data") -> 101 | AN70: =IFERROR(VLOOKUP($A70,'2001 Data'!$A$5:$AH$65001,York!AN$2,FALSE),"No Data") -> 9 | AO70: =IFERROR(VLOOKUP($A70,'2001 Data'!$A$5:$AH$65001,York!AO$2,FALSE),"No Data") -> 172 | AP70: =IFERROR(VLOOKUP($A70,'2001 Data'!$A$5:$AH$65001,York!AP$2,FALSE),"No Data") -> 29 | AQ70: =IFERROR(VLOOKUP($A70,'2001 Data'!$A$5:$AH$65001,York!AQ$2,FALSE),"No Data") -> 201 | AR70: =IFERROR(VLOOKUP($A70,'2001 Data'!$A$5:$AH$65001,York!AR$2,FALSE),"No Data") -> 105 | AS70: =IFERROR(VLOOKUP($A70,'2001 Data'!$A$5:$AH$65001,York!AS$2,FALSE),"No Data") -> 150 | AT70: =IFERROR(VLOOKUP($A70,'2001 Data'!$A$5:$AH$65001,York!AT$2,FALSE),"No Data") -> 165 | AU70: =IFERROR(VLOOKUP($A70,'2001 Data'!$A$5:$AH$65001,York!AU$2,FALSE),"No Data") -> 27 | AV70: =IFERROR(VLOOKUP($A70,'2001 Data'!$A$5:$AH$65001,York!AV$2,FALSE),"No Data") -> 86 | AW70: =IFERROR(VLOOKUP($A70,'2001 Data'!$A$5:$AH$65001,York!AW$2,FALSE),"No Data") -> 154 | AX70: =IFERROR(VLOOKUP($A70,'2001 Data'!$A$5:$AH$65001,York!AX$2,FALSE),"No Data") -> 77 | AY70: =IFERROR(VLOOKUP($A70,'2001 Data'!$A$5:$AH$65001,York!AY$2,FALSE),"No Data") -> 258 | AZ70: =IFERROR(VLOOKUP($A70,'2001 Data'!$A$5:$AH$65001,York!AZ$2,FALSE),"No Data") -> 45 | BA70: =IFERROR(VLOOKUP($A70,'2001 Data'!$A$5:$AH$65001,York!BA$2,FALSE),"No Data") -> 2350 | BB70: =IFERROR(VLOOKUP($A70,'2001 Data'!$A$5:$AH$65001,York!BB$2,FALSE),"No Data") -> 775688 | BC70: =IFERROR(VLOOKUP($A70,'2001 Data'!$A$5:$AH$65001,York!BC$2,FALSE),"No Data") -> 740119 | BE70: V:\Business Intelligence Hub\01 - The City\2011 Census\Data\2nd Release - Key Indicators\Lower Areas and Wards\Initial Briefing\Census 2011 Bulk Data Load\Ward Bulk Data\Key Statisitics Bulk Load\[KEYSTATS FILE2.xlsx]KS104EWDATA | BF70: =IF(BE70=BE69,BF69+1,1) -> 6 | BG70: =VLOOKUP(BF70,Sheet3!$B$2:$C$77,2,FALSE) -> $i$7:$i$28 | BH70: ="'"&BE70&"'!"&BG70 -> 'V:\Business Intelligence Hub\01 - The City\2011 Census\Data\2nd Release - Key Indicators\Lower Areas and Wards\Initial Briefing\Census 2011 Bulk Data Load\Ward Bulk Data\Key Statisitics Bulk Load\[KEYSTATS FILE2.xlsx]KS104EWDATA'!$i$7:$i$28 | BI70: =COUNTIF($BE$5:$BE$897,BE70) -> 15 | BJ70: =VLOOKUP(BI70,Sheet3!$B$2:$F$77,5,FALSE) -> $A$1:$r$28 | BK70: ="'"&BE70&"'!"&BJ70 -> 'V:\Business Intelligence Hub\01 - The City\2011 Census\Data\2nd Release - Key Indicators\Lower Areas and Wards\Initial Briefing\Census 2011 Bulk Data Load\Ward Bulk Data\Key Statisitics Bulk Load\[KEYSTATS FILE2.xlsx]KS104EWDATA'!$A$1:$r$28
A71: KS104EW0007 | B71: Count | C71: Person | D71: Living arrangements | E71: Not living in a couple: Divorced or formerly in a same-sex civil partnership which is now legally dissolved | F71: 13 | G71: 16 | H71: 5 | I71: 20 | J71: 10 | K71: 12 | L71: 19 | M71: 8 | N71: 9 | O71: 22 | P71: 4 | Q71: 18 | R71: 3 | S71: 11 | T71: 6 | U71: 2 | V71: 17 | W71: 14 | X71: 7 | Y71: 15 | Z71: 1 | AA71: 21 | AB71: 9879 | AC71: 276625 | AD71: 2745873 | AE71: =IFERROR(VLOOKUP($A71,'2001 Data'!$A$5:$AH$65001,York!AE$2,FALSE),"No Data") -> 308 | AF71: =IFERROR(VLOOKUP($A71,'2001 Data'!$A$5:$AH$65001,York!AF$2,FALSE),"No Data") -> 142 | AG71: =IFERROR(VLOOKUP($A71,'2001 Data'!$A$5:$AH$65001,York!AG$2,FALSE),"No Data") -> 685 | AH71: =IFERROR(VLOOKUP($A71,'2001 Data'!$A$5:$AH$65001,York!AH$2,FALSE),"No Data") -> 111 | AI71: =IFERROR(VLOOKUP($A71,'2001 Data'!$A$5:$AH$65001,York!AI$2,FALSE),"No Data") -> 447 | AJ71: =IFERROR(VLOOKUP($A71,'2001 Data'!$A$5:$AH$65001,York!AJ$2,FALSE),"No Data") -> 365 | AK71: =IFERROR(VLOOKUP($A71,'2001 Data'!$A$5:$AH$65001,York!AK$2,FALSE),"No Data") -> 104 | AL71: =IFERROR(VLOOKUP($A71,'2001 Data'!$A$5:$AH$65001,York!AL$2,FALSE),"No Data") -> 534 | AM71: =IFERROR(VLOOKUP($A71,'2001 Data'!$A$5:$AH$65001,York!AM$2,FALSE),"No Data") -> 462 | AN71: =IFERROR(VLOOKUP($A71,'2001 Data'!$A$5:$AH$65001,York!AN$2,FALSE),"No Data") -> 52 | AO71: =IFERROR(VLOOKUP($A71,'2001 Data'!$A$5:$AH$65001,York!AO$2,FALSE),"No Data") -> 640 | AP71: =IFERROR(VLOOKUP($A71,'2001 Data'!$A$5:$AH$65001,York!AP$2,FALSE),"No Data") -> 132 | AQ71: =IFERROR(VLOOKUP($A71,'2001 Data'!$A$5:$AH$65001,York!AQ$2,FALSE),"No Data") -> 656 | AR71: =IFERROR(VLOOKUP($A71,'2001 Data'!$A$5:$AH$65001,York!AR$2,FALSE),"No Data") -> 394 | AS71: =IFERROR(VLOOKUP($A71,'2001 Data'!$A$5:$AH$65001,York!AS$2,FALSE),"No Data") -> 525 | AT71: =IFERROR(VLOOKUP($A71,'2001 Data'!$A$5:$AH$65001,York!AT$2,FALSE),"No Data") -> 692 | AU71: =IFERROR(VLOOKUP($A71,'2001 Data'!$A$5:$AH$65001,York!AU$2,FALSE),"No Data") -> 118 | AV71: =IFERROR(VLOOKUP($A71,'2001 Data'!$A$5:$AH$65001,York!AV$2,FALSE),"No Data") -> 321 | AW71: =IFERROR(VLOOKUP($A71,'2001 Data'!$A$5:$AH$65001,York!AW$2,FALSE),"No Data") -> 455 | AX71: =IFERROR(VLOOKUP($A71,'2001 Data'!$A$5:$AH$65001,York!AX$2,FALSE),"No Data") -> 242 | AY71: =IFERROR(VLOOKUP($A71,'2001 Data'!$A$5:$AH$65001,York!AY$2,FALSE),"No Data") -> 838 | AZ71: =IFERROR(VLOOKUP($A71,'2001 Data'!$A$5:$AH$65001,York!AZ$2,FALSE),"No Data") -> 91 | BA71: =IFERROR(VLOOKUP($A71,'2001 Data'!$A$5:$AH$65001,York!BA$2,FALSE),"No Data") -> 8314 | BB71: =IFERROR(VLOOKUP($A71,'2001 Data'!$A$5:$AH$65001,York!BB$2,FALSE),"No Data") -> 2392814 | BC71: =IFERROR(VLOOKUP($A71,'2001 Data'!$A$5:$AH$65001,York!BC$2,FALSE),"No Data") -> 2246986 | BE71: V:\Business Intelligence Hub\01 - The City\2011 Census\Data\2nd Release - Key Indicators\Lower Areas and Wards\Initial Briefing\Census 2011 Bulk Data Load\Ward Bulk Data\Key Statisitics Bulk Load\[KEYSTATS FILE2.xlsx]KS104EWDATA | BF71: 7 | BG71: =VLOOKUP(BF71,Sheet3!$B$2:$C$77,2,FALSE) -> $j$7:$j$28 | BH71: 'V:\Business Intelligence Hub\01 - The City\2011 Census\Data\2nd Release - Key Indicators\Lower Areas and Wards\Initial Briefing\Census 2011 Bulk Data Load\Ward Bulk Data\Key Statisitics Bulk Load\[KEYSTATS FILE2.xlsx]KS104EWDATA'!$j$7:$j$28 | BI71: 15 | BJ71: =VLOOKUP(BI71,Sheet3!$B$2:$F$77,5,FALSE) -> $A$1:$r$28 | BK71: 'V:\Business Intelligence Hub\01 - The City\2011 Census\Data\2nd Release - Key Indicators\Lower Areas and Wards\Initial Briefing\Census 2011 Bulk Data Load\Ward Bulk Data\Key Statisitics Bulk Load\[KEYSTATS FILE2.xlsx]KS104EWDATA'!$A$1:$r$28
A72: KS104EW0008 | B72: Count | C72: Person | D72: Living arrangements | E72: Not living in a couple: Widowed or surviving partner from a same-sex civil partnership | F72: 10 | G72: 17 | H72: 6 | I72: 19 | J72: 5 | K72: 15 | L72: 20 | M72: 14 | N72: 2 | O72: 22 | P72: 4 | Q72: 16 | R72: 7 | S72: 13 | T72: 1 | U72: 11 | V72: 18 | W72: 9 | X72: 8 | Y72: 12 | Z72: 3 | AA72: 21 | AB72: 9811 | AC72: 273278 | AD72: 2635975 | AE72: =IFERROR(VLOOKUP($A72,'2001 Data'!$A$5:$AH$65001,York!AE$2,FALSE),"No Data") -> 506 | AF72: =IFERROR(VLOOKUP($A72,'2001 Data'!$A$5:$AH$65001,York!AF$2,FALSE),"No Data") -> 272 | AG72: =IFERROR(VLOOKUP($A72,'2001 Data'!$A$5:$AH$65001,York!AG$2,FALSE),"No Data") -> 724 | AH72: =IFERROR(VLOOKUP($A72,'2001 Data'!$A$5:$AH$65001,York!AH$2,FALSE),"No Data") -> 241 | AI72: =IFERROR(VLOOKUP($A72,'2001 Data'!$A$5:$AH$65001,York!AI$2,FALSE),"No Data") -> 719 | AJ72: =IFERROR(VLOOKUP($A72,'2001 Data'!$A$5:$AH$65001,York!AJ$2,FALSE),"No Data") -> 436 | AK72: =IFERROR(VLOOKUP($A72,'2001 Data'!$A$5:$AH$65001,York!AK$2,FALSE),"No Data") -> 196 | AL72: =IFERROR(VLOOKUP($A72,'2001 Data'!$A$5:$AH$65001,York!AL$2,FALSE),"No Data") -> 421 | AM72: =IFERROR(VLOOKUP($A72,'2001 Data'!$A$5:$AH$65001,York!AM$2,FALSE),"No Data") -> 846 | AN72: =IFERROR(VLOOKUP($A72,'2001 Data'!$A$5:$AH$65001,York!AN$2,FALSE),"No Data") -> 69 | AO72: =IFERROR(VLOOKUP($A72,'2001 Data'!$A$5:$AH$65001,York!AO$2,FALSE),"No Data") -> 833 | AP72: =IFERROR(VLOOKUP($A72,'2001 Data'!$A$5:$AH$65001,York!AP$2,FALSE),"No Data") -> 293 | AQ72: =IFERROR(VLOOKUP($A72,'2001 Data'!$A$5:$AH$65001,York!AQ$2,FALSE),"No Data") -> 655 | AR72: =IFERROR(VLOOKUP($A72,'2001 Data'!$A$5:$AH$65001,York!AR$2,FALSE),"No Data") -> 408 | AS72: =IFERROR(VLOOKUP($A72,'2001 Data'!$A$5:$AH$65001,York!AS$2,FALSE),"No Data") -> 861 | AT72: =IFERROR(VLOOKUP($A72,'2001 Data'!$A$5:$AH$65001,York!AT$2,FALSE),"No Data") -> 667 | AU72: =IFERROR(VLOOKUP($A72,'2001 Data'!$A$5:$AH$65001,York!AU$2,FALSE),"No Data") -> 249 | AV72: =IFERROR(VLOOKUP($A72,'2001 Data'!$A$5:$AH$65001,York!AV$2,FALSE),"No Data") -> 549 | AW72: =IFERROR(VLOOKUP($A72,'2001 Data'!$A$5:$AH$65001,York!AW$2,FALSE),"No Data") -> 533 | AX72: =IFERROR(VLOOKUP($A72,'2001 Data'!$A$5:$AH$65001,York!AX$2,FALSE),"No Data") -> 304 | AY72: =IFERROR(VLOOKUP($A72,'2001 Data'!$A$5:$AH$65001,York!AY$2,FALSE),"No Data") -> 894 | AZ72: =IFERROR(VLOOKUP($A72,'2001 Data'!$A$5:$AH$65001,York!AZ$2,FALSE),"No Data") -> 177 | BA72: =IFERROR(VLOOKUP($A72,'2001 Data'!$A$5:$AH$65001,York!BA$2,FALSE),"No Data") -> 10853 | BB72: =IFERROR(VLOOKUP($A72,'2001 Data'!$A$5:$AH$65001,York!BB$2,FALSE),"No Data") -> 3123199 | BC72: =IFERROR(VLOOKUP($A72,'2001 Data'!$A$5:$AH$65001,York!BC$2,FALSE),"No Data") -> 2926224 | BE72: V:\Business Intelligence Hub\01 - The City\2011 Census\Data\2nd Release - Key Indicators\Lower Areas and Wards\Initial Briefing\Census 2011 Bulk Data Load\Ward Bulk Data\Key Statisitics Bulk Load\[KEYSTATS FILE2.xlsx]KS104EWDATA | BF72: 8 | BG72: =VLOOKUP(BF72,Sheet3!$B$2:$C$77,2,FALSE) -> $k$7:$k$28 | BH72: 'V:\Business Intelligence Hub\01 - The City\2011 Census\Data\2nd Release - Key Indicators\Lower Areas and Wards\Initial Briefing\Census 2011 Bulk Data Load\Ward Bulk Data\Key Statisitics Bulk Load\[KEYSTATS FILE2.xlsx]KS104EWDATA'!$k$7:$k$28 | BI72: 15 | BJ72: =VLOOKUP(BI72,Sheet3!$B$2:$F$77,5,FALSE) -> $A$1:$r$28 | BK72: 'V:\Business Intelligence Hub\01 - The City\2011 Census\Data\2nd Release - Key Indicators\Lower Areas and Wards\Initial Briefing\Census 2011 Bulk Data Load\Ward Bulk Data\Key Statisitics Bulk Load\[KEYSTATS FILE2.xlsx]KS104EWDATA'!$A$1:$r$28
A73: KS104EW0009 | B73: Percentage | C73: Person | D73: Living arrangements | E73: Living in a couple: Married or in a registered same-sex civil partnership | F73: 11 | G73: 5 | H73: 18 | I73: 3 | J73: 9 | K73: 20 | L73: 13 | M73: 22 | N73: 6 | O73: 14 | P73: 17 | Q73: 7 | R73: 15 | S73: 21 | T73: 10 | U73: 19 | V73: 12 | W73: 2 | X73: 8 | Y73: 4 | Z73: 16 | AA73: 1 | AB73: 0.4465 | AC73: 0.4623 | AD73: 0.4586 | AE73: =IFERROR(VLOOKUP($A73,'2001 Data'!$A$5:$AH$65001,York!AE$2,FALSE),"No Data") -> 56.58 | AF73: =IFERROR(VLOOKUP($A73,'2001 Data'!$A$5:$AH$65001,York!AF$2,FALSE),"No Data") -> 62.39 | AG73: =IFERROR(VLOOKUP($A73,'2001 Data'!$A$5:$AH$65001,York!AG$2,FALSE),"No Data") -> 36.53 | AH73: =IFERROR(VLOOKUP($A73,'2001 Data'!$A$5:$AH$65001,York!AH$2,FALSE),"No Data") -> 65.92 | AI73: =IFERROR(VLOOKUP($A73,'2001 Data'!$A$5:$AH$65001,York!AI$2,FALSE),"No Data") -> 58.04 | AJ73: =IFERROR(VLOOKUP($A73,'2001 Data'!$A$5:$AH$65001,York!AJ$2,FALSE),"No Data") -> 36.59 | AK73: =IFERROR(VLOOKUP($A73,'2001 Data'!$A$5:$AH$65001,York!AK$2,FALSE),"No Data") -> 54.68 | AL73: =IFERROR(VLOOKUP($A73,'2001 Data'!$A$5:$AH$65001,York!AL$2,FALSE),"No Data") -> 25.92 | AM73: =IFERROR(VLOOKUP($A73,'2001 Data'!$A$5:$AH$65001,York!AM$2,FALSE),"No Data") -> 61.77 | AN73: =IFERROR(VLOOKUP($A73,'2001 Data'!$A$5:$AH$65001,York!AN$2,FALSE),"No Data") -> 47.55 | AO73: =IFERROR(VLOOKUP($A73,'2001 Data'!$A$5:$AH$65001,York!AO$2,FALSE),"No Data") -> 44.34 | AP73: =IFERROR(VLOOKUP($A73,'2001 Data'!$A$5:$AH$65001,York!AP$2,FALSE),"No Data") -> 63.61 | AQ73: =IFERROR(VLOOKUP($A73,'2001 Data'!$A$5:$AH$65001,York!AQ$2,FALSE),"No Data") -> 44.75 | AR73: =IFERROR(VLOOKUP($A73,'2001 Data'!$A$5:$AH$65001,York!AR$2,FALSE),"No Data") -> 42.04 | AS73: =IFERROR(VLOOKUP($A73,'2001 Data'!$A$5:$AH$65001,York!AS$2,FALSE),"No Data") -> 58.07 | AT73: =IFERROR(VLOOKUP($A73,'2001 Data'!$A$5:$AH$65001,York!AT$2,FALSE),"No Data") -> 32.01 | AU73: =IFERROR(VLOOKUP($A73,'2001 Data'!$A$5:$AH$65001,York!AU$2,FALSE),"No Data") -> 58.34 | AV73: =IFERROR(VLOOKUP($A73,'2001 Data'!$A$5:$AH$65001,York!AV$2,FALSE),"No Data") -> 65.12 | AW73: =IFERROR(VLOOKUP($A73,'2001 Data'!$A$5:$AH$65001,York!AW$2,FALSE),"No Data") -> 58.84 | AX73: =IFERROR(VLOOKUP($A73,'2001 Data'!$A$5:$AH$65001,York!AX$2,FALSE),"No Data") -> 65.2 | AY73: =IFERROR(VLOOKUP($A73,'2001 Data'!$A$5:$AH$65001,York!AY$2,FALSE),"No Data") -> 44.45 | AZ73: =IFERROR(VLOOKUP($A73,'2001 Data'!$A$5:$AH$65001,York!AZ$2,FALSE),"No Data") -> 65.99 | BA73: =IFERROR(VLOOKUP($A73,'2001 Data'!$A$5:$AH$65001,York!BA$2,FALSE),"No Data") -> 50.53 | BB73: =IFERROR(VLOOKUP($A73,'2001 Data'!$A$5:$AH$65001,York!BB$2,FALSE),"No Data") -> 50.74 | BC73: =IFERROR(VLOOKUP($A73,'2001 Data'!$A$5:$AH$65001,York!BC$2,FALSE),"No Data") -> 50.67 | BE73: V:\Business Intelligence Hub\01 - The City\2011 Census\Data\2nd Release - Key Indicators\Lower Areas and Wards\Initial Briefing\Census 2011 Bulk Data Load\Ward Bulk Data\Key Statisitics Bulk Load\[KEYSTATS FILE2.xlsx]KS104EWDATA | BF73: 9 | BG73: =VLOOKUP(BF73,Sheet3!$B$2:$C$77,2,FALSE) -> $l$7:$l$28 | BH73: 'V:\Business Intelligence Hub\01 - The City\2011 Census\Data\2nd Release - Key Indicators\Lower Areas and Wards\Initial Briefing\Census 2011 Bulk Data Load\Ward Bulk Data\Key Statisitics Bulk Load\[KEYSTATS FILE2.xlsx]KS104EWDATA'!$l$7:$l$28 | BI73: 15 | BJ73: =VLOOKUP(BI73,Sheet3!$B$2:$F$77,5,FALSE) -> $A$1:$r$28 | BK73: 'V:\Business Intelligence Hub\01 - The City\2011 Census\Data\2nd Release - Key Indicators\Lower Areas and Wards\Initial Briefing\Census 2011 Bulk Data Load\Ward Bulk Data\Key Statisitics Bulk Load\[KEYSTATS FILE2.xlsx]KS104EWDATA'!$A$1:$r$28
A74: KS104EW0010 | B74: Percentage | C74: Person | D74: Living arrangements | E74: Living in a couple: Cohabiting | F74: 8 | G74: 21 | H74: 4 | I74: 22 | J74: 12 | K74: 7 | L74: 13 | M74: 3 | N74: 19 | O74: 17 | P74: 6 | Q74: 18 | R74: 2 | S74: 10 | T74: 11 | U74: 1 | V74: 15 | W74: 20 | X74: 9 | Y74: 16 | Z74: 5 | AA74: 14 | AB74: 0.1317 | AC74: 0.1281 | AD74: 0.1194 | AE74: =IFERROR(VLOOKUP($A74,'2001 Data'!$A$5:$AH$65001,York!AE$2,FALSE),"No Data") -> 9.31 | AF74: =IFERROR(VLOOKUP($A74,'2001 Data'!$A$5:$AH$65001,York!AF$2,FALSE),"No Data") -> 6.54 | AG74: =IFERROR(VLOOKUP($A74,'2001 Data'!$A$5:$AH$65001,York!AG$2,FALSE),"No Data") -> 13.37 | AH74: =IFERROR(VLOOKUP($A74,'2001 Data'!$A$5:$AH$65001,York!AH$2,FALSE),"No Data") -> 5.51 | AI74: =IFERROR(VLOOKUP($A74,'2001 Data'!$A$5:$AH$65001,York!AI$2,FALSE),"No Data") -> 8.77 | AJ74: =IFERROR(VLOOKUP($A74,'2001 Data'!$A$5:$AH$65001,York!AJ$2,FALSE),"No Data") -> 12.81 | AK74: =IFERROR(VLOOKUP($A74,'2001 Data'!$A$5:$AH$65001,York!AK$2,FALSE),"No Data") -> 8.4 | AL74: =IFERROR(VLOOKUP($A74,'2001 Data'!$A$5:$AH$65001,York!AL$2,FALSE),"No Data") -> 13.92 | AM74: =IFERROR(VLOOKUP($A74,'2001 Data'!$A$5:$AH$65001,York!AM$2,FALSE),"No Data") -> 6.55 | AN74: =IFERROR(VLOOKUP($A74,'2001 Data'!$A$5:$AH$65001,York!AN$2,FALSE),"No Data") -> 9.6 | AO74: =IFERROR(VLOOKUP($A74,'2001 Data'!$A$5:$AH$65001,York!AO$2,FALSE),"No Data") -> 10.87 | AP74: =IFERROR(VLOOKUP($A74,'2001 Data'!$A$5:$AH$65001,York!AP$2,FALSE),"No Data") -> 5.76 | AQ74: =IFERROR(VLOOKUP($A74,'2001 Data'!$A$5:$AH$65001,York!AQ$2,FALSE),"No Data") -> 14.64 | AR74: =IFERROR(VLOOKUP($A74,'2001 Data'!$A$5:$AH$65001,York!AR$2,FALSE),"No Data") -> 9.84 | AS74: =IFERROR(VLOOKUP($A74,'2001 Data'!$A$5:$AH$65001,York!AS$2,FALSE),"No Data") -> 8.2 | AT74: =IFERROR(VLOOKUP($A74,'2001 Data'!$A$5:$AH$65001,York!AT$2,FALSE),"No Data") -> 14.99 | AU74: =IFERROR(VLOOKUP($A74,'2001 Data'!$A$5:$AH$65001,York!AU$2,FALSE),"No Data") -> 7.89 | AV74: =IFERROR(VLOOKUP($A74,'2001 Data'!$A$5:$AH$65001,York!AV$2,FALSE),"No Data") -> 7.12 | AW74: =IFERROR(VLOOKUP($A74,'2001 Data'!$A$5:$AH$65001,York!AW$2,FALSE),"No Data") -> 11.83 | AX74: =IFERROR(VLOOKUP($A74,'2001 Data'!$A$5:$AH$65001,York!AX$2,FALSE),"No Data") -> 8.88 | AY74: =IFERROR(VLOOKUP($A74,'2001 Data'!$A$5:$AH$65001,York!AY$2,FALSE),"No Data") -> 11.92 | AZ74: =IFERROR(VLOOKUP($A74,'2001 Data'!$A$5:$AH$65001,York!AZ$2,FALSE),"No Data") -> 9.21 | BA74: =IFERROR(VLOOKUP($A74,'2001 Data'!$A$5:$AH$65001,York!BA$2,FALSE),"No Data") -> 10.43 | BB74: =IFERROR(VLOOKUP($A74,'2001 Data'!$A$5:$AH$65001,York!BB$2,FALSE),"No Data") -> 9.84 | BC74: =IFERROR(VLOOKUP($A74,'2001 Data'!$A$5:$AH$65001,York!BC$2,FALSE),"No Data") -> 9.9 | BE74: V:\Business Intelligence Hub\01 - The City\2011 Census\Data\2nd Release - Key Indicators\Lower Areas and Wards\Initial Briefing\Census 2011 Bulk Data Load\Ward Bulk Data\Key Statisitics Bulk Load\[KEYSTATS FILE2.xlsx]KS104EWDATA | BF74: 10 | BG74: =VLOOKUP(BF74,Sheet3!$B$2:$C$77,2,FALSE) -> $m$7:$m$28 | BH74: 'V:\Business Intelligence Hub\01 - The City\2011 Census\Data\2nd Release - Key Indicators\Lower Areas and Wards\Initial Briefing\Census 2011 Bulk Data Load\Ward Bulk Data\Key Statisitics Bulk Load\[KEYSTATS FILE2.xlsx]KS104EWDATA'!$m$7:$m$28 | BI74: 15 | BJ74: =VLOOKUP(BI74,Sheet3!$B$2:$F$77,5,FALSE) -> $A$1:$r$28 | BK74: 'V:\Business Intelligence Hub\01 - The City\2011 Census\Data\2nd Release - Key Indicators\Lower Areas and Wards\Initial Briefing\Census 2011 Bulk Data Load\Ward Bulk Data\Key Statisitics Bulk Load\[KEYSTATS FILE2.xlsx]KS104EWDATA'!$A$1:$r$28
A75: KS104EW0011 | B75: Percentage | C75: Person | D75: Living arrangements | E75: Not living in a couple: Single (never married or never registered a same-sex civil partnership) | F75: 12 | G75: 19 | H75: 4 | I75: 21 | J75: 14 | K75: 3 | L75: 11 | M75: 2 | N75: 18 | O75: 6 | P75: 5 | Q75: 17 | R75: 10 | S75: 1 | T75: 13 | U75: 7 | V75: 9 | W75: 20 | X75: 15 | Y75: 16 | Z75: 8 | AA75: 22 | AB75: 0.2703 | AC75: 0.2451 | AD75: 0.2581 | AE75: =IFERROR(VLOOKUP($A75,'2001 Data'!$A$5:$AH$65001,York!AE$2,FALSE),"No Data") -> 18.88 | AF75: =IFERROR(VLOOKUP($A75,'2001 Data'!$A$5:$AH$65001,York!AF$2,FALSE),"No Data") -> 15.9 | AG75: =IFERROR(VLOOKUP($A75,'2001 Data'!$A$5:$AH$65001,York!AG$2,FALSE),"No Data") -> 32.41 | AH75: =IFERROR(VLOOKUP($A75,'2001 Data'!$A$5:$AH$65001,York!AH$2,FALSE),"No Data") -> 15.31 | AI75: =IFERROR(VLOOKUP($A75,'2001 Data'!$A$5:$AH$65001,York!AI$2,FALSE),"No Data") -> 17.96 | AJ75: =IFERROR(VLOOKUP($A75,'2001 Data'!$A$5:$AH$65001,York!AJ$2,FALSE),"No Data") -> 35.7 | AK75: =IFERROR(VLOOKUP($A75,'2001 Data'!$A$5:$AH$65001,York!AK$2,FALSE),"No Data") -> 20.04 | AL75: =IFERROR(VLOOKUP($A75,'2001 Data'!$A$5:$AH$65001,York!AL$2,FALSE),"No Data") -> 39.98 | AM75: =IFERROR(VLOOKUP($A75,'2001 Data'!$A$5:$AH$65001,York!AM$2,FALSE),"No Data") -> 17.43 | AN75: =IFERROR(VLOOKUP($A75,'2001 Data'!$A$5:$AH$65001,York!AN$2,FALSE),"No Data") -> 27.48 | AO75: =IFERROR(VLOOKUP($A75,'2001 Data'!$A$5:$AH$65001,York!AO$2,FALSE),"No Data") -> 26.03 | AP75: =IFERROR(VLOOKUP($A75,'2001 Data'!$A$5:$AH$65001,York!AP$2,FALSE),"No Data") -> 16.04 | AQ75: =IFERROR(VLOOKUP($A75,'2001 Data'!$A$5:$AH$65001,York!AQ$2,FALSE),"No Data") -> 23.98 | AR75: =IFERROR(VLOOKUP($A75,'2001 Data'!$A$5:$AH$65001,York!AR$2,FALSE),"No Data") -> 33.95 | AS75: =IFERROR(VLOOKUP($A75,'2001 Data'!$A$5:$AH$65001,York!AS$2,FALSE),"No Data") -> 17.65 | AT75: =IFERROR(VLOOKUP($A75,'2001 Data'!$A$5:$AH$65001,York!AT$2,FALSE),"No Data") -> 35.96 | AU75: =IFERROR(VLOOKUP($A75,'2001 Data'!$A$5:$AH$65001,York!AU$2,FALSE),"No Data") -> 18.18 | AV75: =IFERROR(VLOOKUP($A75,'2001 Data'!$A$5:$AH$65001,York!AV$2,FALSE),"No Data") -> 15.27 | AW75: =IFERROR(VLOOKUP($A75,'2001 Data'!$A$5:$AH$65001,York!AW$2,FALSE),"No Data") -> 16.86 | AX75: =IFERROR(VLOOKUP($A75,'2001 Data'!$A$5:$AH$65001,York!AX$2,FALSE),"No Data") -> 14.93 | AY75: =IFERROR(VLOOKUP($A75,'2001 Data'!$A$5:$AH$65001,York!AY$2,FALSE),"No Data") -> 23.97 | AZ75: =IFERROR(VLOOKUP($A75,'2001 Data'!$A$5:$AH$65001,York!AZ$2,FALSE),"No Data") -> 13.88 | BA75: =IFERROR(VLOOKUP($A75,'2001 Data'!$A$5:$AH$65001,York!BA$2,FALSE),"No Data") -> 23.39 | BB75: =IFERROR(VLOOKUP($A75,'2001 Data'!$A$5:$AH$65001,York!BB$2,FALSE),"No Data") -> 23.02 | BC75: =IFERROR(VLOOKUP($A75,'2001 Data'!$A$5:$AH$65001,York!BC$2,FALSE),"No Data") -> 23.09 | BE75: V:\Business Intelligence Hub\01 - The City\2011 Census\Data\2nd Release - Key Indicators\Lower Areas and Wards\Initial Briefing\Census 2011 Bulk Data Load\Ward Bulk Data\Key Statisitics Bulk Load\[KEYSTATS FILE2.xlsx]KS104EWDATA | BF75: 11 | BG75: =VLOOKUP(BF75,Sheet3!$B$2:$C$77,2,FALSE) -> $n$7:$n$28 | BH75: 'V:\Business Intelligence Hub\01 - The City\2011 Census\Data\2nd Release - Key Indicators\Lower Areas and Wards\Initial Briefing\Census 2011 Bulk Data Load\Ward Bulk Data\Key Statisitics Bulk Load\[KEYSTATS FILE2.xlsx]KS104EWDATA'!$n$7:$n$28 | BI75: 15 | BJ75: =VLOOKUP(BI75,Sheet3!$B$2:$F$77,5,FALSE) -> $A$1:$r$28 | BK75: 'V:\Business Intelligence Hub\01 - The City\2011 Census\Data\2nd Release - Key Indicators\Lower Areas and Wards\Initial Briefing\Census 2011 Bulk Data Load\Ward Bulk Data\Key Statisitics Bulk Load\[KEYSTATS FILE2.xlsx]KS104EWDATA'!$A$1:$r$28
A76: KS104EW0012 | B76: Percentage | C76: Person | D76: Living arrangements | E76: Not living in a couple: Married or in a registered same-sex civil partnership | F76: 19 | G76: 9 | H76: 6 | I76: 14 | J76: 22 | K76: 3 | L76: 4 | M76: 1 | N76: 18 | O76: 2 | P76: 8 | Q76: 20 | R76: 13 | S76: 7 | T76: 12 | U76: 5 | V76: 15 | W76: 21 | X76: 10 | Y76: 16 | Z76: 11 | AA76: 17 | AB76: 0.0119 | AC76: 0.0126 | AD76: 0.0146 | AE76: =IFERROR(VLOOKUP($A76,'2001 Data'!$A$5:$AH$65001,York!AE$2,FALSE),"No Data") -> 0.54 | AF76: =IFERROR(VLOOKUP($A76,'2001 Data'!$A$5:$AH$65001,York!AF$2,FALSE),"No Data") -> 0.63 | AG76: =IFERROR(VLOOKUP($A76,'2001 Data'!$A$5:$AH$65001,York!AG$2,FALSE),"No Data") -> 0.83 | AH76: =IFERROR(VLOOKUP($A76,'2001 Data'!$A$5:$AH$65001,York!AH$2,FALSE),"No Data") -> 0.14 | AI76: =IFERROR(VLOOKUP($A76,'2001 Data'!$A$5:$AH$65001,York!AI$2,FALSE),"No Data") -> 0.6 | AJ76: =IFERROR(VLOOKUP($A76,'2001 Data'!$A$5:$AH$65001,York!AJ$2,FALSE),"No Data") -> 0.69 | AK76: =IFERROR(VLOOKUP($A76,'2001 Data'!$A$5:$AH$65001,York!AK$2,FALSE),"No Data") -> 0.86 | AL76: =IFERROR(VLOOKUP($A76,'2001 Data'!$A$5:$AH$65001,York!AL$2,FALSE),"No Data") -> 1.33 | AM76: =IFERROR(VLOOKUP($A76,'2001 Data'!$A$5:$AH$65001,York!AM$2,FALSE),"No Data") -> 0.44 | AN76: =IFERROR(VLOOKUP($A76,'2001 Data'!$A$5:$AH$65001,York!AN$2,FALSE),"No Data") -> 1.2 | AO76: =IFERROR(VLOOKUP($A76,'2001 Data'!$A$5:$AH$65001,York!AO$2,FALSE),"No Data") -> 0.72 | AP76: =IFERROR(VLOOKUP($A76,'2001 Data'!$A$5:$AH$65001,York!AP$2,FALSE),"No Data") -> 0.53 | AQ76: =IFERROR(VLOOKUP($A76,'2001 Data'!$A$5:$AH$65001,York!AQ$2,FALSE),"No Data") -> 0.62 | AR76: =IFERROR(VLOOKUP($A76,'2001 Data'!$A$5:$AH$65001,York!AR$2,FALSE),"No Data") -> 0.7 | AS76: =IFERROR(VLOOKUP($A76,'2001 Data'!$A$5:$AH$65001,York!AS$2,FALSE),"No Data") -> 0.31 | AT76: =IFERROR(VLOOKUP($A76,'2001 Data'!$A$5:$AH$65001,York!AT$2,FALSE),"No Data") -> 0.9 | AU76: =IFERROR(VLOOKUP($A76,'2001 Data'!$A$5:$AH$65001,York!AU$2,FALSE),"No Data") -> 0.35 | AV76: =IFERROR(VLOOKUP($A76,'2001 Data'!$A$5:$AH$65001,York!AV$2,FALSE),"No Data") -> 0.59 | AW76: =IFERROR(VLOOKUP($A76,'2001 Data'!$A$5:$AH$65001,York!AW$2,FALSE),"No Data") -> 0.52 | AX76: =IFERROR(VLOOKUP($A76,'2001 Data'!$A$5:$AH$65001,York!AX$2,FALSE),"No Data") -> 0.47 | AY76: =IFERROR(VLOOKUP($A76,'2001 Data'!$A$5:$AH$65001,York!AY$2,FALSE),"No Data") -> 0.59 | AZ76: =IFERROR(VLOOKUP($A76,'2001 Data'!$A$5:$AH$65001,York!AZ$2,FALSE),"No Data") -> 0.63 | BA76: =IFERROR(VLOOKUP($A76,'2001 Data'!$A$5:$AH$65001,York!BA$2,FALSE),"No Data") -> 0.63 | BB76: =IFERROR(VLOOKUP($A76,'2001 Data'!$A$5:$AH$65001,York!BB$2,FALSE),"No Data") -> 0.92 | BC76: =IFERROR(VLOOKUP($A76,'2001 Data'!$A$5:$AH$65001,York!BC$2,FALSE),"No Data") -> 0.94 | BE76: V:\Business Intelligence Hub\01 - The City\2011 Census\Data\2nd Release - Key Indicators\Lower Areas and Wards\Initial Briefing\Census 2011 Bulk Data Load\Ward Bulk Data\Key Statisitics Bulk Load\[KEYSTATS FILE2.xlsx]KS104EWDATA | BF76: 12 | BG76: =VLOOKUP(BF76,Sheet3!$B$2:$C$77,2,FALSE) -> $o$7:$o$28 | BH76: 'V:\Business Intelligence Hub\01 - The City\2011 Census\Data\2nd Release - Key Indicators\Lower Areas and Wards\Initial Briefing\Census 2011 Bulk Data Load\Ward Bulk Data\Key Statisitics Bulk Load\[KEYSTATS FILE2.xlsx]KS104EWDATA'!$o$7:$o$28 | BI76: 15 | BJ76: =VLOOKUP(BI76,Sheet3!$B$2:$F$77,5,FALSE) -> $A$1:$r$28 | BK76: 'V:\Business Intelligence Hub\01 - The City\2011 Census\Data\2nd Release - Key Indicators\Lower Areas and Wards\Initial Briefing\Census 2011 Bulk Data Load\Ward Bulk Data\Key Statisitics Bulk Load\[KEYSTATS FILE2.xlsx]KS104EWDATA'!$A$1:$r$28
A77: KS104EW0013 | B77: Percentage | C77: Person | D77: Living arrangements | E77: Not living in a couple: Separated (but still legally married or still legally in a same-sex civil partnership) | F77: 7 | G77: 10 | H77: 5 | I77: 16 | J77: 8 | K77: 15 | L77: 12 | M77: 3 | N77: 20 | O77: 22 | P77: 6 | Q77: 11 | R77: 4 | S77: 21 | T77: 17 | U77: 1 | V77: 19 | W77: 13 | X77: 9 | Y77: 14 | Z77: 2 | AA77: 18 | AB77: 0.0157 | AC77: 0.0207 | AD77: 0.0213 | AE77: =IFERROR(VLOOKUP($A77,'2001 Data'!$A$5:$AH$65001,York!AE$2,FALSE),"No Data") -> 1.39 | AF77: =IFERROR(VLOOKUP($A77,'2001 Data'!$A$5:$AH$65001,York!AF$2,FALSE),"No Data") -> 1.4 | AG77: =IFERROR(VLOOKUP($A77,'2001 Data'!$A$5:$AH$65001,York!AG$2,FALSE),"No Data") -> 2.11 | AH77: =IFERROR(VLOOKUP($A77,'2001 Data'!$A$5:$AH$65001,York!AH$2,FALSE),"No Data") -> 1.16 | AI77: =IFERROR(VLOOKUP($A77,'2001 Data'!$A$5:$AH$65001,York!AI$2,FALSE),"No Data") -> 1.39 | AJ77: =IFERROR(VLOOKUP($A77,'2001 Data'!$A$5:$AH$65001,York!AJ$2,FALSE),"No Data") -> 1.7 | AK77: =IFERROR(VLOOKUP($A77,'2001 Data'!$A$5:$AH$65001,York!AK$2,FALSE),"No Data") -> 1.72 | AL77: =IFERROR(VLOOKUP($A77,'2001 Data'!$A$5:$AH$65001,York!AL$2,FALSE),"No Data") -> 2.4 | AM77: =IFERROR(VLOOKUP($A77,'2001 Data'!$A$5:$AH$65001,York!AM$2,FALSE),"No Data") -> 0.99 | AN77: =IFERROR(VLOOKUP($A77,'2001 Data'!$A$5:$AH$65001,York!AN$2,FALSE),"No Data") -> 0.98 | AO77: =IFERROR(VLOOKUP($A77,'2001 Data'!$A$5:$AH$65001,York!AO$2,FALSE),"No Data") -> 1.89 | AP77: =IFERROR(VLOOKUP($A77,'2001 Data'!$A$5:$AH$65001,York!AP$2,FALSE),"No Data") -> 0.9 | AQ77: =IFERROR(VLOOKUP($A77,'2001 Data'!$A$5:$AH$65001,York!AQ$2,FALSE),"No Data") -> 2.13 | AR77: =IFERROR(VLOOKUP($A77,'2001 Data'!$A$5:$AH$65001,York!AR$2,FALSE),"No Data") -> 1.56 | AS77: =IFERROR(VLOOKUP($A77,'2001 Data'!$A$5:$AH$65001,York!AS$2,FALSE),"No Data") -> 1.54 | AT77: =IFERROR(VLOOKUP($A77,'2001 Data'!$A$5:$AH$65001,York!AT$2,FALSE),"No Data") -> 1.75 | AU77: =IFERROR(VLOOKUP($A77,'2001 Data'!$A$5:$AH$65001,York!AU$2,FALSE),"No Data") -> 1.04 | AV77: =IFERROR(VLOOKUP($A77,'2001 Data'!$A$5:$AH$65001,York!AV$2,FALSE),"No Data") -> 1.07 | AW77: =IFERROR(VLOOKUP($A77,'2001 Data'!$A$5:$AH$65001,York!AW$2,FALSE),"No Data") -> 1.61 | AX77: =IFERROR(VLOOKUP($A77,'2001 Data'!$A$5:$AH$65001,York!AX$2,FALSE),"No Data") -> 1.3 | AY77: =IFERROR(VLOOKUP($A77,'2001 Data'!$A$5:$AH$65001,York!AY$2,FALSE),"No Data") -> 2.47 | AZ77: =IFERROR(VLOOKUP($A77,'2001 Data'!$A$5:$AH$65001,York!AZ$2,FALSE),"No Data") -> 1.48 | BA77: =IFERROR(VLOOKUP($A77,'2001 Data'!$A$5:$AH$65001,York!BA$2,FALSE),"No Data") -> 1.64 | BB77: =IFERROR(VLOOKUP($A77,'2001 Data'!$A$5:$AH$65001,York!BB$2,FALSE),"No Data") -> 1.91 | BC77: =IFERROR(VLOOKUP($A77,'2001 Data'!$A$5:$AH$65001,York!BC$2,FALSE),"No Data") -> 1.93 | BE77: V:\Business Intelligence Hub\01 - The City\2011 Census\Data\2nd Release - Key Indicators\Lower Areas and Wards\Initial Briefing\Census 2011 Bulk Data Load\Ward Bulk Data\Key Statisitics Bulk Load\[KEYSTATS FILE2.xlsx]KS104EWDATA | BF77: 13 | BG77: =VLOOKUP(BF77,Sheet3!$B$2:$C$77,2,FALSE) -> $p$7:$p$28 | BH77: 'V:\Business Intelligence Hub\01 - The City\2011 Census\Data\2nd Release - Key Indicators\Lower Areas and Wards\Initial Briefing\Census 2011 Bulk Data Load\Ward Bulk Data\Key Statisitics Bulk Load\[KEYSTATS FILE2.xlsx]KS104EWDATA'!$p$7:$p$28 | BI77: 15 | BJ77: =VLOOKUP(BI77,Sheet3!$B$2:$F$77,5,FALSE) -> $A$1:$r$28 | BK77: 'V:\Business Intelligence Hub\01 - The City\2011 Census\Data\2nd Release - Key Indicators\Lower Areas and Wards\Initial Briefing\Census 2011 Bulk Data Load\Ward Bulk Data\Key Statisitics Bulk Load\[KEYSTATS FILE2.xlsx]KS104EWDATA'!$A$1:$r$28
A78: KS104EW0014 | B78: Percentage | C78: Person | D78: Living arrangements | E78: Not living in a couple: Divorced or formerly in a same-sex civil partnership which is now legally dissolved | F78: 9 | G78: 13 | H78: 8 | I78: 19 | J78: 11 | K78: 14 | L78: 5 | M78: 2 | N78: 17 | O78: 16 | P78: 7 | Q78: 18 | R78: 4 | S78: 20 | T78: 6 | U78: 3 | V78: 12 | W78: 21 | X78: 10 | Y78: 15 | Z78: 1 | AA78: 22 | AB78: 0.0622 | AC78: 0.066 | AD78: 0.0653 | AE78: =IFERROR(VLOOKUP($A78,'2001 Data'!$A$5:$AH$65001,York!AE$2,FALSE),"No Data") -> 5.03 | AF78: =IFERROR(VLOOKUP($A78,'2001 Data'!$A$5:$AH$65001,York!AF$2,FALSE),"No Data") -> 4.51 | AG78: =IFERROR(VLOOKUP($A78,'2001 Data'!$A$5:$AH$65001,York!AG$2,FALSE),"No Data") -> 7.17 | AH78: =IFERROR(VLOOKUP($A78,'2001 Data'!$A$5:$AH$65001,York!AH$2,FALSE),"No Data") -> 3.78 | AI78: =IFERROR(VLOOKUP($A78,'2001 Data'!$A$5:$AH$65001,York!AI$2,FALSE),"No Data") -> 5.08 | AJ78: =IFERROR(VLOOKUP($A78,'2001 Data'!$A$5:$AH$65001,York!AJ$2,FALSE),"No Data") -> 5.7 | AK78: =IFERROR(VLOOKUP($A78,'2001 Data'!$A$5:$AH$65001,York!AK$2,FALSE),"No Data") -> 4.96 | AL78: =IFERROR(VLOOKUP($A78,'2001 Data'!$A$5:$AH$65001,York!AL$2,FALSE),"No Data") -> 9.2 | AM78: =IFERROR(VLOOKUP($A78,'2001 Data'!$A$5:$AH$65001,York!AM$2,FALSE),"No Data") -> 4.53 | AN78: =IFERROR(VLOOKUP($A78,'2001 Data'!$A$5:$AH$65001,York!AN$2,FALSE),"No Data") -> 5.67 | AO78: =IFERROR(VLOOKUP($A78,'2001 Data'!$A$5:$AH$65001,York!AO$2,FALSE),"No Data") -> 7.01 | AP78: =IFERROR(VLOOKUP($A78,'2001 Data'!$A$5:$AH$65001,York!AP$2,FALSE),"No Data") -> 4.09 | AQ78: =IFERROR(VLOOKUP($A78,'2001 Data'!$A$5:$AH$65001,York!AQ$2,FALSE),"No Data") -> 6.95 | AR78: =IFERROR(VLOOKUP($A78,'2001 Data'!$A$5:$AH$65001,York!AR$2,FALSE),"No Data") -> 5.85 | AS78: =IFERROR(VLOOKUP($A78,'2001 Data'!$A$5:$AH$65001,York!AS$2,FALSE),"No Data") -> 5.39 | AT78: =IFERROR(VLOOKUP($A78,'2001 Data'!$A$5:$AH$65001,York!AT$2,FALSE),"No Data") -> 7.33 | AU78: =IFERROR(VLOOKUP($A78,'2001 Data'!$A$5:$AH$65001,York!AU$2,FALSE),"No Data") -> 4.56 | AV78: =IFERROR(VLOOKUP($A78,'2001 Data'!$A$5:$AH$65001,York!AV$2,FALSE),"No Data") -> 4 | AW78: =IFERROR(VLOOKUP($A78,'2001 Data'!$A$5:$AH$65001,York!AW$2,FALSE),"No Data") -> 4.76 | AX78: =IFERROR(VLOOKUP($A78,'2001 Data'!$A$5:$AH$65001,York!AX$2,FALSE),"No Data") -> 4.08 | AY78: =IFERROR(VLOOKUP($A78,'2001 Data'!$A$5:$AH$65001,York!AY$2,FALSE),"No Data") -> 8.03 | AZ78: =IFERROR(VLOOKUP($A78,'2001 Data'!$A$5:$AH$65001,York!AZ$2,FALSE),"No Data") -> 2.99 | BA78: =IFERROR(VLOOKUP($A78,'2001 Data'!$A$5:$AH$65001,York!BA$2,FALSE),"No Data") -> 5.8 | BB78: =IFERROR(VLOOKUP($A78,'2001 Data'!$A$5:$AH$65001,York!BB$2,FALSE),"No Data") -> 5.88 | BC78: =IFERROR(VLOOKUP($A78,'2001 Data'!$A$5:$AH$65001,York!BC$2,FALSE),"No Data") -> 5.85 | BE78: V:\Business Intelligence Hub\01 - The City\2011 Census\Data\2nd Release - Key Indicators\Lower Areas and Wards\Initial Briefing\Census 2011 Bulk Data Load\Ward Bulk Data\Key Statisitics Bulk Load\[KEYSTATS FILE2.xlsx]KS104EWDATA | BF78: 14 | BG78: =VLOOKUP(BF78,Sheet3!$B$2:$C$77,2,FALSE) -> $q$7:$q$28 | BH78: 'V:\Business Intelligence Hub\01 - The City\2011 Census\Data\2nd Release - Key Indicators\Lower Areas and Wards\Initial Briefing\Census 2011 Bulk Data Load\Ward Bulk Data\Key Statisitics Bulk Load\[KEYSTATS FILE2.xlsx]KS104EWDATA'!$q$7:$q$28 | BI78: 15 | BJ78: =VLOOKUP(BI78,Sheet3!$B$2:$F$77,5,FALSE) -> $A$1:$r$28 | BK78: 'V:\Business Intelligence Hub\01 - The City\2011 Census\Data\2nd Release - Key Indicators\Lower Areas and Wards\Initial Briefing\Census 2011 Bulk Data Load\Ward Bulk Data\Key Statisitics Bulk Load\[KEYSTATS FILE2.xlsx]KS104EWDATA'!$A$1:$r$28
A79: KS104EW0015 | B79: Percentage | C79: Person | D79: Living arrangements | E79: Not living in a couple: Widowed or surviving partner from a same-sex civil partnership | F79: 9 | G79: 6 | H79: 14 | I79: 5 | J79: 10 | K79: 21 | L79: 7 | M79: 19 | N79: 3 | O79: 18 | P79: 12 | Q79: 1 | R79: 13 | S79: 22 | T79: 2 | U79: 20 | V79: 4 | W79: 11 | X79: 15 | Y79: 16 | Z79: 8 | AA79: 17 | AB79: 0.0618 | AC79: 0.0652 | AD79: 0.0626 | AE79: =IFERROR(VLOOKUP($A79,'2001 Data'!$A$5:$AH$65001,York!AE$2,FALSE),"No Data") -> 8.27 | AF79: =IFERROR(VLOOKUP($A79,'2001 Data'!$A$5:$AH$65001,York!AF$2,FALSE),"No Data") -> 8.63 | AG79: =IFERROR(VLOOKUP($A79,'2001 Data'!$A$5:$AH$65001,York!AG$2,FALSE),"No Data") -> 7.57 | AH79: =IFERROR(VLOOKUP($A79,'2001 Data'!$A$5:$AH$65001,York!AH$2,FALSE),"No Data") -> 8.2 | AI79: =IFERROR(VLOOKUP($A79,'2001 Data'!$A$5:$AH$65001,York!AI$2,FALSE),"No Data") -> 8.16 | AJ79: =IFERROR(VLOOKUP($A79,'2001 Data'!$A$5:$AH$65001,York!AJ$2,FALSE),"No Data") -> 6.81 | AK79: =IFERROR(VLOOKUP($A79,'2001 Data'!$A$5:$AH$65001,York!AK$2,FALSE),"No Data") -> 9.35 | AL79: =IFERROR(VLOOKUP($A79,'2001 Data'!$A$5:$AH$65001,York!AL$2,FALSE),"No Data") -> 7.25 | AM79: =IFERROR(VLOOKUP($A79,'2001 Data'!$A$5:$AH$65001,York!AM$2,FALSE),"No Data") -> 8.29 | AN79: =IFERROR(VLOOKUP($A79,'2001 Data'!$A$5:$AH$65001,York!AN$2,FALSE),"No Data") -> 7.52 | AO79: =IFERROR(VLOOKUP($A79,'2001 Data'!$A$5:$AH$65001,York!AO$2,FALSE),"No Data") -> 9.13 | AP79: =IFERROR(VLOOKUP($A79,'2001 Data'!$A$5:$AH$65001,York!AP$2,FALSE),"No Data") -> 9.07 | AQ79: =IFERROR(VLOOKUP($A79,'2001 Data'!$A$5:$AH$65001,York!AQ$2,FALSE),"No Data") -> 6.94 | AR79: =IFERROR(VLOOKUP($A79,'2001 Data'!$A$5:$AH$65001,York!AR$2,FALSE),"No Data") -> 6.06 | AS79: =IFERROR(VLOOKUP($A79,'2001 Data'!$A$5:$AH$65001,York!AS$2,FALSE),"No Data") -> 8.84 | AT79: =IFERROR(VLOOKUP($A79,'2001 Data'!$A$5:$AH$65001,York!AT$2,FALSE),"No Data") -> 7.06 | AU79: =IFERROR(VLOOKUP($A79,'2001 Data'!$A$5:$AH$65001,York!AU$2,FALSE),"No Data") -> 9.63 | AV79: =IFERROR(VLOOKUP($A79,'2001 Data'!$A$5:$AH$65001,York!AV$2,FALSE),"No Data") -> 6.83 | AW79: =IFERROR(VLOOKUP($A79,'2001 Data'!$A$5:$AH$65001,York!AW$2,FALSE),"No Data") -> 5.58 | AX79: =IFERROR(VLOOKUP($A79,'2001 Data'!$A$5:$AH$65001,York!AX$2,FALSE),"No Data") -> 5.13 | AY79: =IFERROR(VLOOKUP($A79,'2001 Data'!$A$5:$AH$65001,York!AY$2,FALSE),"No Data") -> 8.56 | AZ79: =IFERROR(VLOOKUP($A79,'2001 Data'!$A$5:$AH$65001,York!AZ$2,FALSE),"No Data") -> 5.82 | BA79: =IFERROR(VLOOKUP($A79,'2001 Data'!$A$5:$AH$65001,York!BA$2,FALSE),"No Data") -> 7.57 | BB79: =IFERROR(VLOOKUP($A79,'2001 Data'!$A$5:$AH$65001,York!BB$2,FALSE),"No Data") -> 7.68 | BC79: =IFERROR(VLOOKUP($A79,'2001 Data'!$A$5:$AH$65001,York!BC$2,FALSE),"No Data") -> 7.62 | BE79: V:\Business Intelligence Hub\01 - The City\2011 Census\Data\2nd Release - Key Indicators\Lower Areas and Wards\Initial Briefing\Census 2011 Bulk Data Load\Ward Bulk Data\Key Statisitics Bulk Load\[KEYSTATS FILE2.xlsx]KS104EWDATA | BF79: 15 | BG79: =VLOOKUP(BF79,Sheet3!$B$2:$C$77,2,FALSE) -> $r$7:$r$28 | BH79: 'V:\Business Intelligence Hub\01 - The City\2011 Census\Data\2nd Release - Key Indicators\Lower Areas and Wards\Initial Briefing\Census 2011 Bulk Data Load\Ward Bulk Data\Key Statisitics Bulk Load\[KEYSTATS FILE2.xlsx]KS104EWDATA'!$r$7:$r$28 | BI79: 15 | BJ79: =VLOOKUP(BI79,Sheet3!$B$2:$F$77,5,FALSE) -> $A$1:$r$28 | BK79: 'V:\Business Intelligence Hub\01 - The City\2011 Census\Data\2nd Release - Key Indicators\Lower Areas and Wards\Initial Briefing\Census 2011 Bulk Data Load\Ward Bulk Data\Key Statisitics Bulk Load\[KEYSTATS FILE2.xlsx]KS104EWDATA'!$A$1:$r$28
A80: KS105EW0001 | B80: Count | C80: Household | D80: Household composition | E80: All categories: Household composition | F80: 14 | G80: 16 | H80: 5 | I80: 19 | J80: 9 | K80: 13 | L80: 21 | M80: 10 | N80: 8 | O80: 22 | P80: 4 | Q80: 17 | R80: 3 | S80: 12 | T80: 7 | U80: 1 | V80: 20 | W80: 11 | X80: 6 | Y80: 15 | Z80: 2 | AA80: 18 | AB80: 83552 | AC80: 2224059 | AD80: 22063368 | AE80: =IFERROR(VLOOKUP($A80,'2001 Data'!$A$5:$AH$65001,York!AE$2,FALSE),"No Data") -> 3156 | AF80: =IFERROR(VLOOKUP($A80,'2001 Data'!$A$5:$AH$65001,York!AF$2,FALSE),"No Data") -> 1668 | AG80: =IFERROR(VLOOKUP($A80,'2001 Data'!$A$5:$AH$65001,York!AG$2,FALSE),"No Data") -> 5337 | AH80: =IFERROR(VLOOKUP($A80,'2001 Data'!$A$5:$AH$65001,York!AH$2,FALSE),"No Data") -> 1511 | AI80: =IFERROR(VLOOKUP($A80,'2001 Data'!$A$5:$AH$65001,York!AI$2,FALSE),"No Data") -> 4650 | AJ80: =IFERROR(VLOOKUP($A80,'2001 Data'!$A$5:$AH$65001,York!AJ$2,FALSE),"No Data") -> 3376 | AK80: =IFERROR(VLOOKUP($A80,'2001 Data'!$A$5:$AH$65001,York!AK$2,FALSE),"No Data") -> 1133 | AL80: =IFERROR(VLOOKUP($A80,'2001 Data'!$A$5:$AH$65001,York!AL$2,FALSE),"No Data") -> 3523 | AM80: =IFERROR(VLOOKUP($A80,'2001 Data'!$A$5:$AH$65001,York!AM$2,FALSE),"No Data") -> 5169 | AN80: =IFERROR(VLOOKUP($A80,'2001 Data'!$A$5:$AH$65001,York!AN$2,FALSE),"No Data") -> 494 | AO80: =IFERROR(VLOOKUP($A80,'2001 Data'!$A$5:$AH$65001,York!AO$2,FALSE),"No Data") -> 4990 | AP80: =IFERROR(VLOOKUP($A80,'2001 Data'!$A$5:$AH$65001,York!AP$2,FALSE),"No Data") -> 1692 | AQ80: =IFERROR(VLOOKUP($A80,'2001 Data'!$A$5:$AH$65001,York!AQ$2,FALSE),"No Data") -> 5311 | AR80: =IFERROR(VLOOKUP($A80,'2001 Data'!$A$5:$AH$65001,York!AR$2,FALSE),"No Data") -> 3412 | AS80: =IFERROR(VLOOKUP($A80,'2001 Data'!$A$5:$AH$65001,York!AS$2,FALSE),"No Data") -> 5132 | AT80: =IFERROR(VLOOKUP($A80,'2001 Data'!$A$5:$AH$65001,York!AT$2,FALSE),"No Data") -> 5480 | AU80: =IFERROR(VLOOKUP($A80,'2001 Data'!$A$5:$AH$65001,York!AU$2,FALSE),"No Data") -> 1353 | AV80: =IFERROR(VLOOKUP($A80,'2001 Data'!$A$5:$AH$65001,York!AV$2,FALSE),"No Data") -> 4071 | AW80: =IFERROR(VLOOKUP($A80,'2001 Data'!$A$5:$AH$65001,York!AW$2,FALSE),"No Data") -> 5011 | AX80: =IFERROR(VLOOKUP($A80,'2001 Data'!$A$5:$AH$65001,York!AX$2,FALSE),"No Data") -> 3022 | AY80: =IFERROR(VLOOKUP($A80,'2001 Data'!$A$5:$AH$65001,York!AY$2,FALSE),"No Data") -> 5891 | AZ80: =IFERROR(VLOOKUP($A80,'2001 Data'!$A$5:$AH$65001,York!AZ$2,FALSE),"No Data") -> 1544 | BA80: =IFERROR(VLOOKUP($A80,'2001 Data'!$A$5:$AH$65001,York!BA$2,FALSE),"No Data") -> 76920 | BB80: =IFERROR(VLOOKUP($A80,'2001 Data'!$A$5:$AH$65001,York!BB$2,FALSE),"No Data") -> 21660475 | BC80: =IFERROR(VLOOKUP($A80,'2001 Data'!$A$5:$AH$65001,York!BC$2,FALSE),"No Data") -> 20451427 | BE80: V:\Business Intelligence Hub\01 - The City\2011 Census\Data\2nd Release - Key Indicators\Lower Areas and Wards\Initial Briefing\Census 2011 Bulk Data Load\Ward Bulk Data\Key Statisitics Bulk Load\[KEYSTATS FILE2.xlsx]KS105EWDATA | BF80: 1 | BG80: =VLOOKUP(BF80,Sheet3!$B$2:$C$77,2,FALSE) -> $D$7:$D$28 | BH80: 'V:\Business Intelligence Hub\01 - The City\2011 Census\Data\2nd Release - Key Indicators\Lower Areas and Wards\Initial Briefing\Census 2011 Bulk Data Load\Ward Bulk Data\Key Statisitics Bulk Load\[KEYSTATS FILE2.xlsx]KS105EWDATA'!$D$7:$D$28 | BI80: 31 | BJ80: =VLOOKUP(BI80,Sheet3!$B$2:$F$77,5,FALSE) -> $A$1:$ah$28 | BK80: 'V:\Business Intelligence Hub\01 - The City\2011 Census\Data\2nd Release - Key Indicators\Lower Areas and Wards\Initial Briefing\Census 2011 Bulk Data Load\Ward Bulk Data\Key Statisitics Bulk Load\[KEYSTATS FILE2.xlsx]KS105EWDATA'!$A$1:$ah$28
A81: KS105EW0002 | B81: Count | C81: Household | D81: Household composition | E81: One person household: Aged 65 and over | F81: 12 | G81: 17 | H81: 5 | I81: 19 | J81: 7 | K81: 13 | L81: 20 | M81: 11 | N81: 2 | O81: 22 | P81: 4 | Q81: 16 | R81: 8 | S81: 14 | T81: 1 | U81: 6 | V81: 18 | W81: 10 | X81: 9 | Y81: 15 | Z81: 3 | AA81: 21 | AB81: 10803 | AC81: 281870 | AD81: 2725596 | AE81: =IFERROR(VLOOKUP($A81,'2001 Data'!$A$5:$AH$65001,York!AE$2,FALSE),"No Data") -> 483 | AF81: =IFERROR(VLOOKUP($A81,'2001 Data'!$A$5:$AH$65001,York!AF$2,FALSE),"No Data") -> 288 | AG81: =IFERROR(VLOOKUP($A81,'2001 Data'!$A$5:$AH$65001,York!AG$2,FALSE),"No Data") -> 809 | AH81: =IFERROR(VLOOKUP($A81,'2001 Data'!$A$5:$AH$65001,York!AH$2,FALSE),"No Data") -> 237 | AI81: =IFERROR(VLOOKUP($A81,'2001 Data'!$A$5:$AH$65001,York!AI$2,FALSE),"No Data") -> 743 | AJ81: =IFERROR(VLOOKUP($A81,'2001 Data'!$A$5:$AH$65001,York!AJ$2,FALSE),"No Data") -> 524 | AK81: =IFERROR(VLOOKUP($A81,'2001 Data'!$A$5:$AH$65001,York!AK$2,FALSE),"No Data") -> 234 | AL81: =IFERROR(VLOOKUP($A81,'2001 Data'!$A$5:$AH$65001,York!AL$2,FALSE),"No Data") -> 611 | AM81: =IFERROR(VLOOKUP($A81,'2001 Data'!$A$5:$AH$65001,York!AM$2,FALSE),"No Data") -> 831 | AN81: =IFERROR(VLOOKUP($A81,'2001 Data'!$A$5:$AH$65001,York!AN$2,FALSE),"No Data") -> 80 | AO81: =IFERROR(VLOOKUP($A81,'2001 Data'!$A$5:$AH$65001,York!AO$2,FALSE),"No Data") -> 914 | AP81: =IFERROR(VLOOKUP($A81,'2001 Data'!$A$5:$AH$65001,York!AP$2,FALSE),"No Data") -> 325 | AQ81: =IFERROR(VLOOKUP($A81,'2001 Data'!$A$5:$AH$65001,York!AQ$2,FALSE),"No Data") -> 698 | AR81: =IFERROR(VLOOKUP($A81,'2001 Data'!$A$5:$AH$65001,York!AR$2,FALSE),"No Data") -> 470 | AS81: =IFERROR(VLOOKUP($A81,'2001 Data'!$A$5:$AH$65001,York!AS$2,FALSE),"No Data") -> 854 | AT81: =IFERROR(VLOOKUP($A81,'2001 Data'!$A$5:$AH$65001,York!AT$2,FALSE),"No Data") -> 876 | AU81: =IFERROR(VLOOKUP($A81,'2001 Data'!$A$5:$AH$65001,York!AU$2,FALSE),"No Data") -> 261 | AV81: =IFERROR(VLOOKUP($A81,'2001 Data'!$A$5:$AH$65001,York!AV$2,FALSE),"No Data") -> 514 | AW81: =IFERROR(VLOOKUP($A81,'2001 Data'!$A$5:$AH$65001,York!AW$2,FALSE),"No Data") -> 523 | AX81: =IFERROR(VLOOKUP($A81,'2001 Data'!$A$5:$AH$65001,York!AX$2,FALSE),"No Data") -> 318 | AY81: =IFERROR(VLOOKUP($A81,'2001 Data'!$A$5:$AH$65001,York!AY$2,FALSE),"No Data") -> 947 | AZ81: =IFERROR(VLOOKUP($A81,'2001 Data'!$A$5:$AH$65001,York!AZ$2,FALSE),"No Data") -> 147 | BA81: =IFERROR(VLOOKUP($A81,'2001 Data'!$A$5:$AH$65001,York!BA$2,FALSE),"No Data") -> 11687 | BB81: =IFERROR(VLOOKUP($A81,'2001 Data'!$A$5:$AH$65001,York!BB$2,FALSE),"No Data") -> 3126340 | BC81: =IFERROR(VLOOKUP($A81,'2001 Data'!$A$5:$AH$65001,York!BC$2,FALSE),"No Data") -> 2939465 | BE81: V:\Business Intelligence Hub\01 - The City\2011 Census\Data\2nd Release - Key Indicators\Lower Areas and Wards\Initial Briefing\Census 2011 Bulk Data Load\Ward Bulk Data\Key Statisitics Bulk Load\[KEYSTATS FILE2.xlsx]KS105EWDATA | BF81: 2 | BG81: =VLOOKUP(BF81,Sheet3!$B$2:$C$77,2,FALSE) -> $E$7:$E$28 | BH81: 'V:\Business Intelligence Hub\01 - The City\2011 Census\Data\2nd Release - Key Indicators\Lower Areas and Wards\Initial Briefing\Census 2011 Bulk Data Load\Ward Bulk Data\Key Statisitics Bulk Load\[KEYSTATS FILE2.xlsx]KS105EWDATA'!$E$7:$E$28 | BI81: 31 | BJ81: =VLOOKUP(BI81,Sheet3!$B$2:$F$77,5,FALSE) -> $A$1:$ah$28 | BK81: 'V:\Business Intelligence Hub\01 - The City\2011 Census\Data\2nd Release - Key Indicators\Lower Areas and Wards\Initial Briefing\Census 2011 Bulk Data Load\Ward Bulk Data\Key Statisitics Bulk Load\[KEYSTATS FILE2.xlsx]KS105EWDATA'!$A$1:$ah$28
A82: KS105EW0003 | B82: Count | C82: Household | D82: Household composition | E82: One person household: Other | F82: 13 | G82: 16 | H82: 4 | I82: 21 | J82: 9 | K82: 8 | L82: 19 | M82: 2 | N82: 12 | O82: 22 | P82: 6 | Q82: 18 | R82: 3 | S82: 11 | T82: 9 | U82: 1 | V82: 17 | W82: 14 | X82: 7 | Y82: 15 | Z82: 5 | AA82: 20 | AB82: 14421 | AC82: 397529 | AD82: 3940897 | AE82: =IFERROR(VLOOKUP($A82,'2001 Data'!$A$5:$AH$65001,York!AE$2,FALSE),"No Data") -> 309 | AF82: =IFERROR(VLOOKUP($A82,'2001 Data'!$A$5:$AH$65001,York!AF$2,FALSE),"No Data") -> 165 | AG82: =IFERROR(VLOOKUP($A82,'2001 Data'!$A$5:$AH$65001,York!AG$2,FALSE),"No Data") -> 1201 | AH82: =IFERROR(VLOOKUP($A82,'2001 Data'!$A$5:$AH$65001,York!AH$2,FALSE),"No Data") -> 114 | AI82: =IFERROR(VLOOKUP($A82,'2001 Data'!$A$5:$AH$65001,York!AI$2,FALSE),"No Data") -> 579 | AJ82: =IFERROR(VLOOKUP($A82,'2001 Data'!$A$5:$AH$65001,York!AJ$2,FALSE),"No Data") -> 672 | AK82: =IFERROR(VLOOKUP($A82,'2001 Data'!$A$5:$AH$65001,York!AK$2,FALSE),"No Data") -> 133 | AL82: =IFERROR(VLOOKUP($A82,'2001 Data'!$A$5:$AH$65001,York!AL$2,FALSE),"No Data") -> 1201 | AM82: =IFERROR(VLOOKUP($A82,'2001 Data'!$A$5:$AH$65001,York!AM$2,FALSE),"No Data") -> 427 | AN82: =IFERROR(VLOOKUP($A82,'2001 Data'!$A$5:$AH$65001,York!AN$2,FALSE),"No Data") -> 85 | AO82: =IFERROR(VLOOKUP($A82,'2001 Data'!$A$5:$AH$65001,York!AO$2,FALSE),"No Data") -> 748 | AP82: =IFERROR(VLOOKUP($A82,'2001 Data'!$A$5:$AH$65001,York!AP$2,FALSE),"No Data") -> 130 | AQ82: =IFERROR(VLOOKUP($A82,'2001 Data'!$A$5:$AH$65001,York!AQ$2,FALSE),"No Data") -> 1138 | AR82: =IFERROR(VLOOKUP($A82,'2001 Data'!$A$5:$AH$65001,York!AR$2,FALSE),"No Data") -> 463 | AS82: =IFERROR(VLOOKUP($A82,'2001 Data'!$A$5:$AH$65001,York!AS$2,FALSE),"No Data") -> 507 | AT82: =IFERROR(VLOOKUP($A82,'2001 Data'!$A$5:$AH$65001,York!AT$2,FALSE),"No Data") -> 1487 | AU82: =IFERROR(VLOOKUP($A82,'2001 Data'!$A$5:$AH$65001,York!AU$2,FALSE),"No Data") -> 115 | AV82: =IFERROR(VLOOKUP($A82,'2001 Data'!$A$5:$AH$65001,York!AV$2,FALSE),"No Data") -> 344 | AW82: =IFERROR(VLOOKUP($A82,'2001 Data'!$A$5:$AH$65001,York!AW$2,FALSE),"No Data") -> 635 | AX82: =IFERROR(VLOOKUP($A82,'2001 Data'!$A$5:$AH$65001,York!AX$2,FALSE),"No Data") -> 283 | AY82: =IFERROR(VLOOKUP($A82,'2001 Data'!$A$5:$AH$65001,York!AY$2,FALSE),"No Data") -> 968 | AZ82: =IFERROR(VLOOKUP($A82,'2001 Data'!$A$5:$AH$65001,York!AZ$2,FALSE),"No Data") -> 138 | BA82: =IFERROR(VLOOKUP($A82,'2001 Data'!$A$5:$AH$65001,York!BA$2,FALSE),"No Data") -> 11842 | BB82: =IFERROR(VLOOKUP($A82,'2001 Data'!$A$5:$AH$65001,York!BB$2,FALSE),"No Data") -> 3376272 | BC82: =IFERROR(VLOOKUP($A82,'2001 Data'!$A$5:$AH$65001,York!BC$2,FALSE),"No Data") -> 3210799 | BE82: V:\Business Intelligence Hub\01 - The City\2011 Census\Data\2nd Release - Key Indicators\Lower Areas and Wards\Initial Briefing\Census 2011 Bulk Data Load\Ward Bulk Data\Key Statisitics Bulk Load\[KEYSTATS FILE2.xlsx]KS105EWDATA | BF82: 3 | BG82: =VLOOKUP(BF82,Sheet3!$B$2:$C$77,2,FALSE) -> $F$7:$F$28 | BH82: 'V:\Business Intelligence Hub\01 - The City\2011 Census\Data\2nd Release - Key Indicators\Lower Areas and Wards\Initial Briefing\Census 2011 Bulk Data Load\Ward Bulk Data\Key Statisitics Bulk Load\[KEYSTATS FILE2.xlsx]KS105EWDATA'!$F$7:$F$28 | BI82: 31 | BJ82: =VLOOKUP(BI82,Sheet3!$B$2:$F$77,5,FALSE) -> $A$1:$ah$28 | BK82: 'V:\Business Intelligence Hub\01 - The City\2011 Census\Data\2nd Release - Key Indicators\Lower Areas and Wards\Initial Briefing\Census 2011 Bulk Data Load\Ward Bulk Data\Key Statisitics Bulk Load\[KEYSTATS FILE2.xlsx]KS105EWDATA'!$A$1:$ah$28
A83: KS105EW0004 | B83: Count | C83: Household | D83: Household composition | E83: One family only: All aged 65 and over | F83: 8 | G83: 14 | H83: 11 | I83: 13 | J83: 4 | K83: 19 | L83: 21 | M83: 20 | N83: 2 | O83: 22 | P83: 9 | Q83: 12 | R83: 7 | S83: 15 | T83: 1 | U83: 16 | V83: 17 | W83: 3 | X83: 5 | Y83: 10 | Z83: 6 | AA83: 18 | AB83: 7373 | AC83: 186553 | AD83: 1789465 | AE83: =IFERROR(VLOOKUP($A83,'2001 Data'!$A$5:$AH$65001,York!AE$2,FALSE),"No Data") -> 366 | AF83: =IFERROR(VLOOKUP($A83,'2001 Data'!$A$5:$AH$65001,York!AF$2,FALSE),"No Data") -> 231 | AG83: =IFERROR(VLOOKUP($A83,'2001 Data'!$A$5:$AH$65001,York!AG$2,FALSE),"No Data") -> 324 | AH83: =IFERROR(VLOOKUP($A83,'2001 Data'!$A$5:$AH$65001,York!AH$2,FALSE),"No Data") -> 262 | AI83: =IFERROR(VLOOKUP($A83,'2001 Data'!$A$5:$AH$65001,York!AI$2,FALSE),"No Data") -> 547 | AJ83: =IFERROR(VLOOKUP($A83,'2001 Data'!$A$5:$AH$65001,York!AJ$2,FALSE),"No Data") -> 218 | AK83: =IFERROR(VLOOKUP($A83,'2001 Data'!$A$5:$AH$65001,York!AK$2,FALSE),"No Data") -> 158 | AL83: =IFERROR(VLOOKUP($A83,'2001 Data'!$A$5:$AH$65001,York!AL$2,FALSE),"No Data") -> 179 | AM83: =IFERROR(VLOOKUP($A83,'2001 Data'!$A$5:$AH$65001,York!AM$2,FALSE),"No Data") -> 651 | AN83: =IFERROR(VLOOKUP($A83,'2001 Data'!$A$5:$AH$65001,York!AN$2,FALSE),"No Data") -> 35 | AO83: =IFERROR(VLOOKUP($A83,'2001 Data'!$A$5:$AH$65001,York!AO$2,FALSE),"No Data") -> 459 | AP83: =IFERROR(VLOOKUP($A83,'2001 Data'!$A$5:$AH$65001,York!AP$2,FALSE),"No Data") -> 298 | AQ83: =IFERROR(VLOOKUP($A83,'2001 Data'!$A$5:$AH$65001,York!AQ$2,FALSE),"No Data") -> 408 | AR83: =IFERROR(VLOOKUP($A83,'2001 Data'!$A$5:$AH$65001,York!AR$2,FALSE),"No Data") -> 285 | AS83: =IFERROR(VLOOKUP($A83,'2001 Data'!$A$5:$AH$65001,York!AS$2,FALSE),"No Data") -> 728 | AT83: =IFERROR(VLOOKUP($A83,'2001 Data'!$A$5:$AH$65001,York!AT$2,FALSE),"No Data") -> 248 | AU83: =IFERROR(VLOOKUP($A83,'2001 Data'!$A$5:$AH$65001,York!AU$2,FALSE),"No Data") -> 216 | AV83: =IFERROR(VLOOKUP($A83,'2001 Data'!$A$5:$AH$65001,York!AV$2,FALSE),"No Data") -> 574 | AW83: =IFERROR(VLOOKUP($A83,'2001 Data'!$A$5:$AH$65001,York!AW$2,FALSE),"No Data") -> 462 | AX83: =IFERROR(VLOOKUP($A83,'2001 Data'!$A$5:$AH$65001,York!AX$2,FALSE),"No Data") -> 291 | AY83: =IFERROR(VLOOKUP($A83,'2001 Data'!$A$5:$AH$65001,York!AY$2,FALSE),"No Data") -> 490 | AZ83: =IFERROR(VLOOKUP($A83,'2001 Data'!$A$5:$AH$65001,York!AZ$2,FALSE),"No Data") -> 174 | BA83: =IFERROR(VLOOKUP($A83,'2001 Data'!$A$5:$AH$65001,York!BA$2,FALSE),"No Data") -> 7604 | BB83: =IFERROR(VLOOKUP($A83,'2001 Data'!$A$5:$AH$65001,York!BB$2,FALSE),"No Data") -> 1942737 | BC83: =IFERROR(VLOOKUP($A83,'2001 Data'!$A$5:$AH$65001,York!BC$2,FALSE),"No Data") -> 1826453 | BE83: V:\Business Intelligence Hub\01 - The City\2011 Census\Data\2nd Release - Key Indicators\Lower Areas and Wards\Initial Briefing\Census 2011 Bulk Data Load\Ward Bulk Data\Key Statisitics Bulk Load\[KEYSTATS FILE2.xlsx]KS105EWDATA | BF83: 4 | BG83: =VLOOKUP(BF83,Sheet3!$B$2:$C$77,2,FALSE) -> $g$7:$g$28 | BH83: 'V:\Business Intelligence Hub\01 - The City\2011 Census\Data\2nd Release - Key Indicators\Lower Areas and Wards\Initial Briefing\Census 2011 Bulk Data Load\Ward Bulk Data\Key Statisitics Bulk Load\[KEYSTATS FILE2.xlsx]KS105EWDATA'!$g$7:$g$28 | BI83: 31 | BJ83: =VLOOKUP(BI83,Sheet3!$B$2:$F$77,5,FALSE) -> $A$1:$ah$28 | BK83: 'V:\Business Intelligence Hub\01 - The City\2011 Census\Data\2nd Release - Key Indicators\Lower Areas and Wards\Initial Briefing\Census 2011 Bulk Data Load\Ward Bulk Data\Key Statisitics Bulk Load\[KEYSTATS FILE2.xlsx]KS105EWDATA'!$A$1:$ah$28
A84: KS105EW0005 | B84: Count | C84: Household | D84: Household composition | E84: One family only: Married or same-sex civil partnership couple: No children | F84: 12 | G84: 16 | H84: 11 | I84: 19 | J84: 4 | K84: 13 | L84: 21 | M84: 15 | N84: 1 | O84: 22 | P84: 10 | Q84: 18 | R84: 6 | S84: 14 | T84: 5 | U84: 7 | V84: 20 | W84: 3 | X84: 2 | Y84: 9 | Z84: 8 | AA84: 17 | AB84: 11238 | AC84: 292692 | AD84: 2719210 | AE84: =IFERROR(VLOOKUP($A84,'2001 Data'!$A$5:$AH$65001,York!AE$2,FALSE),"No Data") -> 463 | AF84: =IFERROR(VLOOKUP($A84,'2001 Data'!$A$5:$AH$65001,York!AF$2,FALSE),"No Data") -> 293 | AG84: =IFERROR(VLOOKUP($A84,'2001 Data'!$A$5:$AH$65001,York!AG$2,FALSE),"No Data") -> 535 | AH84: =IFERROR(VLOOKUP($A84,'2001 Data'!$A$5:$AH$65001,York!AH$2,FALSE),"No Data") -> 311 | AI84: =IFERROR(VLOOKUP($A84,'2001 Data'!$A$5:$AH$65001,York!AI$2,FALSE),"No Data") -> 767 | AJ84: =IFERROR(VLOOKUP($A84,'2001 Data'!$A$5:$AH$65001,York!AJ$2,FALSE),"No Data") -> 348 | AK84: =IFERROR(VLOOKUP($A84,'2001 Data'!$A$5:$AH$65001,York!AK$2,FALSE),"No Data") -> 164 | AL84: =IFERROR(VLOOKUP($A84,'2001 Data'!$A$5:$AH$65001,York!AL$2,FALSE),"No Data") -> 311 | AM84: =IFERROR(VLOOKUP($A84,'2001 Data'!$A$5:$AH$65001,York!AM$2,FALSE),"No Data") -> 947 | AN84: =IFERROR(VLOOKUP($A84,'2001 Data'!$A$5:$AH$65001,York!AN$2,FALSE),"No Data") -> 57 | AO84: =IFERROR(VLOOKUP($A84,'2001 Data'!$A$5:$AH$65001,York!AO$2,FALSE),"No Data") -> 485 | AP84: =IFERROR(VLOOKUP($A84,'2001 Data'!$A$5:$AH$65001,York!AP$2,FALSE),"No Data") -> 311 | AQ84: =IFERROR(VLOOKUP($A84,'2001 Data'!$A$5:$AH$65001,York!AQ$2,FALSE),"No Data") -> 610 | AR84: =IFERROR(VLOOKUP($A84,'2001 Data'!$A$5:$AH$65001,York!AR$2,FALSE),"No Data") -> 408 | AS84: =IFERROR(VLOOKUP($A84,'2001 Data'!$A$5:$AH$65001,York!AS$2,FALSE),"No Data") -> 837 | AT84: =IFERROR(VLOOKUP($A84,'2001 Data'!$A$5:$AH$65001,York!AT$2,FALSE),"No Data") -> 596 | AU84: =IFERROR(VLOOKUP($A84,'2001 Data'!$A$5:$AH$65001,York!AU$2,FALSE),"No Data") -> 206 | AV84: =IFERROR(VLOOKUP($A84,'2001 Data'!$A$5:$AH$65001,York!AV$2,FALSE),"No Data") -> 776 | AW84: =IFERROR(VLOOKUP($A84,'2001 Data'!$A$5:$AH$65001,York!AW$2,FALSE),"No Data") -> 858 | AX84: =IFERROR(VLOOKUP($A84,'2001 Data'!$A$5:$AH$65001,York!AX$2,FALSE),"No Data") -> 598 | AY84: =IFERROR(VLOOKUP($A84,'2001 Data'!$A$5:$AH$65001,York!AY$2,FALSE),"No Data") -> 606 | AZ84: =IFERROR(VLOOKUP($A84,'2001 Data'!$A$5:$AH$65001,York!AZ$2,FALSE),"No Data") -> 327 | BA84: =IFERROR(VLOOKUP($A84,'2001 Data'!$A$5:$AH$65001,York!BA$2,FALSE),"No Data") -> 10814 | BB84: =IFERROR(VLOOKUP($A84,'2001 Data'!$A$5:$AH$65001,York!BB$2,FALSE),"No Data") -> 2815158 | BC84: =IFERROR(VLOOKUP($A84,'2001 Data'!$A$5:$AH$65001,York!BC$2,FALSE),"No Data") -> 2656440 | BE84: V:\Business Intelligence Hub\01 - The City\2011 Census\Data\2nd Release - Key Indicators\Lower Areas and Wards\Initial Briefing\Census 2011 Bulk Data Load\Ward Bulk Data\Key Statisitics Bulk Load\[KEYSTATS FILE2.xlsx]KS105EWDATA | BF84: 5 | BG84: =VLOOKUP(BF84,Sheet3!$B$2:$C$77,2,FALSE) -> $h$7:$h$28 | BH84: 'V:\Business Intelligence Hub\01 - The City\2011 Census\Data\2nd Release - Key Indicators\Lower Areas and Wards\Initial Briefing\Census 2011 Bulk Data Load\Ward Bulk Data\Key Statisitics Bulk Load\[KEYSTATS FILE2.xlsx]KS105EWDATA'!$h$7:$h$28 | BI84: 31 | BJ84: =VLOOKUP(BI84,Sheet3!$B$2:$F$77,5,FALSE) -> $A$1:$ah$28 | BK84: 'V:\Business Intelligence Hub\01 - The City\2011 Census\Data\2nd Release - Key Indicators\Lower Areas and Wards\Initial Briefing\Census 2011 Bulk Data Load\Ward Bulk Data\Key Statisitics Bulk Load\[KEYSTATS FILE2.xlsx]KS105EWDATA'!$A$1:$ah$28
A85: KS105EW0006 | B85: Count | C85: Household | D85: Household composition | E85: One family only: Married or same-sex civil partnership couple: Dependent children | F85: 12 | G85: 16 | H85: 10 | I85: 17 | J85: 4 | K85: 13 | L85: 21 | M85: 19 | N85: 3 | O85: 22 | P85: 7 | Q85: 18 | R85: 5 | S85: 15 | T85: 8 | U85: 11 | V85: 20 | W85: 2 | X85: 1 | Y85: 6 | Z85: 9 | AA85: 14 | AB85: 11855 | AC85: 323948 | AD85: 3375890 | AE85: =IFERROR(VLOOKUP($A85,'2001 Data'!$A$5:$AH$65001,York!AE$2,FALSE),"No Data") -> 626 | AF85: =IFERROR(VLOOKUP($A85,'2001 Data'!$A$5:$AH$65001,York!AF$2,FALSE),"No Data") -> 319 | AG85: =IFERROR(VLOOKUP($A85,'2001 Data'!$A$5:$AH$65001,York!AG$2,FALSE),"No Data") -> 607 | AH85: =IFERROR(VLOOKUP($A85,'2001 Data'!$A$5:$AH$65001,York!AH$2,FALSE),"No Data") -> 278 | AI85: =IFERROR(VLOOKUP($A85,'2001 Data'!$A$5:$AH$65001,York!AI$2,FALSE),"No Data") -> 856 | AJ85: =IFERROR(VLOOKUP($A85,'2001 Data'!$A$5:$AH$65001,York!AJ$2,FALSE),"No Data") -> 436 | AK85: =IFERROR(VLOOKUP($A85,'2001 Data'!$A$5:$AH$65001,York!AK$2,FALSE),"No Data") -> 169 | AL85: =IFERROR(VLOOKUP($A85,'2001 Data'!$A$5:$AH$65001,York!AL$2,FALSE),"No Data") -> 194 | AM85: =IFERROR(VLOOKUP($A85,'2001 Data'!$A$5:$AH$65001,York!AM$2,FALSE),"No Data") -> 1082 | AN85: =IFERROR(VLOOKUP($A85,'2001 Data'!$A$5:$AH$65001,York!AN$2,FALSE),"No Data") -> 104 | AO85: =IFERROR(VLOOKUP($A85,'2001 Data'!$A$5:$AH$65001,York!AO$2,FALSE),"No Data") -> 790 | AP85: =IFERROR(VLOOKUP($A85,'2001 Data'!$A$5:$AH$65001,York!AP$2,FALSE),"No Data") -> 283 | AQ85: =IFERROR(VLOOKUP($A85,'2001 Data'!$A$5:$AH$65001,York!AQ$2,FALSE),"No Data") -> 798 | AR85: =IFERROR(VLOOKUP($A85,'2001 Data'!$A$5:$AH$65001,York!AR$2,FALSE),"No Data") -> 476 | AS85: =IFERROR(VLOOKUP($A85,'2001 Data'!$A$5:$AH$65001,York!AS$2,FALSE),"No Data") -> 835 | AT85: =IFERROR(VLOOKUP($A85,'2001 Data'!$A$5:$AH$65001,York!AT$2,FALSE),"No Data") -> 488 | AU85: =IFERROR(VLOOKUP($A85,'2001 Data'!$A$5:$AH$65001,York!AU$2,FALSE),"No Data") -> 227 | AV85: =IFERROR(VLOOKUP($A85,'2001 Data'!$A$5:$AH$65001,York!AV$2,FALSE),"No Data") -> 936 | AW85: =IFERROR(VLOOKUP($A85,'2001 Data'!$A$5:$AH$65001,York!AW$2,FALSE),"No Data") -> 1139 | AX85: =IFERROR(VLOOKUP($A85,'2001 Data'!$A$5:$AH$65001,York!AX$2,FALSE),"No Data") -> 808 | AY85: =IFERROR(VLOOKUP($A85,'2001 Data'!$A$5:$AH$65001,York!AY$2,FALSE),"No Data") -> 846 | AZ85: =IFERROR(VLOOKUP($A85,'2001 Data'!$A$5:$AH$65001,York!AZ$2,FALSE),"No Data") -> 389 | BA85: =IFERROR(VLOOKUP($A85,'2001 Data'!$A$5:$AH$65001,York!BA$2,FALSE),"No Data") -> 12686 | BB85: =IFERROR(VLOOKUP($A85,'2001 Data'!$A$5:$AH$65001,York!BB$2,FALSE),"No Data") -> 3802703 | BC85: =IFERROR(VLOOKUP($A85,'2001 Data'!$A$5:$AH$65001,York!BC$2,FALSE),"No Data") -> 3591335 | BE85: V:\Business Intelligence Hub\01 - The City\2011 Census\Data\2nd Release - Key Indicators\Lower Areas and Wards\Initial Briefing\Census 2011 Bulk Data Load\Ward Bulk Data\Key Statisitics Bulk Load\[KEYSTATS FILE2.xlsx]KS105EWDATA | BF85: 6 | BG85: =VLOOKUP(BF85,Sheet3!$B$2:$C$77,2,FALSE) -> $i$7:$i$28 | BH85: 'V:\Business Intelligence Hub\01 - The City\2011 Census\Data\2nd Release - Key Indicators\Lower Areas and Wards\Initial Briefing\Census 2011 Bulk Data Load\Ward Bulk Data\Key Statisitics Bulk Load\[KEYSTATS FILE2.xlsx]KS105EWDATA'!$i$7:$i$28 | BI85: 31 | BJ85: =VLOOKUP(BI85,Sheet3!$B$2:$F$77,5,FALSE) -> $A$1:$ah$28 | BK85: 'V:\Business Intelligence Hub\01 - The City\2011 Census\Data\2nd Release - Key Indicators\Lower Areas and Wards\Initial Briefing\Census 2011 Bulk Data Load\Ward Bulk Data\Key Statisitics Bulk Load\[KEYSTATS FILE2.xlsx]KS105EWDATA'!$A$1:$ah$28
A86: KS105EW0007 | B86: Count | C86: Household | D86: Household composition | E86: One family only: Married or same-sex civil partnership couple: All children non-dependent | F86: 8 | G86: 17 | H86: 11 | I86: 19 | J86: 5 | K86: 14 | L86: 21 | M86: 20 | N86: 1 | O86: 22 | P86: 6 | Q86: 15 | R86: 9 | S86: 12 | T86: 2 | U86: 13 | V86: 18 | W86: 7 | X86: 3 | Y86: 10 | Z86: 3 | AA86: 16 | AB86: 3946 | AC86: 122974 | AD86: 1234355 | AE86: =IFERROR(VLOOKUP($A86,'2001 Data'!$A$5:$AH$65001,York!AE$2,FALSE),"No Data") -> 237 | AF86: =IFERROR(VLOOKUP($A86,'2001 Data'!$A$5:$AH$65001,York!AF$2,FALSE),"No Data") -> 126 | AG86: =IFERROR(VLOOKUP($A86,'2001 Data'!$A$5:$AH$65001,York!AG$2,FALSE),"No Data") -> 214 | AH86: =IFERROR(VLOOKUP($A86,'2001 Data'!$A$5:$AH$65001,York!AH$2,FALSE),"No Data") -> 107 | AI86: =IFERROR(VLOOKUP($A86,'2001 Data'!$A$5:$AH$65001,York!AI$2,FALSE),"No Data") -> 314 | AJ86: =IFERROR(VLOOKUP($A86,'2001 Data'!$A$5:$AH$65001,York!AJ$2,FALSE),"No Data") -> 138 | AK86: =IFERROR(VLOOKUP($A86,'2001 Data'!$A$5:$AH$65001,York!AK$2,FALSE),"No Data") -> 67 | AL86: =IFERROR(VLOOKUP($A86,'2001 Data'!$A$5:$AH$65001,York!AL$2,FALSE),"No Data") -> 55 | AM86: =IFERROR(VLOOKUP($A86,'2001 Data'!$A$5:$AH$65001,York!AM$2,FALSE),"No Data") -> 418 | AN86: =IFERROR(VLOOKUP($A86,'2001 Data'!$A$5:$AH$65001,York!AN$2,FALSE),"No Data") -> 15 | AO86: =IFERROR(VLOOKUP($A86,'2001 Data'!$A$5:$AH$65001,York!AO$2,FALSE),"No Data") -> 239 | AP86: =IFERROR(VLOOKUP($A86,'2001 Data'!$A$5:$AH$65001,York!AP$2,FALSE),"No Data") -> 120 | AQ86: =IFERROR(VLOOKUP($A86,'2001 Data'!$A$5:$AH$65001,York!AQ$2,FALSE),"No Data") -> 239 | AR86: =IFERROR(VLOOKUP($A86,'2001 Data'!$A$5:$AH$65001,York!AR$2,FALSE),"No Data") -> 212 | AS86: =IFERROR(VLOOKUP($A86,'2001 Data'!$A$5:$AH$65001,York!AS$2,FALSE),"No Data") -> 356 | AT86: =IFERROR(VLOOKUP($A86,'2001 Data'!$A$5:$AH$65001,York!AT$2,FALSE),"No Data") -> 148 | AU86: =IFERROR(VLOOKUP($A86,'2001 Data'!$A$5:$AH$65001,York!AU$2,FALSE),"No Data") -> 93 | AV86: =IFERROR(VLOOKUP($A86,'2001 Data'!$A$5:$AH$65001,York!AV$2,FALSE),"No Data") -> 264 | AW86: =IFERROR(VLOOKUP($A86,'2001 Data'!$A$5:$AH$65001,York!AW$2,FALSE),"No Data") -> 292 | AX86: =IFERROR(VLOOKUP($A86,'2001 Data'!$A$5:$AH$65001,York!AX$2,FALSE),"No Data") -> 185 | AY86: =IFERROR(VLOOKUP($A86,'2001 Data'!$A$5:$AH$65001,York!AY$2,FALSE),"No Data") -> 297 | AZ86: =IFERROR(VLOOKUP($A86,'2001 Data'!$A$5:$AH$65001,York!AZ$2,FALSE),"No Data") -> 84 | BA86: =IFERROR(VLOOKUP($A86,'2001 Data'!$A$5:$AH$65001,York!BA$2,FALSE),"No Data") -> 4220 | BB86: =IFERROR(VLOOKUP($A86,'2001 Data'!$A$5:$AH$65001,York!BB$2,FALSE),"No Data") -> 1297454 | BC86: =IFERROR(VLOOKUP($A86,'2001 Data'!$A$5:$AH$65001,York!BC$2,FALSE),"No Data") -> 1218191 | BE86: V:\Business Intelligence Hub\01 - The City\2011 Census\Data\2nd Release - Key Indicators\Lower Areas and Wards\Initial Briefing\Census 2011 Bulk Data Load\Ward Bulk Data\Key Statisitics Bulk Load\[KEYSTATS FILE2.xlsx]KS105EWDATA | BF86: 7 | BG86: =VLOOKUP(BF86,Sheet3!$B$2:$C$77,2,FALSE) -> $j$7:$j$28 | BH86: 'V:\Business Intelligence Hub\01 - The City\2011 Census\Data\2nd Release - Key Indicators\Lower Areas and Wards\Initial Briefing\Census 2011 Bulk Data Load\Ward Bulk Data\Key Statisitics Bulk Load\[KEYSTATS FILE2.xlsx]KS105EWDATA'!$j$7:$j$28 | BI86: 31 | BJ86: =VLOOKUP(BI86,Sheet3!$B$2:$F$77,5,FALSE) -> $A$1:$ah$28 | BK86: 'V:\Business Intelligence Hub\01 - The City\2011 Census\Data\2nd Release - Key Indicators\Lower Areas and Wards\Initial Briefing\Census 2011 Bulk Data Load\Ward Bulk Data\Key Statisitics Bulk Load\[KEYSTATS FILE2.xlsx]KS105EWDATA'!$A$1:$ah$28
